Workbook

Sheet About
B1: ABOUT FILE
A2: M S Excel 2007 esa ;g ,d esdzks ;qDr Qkby gS ftlds }kjk ekg fnlEcj 2014 rd dk ,lhih ,fj;j cuk;k tk ldrk gS A bldsmi;ksx ls iwoZ fnukad QkesZV "dd/mm/yyyy" djuk vko';d gS rkfd lgh x.kukgks lds Ablds ckn ,Mz~sl ckj dsmij vkI'ku dks fDyd dj esdzks ,uscy fd;k tkuk gS Alacaf/kr dkye esa okafNr lwpuk Hkjsa A vuqnkfur fo|ky;ksa ls vk;s dkfeZdks ds ,fj;j dk izko/kku lekfo"V fd, tkus ls Lohd`fr fnukad ,oa ,fj;j vo/kh gsrq vyx vyx dkye fu;r fd, x, gSa A HkRrs ,oa dVkSfr;ksa dk p;u lacaf/kr dkye esa fyLV ls djuk gS A
A11: ljs.Mj gsrq ;Fkk LFkku vko';d iwfrZ djsa A ;fn okLrfod vkgfjr osru ,oa Lohd`fr fnukad dks LFkjhdj.k gsrq osru esa fHkUurk gks rks dkye lh 35 ls Mh 38 dk mi;ksx djsa Aekg ,oa fnol vafdr djuk gS AvoSrfud vodk'k ,oa v)Z osru dk izHkko n'kkZus gsrq izLrkfor dkye esa ekg ds dkye esa ekg dh izFke fnukad vafdr djuk gS ,oa izLrkfor LFkku ij vodk'k fnol vfdr djuk gS A
A15: pwafd ;g izksxzke fnlEcj 14 rd gS vr% le; le; ij c<+us okys egxkbZ HkRrs gsrq LFkku izLrkfor fd;k x;k gS blesa jsV ds dkye esa fcuk izfr'kr dk fu'kku yxk;s lEcf/kr ekg ds le{k ?kksf"kr nj ,aoe vkxkeh dkye esa thih,Q esa tek gksus okys ekg vafdr djus gS ftlls lEcfU/kr ekg esa egxkbZ HkRrk viMsV gksdj thih,Q dh izHkkfor gksus okyh dVkSfr gks ldsxh A
A19: ;g Qkby dkfeZdks dh lqfo/kk ,aoe lg;ksx ds n`f"Vxr rS;kj dh xbZ gS blesa x.kuk dks iqu% O;fDr'k% tkap dj gh dke esa ys fdlh izdkj dh =qfV gsrq Qkby rS;kjdrkZ mRrjnk;h ugha gksxkA
A23: blds mi;ksx esa fdlh izdkj dh dfBukbZ gks vFkok vkids dksbZ lq>ko gks rks lnSo vkeaf=r gS
A24: d`i;k vki vius lq>ko @leL;k uhps fn;s irs ij esy Hkh dj ldrs gSA
A27: Password acp2017
C31: vkidk gh
A33: Update 13-10-2015 Tuesday
C34: jes'k /kkHkkbZ dk;kZy; lgk;d jkiVsy mekfo&C;koj gurjar511@gmail.com
A43: rakesh
M239: bUgsa 31-12-06 rd dh vo/kh gsrq dksbZ ,fj;j ns; ugha gksxk

Sheet Entry
A1: ACP Pay Fixtation Order & Arrear For State Employees , PLEASE Fill Required INFORMATION
V2: A | W2: DA | X2: Y | Y2: 0.1 | Z2: 0
A3: dk;kZy; | C3: iz/kkukpk;Z jktdh; iVsy mPp ek?;fed fo|ky;]C;koj | V3: B | W3: All | X3: N | Y3: 0.2 | Z3: 10
A4: Lohd`fr drkZ | C4: mifuns'kd ek/;fed f'k{kk vtesj e.My vtesj | V4: N | W4: Nill | Y4: Nill | Z4: 20
A5: vkns'kkad | Z5: 30
A6: deZpkjh dk uke | C6: Jh egsUnz iky oekZ | F6: By- R.C. DHABHAI-O.A. Govt Patel Sr Sec Sch. BEAWAR(AJMER)
A7: in | C7: o0v0
A8: inLFkkiu LFkku
A9: ns; Lohd`fr fnukad | C9: 2015-09-04 | D9: Lohd`r xzsM is | F9: 5400 | G9: lsok o"kZ | H9: 18 | I9: =IF(OR(H9=9,H9<17),"izFke",IF(OR(H9=18,H9<27),"f}rh;",IF(H9>=27,"r`rh;"))) -> f}rh;
A10: ,lhih 01&07&2013 ds iwoZ dh fnukad ls gksus dh fLFkfr esa Lohd`fr fnukad dksa dze'k% 01-09-06 ,oa 01-01-06 ds rgr LFkjhdj.k Lo:i ns; osru dh fLFkfr;ka vafdr djsa ,oa 01&07&13 vFkok i'pkr dh frfFk ls Lohd`fr ds ekeeys esa 01&01&06 ds LFkjhdj.k Lo:i ns; osru fu;r dkyEl esa vafdr djuk gS
A12: Lohd`fr fnukad dks osru | C12: As Per Fix 01-09-06 | F12: xzsM is | H12: ;ksx | I12: =E12+G12 -> 0
A13: Lohd`fr fnukad dks osru | C13: As Per Fix 01-01-06 | E13: 18990 | F13: xzsM is | G13: 4800 | H13: ;ksx | I13: =E13+G13 -> 23790
A14: fnukad 01&07&13 dks vkgfjr xzsM is & | E14: fnukad 01&07&13 dks ns; xzsM is & | I14: if ACP pre 01-07-13
A15: DDO Office Name | C15: PRINCIPAL GOVT SENIOR SEC.SCH.KANKROLI-RAJSAMAND | G15: TREASURY | H15: RAJSAMAND
A16: ARREAR FROM | C16: 2015-09-04 | D16: ARREAR UP TO | F16: 2015-10-31 | H16: DDO-DETAIL
A17: ALLOWANCES | C17: PERSONAL DETAIL | F17: PLAN /NonPLAN | H17: Non Plan
A18: DA | B18: Y | C18: GPF No | D18: 815428 | F18: Voted/Charged | H18: Voted
A19: HRA | B19: 0.1 | C19: SI No | D19: 723626 | F19: BUDGET HEAD | H19: 2202-02-109-01-00
A20: CCA | B20: N | C20: ID No | D20: RJRA199431000302 | F20: TAN NO | H20: JDHR04285D
C21: BANK | D21: SBBJ | F21: DDONO | H21: 70036
C22: A/C No | D22: 51060322803 | F22: OID | H22: 18273
A23: DEDUCATIONS | F23: B.No | H23: 16
A24: GPF | B24: All | F24: Date | H24: 2013-07-01
A25: SI | B25: N | F25: DEMAND No | H25: 24
A26: HRA | B26: Y | F26: OBJECT CODE | H26: 01
A27: RPMF | B27: Y | D27: In Month Coloum Use Ist of month as "dd/mm/yyyy"↓
A28: CPF | B28: N | C28: LWP OR HALF PAY EFFECT IF ANY ( Fill Days Of Leave Taken)
C29: Month | D29: HPL | E29: LWP | G29: Month | H29: HPL | I29: LWP
A30: TDS | B30: 0 | C30: ( Effect for Due pay) | G30: ( Effect For Drawn Pay)
A31: SURRENDER | G31: =IF(C31="","",C31) ->  | H31: =IF(D31="","",D31) ->  | I31: =IF(E31="","",E31) -> 
A32: Month | B32: Days | G32: =IF(C32="","",C32) ->  | H32: =IF(D32="","",D32) ->  | I32: =IF(E32="","",E32) -> 
A33: 2008-08-01
A34: 2009-08-01
A35: 2010-08-01
A36: 2011-08-01
A37: 2012-08-01
A38: 2013-08-01 | C38: FILL MANUALY if Drawn is Differ From Order else Leave Blank
A39: 2014-08-01 | C39: DATE | D39: Drawn Pay | G39: ;fn fdlh deZpkjh dk okLrfod vkgfjr osru ,oa ,lhih esa osrufu/kkZj.k iwoZ dk osru fHkUu gks rks vkgfjr osru dk fooj.k okLrfod vkgj.k vuq:i Hkjk tkos ;Fkk fdlh deZpkjh dks 2&07&11 ls ,lhih Lohd`r gqbZ ,oa mls vkt rd twu 11 dh nj ls osru fn;k x;k rks ek= fnukad dkye esa 01@07@2011 ,oa osru dkye esa twu 11 dk osru vafdr djuk gS 'ks"k dkye fjDr jgusa nsa A
A40: 2015-04-01 | E40: ← →
Q50: =#REF! ->  | R50: =YEAR(H47) -> 1900 | S50: =LEFT(#REF!,1) ->  | U50: =RIGHT(T50,1) -> 

Sheet OrderNew
A1: =Entry!C3 -> iz/kkukpk;Z jktdh; iVsy mPp ek?;fed fo|ky;]C;koj
A2: dk;kZy; & vkns'k
A3: ='RC'!G244 -> Jheku mifuns'kd ek/;fed f'k{kk vtesj e.My vtesj ds vkns'kkad & }kjk Jh egsUnz iky oekZ o0v0 dks fnukad 04&09&2015 ls f}rh; ,';ksjM dSfj;j izkxs'ku¼,lhih½ xszM is 5400 Lohd`r fd, tkus ls mDr vkns'kksa ds funZs'kk/khu budk osru fu/kkZj.k fuEukuqlkj fd;k tkdj vkxkeh osru o`f);ka Lohd`r dh tkrh gS A
A7: ,lhih Lohd`fr frfFk ,oa Lohd`r xzsM is | B7: Lohd`fr frfFk dks | E7: vkxkeh osru o`f) dh fnukad | F7: osru o`f) frfFk dkas fLFkfr
B8: osru | C8: o`f) dh tkus okyh jk'kh | D8: fu/kkZfjr osru | F8: ,lhih iwoZ dk osru | J8: ,lhih ckn la'kksf/kr osru
B9: xzsM is | D9: xzsM is
B10: jfuax is cS.M | D10: jfuax is cS.M | F10: PAY | G10: GP | H10: Total | J10: PAY | K10: GP | L10: Total
A11: =IF('RC'!AF$18="",'RC'!AF27,'RC'!AF18) -> 2015-09-04 | B11: =IF('RC'!AF$18="",'RC'!AG27,'RC'!AG18) -> 18990 | C11: =IF('RC'!AF$18="",'RC'!AH27,'RC'!AH18) -> 720 | D11: =IF('RC'!AF$18="",'RC'!AI27,'RC'!AI18) -> 19710 | E11: =IF('RC'!AF$18="",'RC'!AJ27,'RC'!AJ18) -> 2016-07-01 | F11: =IF(E11="","",IF('RC'!AG$18="",'RC'!AK27,'RC'!AK18)) ->  | G11: =IF(F11="","",IF('RC'!AH$18="",'RC'!AL27,'RC'!AL18)) ->  | H11: =IF(F11="","",SUM(F11:G11)) ->  | J11: =IF(E11="","",IF('RC'!AJ$18="",'RC'!AN27,'RC'!AN18)) ->  | K11: =IF(J11="","",IF('RC'!AK$18="",'RC'!AO27,'RC'!AO18)) ->  | L11: =IF(J11="","",SUM(J11:K11)) -> 
A12: =IF('RC'!AF$18="",'RC'!AF28,'RC'!AF19) -> 5400 | B12: =IF('RC'!AF$18="",'RC'!AG28,'RC'!AG19) -> 4800 | C12: =IF('RC'!AF$18="",'RC'!AH28,'RC'!AH19) -> 600 | D12: =IF('RC'!AF$18="",'RC'!AI28,'RC'!AI19) -> 5400 | E12: =IF('RC'!AF$18="",'RC'!AJ28,'RC'!AJ19) ->  | F12: =IF(E12="","",IF('RC'!AG$18="",'RC'!AK28,'RC'!AK19)) ->  | G12: =IF(F12="","",IF('RC'!AH$18="",'RC'!AL28,'RC'!AL19)) ->  | H12: =IF(F12="","",SUM(F12:G12)) ->  | J12: =IF(E12="","",IF('RC'!AJ$18="",'RC'!AN28,'RC'!AN19)) ->  | K12: =IF(J12="","",IF('RC'!AK$18="",'RC'!AO28,'RC'!AO19)) ->  | L12: =IF(J12="","",SUM(J12:K12)) -> 
A13: =IF('RC'!AF$18="",'RC'!AF29,'RC'!AF20) -> f}rh; | B13: =IF('RC'!AF$18="",'RC'!AG29,'RC'!AG20) -> 23790 | D13: =IF('RC'!AF$18="",'RC'!AI29,'RC'!AI20) -> 25110 | E13: =IF('RC'!AF$18="",'RC'!AJ29,'RC'!AJ20) ->  | F13: =IF(E13="","",IF('RC'!AG$18="",'RC'!AK29,'RC'!AK20)) ->  | G13: =IF(F13="","",IF('RC'!AH$18="",'RC'!AL29,'RC'!AL20)) ->  | J13: =IF(E13="","",IF('RC'!AJ$18="",'RC'!AN29,'RC'!AN20)) ->  | K13: =IF(J13="","",IF('RC'!AK$18="",'RC'!AO29,'RC'!AO20)) -> 
B14: =IF('RC'!AF$18="",'RC'!AG30,'RC'!AG21) -> 9300-34800 | D14: =IF('RC'!AF$18="",'RC'!AI30,'RC'!AI21) -> 9300-34800 | E14: =IF('RC'!AF$18="",'RC'!AJ30,'RC'!AJ21) ->  | F14: =IF(E14="","",IF('RC'!AG$18="",'RC'!AK30,'RC'!AK21)) ->  | G14: =IF(F14="","",IF('RC'!AH$18="",'RC'!AL30,'RC'!AL21)) ->  | J14: =IF(E14="","",IF('RC'!AJ$18="",'RC'!AN30,'RC'!AN21)) ->  | K14: =IF(J14="","",IF('RC'!AK$18="",'RC'!AO30,'RC'!AO21)) -> 
B15: =IF('RC'!AJ4="A","Arrear up to 30-06-2013","") ->  | E15: =IF('RC'!AF$18="",'RC'!AJ31,'RC'!AJ22) ->  | F15: =IF(E15="","",IF('RC'!AG$18="",'RC'!AK31,'RC'!AK22)) ->  | G15: =IF(F15="","",IF('RC'!AH$18="",'RC'!AL31,'RC'!AL22)) ->  | J15: =IF(E15="","",IF('RC'!AJ$18="",'RC'!AN31,'RC'!AN22)) ->  | K15: =IF(J15="","",IF('RC'!AK$18="",'RC'!AO31,'RC'!AO22)) -> 
E16: =IF('RC'!AF$18="",'RC'!AJ32,'RC'!AJ23) ->  | F16: =IF(E16="","",IF('RC'!AG$18="",'RC'!AK32,'RC'!AK23)) ->  | G16: =IF(F16="","",IF('RC'!AH$18="",'RC'!AL32,'RC'!AL23)) ->  | J16: =IF(E16="","",IF('RC'!AJ$18="",'RC'!AN32,'RC'!AN23)) ->  | K16: =IF(J16="","",IF('RC'!AK$18="",'RC'!AO32,'RC'!AO23)) -> 
A17: =IF('RC'!AJ4="A","Pay Detail As Per RPS 2008 ivth Amendment","") ->  | E17: =IF('RC'!AF$18="",'RC'!AJ33,'RC'!AJ24) ->  | F17: =IF(E17="","",IF('RC'!AG$18="",'RC'!AK33,'RC'!AK24)) ->  | G17: =IF(F17="","",IF('RC'!AH$18="",'RC'!AL33,'RC'!AL24)) ->  | J17: =IF(E17="","",IF('RC'!AJ$18="",'RC'!AN33,'RC'!AN24)) ->  | K17: =IF(J17="","",IF('RC'!AK$18="",'RC'!AO33,'RC'!AO24)) -> 
A18: =IF(A$17="","",'RC'!AF27) ->  | B18: =IF($A$17="","",'RC'!AG27) ->  | C18: =IF($A$17="","",'RC'!AH27) ->  | D18: =IF($A$17="","",'RC'!AI27) ->  | E18: =IF(B$18='RC'!AG$27,'RC'!AJ27,IF(E17>Entry!F$16,"",IF(B$11='RC'!AG$27,'RC'!AJ34,'RC'!AJ25))) ->  | F18: =IF(E18="","",IF('RC'!AG$18="",'RC'!AK34,IF('RC'!AG$27=OrderNew!B$18,'RC'!AK27,'RC'!AK25))) ->  | G18: =IF(F18="","",INDEX('RC'!AL$18:AL$38,MATCH(OrderNew!F18,'RC'!AK$18:AK$38,0))) ->  | J18: =IF(F18="","",INDEX('RC'!AN$18:AN$38,MATCH(OrderNew!F18,'RC'!AK$18:AK$38,0))) ->  | K18: =IF(F18="","",INDEX('RC'!AO$18:AO$38,MATCH(OrderNew!F18,'RC'!AK$18:AK$38,0))) -> 
A19: =IF(A$17="","",'RC'!AF28) ->  | B19: =IF($A$17="","",'RC'!AG28) ->  | C19: =IF($A$17="","",'RC'!AH28) ->  | D19: =IF($A$17="","",'RC'!AI28) ->  | E19: =IF(B$18='RC'!AG$27,'RC'!AJ28,IF(E18>Entry!F$16,"",IF(B$11='RC'!AG$27,'RC'!AJ35,'RC'!AJ26))) ->  | F19: =IF(E19="","",IF('RC'!AG$18="",'RC'!AK35,IF('RC'!AG$27=OrderNew!B$18,'RC'!AK28,'RC'!AK26))) ->  | G19: =IF(F19="","",INDEX('RC'!AL$18:AL$38,MATCH(OrderNew!F19,'RC'!AK$18:AK$38,0))) ->  | J19: =IF(F19="","",INDEX('RC'!AN$18:AN$38,MATCH(OrderNew!F19,'RC'!AK$18:AK$38,0))) ->  | K19: =IF(F19="","",INDEX('RC'!AO$18:AO$38,MATCH(OrderNew!F19,'RC'!AK$18:AK$38,0))) -> 
A20: =IF(A$17="","",'RC'!AF29) ->  | B20: =IF(A$17="","",'RC'!AG29) ->  | D20: =IF($A$17="","",'RC'!AI29) ->  | E20: =IF(B$18='RC'!AG$27,'RC'!AJ29,IF(E19>Entry!F$16,"",IF(B$11='RC'!AG$27,'RC'!AJ36,'RC'!AJ27))) ->  | F20: =IF(E20="","",IF('RC'!AG$18="",'RC'!AK36,IF('RC'!AG$27=OrderNew!B$18,'RC'!AK29,'RC'!AK27))) ->  | G20: =IF(F20="","",INDEX('RC'!AL$18:AL$38,MATCH(OrderNew!F20,'RC'!AK$18:AK$38,0))) ->  | J20: =IF(F20="","",INDEX('RC'!AN$18:AN$38,MATCH(OrderNew!F20,'RC'!AK$18:AK$38,0))) ->  | K20: =IF(F20="","",INDEX('RC'!AO$18:AO$38,MATCH(OrderNew!F20,'RC'!AK$18:AK$38,0))) -> 
B21: =IF(A$17="","",'RC'!AG30) ->  | D21: =IF($A$17="","",'RC'!AI30) ->  | E21: =IF(B$18='RC'!AG$27,'RC'!AJ30,IF(E20>Entry!F$16,"",IF(B$11='RC'!AG$27,'RC'!AJ37,'RC'!AJ28))) ->  | F21: =IF(E21="","",IF('RC'!AG$18="",'RC'!AK37,IF('RC'!AG$27=OrderNew!B$18,'RC'!AK30,'RC'!AK28))) ->  | G21: =IF(F21="","",INDEX('RC'!AL$18:AL$38,MATCH(OrderNew!F21,'RC'!AK$18:AK$38,0))) ->  | J21: =IF(F21="","",INDEX('RC'!AN$18:AN$38,MATCH(OrderNew!F21,'RC'!AK$18:AK$38,0))) ->  | K21: =IF(F21="","",INDEX('RC'!AO$18:AO$38,MATCH(OrderNew!F21,'RC'!AK$18:AK$38,0))) -> 
A22: =IF(A17="","", " Above Fix Notional Up To 30-06-2013") ->  | E22: =IF(B$18='RC'!AG$27,'RC'!AJ31,IF(E21>Entry!F$16,"",IF(B$11='RC'!AG$27,'RC'!AJ38,'RC'!AJ29))) ->  | F22: =IF(E22="","",IF('RC'!AG$18="",'RC'!AK38,IF('RC'!AG$27=OrderNew!B$18,'RC'!AK31,'RC'!AK29))) ->  | G22: =IF(F22="","",INDEX('RC'!AL$18:AL$38,MATCH(OrderNew!F22,'RC'!AK$18:AK$38,0))) ->  | J22: =IF(F22="","",INDEX('RC'!AN$18:AN$38,MATCH(OrderNew!F22,'RC'!AK$18:AK$38,0))) ->  | K22: =IF(F22="","",INDEX('RC'!AO$18:AO$38,MATCH(OrderNew!F22,'RC'!AK$18:AK$38,0))) -> 
E23: =IF(B$18='RC'!AG$27,'RC'!AJ32,IF(E22>Entry!F$16,"",'RC'!AJ30)) ->  | F23: =IF(E23="","",IF('RC'!AG$18="",'RC'!AK39,IF('RC'!AG$27=OrderNew!B$18,'RC'!AK32,'RC'!AK30))) ->  | G23: =IF(F23="","",INDEX('RC'!AL$18:AL$38,MATCH(OrderNew!F23,'RC'!AK$18:AK$38,0))) ->  | J23: =IF(F23="","",INDEX('RC'!AN$18:AN$38,MATCH(OrderNew!F23,'RC'!AK$18:AK$38,0))) ->  | K23: =IF(F23="","",INDEX('RC'!AO$18:AO$38,MATCH(OrderNew!F23,'RC'!AK$18:AK$38,0))) -> 
E24: =IF(B$18='RC'!AG$27,'RC'!AJ33,IF(E23>Entry!F$16,"",'RC'!AJ31)) ->  | F24: =IF(E24="","",IF('RC'!AG$18="",'RC'!AK40,IF('RC'!AG$27=OrderNew!B$18,'RC'!AK33,'RC'!AK31))) ->  | G24: =IF(F24="","",INDEX('RC'!AL$18:AL$38,MATCH(OrderNew!F24,'RC'!AK$18:AK$38,0))) ->  | J24: =IF(F24="","",INDEX('RC'!AN$18:AN$38,MATCH(OrderNew!F24,'RC'!AK$18:AK$38,0))) ->  | K24: =IF(F24="","",INDEX('RC'!AO$18:AO$38,MATCH(OrderNew!F24,'RC'!AK$18:AK$38,0))) -> 
E25: =IF(B$18='RC'!AG$27,'RC'!AJ34,IF(E24>Entry!F$16,"",'RC'!AJ32)) ->  | F25: =IF(E25="","",IF('RC'!AG$18="",'RC'!AK41,IF('RC'!AG$27=OrderNew!B$18,'RC'!AK34,'RC'!AK32))) ->  | G25: =IF(F25="","",INDEX('RC'!AL$18:AL$38,MATCH(OrderNew!F25,'RC'!AK$18:AK$38,0))) ->  | J25: =IF(F25="","",INDEX('RC'!AN$18:AN$38,MATCH(OrderNew!F25,'RC'!AK$18:AK$38,0))) ->  | K25: =IF(F25="","",INDEX('RC'!AO$18:AO$38,MATCH(OrderNew!F25,'RC'!AK$18:AK$38,0))) -> 
E26: =IF(B$18='RC'!AG$27,'RC'!AJ35,IF(E25>Entry!F$16,"",'RC'!AJ33)) ->  | F26: =IF(E26="","",IF('RC'!AG$18="",'RC'!AK42,IF('RC'!AG$27=OrderNew!B$18,'RC'!AK35,'RC'!AK33))) ->  | G26: =IF(F26="","",INDEX('RC'!AL$18:AL$38,MATCH(OrderNew!F26,'RC'!AK$18:AK$38,0))) ->  | J26: =IF(F26="","",INDEX('RC'!AN$18:AN$38,MATCH(OrderNew!F26,'RC'!AK$18:AK$38,0))) ->  | K26: =IF(F26="","",INDEX('RC'!AO$18:AO$38,MATCH(OrderNew!F26,'RC'!AK$18:AK$38,0))) -> 
E27: =IF(B$18='RC'!AG$27,'RC'!AJ36,IF(E26>Entry!F$16,"",'RC'!AJ34)) ->  | F27: =IF(E27="","",IF('RC'!AG$18="",'RC'!AK43,IF('RC'!AG$27=OrderNew!B$18,'RC'!AK36,'RC'!AK34))) ->  | G27: =IF(F27="","",INDEX('RC'!AL$18:AL$38,MATCH(OrderNew!F27,'RC'!AK$18:AK$38,0))) ->  | J27: =IF(F27="","",INDEX('RC'!AN$18:AN$38,MATCH(OrderNew!F27,'RC'!AK$18:AK$38,0))) ->  | K27: =IF(F27="","",INDEX('RC'!AO$18:AO$38,MATCH(OrderNew!F27,'RC'!AK$18:AK$38,0))) -> 
E28: =IF(B$18='RC'!AG$27,'RC'!AJ37,IF(E27>Entry!F$16,"",'RC'!AJ35)) ->  | F28: =IF(E28="","",IF('RC'!AG$18="",'RC'!AK44,IF('RC'!AG$27=OrderNew!B$18,'RC'!AK37,'RC'!AK35))) ->  | G28: =IF(F28="","",INDEX('RC'!AL$18:AL$38,MATCH(OrderNew!F28,'RC'!AK$18:AK$38,0))) ->  | J28: =IF(F28="","",INDEX('RC'!AN$18:AN$38,MATCH(OrderNew!F28,'RC'!AK$18:AK$38,0))) ->  | K28: =IF(F28="","",INDEX('RC'!AO$18:AO$38,MATCH(OrderNew!F28,'RC'!AK$18:AK$38,0))) -> 
E29: =IF(B$18='RC'!AG$27,'RC'!AJ38,IF(E28>Entry!F$16,"",'RC'!AJ36)) ->  | F29: =IF(E29="","",IF('RC'!AG$18="",'RC'!AK45,IF('RC'!AG$27=OrderNew!B$18,'RC'!AK38,'RC'!AK36))) ->  | G29: =IF(F29="","",INDEX('RC'!AL$18:AL$38,MATCH(OrderNew!F29,'RC'!AK$18:AK$38,0))) ->  | J29: =IF(F29="","",INDEX('RC'!AN$18:AN$38,MATCH(OrderNew!F29,'RC'!AK$18:AK$38,0))) ->  | K29: =IF(F29="","",INDEX('RC'!AO$18:AO$38,MATCH(OrderNew!F29,'RC'!AK$18:AK$38,0))) -> 
J31: gLrk0dk;kZy;k/;{k
A32: dzekad %& | E32: fnukad& | F32: =TODAY() -> 2015-11-25
A33: izfrfyfi lwpukFkZ ,ao vko';d dk;Zokgh gsrq&
A34: ="1 &"& Entry!C4 -> 1 &mifuns'kd ek/;fed f'k{kk vtesj e.My vtesj
A35: ="2 &lacaf/kr deZpkjh@O;0 iaftdk deZpkjh" &"&"&Entry!C6 -> 2 &lacaf/kr deZpkjh@O;0 iaftdk deZpkjh&Jh egsUnz iky oekZ
A36: 3 &ys[kk 'kk[kk
J38: gLrk0dk;kZy;k/;{k

Sheet ARREAR
G1: ="dk;kZy; "&Entry!C3 -> dk;kZy; iz/kkukpk;Z jktdh; iVsy mPp ek?;fed fo|ky;]C;koj | Y1: SURRENNDER
A2: =",lhih¼"&'RC'!E34&"½ Lohd`fr Lo:i osru vUrj fooj.k "&Entry!C6&"&"&Entry!C7 -> ,lhih¼f}rh;½ Lohd`fr Lo:i osru vUrj fooj.k Jh egsUnz iky oekZ&o0v0 | N2: vo/kh | P2: =Entry!C16 -> 2015-09-04 | V2: to | Y2: =Entry!F16 -> 2015-10-31
B3: SURRENDER DETAIL | F3: SURRENDER DETAIL | J3: SURRENDER DETAIL
B4: Month | C4: Days
B5: ='RC'!C19 -> 2008-08-01 | C5: =IF(B5="","",'RC'!D19) ->  | F5: ='RC'!C23 -> 2012-08-01 | G5: =IF(F5="","",'RC'!D23) ->  | J5: ='RC'!C27 ->  | K5: =IF(J5="","",'RC'!D27) -> 
B6: ='RC'!C20 -> 2009-08-01 | C6: =IF(B6="","",'RC'!D20) ->  | F6: ='RC'!C24 -> 2013-08-01 | G6: =IF(F6="","",'RC'!D24) ->  | J6: ='RC'!C28 ->  | K6: =IF(J6="","",'RC'!D28) -> 
B7: ='RC'!C21 -> 2010-08-01 | C7: =IF(B7="","",'RC'!D21) ->  | F7: ='RC'!C25 -> 2014-08-01 | G7: =IF(F7="","",'RC'!D25) ->  | J7: ='RC'!C29 ->  | K7: =IF(J7="","",'RC'!D29) -> 
B8: ='RC'!C22 -> 2011-08-01 | C8: =IF(B8="","",'RC'!D22) ->  | F8: ='RC'!C26 -> 2015-04-01 | G8: =IF(F8="","",'RC'!D26) -> 0 | J8: ='RC'!C30 -> 00:00:00 | K8: =IF(J8="","",'RC'!D30) -> 0
A10: Month | B10: Amount Due | G10: Amount Drawn | L10: Amount to Be Drawn | Q10: Due | R10: Due | S10: Diff | T10: Due | U10: Ded. | V10: Diff | W10: Due | X10: Ded. | Y10: Diff | AA10: Total | AB10: NET | AC10: Amt of | AD10: Encash
B11: Basic Pay | C11: DA | D11: CCA | E11: HRA | F11: Total | G11: Basic Pay | H11: DA | I11: CCA | J11: HRA | K11: Total | L11: Basic Pay | M11: DA | N11: CCA | O11: HRA | P11: Total | Q11: ='RC'!DG44 -> GPF | R11: ='RC'!DG44 -> GPF | S11: ='RC'!DG44 -> GPF | T11: RPMF | U11: RPMF | V11: RPMF | W11: SIP | X11: SIP | Y11: SIP | Z11: I TAX | AA11: Ded. | AB11: PAYMENT | AC11: Bill | AD11: Date
A12: =DATE(YEAR(P2),MONTH(P2),DAY(1)) -> 2015-09-01 | B12: =IF(ISERROR(INDEX('RC'!BJ$48:BJ$179,MATCH(A12,'RC'!BI$48:BI$179,0))),0,(INDEX('RC'!BJ$48:BJ$179,MATCH(A12,'RC'!BI$48:BI$179,0)))) -> 22599 | C12: =IF(B12="",0,IF(B12=0,0,INDEX('RC'!BK$48:BK$179,MATCH(A12,'RC'!BI$48:BI$179,0)))) -> 26893 | D12: =IF(B12="",0,IF(B12=0,0,INDEX('RC'!BL$48:BL$179,MATCH(A12,'RC'!BI$48:BI$179,0)))) -> 0 | E12: =IF(B12="",0,IF(B12=0,0,INDEX('RC'!BM$48:BM$179,MATCH(A12,'RC'!BI$48:BI$179,0)))) -> 2260 | F12: =SUM(B12:E12) -> 51752 | G12: =IF(ISERROR(INDEX('RC'!BP$48:BP$179,MATCH(A12,'RC'!BI$48:BI$179,0))),0,(INDEX('RC'!BP$48:BP$179,MATCH(A12,'RC'!BI$48:BI$179,0)))) -> 21411 | H12: =IF(B12="",0,IF(B12=0,0,INDEX('RC'!BQ$48:BQ$179,MATCH(A12,'RC'!BI$48:BI$179,0)))) -> 25479 | I12: =IF(B12="",0,IF(B12=0,0,INDEX('RC'!BR$48:BR$179,MATCH(A12,'RC'!BI$48:BI$179,0)))) -> 0 | J12: =IF(B12="",0,IF(B12=0,0,INDEX('RC'!BS$48:BS$179,MATCH(A12,'RC'!BI$48:BI$179,0)))) -> 2141 | K12: =SUM(G12:J12) -> 49031 | L12: =B12-G12 -> 1188 | M12: =C12-H12 -> 1414 | N12: =D12-I12 -> 0 | O12: =E12-J12 -> 119 | P12: =SUM(L12:O12) -> 2721 | Q12: =IF(ISERROR(INDEX('RC'!DG$48:DG$179,MATCH(A12,'RC'!BI$48:BI$179,0))),0,(INDEX('RC'!DG$48:DG$179,MATCH(A12,'RC'!BI$48:BI$179,0)))) -> 3300 | R12: =IF(ISERROR(INDEX('RC'!DH$48:DH$179,MATCH(A12,'RC'!BI$48:BI$179,0))),0,(INDEX('RC'!DH$48:DH$179,MATCH(A12,'RC'!BI$48:BI$179,0)))) -> 2100 | S12: =Q12-R12 -> 1200 | T12: =IF(Entry!B$28="Y",0,IF(ISERROR(INDEX('RC'!CV$48:CV$179,MATCH(A12,'RC'!BI$48:BI$179,0))),0,(INDEX('RC'!CV$48:CV$179,MATCH(A12,'RC'!BI$48:BI$179,0))))) -> 565 | U12: =IF(Entry!B$28="Y",0,IF(ISERROR(INDEX('RC'!CW$48:CW$179,MATCH(A12,'RC'!BI$48:BI$179,0))),0,(INDEX('RC'!CW$48:CW$179,MATCH(A12,'RC'!BI$48:BI$179,0))))) -> 565 | V12: =T12-U12 -> 0 | W12: =IF(ISERROR(INDEX('RC'!CY$48:CY$179,MATCH(A12,'RC'!BI$48:BI$179,0))),0,(INDEX('RC'!CY$48:CY$179,MATCH(A12,'RC'!BI$48:BI$179,0)))) -> 1300 | X12: =IF(ISERROR(INDEX('RC'!CZ$48:CZ$179,MATCH(A12,'RC'!BI$48:BI$179,0))),0,(INDEX('RC'!CZ$48:CZ$179,MATCH(A12,'RC'!BI$48:BI$179,0)))) -> 1300 | Y12: =W12-X12 -> 0 | Z12: =IF(A12>='RC'!BM$29,0,IF(ISERROR(INDEX('RC'!CF$48:CF$179,MATCH(A12,'RC'!BI$48:BI$179,0))),0,(INDEX('RC'!CF$48:CF$179,MATCH(A12,'RC'!BI$48:BI$179,0))))) -> 0 | AA12: =S12+V12+Y12+Z12 -> 1200 | AB12: =P12-AA12 -> 1521 | AJ12: =IF(B12<1,0,1) -> 1 | AK12: =AJ12 -> 1 | AL12: =IF(AK12=0,"",AK12) -> 1 | AM12: 1
A13: =EDATE(A12,1) -> 2015-10-01 | B13: =IF(ISERROR(INDEX('RC'!BJ$48:BJ$179,MATCH(A13,'RC'!BI$48:BI$179,0))),0,(INDEX('RC'!BJ$48:BJ$179,MATCH(A13,'RC'!BI$48:BI$179,0)))) -> 25110 | C13: =IF(B13="",0,IF(B13=0,0,INDEX('RC'!BK$48:BK$179,MATCH(A13,'RC'!BI$48:BI$179,0)))) -> 29881 | D13: =IF(B13="",0,IF(B13=0,0,INDEX('RC'!BL$48:BL$179,MATCH(A13,'RC'!BI$48:BI$179,0)))) -> 0 | E13: =IF(B13="",0,IF(B13=0,0,INDEX('RC'!BM$48:BM$179,MATCH(A13,'RC'!BI$48:BI$179,0)))) -> 2511 | F13: =SUM(B13:E13) -> 57502 | G13: =IF(ISERROR(INDEX('RC'!BP$48:BP$179,MATCH(A13,'RC'!BI$48:BI$179,0))),0,(INDEX('RC'!BP$48:BP$179,MATCH(A13,'RC'!BI$48:BI$179,0)))) -> 23790 | H13: =IF(B13="",0,IF(B13=0,0,INDEX('RC'!BQ$48:BQ$179,MATCH(A13,'RC'!BI$48:BI$179,0)))) -> 28310 | I13: =IF(B13="",0,IF(B13=0,0,INDEX('RC'!BR$48:BR$179,MATCH(A13,'RC'!BI$48:BI$179,0)))) -> 0 | J13: =IF(B13="",0,IF(B13=0,0,INDEX('RC'!BS$48:BS$179,MATCH(A13,'RC'!BI$48:BI$179,0)))) -> 2379 | K13: =SUM(G13:J13) -> 54479 | L13: =B13-G13 -> 1320 | M13: =C13-H13 -> 1571 | N13: =D13-I13 -> 0 | O13: =E13-J13 -> 132 | P13: =SUM(L13:O13) -> 3023 | Q13: =IF(ISERROR(INDEX('RC'!DG$48:DG$179,MATCH(A13,'RC'!BI$48:BI$179,0))),0,(INDEX('RC'!DG$48:DG$179,MATCH(A13,'RC'!BI$48:BI$179,0)))) -> 3300 | R13: =IF(ISERROR(INDEX('RC'!DH$48:DH$179,MATCH(A13,'RC'!BI$48:BI$179,0))),0,(INDEX('RC'!DH$48:DH$179,MATCH(A13,'RC'!BI$48:BI$179,0)))) -> 2100 | S13: =Q13-R13 -> 1200 | T13: =IF(Entry!B$28="Y",0,IF(ISERROR(INDEX('RC'!CV$48:CV$179,MATCH(A13,'RC'!BI$48:BI$179,0))),0,(INDEX('RC'!CV$48:CV$179,MATCH(A13,'RC'!BI$48:BI$179,0))))) -> 595 | U13: =IF(Entry!B$28="Y",0,IF(ISERROR(INDEX('RC'!CW$48:CW$179,MATCH(A13,'RC'!BI$48:BI$179,0))),0,(INDEX('RC'!CW$48:CW$179,MATCH(A13,'RC'!BI$48:BI$179,0))))) -> 595 | V13: =T13-U13 -> 0 | W13: =IF(ISERROR(INDEX('RC'!CY$48:CY$179,MATCH(A13,'RC'!BI$48:BI$179,0))),0,(INDEX('RC'!CY$48:CY$179,MATCH(A13,'RC'!BI$48:BI$179,0)))) -> 1300 | X13: =IF(ISERROR(INDEX('RC'!CZ$48:CZ$179,MATCH(A13,'RC'!BI$48:BI$179,0))),0,(INDEX('RC'!CZ$48:CZ$179,MATCH(A13,'RC'!BI$48:BI$179,0)))) -> 1300 | Y13: =W13-X13 -> 0 | Z13: =IF(A13>='RC'!BM$29,0,IF(ISERROR(INDEX('RC'!CF$48:CF$179,MATCH(A13,'RC'!BI$48:BI$179,0))),0,(INDEX('RC'!CF$48:CF$179,MATCH(A13,'RC'!BI$48:BI$179,0))))) -> 0 | AA13: =S13+V13+Y13+Z13 -> 1200 | AB13: =P13-AA13 -> 1823 | AJ13: 1 | AK13: =AJ13 -> 1 | AL13: 1 | AM13: 1
A14: =EDATE(A13,1) -> 2015-11-01 | B14: =IF(ISERROR(INDEX('RC'!BJ$48:BJ$179,MATCH(A14,'RC'!BI$48:BI$179,0))),0,(INDEX('RC'!BJ$48:BJ$179,MATCH(A14,'RC'!BI$48:BI$179,0)))) -> 0 | C14: =IF(B14="",0,IF(B14=0,0,INDEX('RC'!BK$48:BK$179,MATCH(A14,'RC'!BI$48:BI$179,0)))) -> 0 | D14: =IF(B14="",0,IF(B14=0,0,INDEX('RC'!BL$48:BL$179,MATCH(A14,'RC'!BI$48:BI$179,0)))) -> 0 | E14: =IF(B14="",0,IF(B14=0,0,INDEX('RC'!BM$48:BM$179,MATCH(A14,'RC'!BI$48:BI$179,0)))) -> 0 | F14: 0 | G14: =IF(ISERROR(INDEX('RC'!BP$48:BP$179,MATCH(A14,'RC'!BI$48:BI$179,0))),0,(INDEX('RC'!BP$48:BP$179,MATCH(A14,'RC'!BI$48:BI$179,0)))) -> 0 | H14: =IF(B14="",0,IF(B14=0,0,INDEX('RC'!BQ$48:BQ$179,MATCH(A14,'RC'!BI$48:BI$179,0)))) -> 0 | I14: =IF(B14="",0,IF(B14=0,0,INDEX('RC'!BR$48:BR$179,MATCH(A14,'RC'!BI$48:BI$179,0)))) -> 0 | J14: =IF(B14="",0,IF(B14=0,0,INDEX('RC'!BS$48:BS$179,MATCH(A14,'RC'!BI$48:BI$179,0)))) -> 0 | K14: 0 | L14: 0 | M14: 0 | N14: 0 | O14: 0 | P14: 0 | Q14: =IF(ISERROR(INDEX('RC'!DG$48:DG$179,MATCH(A14,'RC'!BI$48:BI$179,0))),0,(INDEX('RC'!DG$48:DG$179,MATCH(A14,'RC'!BI$48:BI$179,0)))) -> 0 | R14: =IF(ISERROR(INDEX('RC'!DH$48:DH$179,MATCH(A14,'RC'!BI$48:BI$179,0))),0,(INDEX('RC'!DH$48:DH$179,MATCH(A14,'RC'!BI$48:BI$179,0)))) -> 0 | S14: 0 | T14: =IF(Entry!B$28="Y",0,IF(ISERROR(INDEX('RC'!CV$48:CV$179,MATCH(A14,'RC'!BI$48:BI$179,0))),0,(INDEX('RC'!CV$48:CV$179,MATCH(A14,'RC'!BI$48:BI$179,0))))) -> 0 | U14: =IF(Entry!B$28="Y",0,IF(ISERROR(INDEX('RC'!CW$48:CW$179,MATCH(A14,'RC'!BI$48:BI$179,0))),0,(INDEX('RC'!CW$48:CW$179,MATCH(A14,'RC'!BI$48:BI$179,0))))) -> 0 | V14: 0 | W14: =IF(ISERROR(INDEX('RC'!CY$48:CY$179,MATCH(A14,'RC'!BI$48:BI$179,0))),0,(INDEX('RC'!CY$48:CY$179,MATCH(A14,'RC'!BI$48:BI$179,0)))) -> 0 | X14: =IF(ISERROR(INDEX('RC'!CZ$48:CZ$179,MATCH(A14,'RC'!BI$48:BI$179,0))),0,(INDEX('RC'!CZ$48:CZ$179,MATCH(A14,'RC'!BI$48:BI$179,0)))) -> 0 | Y14: 0 | Z14: =IF(A14>='RC'!BM$29,0,IF(ISERROR(INDEX('RC'!CF$48:CF$179,MATCH(A14,'RC'!BI$48:BI$179,0))),0,(INDEX('RC'!CF$48:CF$179,MATCH(A14,'RC'!BI$48:BI$179,0))))) -> 0 | AA14: 0 | AB14: 0 | AJ14: 0 | AK14: 0
A15: 2015-12-01 | B15: =IF(ISERROR(INDEX('RC'!BJ$48:BJ$179,MATCH(A15,'RC'!BI$48:BI$179,0))),0,(INDEX('RC'!BJ$48:BJ$179,MATCH(A15,'RC'!BI$48:BI$179,0)))) -> 0 | C15: =IF(B15="",0,IF(B15=0,0,INDEX('RC'!BK$48:BK$179,MATCH(A15,'RC'!BI$48:BI$179,0)))) -> 0 | D15: =IF(B15="",0,IF(B15=0,0,INDEX('RC'!BL$48:BL$179,MATCH(A15,'RC'!BI$48:BI$179,0)))) -> 0 | E15: =IF(B15="",0,IF(B15=0,0,INDEX('RC'!BM$48:BM$179,MATCH(A15,'RC'!BI$48:BI$179,0)))) -> 0 | F15: 0 | G15: =IF(ISERROR(INDEX('RC'!BP$48:BP$179,MATCH(A15,'RC'!BI$48:BI$179,0))),0,(INDEX('RC'!BP$48:BP$179,MATCH(A15,'RC'!BI$48:BI$179,0)))) -> 0 | H15: =IF(B15="",0,IF(B15=0,0,INDEX('RC'!BQ$48:BQ$179,MATCH(A15,'RC'!BI$48:BI$179,0)))) -> 0 | I15: =IF(B15="",0,IF(B15=0,0,INDEX('RC'!BR$48:BR$179,MATCH(A15,'RC'!BI$48:BI$179,0)))) -> 0 | J15: =IF(B15="",0,IF(B15=0,0,INDEX('RC'!BS$48:BS$179,MATCH(A15,'RC'!BI$48:BI$179,0)))) -> 0 | K15: 0 | L15: 0 | M15: 0 | N15: 0 | O15: 0 | P15: 0 | Q15: =IF(ISERROR(INDEX('RC'!DG$48:DG$179,MATCH(A15,'RC'!BI$48:BI$179,0))),0,(INDEX('RC'!DG$48:DG$179,MATCH(A15,'RC'!BI$48:BI$179,0)))) -> 0 | R15: =IF(ISERROR(INDEX('RC'!DH$48:DH$179,MATCH(A15,'RC'!BI$48:BI$179,0))),0,(INDEX('RC'!DH$48:DH$179,MATCH(A15,'RC'!BI$48:BI$179,0)))) -> 0 | S15: 0 | T15: =IF(Entry!B$28="Y",0,IF(ISERROR(INDEX('RC'!CV$48:CV$179,MATCH(A15,'RC'!BI$48:BI$179,0))),0,(INDEX('RC'!CV$48:CV$179,MATCH(A15,'RC'!BI$48:BI$179,0))))) -> 0 | U15: =IF(Entry!B$28="Y",0,IF(ISERROR(INDEX('RC'!CW$48:CW$179,MATCH(A15,'RC'!BI$48:BI$179,0))),0,(INDEX('RC'!CW$48:CW$179,MATCH(A15,'RC'!BI$48:BI$179,0))))) -> 0 | V15: 0 | W15: =IF(ISERROR(INDEX('RC'!CY$48:CY$179,MATCH(A15,'RC'!BI$48:BI$179,0))),0,(INDEX('RC'!CY$48:CY$179,MATCH(A15,'RC'!BI$48:BI$179,0)))) -> 0 | X15: =IF(ISERROR(INDEX('RC'!CZ$48:CZ$179,MATCH(A15,'RC'!BI$48:BI$179,0))),0,(INDEX('RC'!CZ$48:CZ$179,MATCH(A15,'RC'!BI$48:BI$179,0)))) -> 0 | Y15: 0 | Z15: =IF(A15>='RC'!BM$29,0,IF(ISERROR(INDEX('RC'!CF$48:CF$179,MATCH(A15,'RC'!BI$48:BI$179,0))),0,(INDEX('RC'!CF$48:CF$179,MATCH(A15,'RC'!BI$48:BI$179,0))))) -> 0 | AA15: 0 | AB15: 0 | AJ15: 0 | AK15: 0
A16: 2016-01-01 | B16: =IF(ISERROR(INDEX('RC'!BJ$48:BJ$179,MATCH(A16,'RC'!BI$48:BI$179,0))),0,(INDEX('RC'!BJ$48:BJ$179,MATCH(A16,'RC'!BI$48:BI$179,0)))) -> 0 | C16: =IF(B16="",0,IF(B16=0,0,INDEX('RC'!BK$48:BK$179,MATCH(A16,'RC'!BI$48:BI$179,0)))) -> 0 | D16: =IF(B16="",0,IF(B16=0,0,INDEX('RC'!BL$48:BL$179,MATCH(A16,'RC'!BI$48:BI$179,0)))) -> 0 | E16: =IF(B16="",0,IF(B16=0,0,INDEX('RC'!BM$48:BM$179,MATCH(A16,'RC'!BI$48:BI$179,0)))) -> 0 | F16: 0 | G16: =IF(ISERROR(INDEX('RC'!BP$48:BP$179,MATCH(A16,'RC'!BI$48:BI$179,0))),0,(INDEX('RC'!BP$48:BP$179,MATCH(A16,'RC'!BI$48:BI$179,0)))) -> 0 | H16: =IF(B16="",0,IF(B16=0,0,INDEX('RC'!BQ$48:BQ$179,MATCH(A16,'RC'!BI$48:BI$179,0)))) -> 0 | I16: =IF(B16="",0,IF(B16=0,0,INDEX('RC'!BR$48:BR$179,MATCH(A16,'RC'!BI$48:BI$179,0)))) -> 0 | J16: =IF(B16="",0,IF(B16=0,0,INDEX('RC'!BS$48:BS$179,MATCH(A16,'RC'!BI$48:BI$179,0)))) -> 0 | K16: 0 | L16: 0 | M16: 0 | N16: 0 | O16: 0 | P16: 0 | Q16: =IF(ISERROR(INDEX('RC'!DG$48:DG$179,MATCH(A16,'RC'!BI$48:BI$179,0))),0,(INDEX('RC'!DG$48:DG$179,MATCH(A16,'RC'!BI$48:BI$179,0)))) -> 0 | R16: =IF(ISERROR(INDEX('RC'!DH$48:DH$179,MATCH(A16,'RC'!BI$48:BI$179,0))),0,(INDEX('RC'!DH$48:DH$179,MATCH(A16,'RC'!BI$48:BI$179,0)))) -> 0 | S16: 0 | T16: =IF(Entry!B$28="Y",0,IF(ISERROR(INDEX('RC'!CV$48:CV$179,MATCH(A16,'RC'!BI$48:BI$179,0))),0,(INDEX('RC'!CV$48:CV$179,MATCH(A16,'RC'!BI$48:BI$179,0))))) -> 0 | U16: =IF(Entry!B$28="Y",0,IF(ISERROR(INDEX('RC'!CW$48:CW$179,MATCH(A16,'RC'!BI$48:BI$179,0))),0,(INDEX('RC'!CW$48:CW$179,MATCH(A16,'RC'!BI$48:BI$179,0))))) -> 0 | V16: 0 | W16: =IF(ISERROR(INDEX('RC'!CY$48:CY$179,MATCH(A16,'RC'!BI$48:BI$179,0))),0,(INDEX('RC'!CY$48:CY$179,MATCH(A16,'RC'!BI$48:BI$179,0)))) -> 0 | X16: =IF(ISERROR(INDEX('RC'!CZ$48:CZ$179,MATCH(A16,'RC'!BI$48:BI$179,0))),0,(INDEX('RC'!CZ$48:CZ$179,MATCH(A16,'RC'!BI$48:BI$179,0)))) -> 0 | Y16: 0 | Z16: =IF(A16>='RC'!BM$29,0,IF(ISERROR(INDEX('RC'!CF$48:CF$179,MATCH(A16,'RC'!BI$48:BI$179,0))),0,(INDEX('RC'!CF$48:CF$179,MATCH(A16,'RC'!BI$48:BI$179,0))))) -> 0 | AA16: 0 | AB16: 0 | AJ16: 0 | AK16: 0
A17: 2016-02-01 | B17: =IF(ISERROR(INDEX('RC'!BJ$48:BJ$179,MATCH(A17,'RC'!BI$48:BI$179,0))),0,(INDEX('RC'!BJ$48:BJ$179,MATCH(A17,'RC'!BI$48:BI$179,0)))) -> 0 | C17: =IF(B17="",0,IF(B17=0,0,INDEX('RC'!BK$48:BK$179,MATCH(A17,'RC'!BI$48:BI$179,0)))) -> 0 | D17: =IF(B17="",0,IF(B17=0,0,INDEX('RC'!BL$48:BL$179,MATCH(A17,'RC'!BI$48:BI$179,0)))) -> 0 | E17: =IF(B17="",0,IF(B17=0,0,INDEX('RC'!BM$48:BM$179,MATCH(A17,'RC'!BI$48:BI$179,0)))) -> 0 | F17: 0 | G17: =IF(ISERROR(INDEX('RC'!BP$48:BP$179,MATCH(A17,'RC'!BI$48:BI$179,0))),0,(INDEX('RC'!BP$48:BP$179,MATCH(A17,'RC'!BI$48:BI$179,0)))) -> 0 | H17: =IF(B17="",0,IF(B17=0,0,INDEX('RC'!BQ$48:BQ$179,MATCH(A17,'RC'!BI$48:BI$179,0)))) -> 0 | I17: =IF(B17="",0,IF(B17=0,0,INDEX('RC'!BR$48:BR$179,MATCH(A17,'RC'!BI$48:BI$179,0)))) -> 0 | J17: =IF(B17="",0,IF(B17=0,0,INDEX('RC'!BS$48:BS$179,MATCH(A17,'RC'!BI$48:BI$179,0)))) -> 0 | K17: 0 | L17: 0 | M17: 0 | N17: 0 | O17: 0 | P17: 0 | Q17: =IF(ISERROR(INDEX('RC'!DG$48:DG$179,MATCH(A17,'RC'!BI$48:BI$179,0))),0,(INDEX('RC'!DG$48:DG$179,MATCH(A17,'RC'!BI$48:BI$179,0)))) -> 0 | R17: =IF(ISERROR(INDEX('RC'!DH$48:DH$179,MATCH(A17,'RC'!BI$48:BI$179,0))),0,(INDEX('RC'!DH$48:DH$179,MATCH(A17,'RC'!BI$48:BI$179,0)))) -> 0 | S17: 0 | T17: =IF(Entry!B$28="Y",0,IF(ISERROR(INDEX('RC'!CV$48:CV$179,MATCH(A17,'RC'!BI$48:BI$179,0))),0,(INDEX('RC'!CV$48:CV$179,MATCH(A17,'RC'!BI$48:BI$179,0))))) -> 0 | U17: =IF(Entry!B$28="Y",0,IF(ISERROR(INDEX('RC'!CW$48:CW$179,MATCH(A17,'RC'!BI$48:BI$179,0))),0,(INDEX('RC'!CW$48:CW$179,MATCH(A17,'RC'!BI$48:BI$179,0))))) -> 0 | V17: 0 | W17: =IF(ISERROR(INDEX('RC'!CY$48:CY$179,MATCH(A17,'RC'!BI$48:BI$179,0))),0,(INDEX('RC'!CY$48:CY$179,MATCH(A17,'RC'!BI$48:BI$179,0)))) -> 0 | X17: =IF(ISERROR(INDEX('RC'!CZ$48:CZ$179,MATCH(A17,'RC'!BI$48:BI$179,0))),0,(INDEX('RC'!CZ$48:CZ$179,MATCH(A17,'RC'!BI$48:BI$179,0)))) -> 0 | Y17: 0 | Z17: =IF(A17>='RC'!BM$29,0,IF(ISERROR(INDEX('RC'!CF$48:CF$179,MATCH(A17,'RC'!BI$48:BI$179,0))),0,(INDEX('RC'!CF$48:CF$179,MATCH(A17,'RC'!BI$48:BI$179,0))))) -> 0 | AA17: 0 | AB17: 0 | AJ17: 0 | AK17: 0
A18: 2016-03-01 | B18: =IF(ISERROR(INDEX('RC'!BJ$48:BJ$179,MATCH(A18,'RC'!BI$48:BI$179,0))),0,(INDEX('RC'!BJ$48:BJ$179,MATCH(A18,'RC'!BI$48:BI$179,0)))) -> 0 | C18: =IF(B18="",0,IF(B18=0,0,INDEX('RC'!BK$48:BK$179,MATCH(A18,'RC'!BI$48:BI$179,0)))) -> 0 | D18: =IF(B18="",0,IF(B18=0,0,INDEX('RC'!BL$48:BL$179,MATCH(A18,'RC'!BI$48:BI$179,0)))) -> 0 | E18: =IF(B18="",0,IF(B18=0,0,INDEX('RC'!BM$48:BM$179,MATCH(A18,'RC'!BI$48:BI$179,0)))) -> 0 | F18: 0 | G18: =IF(ISERROR(INDEX('RC'!BP$48:BP$179,MATCH(A18,'RC'!BI$48:BI$179,0))),0,(INDEX('RC'!BP$48:BP$179,MATCH(A18,'RC'!BI$48:BI$179,0)))) -> 0 | H18: =IF(B18="",0,IF(B18=0,0,INDEX('RC'!BQ$48:BQ$179,MATCH(A18,'RC'!BI$48:BI$179,0)))) -> 0 | I18: =IF(B18="",0,IF(B18=0,0,INDEX('RC'!BR$48:BR$179,MATCH(A18,'RC'!BI$48:BI$179,0)))) -> 0 | J18: =IF(B18="",0,IF(B18=0,0,INDEX('RC'!BS$48:BS$179,MATCH(A18,'RC'!BI$48:BI$179,0)))) -> 0 | K18: 0 | L18: 0 | M18: 0 | N18: 0 | O18: 0 | P18: 0 | Q18: =IF(ISERROR(INDEX('RC'!DG$48:DG$179,MATCH(A18,'RC'!BI$48:BI$179,0))),0,(INDEX('RC'!DG$48:DG$179,MATCH(A18,'RC'!BI$48:BI$179,0)))) -> 0 | R18: =IF(ISERROR(INDEX('RC'!DH$48:DH$179,MATCH(A18,'RC'!BI$48:BI$179,0))),0,(INDEX('RC'!DH$48:DH$179,MATCH(A18,'RC'!BI$48:BI$179,0)))) -> 0 | S18: 0 | T18: =IF(Entry!B$28="Y",0,IF(ISERROR(INDEX('RC'!CV$48:CV$179,MATCH(A18,'RC'!BI$48:BI$179,0))),0,(INDEX('RC'!CV$48:CV$179,MATCH(A18,'RC'!BI$48:BI$179,0))))) -> 0 | U18: =IF(Entry!B$28="Y",0,IF(ISERROR(INDEX('RC'!CW$48:CW$179,MATCH(A18,'RC'!BI$48:BI$179,0))),0,(INDEX('RC'!CW$48:CW$179,MATCH(A18,'RC'!BI$48:BI$179,0))))) -> 0 | V18: 0 | W18: =IF(ISERROR(INDEX('RC'!CY$48:CY$179,MATCH(A18,'RC'!BI$48:BI$179,0))),0,(INDEX('RC'!CY$48:CY$179,MATCH(A18,'RC'!BI$48:BI$179,0)))) -> 0 | X18: =IF(ISERROR(INDEX('RC'!CZ$48:CZ$179,MATCH(A18,'RC'!BI$48:BI$179,0))),0,(INDEX('RC'!CZ$48:CZ$179,MATCH(A18,'RC'!BI$48:BI$179,0)))) -> 0 | Y18: 0 | Z18: =IF(A18>='RC'!BM$29,0,IF(ISERROR(INDEX('RC'!CF$48:CF$179,MATCH(A18,'RC'!BI$48:BI$179,0))),0,(INDEX('RC'!CF$48:CF$179,MATCH(A18,'RC'!BI$48:BI$179,0))))) -> 0 | AA18: 0 | AB18: 0 | AJ18: 0 | AK18: 0
A19: 2016-04-01 | B19: =IF(ISERROR(INDEX('RC'!BJ$48:BJ$179,MATCH(A19,'RC'!BI$48:BI$179,0))),0,(INDEX('RC'!BJ$48:BJ$179,MATCH(A19,'RC'!BI$48:BI$179,0)))) -> 0 | C19: =IF(B19="",0,IF(B19=0,0,INDEX('RC'!BK$48:BK$179,MATCH(A19,'RC'!BI$48:BI$179,0)))) -> 0 | D19: =IF(B19="",0,IF(B19=0,0,INDEX('RC'!BL$48:BL$179,MATCH(A19,'RC'!BI$48:BI$179,0)))) -> 0 | E19: =IF(B19="",0,IF(B19=0,0,INDEX('RC'!BM$48:BM$179,MATCH(A19,'RC'!BI$48:BI$179,0)))) -> 0 | F19: 0 | G19: =IF(ISERROR(INDEX('RC'!BP$48:BP$179,MATCH(A19,'RC'!BI$48:BI$179,0))),0,(INDEX('RC'!BP$48:BP$179,MATCH(A19,'RC'!BI$48:BI$179,0)))) -> 0 | H19: =IF(B19="",0,IF(B19=0,0,INDEX('RC'!BQ$48:BQ$179,MATCH(A19,'RC'!BI$48:BI$179,0)))) -> 0 | I19: =IF(B19="",0,IF(B19=0,0,INDEX('RC'!BR$48:BR$179,MATCH(A19,'RC'!BI$48:BI$179,0)))) -> 0 | J19: =IF(B19="",0,IF(B19=0,0,INDEX('RC'!BS$48:BS$179,MATCH(A19,'RC'!BI$48:BI$179,0)))) -> 0 | K19: 0 | L19: 0 | M19: 0 | N19: 0 | O19: 0 | P19: 0 | Q19: =IF(ISERROR(INDEX('RC'!DG$48:DG$179,MATCH(A19,'RC'!BI$48:BI$179,0))),0,(INDEX('RC'!DG$48:DG$179,MATCH(A19,'RC'!BI$48:BI$179,0)))) -> 0 | R19: =IF(ISERROR(INDEX('RC'!DH$48:DH$179,MATCH(A19,'RC'!BI$48:BI$179,0))),0,(INDEX('RC'!DH$48:DH$179,MATCH(A19,'RC'!BI$48:BI$179,0)))) -> 0 | S19: 0 | T19: =IF(Entry!B$28="Y",0,IF(ISERROR(INDEX('RC'!CV$48:CV$179,MATCH(A19,'RC'!BI$48:BI$179,0))),0,(INDEX('RC'!CV$48:CV$179,MATCH(A19,'RC'!BI$48:BI$179,0))))) -> 0 | U19: =IF(Entry!B$28="Y",0,IF(ISERROR(INDEX('RC'!CW$48:CW$179,MATCH(A19,'RC'!BI$48:BI$179,0))),0,(INDEX('RC'!CW$48:CW$179,MATCH(A19,'RC'!BI$48:BI$179,0))))) -> 0 | V19: 0 | W19: =IF(ISERROR(INDEX('RC'!CY$48:CY$179,MATCH(A19,'RC'!BI$48:BI$179,0))),0,(INDEX('RC'!CY$48:CY$179,MATCH(A19,'RC'!BI$48:BI$179,0)))) -> 0 | X19: =IF(ISERROR(INDEX('RC'!CZ$48:CZ$179,MATCH(A19,'RC'!BI$48:BI$179,0))),0,(INDEX('RC'!CZ$48:CZ$179,MATCH(A19,'RC'!BI$48:BI$179,0)))) -> 0 | Y19: 0 | Z19: =IF(A19>='RC'!BM$29,0,IF(ISERROR(INDEX('RC'!CF$48:CF$179,MATCH(A19,'RC'!BI$48:BI$179,0))),0,(INDEX('RC'!CF$48:CF$179,MATCH(A19,'RC'!BI$48:BI$179,0))))) -> 0 | AA19: 0 | AB19: 0 | AJ19: 0 | AK19: 0
A20: 2016-05-01 | B20: =IF(ISERROR(INDEX('RC'!BJ$48:BJ$179,MATCH(A20,'RC'!BI$48:BI$179,0))),0,(INDEX('RC'!BJ$48:BJ$179,MATCH(A20,'RC'!BI$48:BI$179,0)))) -> 0 | C20: =IF(B20="",0,IF(B20=0,0,INDEX('RC'!BK$48:BK$179,MATCH(A20,'RC'!BI$48:BI$179,0)))) -> 0 | D20: =IF(B20="",0,IF(B20=0,0,INDEX('RC'!BL$48:BL$179,MATCH(A20,'RC'!BI$48:BI$179,0)))) -> 0 | E20: =IF(B20="",0,IF(B20=0,0,INDEX('RC'!BM$48:BM$179,MATCH(A20,'RC'!BI$48:BI$179,0)))) -> 0 | F20: 0 | G20: =IF(ISERROR(INDEX('RC'!BP$48:BP$179,MATCH(A20,'RC'!BI$48:BI$179,0))),0,(INDEX('RC'!BP$48:BP$179,MATCH(A20,'RC'!BI$48:BI$179,0)))) -> 0 | H20: =IF(B20="",0,IF(B20=0,0,INDEX('RC'!BQ$48:BQ$179,MATCH(A20,'RC'!BI$48:BI$179,0)))) -> 0 | I20: =IF(B20="",0,IF(B20=0,0,INDEX('RC'!BR$48:BR$179,MATCH(A20,'RC'!BI$48:BI$179,0)))) -> 0 | J20: =IF(B20="",0,IF(B20=0,0,INDEX('RC'!BS$48:BS$179,MATCH(A20,'RC'!BI$48:BI$179,0)))) -> 0 | K20: 0 | L20: 0 | M20: 0 | N20: 0 | O20: 0 | P20: 0 | Q20: =IF(ISERROR(INDEX('RC'!DG$48:DG$179,MATCH(A20,'RC'!BI$48:BI$179,0))),0,(INDEX('RC'!DG$48:DG$179,MATCH(A20,'RC'!BI$48:BI$179,0)))) -> 0 | R20: =IF(ISERROR(INDEX('RC'!DH$48:DH$179,MATCH(A20,'RC'!BI$48:BI$179,0))),0,(INDEX('RC'!DH$48:DH$179,MATCH(A20,'RC'!BI$48:BI$179,0)))) -> 0 | S20: 0 | T20: =IF(Entry!B$28="Y",0,IF(ISERROR(INDEX('RC'!CV$48:CV$179,MATCH(A20,'RC'!BI$48:BI$179,0))),0,(INDEX('RC'!CV$48:CV$179,MATCH(A20,'RC'!BI$48:BI$179,0))))) -> 0 | U20: =IF(Entry!B$28="Y",0,IF(ISERROR(INDEX('RC'!CW$48:CW$179,MATCH(A20,'RC'!BI$48:BI$179,0))),0,(INDEX('RC'!CW$48:CW$179,MATCH(A20,'RC'!BI$48:BI$179,0))))) -> 0 | V20: 0 | W20: =IF(ISERROR(INDEX('RC'!CY$48:CY$179,MATCH(A20,'RC'!BI$48:BI$179,0))),0,(INDEX('RC'!CY$48:CY$179,MATCH(A20,'RC'!BI$48:BI$179,0)))) -> 0 | X20: =IF(ISERROR(INDEX('RC'!CZ$48:CZ$179,MATCH(A20,'RC'!BI$48:BI$179,0))),0,(INDEX('RC'!CZ$48:CZ$179,MATCH(A20,'RC'!BI$48:BI$179,0)))) -> 0 | Y20: 0 | Z20: =IF(A20>='RC'!BM$29,0,IF(ISERROR(INDEX('RC'!CF$48:CF$179,MATCH(A20,'RC'!BI$48:BI$179,0))),0,(INDEX('RC'!CF$48:CF$179,MATCH(A20,'RC'!BI$48:BI$179,0))))) -> 0 | AA20: 0 | AB20: 0 | AJ20: 0 | AK20: 0
A21: 2016-06-01 | B21: =IF(ISERROR(INDEX('RC'!BJ$48:BJ$179,MATCH(A21,'RC'!BI$48:BI$179,0))),0,(INDEX('RC'!BJ$48:BJ$179,MATCH(A21,'RC'!BI$48:BI$179,0)))) -> 0 | C21: =IF(B21="",0,IF(B21=0,0,INDEX('RC'!BK$48:BK$179,MATCH(A21,'RC'!BI$48:BI$179,0)))) -> 0 | D21: =IF(B21="",0,IF(B21=0,0,INDEX('RC'!BL$48:BL$179,MATCH(A21,'RC'!BI$48:BI$179,0)))) -> 0 | E21: =IF(B21="",0,IF(B21=0,0,INDEX('RC'!BM$48:BM$179,MATCH(A21,'RC'!BI$48:BI$179,0)))) -> 0 | F21: 0 | G21: =IF(ISERROR(INDEX('RC'!BP$48:BP$179,MATCH(A21,'RC'!BI$48:BI$179,0))),0,(INDEX('RC'!BP$48:BP$179,MATCH(A21,'RC'!BI$48:BI$179,0)))) -> 0 | H21: =IF(B21="",0,IF(B21=0,0,INDEX('RC'!BQ$48:BQ$179,MATCH(A21,'RC'!BI$48:BI$179,0)))) -> 0 | I21: =IF(B21="",0,IF(B21=0,0,INDEX('RC'!BR$48:BR$179,MATCH(A21,'RC'!BI$48:BI$179,0)))) -> 0 | J21: =IF(B21="",0,IF(B21=0,0,INDEX('RC'!BS$48:BS$179,MATCH(A21,'RC'!BI$48:BI$179,0)))) -> 0 | K21: 0 | L21: 0 | M21: 0 | N21: 0 | O21: 0 | P21: 0 | Q21: =IF(ISERROR(INDEX('RC'!DG$48:DG$179,MATCH(A21,'RC'!BI$48:BI$179,0))),0,(INDEX('RC'!DG$48:DG$179,MATCH(A21,'RC'!BI$48:BI$179,0)))) -> 0 | R21: =IF(ISERROR(INDEX('RC'!DH$48:DH$179,MATCH(A21,'RC'!BI$48:BI$179,0))),0,(INDEX('RC'!DH$48:DH$179,MATCH(A21,'RC'!BI$48:BI$179,0)))) -> 0 | S21: 0 | T21: =IF(Entry!B$28="Y",0,IF(ISERROR(INDEX('RC'!CV$48:CV$179,MATCH(A21,'RC'!BI$48:BI$179,0))),0,(INDEX('RC'!CV$48:CV$179,MATCH(A21,'RC'!BI$48:BI$179,0))))) -> 0 | U21: =IF(Entry!B$28="Y",0,IF(ISERROR(INDEX('RC'!CW$48:CW$179,MATCH(A21,'RC'!BI$48:BI$179,0))),0,(INDEX('RC'!CW$48:CW$179,MATCH(A21,'RC'!BI$48:BI$179,0))))) -> 0 | V21: 0 | W21: =IF(ISERROR(INDEX('RC'!CY$48:CY$179,MATCH(A21,'RC'!BI$48:BI$179,0))),0,(INDEX('RC'!CY$48:CY$179,MATCH(A21,'RC'!BI$48:BI$179,0)))) -> 0 | X21: =IF(ISERROR(INDEX('RC'!CZ$48:CZ$179,MATCH(A21,'RC'!BI$48:BI$179,0))),0,(INDEX('RC'!CZ$48:CZ$179,MATCH(A21,'RC'!BI$48:BI$179,0)))) -> 0 | Y21: 0 | Z21: =IF(A21>='RC'!BM$29,0,IF(ISERROR(INDEX('RC'!CF$48:CF$179,MATCH(A21,'RC'!BI$48:BI$179,0))),0,(INDEX('RC'!CF$48:CF$179,MATCH(A21,'RC'!BI$48:BI$179,0))))) -> 0 | AA21: 0 | AB21: 0 | AJ21: 0 | AK21: 0
A22: 2016-07-01 | B22: =IF(ISERROR(INDEX('RC'!BJ$48:BJ$179,MATCH(A22,'RC'!BI$48:BI$179,0))),0,(INDEX('RC'!BJ$48:BJ$179,MATCH(A22,'RC'!BI$48:BI$179,0)))) -> 0 | C22: =IF(B22="",0,IF(B22=0,0,INDEX('RC'!BK$48:BK$179,MATCH(A22,'RC'!BI$48:BI$179,0)))) -> 0 | D22: =IF(B22="",0,IF(B22=0,0,INDEX('RC'!BL$48:BL$179,MATCH(A22,'RC'!BI$48:BI$179,0)))) -> 0 | E22: =IF(B22="",0,IF(B22=0,0,INDEX('RC'!BM$48:BM$179,MATCH(A22,'RC'!BI$48:BI$179,0)))) -> 0 | F22: 0 | G22: =IF(ISERROR(INDEX('RC'!BP$48:BP$179,MATCH(A22,'RC'!BI$48:BI$179,0))),0,(INDEX('RC'!BP$48:BP$179,MATCH(A22,'RC'!BI$48:BI$179,0)))) -> 0 | H22: =IF(B22="",0,IF(B22=0,0,INDEX('RC'!BQ$48:BQ$179,MATCH(A22,'RC'!BI$48:BI$179,0)))) -> 0 | I22: =IF(B22="",0,IF(B22=0,0,INDEX('RC'!BR$48:BR$179,MATCH(A22,'RC'!BI$48:BI$179,0)))) -> 0 | J22: =IF(B22="",0,IF(B22=0,0,INDEX('RC'!BS$48:BS$179,MATCH(A22,'RC'!BI$48:BI$179,0)))) -> 0 | K22: 0 | L22: 0 | M22: 0 | N22: 0 | O22: 0 | P22: 0 | Q22: =IF(ISERROR(INDEX('RC'!DG$48:DG$179,MATCH(A22,'RC'!BI$48:BI$179,0))),0,(INDEX('RC'!DG$48:DG$179,MATCH(A22,'RC'!BI$48:BI$179,0)))) -> 0 | R22: =IF(ISERROR(INDEX('RC'!DH$48:DH$179,MATCH(A22,'RC'!BI$48:BI$179,0))),0,(INDEX('RC'!DH$48:DH$179,MATCH(A22,'RC'!BI$48:BI$179,0)))) -> 0 | S22: 0 | T22: =IF(Entry!B$28="Y",0,IF(ISERROR(INDEX('RC'!CV$48:CV$179,MATCH(A22,'RC'!BI$48:BI$179,0))),0,(INDEX('RC'!CV$48:CV$179,MATCH(A22,'RC'!BI$48:BI$179,0))))) -> 0 | U22: =IF(Entry!B$28="Y",0,IF(ISERROR(INDEX('RC'!CW$48:CW$179,MATCH(A22,'RC'!BI$48:BI$179,0))),0,(INDEX('RC'!CW$48:CW$179,MATCH(A22,'RC'!BI$48:BI$179,0))))) -> 0 | V22: 0 | W22: =IF(ISERROR(INDEX('RC'!CY$48:CY$179,MATCH(A22,'RC'!BI$48:BI$179,0))),0,(INDEX('RC'!CY$48:CY$179,MATCH(A22,'RC'!BI$48:BI$179,0)))) -> 0 | X22: =IF(ISERROR(INDEX('RC'!CZ$48:CZ$179,MATCH(A22,'RC'!BI$48:BI$179,0))),0,(INDEX('RC'!CZ$48:CZ$179,MATCH(A22,'RC'!BI$48:BI$179,0)))) -> 0 | Y22: 0 | Z22: =IF(A22>='RC'!BM$29,0,IF(ISERROR(INDEX('RC'!CF$48:CF$179,MATCH(A22,'RC'!BI$48:BI$179,0))),0,(INDEX('RC'!CF$48:CF$179,MATCH(A22,'RC'!BI$48:BI$179,0))))) -> 0 | AA22: 0 | AB22: 0 | AJ22: 0 | AK22: 0
A23: 2016-08-01 | B23: =IF(ISERROR(INDEX('RC'!BJ$48:BJ$179,MATCH(A23,'RC'!BI$48:BI$179,0))),0,(INDEX('RC'!BJ$48:BJ$179,MATCH(A23,'RC'!BI$48:BI$179,0)))) -> 0 | C23: =IF(B23="",0,IF(B23=0,0,INDEX('RC'!BK$48:BK$179,MATCH(A23,'RC'!BI$48:BI$179,0)))) -> 0 | D23: =IF(B23="",0,IF(B23=0,0,INDEX('RC'!BL$48:BL$179,MATCH(A23,'RC'!BI$48:BI$179,0)))) -> 0 | E23: =IF(B23="",0,IF(B23=0,0,INDEX('RC'!BM$48:BM$179,MATCH(A23,'RC'!BI$48:BI$179,0)))) -> 0 | F23: 0 | G23: =IF(ISERROR(INDEX('RC'!BP$48:BP$179,MATCH(A23,'RC'!BI$48:BI$179,0))),0,(INDEX('RC'!BP$48:BP$179,MATCH(A23,'RC'!BI$48:BI$179,0)))) -> 0 | H23: =IF(B23="",0,IF(B23=0,0,INDEX('RC'!BQ$48:BQ$179,MATCH(A23,'RC'!BI$48:BI$179,0)))) -> 0 | I23: =IF(B23="",0,IF(B23=0,0,INDEX('RC'!BR$48:BR$179,MATCH(A23,'RC'!BI$48:BI$179,0)))) -> 0 | J23: =IF(B23="",0,IF(B23=0,0,INDEX('RC'!BS$48:BS$179,MATCH(A23,'RC'!BI$48:BI$179,0)))) -> 0 | K23: 0 | L23: 0 | M23: 0 | N23: 0 | O23: 0 | P23: 0 | Q23: =IF(ISERROR(INDEX('RC'!DG$48:DG$179,MATCH(A23,'RC'!BI$48:BI$179,0))),0,(INDEX('RC'!DG$48:DG$179,MATCH(A23,'RC'!BI$48:BI$179,0)))) -> 0 | R23: =IF(ISERROR(INDEX('RC'!DH$48:DH$179,MATCH(A23,'RC'!BI$48:BI$179,0))),0,(INDEX('RC'!DH$48:DH$179,MATCH(A23,'RC'!BI$48:BI$179,0)))) -> 0 | S23: 0 | T23: =IF(Entry!B$28="Y",0,IF(ISERROR(INDEX('RC'!CV$48:CV$179,MATCH(A23,'RC'!BI$48:BI$179,0))),0,(INDEX('RC'!CV$48:CV$179,MATCH(A23,'RC'!BI$48:BI$179,0))))) -> 0 | U23: =IF(Entry!B$28="Y",0,IF(ISERROR(INDEX('RC'!CW$48:CW$179,MATCH(A23,'RC'!BI$48:BI$179,0))),0,(INDEX('RC'!CW$48:CW$179,MATCH(A23,'RC'!BI$48:BI$179,0))))) -> 0 | V23: 0 | W23: =IF(ISERROR(INDEX('RC'!CY$48:CY$179,MATCH(A23,'RC'!BI$48:BI$179,0))),0,(INDEX('RC'!CY$48:CY$179,MATCH(A23,'RC'!BI$48:BI$179,0)))) -> 0 | X23: =IF(ISERROR(INDEX('RC'!CZ$48:CZ$179,MATCH(A23,'RC'!BI$48:BI$179,0))),0,(INDEX('RC'!CZ$48:CZ$179,MATCH(A23,'RC'!BI$48:BI$179,0)))) -> 0 | Y23: 0 | Z23: =IF(A23>='RC'!BM$29,0,IF(ISERROR(INDEX('RC'!CF$48:CF$179,MATCH(A23,'RC'!BI$48:BI$179,0))),0,(INDEX('RC'!CF$48:CF$179,MATCH(A23,'RC'!BI$48:BI$179,0))))) -> 0 | AA23: 0 | AB23: 0 | AJ23: 0 | AK23: 0
A24: 2016-09-01 | B24: =IF(ISERROR(INDEX('RC'!BJ$48:BJ$179,MATCH(A24,'RC'!BI$48:BI$179,0))),0,(INDEX('RC'!BJ$48:BJ$179,MATCH(A24,'RC'!BI$48:BI$179,0)))) -> 0 | C24: =IF(B24="",0,IF(B24=0,0,INDEX('RC'!BK$48:BK$179,MATCH(A24,'RC'!BI$48:BI$179,0)))) -> 0 | D24: =IF(B24="",0,IF(B24=0,0,INDEX('RC'!BL$48:BL$179,MATCH(A24,'RC'!BI$48:BI$179,0)))) -> 0 | E24: =IF(B24="",0,IF(B24=0,0,INDEX('RC'!BM$48:BM$179,MATCH(A24,'RC'!BI$48:BI$179,0)))) -> 0 | F24: 0 | G24: =IF(ISERROR(INDEX('RC'!BP$48:BP$179,MATCH(A24,'RC'!BI$48:BI$179,0))),0,(INDEX('RC'!BP$48:BP$179,MATCH(A24,'RC'!BI$48:BI$179,0)))) -> 0 | H24: =IF(B24="",0,IF(B24=0,0,INDEX('RC'!BQ$48:BQ$179,MATCH(A24,'RC'!BI$48:BI$179,0)))) -> 0 | I24: =IF(B24="",0,IF(B24=0,0,INDEX('RC'!BR$48:BR$179,MATCH(A24,'RC'!BI$48:BI$179,0)))) -> 0 | J24: =IF(B24="",0,IF(B24=0,0,INDEX('RC'!BS$48:BS$179,MATCH(A24,'RC'!BI$48:BI$179,0)))) -> 0 | K24: 0 | L24: 0 | M24: 0 | N24: 0 | O24: 0 | P24: 0 | Q24: =IF(ISERROR(INDEX('RC'!DG$48:DG$179,MATCH(A24,'RC'!BI$48:BI$179,0))),0,(INDEX('RC'!DG$48:DG$179,MATCH(A24,'RC'!BI$48:BI$179,0)))) -> 0 | R24: =IF(ISERROR(INDEX('RC'!DH$48:DH$179,MATCH(A24,'RC'!BI$48:BI$179,0))),0,(INDEX('RC'!DH$48:DH$179,MATCH(A24,'RC'!BI$48:BI$179,0)))) -> 0 | S24: 0 | T24: =IF(Entry!B$28="Y",0,IF(ISERROR(INDEX('RC'!CV$48:CV$179,MATCH(A24,'RC'!BI$48:BI$179,0))),0,(INDEX('RC'!CV$48:CV$179,MATCH(A24,'RC'!BI$48:BI$179,0))))) -> 0 | U24: =IF(Entry!B$28="Y",0,IF(ISERROR(INDEX('RC'!CW$48:CW$179,MATCH(A24,'RC'!BI$48:BI$179,0))),0,(INDEX('RC'!CW$48:CW$179,MATCH(A24,'RC'!BI$48:BI$179,0))))) -> 0 | V24: 0 | W24: =IF(ISERROR(INDEX('RC'!CY$48:CY$179,MATCH(A24,'RC'!BI$48:BI$179,0))),0,(INDEX('RC'!CY$48:CY$179,MATCH(A24,'RC'!BI$48:BI$179,0)))) -> 0 | X24: =IF(ISERROR(INDEX('RC'!CZ$48:CZ$179,MATCH(A24,'RC'!BI$48:BI$179,0))),0,(INDEX('RC'!CZ$48:CZ$179,MATCH(A24,'RC'!BI$48:BI$179,0)))) -> 0 | Y24: 0 | Z24: =IF(A24>='RC'!BM$29,0,IF(ISERROR(INDEX('RC'!CF$48:CF$179,MATCH(A24,'RC'!BI$48:BI$179,0))),0,(INDEX('RC'!CF$48:CF$179,MATCH(A24,'RC'!BI$48:BI$179,0))))) -> 0 | AA24: 0 | AB24: 0 | AJ24: =IF(B24<1,0,1) -> 0 | AK24: 0
A25: 2016-10-01 | B25: =IF(ISERROR(INDEX('RC'!BJ$48:BJ$179,MATCH(A25,'RC'!BI$48:BI$179,0))),0,(INDEX('RC'!BJ$48:BJ$179,MATCH(A25,'RC'!BI$48:BI$179,0)))) -> 0 | C25: =IF(B25="",0,IF(B25=0,0,INDEX('RC'!BK$48:BK$179,MATCH(A25,'RC'!BI$48:BI$179,0)))) -> 0 | D25: =IF(B25="",0,IF(B25=0,0,INDEX('RC'!BL$48:BL$179,MATCH(A25,'RC'!BI$48:BI$179,0)))) -> 0 | E25: =IF(B25="",0,IF(B25=0,0,INDEX('RC'!BM$48:BM$179,MATCH(A25,'RC'!BI$48:BI$179,0)))) -> 0 | F25: 0 | G25: =IF(ISERROR(INDEX('RC'!BP$48:BP$179,MATCH(A25,'RC'!BI$48:BI$179,0))),0,(INDEX('RC'!BP$48:BP$179,MATCH(A25,'RC'!BI$48:BI$179,0)))) -> 0 | H25: =IF(B25="",0,IF(B25=0,0,INDEX('RC'!BQ$48:BQ$179,MATCH(A25,'RC'!BI$48:BI$179,0)))) -> 0 | I25: =IF(B25="",0,IF(B25=0,0,INDEX('RC'!BR$48:BR$179,MATCH(A25,'RC'!BI$48:BI$179,0)))) -> 0 | J25: =IF(B25="",0,IF(B25=0,0,INDEX('RC'!BS$48:BS$179,MATCH(A25,'RC'!BI$48:BI$179,0)))) -> 0 | K25: 0 | L25: 0 | M25: 0 | N25: 0 | O25: 0 | P25: 0 | Q25: =IF(ISERROR(INDEX('RC'!DG$48:DG$179,MATCH(A25,'RC'!BI$48:BI$179,0))),0,(INDEX('RC'!DG$48:DG$179,MATCH(A25,'RC'!BI$48:BI$179,0)))) -> 0 | R25: =IF(ISERROR(INDEX('RC'!DH$48:DH$179,MATCH(A25,'RC'!BI$48:BI$179,0))),0,(INDEX('RC'!DH$48:DH$179,MATCH(A25,'RC'!BI$48:BI$179,0)))) -> 0 | S25: 0 | T25: =IF(Entry!B$28="Y",0,IF(ISERROR(INDEX('RC'!CV$48:CV$179,MATCH(A25,'RC'!BI$48:BI$179,0))),0,(INDEX('RC'!CV$48:CV$179,MATCH(A25,'RC'!BI$48:BI$179,0))))) -> 0 | U25: =IF(Entry!B$28="Y",0,IF(ISERROR(INDEX('RC'!CW$48:CW$179,MATCH(A25,'RC'!BI$48:BI$179,0))),0,(INDEX('RC'!CW$48:CW$179,MATCH(A25,'RC'!BI$48:BI$179,0))))) -> 0 | V25: 0 | W25: =IF(ISERROR(INDEX('RC'!CY$48:CY$179,MATCH(A25,'RC'!BI$48:BI$179,0))),0,(INDEX('RC'!CY$48:CY$179,MATCH(A25,'RC'!BI$48:BI$179,0)))) -> 0 | X25: =IF(ISERROR(INDEX('RC'!CZ$48:CZ$179,MATCH(A25,'RC'!BI$48:BI$179,0))),0,(INDEX('RC'!CZ$48:CZ$179,MATCH(A25,'RC'!BI$48:BI$179,0)))) -> 0 | Y25: 0 | Z25: =IF(A25>='RC'!BM$29,0,IF(ISERROR(INDEX('RC'!CF$48:CF$179,MATCH(A25,'RC'!BI$48:BI$179,0))),0,(INDEX('RC'!CF$48:CF$179,MATCH(A25,'RC'!BI$48:BI$179,0))))) -> 0 | AA25: 0 | AB25: 0 | AJ25: =IF(B25<1,0,1) -> 0 | AK25: 0
A26: 2016-11-01 | B26: =IF(ISERROR(INDEX('RC'!BJ$48:BJ$179,MATCH(A26,'RC'!BI$48:BI$179,0))),0,(INDEX('RC'!BJ$48:BJ$179,MATCH(A26,'RC'!BI$48:BI$179,0)))) -> 0 | C26: =IF(B26="",0,IF(B26=0,0,INDEX('RC'!BK$48:BK$179,MATCH(A26,'RC'!BI$48:BI$179,0)))) -> 0 | D26: =IF(B26="",0,IF(B26=0,0,INDEX('RC'!BL$48:BL$179,MATCH(A26,'RC'!BI$48:BI$179,0)))) -> 0 | E26: =IF(B26="",0,IF(B26=0,0,INDEX('RC'!BM$48:BM$179,MATCH(A26,'RC'!BI$48:BI$179,0)))) -> 0 | F26: 0 | G26: =IF(ISERROR(INDEX('RC'!BP$48:BP$179,MATCH(A26,'RC'!BI$48:BI$179,0))),0,(INDEX('RC'!BP$48:BP$179,MATCH(A26,'RC'!BI$48:BI$179,0)))) -> 0 | H26: =IF(B26="",0,IF(B26=0,0,INDEX('RC'!BQ$48:BQ$179,MATCH(A26,'RC'!BI$48:BI$179,0)))) -> 0 | I26: =IF(B26="",0,IF(B26=0,0,INDEX('RC'!BR$48:BR$179,MATCH(A26,'RC'!BI$48:BI$179,0)))) -> 0 | J26: =IF(B26="",0,IF(B26=0,0,INDEX('RC'!BS$48:BS$179,MATCH(A26,'RC'!BI$48:BI$179,0)))) -> 0 | K26: 0 | L26: 0 | M26: 0 | N26: 0 | O26: 0 | P26: 0 | Q26: =IF(ISERROR(INDEX('RC'!DG$48:DG$179,MATCH(A26,'RC'!BI$48:BI$179,0))),0,(INDEX('RC'!DG$48:DG$179,MATCH(A26,'RC'!BI$48:BI$179,0)))) -> 0 | R26: =IF(ISERROR(INDEX('RC'!DH$48:DH$179,MATCH(A26,'RC'!BI$48:BI$179,0))),0,(INDEX('RC'!DH$48:DH$179,MATCH(A26,'RC'!BI$48:BI$179,0)))) -> 0 | S26: 0 | T26: =IF(Entry!B$28="Y",0,IF(ISERROR(INDEX('RC'!CV$48:CV$179,MATCH(A26,'RC'!BI$48:BI$179,0))),0,(INDEX('RC'!CV$48:CV$179,MATCH(A26,'RC'!BI$48:BI$179,0))))) -> 0 | U26: =IF(Entry!B$28="Y",0,IF(ISERROR(INDEX('RC'!CW$48:CW$179,MATCH(A26,'RC'!BI$48:BI$179,0))),0,(INDEX('RC'!CW$48:CW$179,MATCH(A26,'RC'!BI$48:BI$179,0))))) -> 0 | V26: 0 | W26: =IF(ISERROR(INDEX('RC'!CY$48:CY$179,MATCH(A26,'RC'!BI$48:BI$179,0))),0,(INDEX('RC'!CY$48:CY$179,MATCH(A26,'RC'!BI$48:BI$179,0)))) -> 0 | X26: =IF(ISERROR(INDEX('RC'!CZ$48:CZ$179,MATCH(A26,'RC'!BI$48:BI$179,0))),0,(INDEX('RC'!CZ$48:CZ$179,MATCH(A26,'RC'!BI$48:BI$179,0)))) -> 0 | Y26: 0 | Z26: =IF(A26>='RC'!BM$29,0,IF(ISERROR(INDEX('RC'!CF$48:CF$179,MATCH(A26,'RC'!BI$48:BI$179,0))),0,(INDEX('RC'!CF$48:CF$179,MATCH(A26,'RC'!BI$48:BI$179,0))))) -> 0 | AA26: 0 | AB26: 0 | AJ26: 0 | AK26: 0
A27: 2016-12-01 | B27: =IF(ISERROR(INDEX('RC'!BJ$48:BJ$179,MATCH(A27,'RC'!BI$48:BI$179,0))),0,(INDEX('RC'!BJ$48:BJ$179,MATCH(A27,'RC'!BI$48:BI$179,0)))) -> 0 | C27: =IF(B27="",0,IF(B27=0,0,INDEX('RC'!BK$48:BK$179,MATCH(A27,'RC'!BI$48:BI$179,0)))) -> 0 | D27: =IF(B27="",0,IF(B27=0,0,INDEX('RC'!BL$48:BL$179,MATCH(A27,'RC'!BI$48:BI$179,0)))) -> 0 | E27: =IF(B27="",0,IF(B27=0,0,INDEX('RC'!BM$48:BM$179,MATCH(A27,'RC'!BI$48:BI$179,0)))) -> 0 | F27: 0 | G27: =IF(ISERROR(INDEX('RC'!BP$48:BP$179,MATCH(A27,'RC'!BI$48:BI$179,0))),0,(INDEX('RC'!BP$48:BP$179,MATCH(A27,'RC'!BI$48:BI$179,0)))) -> 0 | H27: =IF(B27="",0,IF(B27=0,0,INDEX('RC'!BQ$48:BQ$179,MATCH(A27,'RC'!BI$48:BI$179,0)))) -> 0 | I27: =IF(B27="",0,IF(B27=0,0,INDEX('RC'!BR$48:BR$179,MATCH(A27,'RC'!BI$48:BI$179,0)))) -> 0 | J27: =IF(B27="",0,IF(B27=0,0,INDEX('RC'!BS$48:BS$179,MATCH(A27,'RC'!BI$48:BI$179,0)))) -> 0 | K27: 0 | L27: 0 | M27: 0 | N27: 0 | O27: 0 | P27: 0 | Q27: =IF(ISERROR(INDEX('RC'!DG$48:DG$179,MATCH(A27,'RC'!BI$48:BI$179,0))),0,(INDEX('RC'!DG$48:DG$179,MATCH(A27,'RC'!BI$48:BI$179,0)))) -> 0 | R27: =IF(ISERROR(INDEX('RC'!DH$48:DH$179,MATCH(A27,'RC'!BI$48:BI$179,0))),0,(INDEX('RC'!DH$48:DH$179,MATCH(A27,'RC'!BI$48:BI$179,0)))) -> 0 | S27: 0 | T27: =IF(Entry!B$28="Y",0,IF(ISERROR(INDEX('RC'!CV$48:CV$179,MATCH(A27,'RC'!BI$48:BI$179,0))),0,(INDEX('RC'!CV$48:CV$179,MATCH(A27,'RC'!BI$48:BI$179,0))))) -> 0 | U27: =IF(Entry!B$28="Y",0,IF(ISERROR(INDEX('RC'!CW$48:CW$179,MATCH(A27,'RC'!BI$48:BI$179,0))),0,(INDEX('RC'!CW$48:CW$179,MATCH(A27,'RC'!BI$48:BI$179,0))))) -> 0 | V27: 0 | W27: =IF(ISERROR(INDEX('RC'!CY$48:CY$179,MATCH(A27,'RC'!BI$48:BI$179,0))),0,(INDEX('RC'!CY$48:CY$179,MATCH(A27,'RC'!BI$48:BI$179,0)))) -> 0 | X27: =IF(ISERROR(INDEX('RC'!CZ$48:CZ$179,MATCH(A27,'RC'!BI$48:BI$179,0))),0,(INDEX('RC'!CZ$48:CZ$179,MATCH(A27,'RC'!BI$48:BI$179,0)))) -> 0 | Y27: 0 | Z27: =IF(A27>='RC'!BM$29,0,IF(ISERROR(INDEX('RC'!CF$48:CF$179,MATCH(A27,'RC'!BI$48:BI$179,0))),0,(INDEX('RC'!CF$48:CF$179,MATCH(A27,'RC'!BI$48:BI$179,0))))) -> 0 | AA27: 0 | AB27: 0 | AJ27: 0 | AK27: 0
A28: 2017-01-01 | B28: =IF(ISERROR(INDEX('RC'!BJ$48:BJ$179,MATCH(A28,'RC'!BI$48:BI$179,0))),0,(INDEX('RC'!BJ$48:BJ$179,MATCH(A28,'RC'!BI$48:BI$179,0)))) -> 0 | C28: =IF(B28="",0,IF(B28=0,0,INDEX('RC'!BK$48:BK$179,MATCH(A28,'RC'!BI$48:BI$179,0)))) -> 0 | D28: =IF(B28="",0,IF(B28=0,0,INDEX('RC'!BL$48:BL$179,MATCH(A28,'RC'!BI$48:BI$179,0)))) -> 0 | E28: =IF(B28="",0,IF(B28=0,0,INDEX('RC'!BM$48:BM$179,MATCH(A28,'RC'!BI$48:BI$179,0)))) -> 0 | F28: 0 | G28: =IF(ISERROR(INDEX('RC'!BP$48:BP$179,MATCH(A28,'RC'!BI$48:BI$179,0))),0,(INDEX('RC'!BP$48:BP$179,MATCH(A28,'RC'!BI$48:BI$179,0)))) -> 0 | H28: =IF(B28="",0,IF(B28=0,0,INDEX('RC'!BQ$48:BQ$179,MATCH(A28,'RC'!BI$48:BI$179,0)))) -> 0 | I28: =IF(B28="",0,IF(B28=0,0,INDEX('RC'!BR$48:BR$179,MATCH(A28,'RC'!BI$48:BI$179,0)))) -> 0 | J28: =IF(B28="",0,IF(B28=0,0,INDEX('RC'!BS$48:BS$179,MATCH(A28,'RC'!BI$48:BI$179,0)))) -> 0 | K28: 0 | L28: 0 | M28: 0 | N28: 0 | O28: 0 | P28: 0 | Q28: =IF(ISERROR(INDEX('RC'!DG$48:DG$179,MATCH(A28,'RC'!BI$48:BI$179,0))),0,(INDEX('RC'!DG$48:DG$179,MATCH(A28,'RC'!BI$48:BI$179,0)))) -> 0 | R28: =IF(ISERROR(INDEX('RC'!DH$48:DH$179,MATCH(A28,'RC'!BI$48:BI$179,0))),0,(INDEX('RC'!DH$48:DH$179,MATCH(A28,'RC'!BI$48:BI$179,0)))) -> 0 | S28: 0 | T28: =IF(Entry!B$28="Y",0,IF(ISERROR(INDEX('RC'!CV$48:CV$179,MATCH(A28,'RC'!BI$48:BI$179,0))),0,(INDEX('RC'!CV$48:CV$179,MATCH(A28,'RC'!BI$48:BI$179,0))))) -> 0 | U28: =IF(Entry!B$28="Y",0,IF(ISERROR(INDEX('RC'!CW$48:CW$179,MATCH(A28,'RC'!BI$48:BI$179,0))),0,(INDEX('RC'!CW$48:CW$179,MATCH(A28,'RC'!BI$48:BI$179,0))))) -> 0 | V28: 0 | W28: =IF(ISERROR(INDEX('RC'!CY$48:CY$179,MATCH(A28,'RC'!BI$48:BI$179,0))),0,(INDEX('RC'!CY$48:CY$179,MATCH(A28,'RC'!BI$48:BI$179,0)))) -> 0 | X28: =IF(ISERROR(INDEX('RC'!CZ$48:CZ$179,MATCH(A28,'RC'!BI$48:BI$179,0))),0,(INDEX('RC'!CZ$48:CZ$179,MATCH(A28,'RC'!BI$48:BI$179,0)))) -> 0 | Y28: 0 | Z28: =IF(A28>='RC'!BM$29,0,IF(ISERROR(INDEX('RC'!CF$48:CF$179,MATCH(A28,'RC'!BI$48:BI$179,0))),0,(INDEX('RC'!CF$48:CF$179,MATCH(A28,'RC'!BI$48:BI$179,0))))) -> 0 | AA28: 0 | AB28: 0 | AJ28: 0 | AK28: 0 | AL28: =IF(AK28=0,"",AK28) -> 
A29: 2017-02-01 | B29: =IF(ISERROR(INDEX('RC'!BJ$48:BJ$179,MATCH(A29,'RC'!BI$48:BI$179,0))),0,(INDEX('RC'!BJ$48:BJ$179,MATCH(A29,'RC'!BI$48:BI$179,0)))) -> 0 | C29: =IF(B29="",0,IF(B29=0,0,INDEX('RC'!BK$48:BK$179,MATCH(A29,'RC'!BI$48:BI$179,0)))) -> 0 | D29: =IF(B29="",0,IF(B29=0,0,INDEX('RC'!BL$48:BL$179,MATCH(A29,'RC'!BI$48:BI$179,0)))) -> 0 | E29: =IF(B29="",0,IF(B29=0,0,INDEX('RC'!BM$48:BM$179,MATCH(A29,'RC'!BI$48:BI$179,0)))) -> 0 | F29: 0 | G29: =IF(ISERROR(INDEX('RC'!BP$48:BP$179,MATCH(A29,'RC'!BI$48:BI$179,0))),0,(INDEX('RC'!BP$48:BP$179,MATCH(A29,'RC'!BI$48:BI$179,0)))) -> 0 | H29: =IF(B29="",0,IF(B29=0,0,INDEX('RC'!BQ$48:BQ$179,MATCH(A29,'RC'!BI$48:BI$179,0)))) -> 0 | I29: =IF(B29="",0,IF(B29=0,0,INDEX('RC'!BR$48:BR$179,MATCH(A29,'RC'!BI$48:BI$179,0)))) -> 0 | J29: =IF(B29="",0,IF(B29=0,0,INDEX('RC'!BS$48:BS$179,MATCH(A29,'RC'!BI$48:BI$179,0)))) -> 0 | K29: 0 | L29: 0 | M29: 0 | N29: 0 | O29: 0 | P29: 0 | Q29: =IF(ISERROR(INDEX('RC'!DG$48:DG$179,MATCH(A29,'RC'!BI$48:BI$179,0))),0,(INDEX('RC'!DG$48:DG$179,MATCH(A29,'RC'!BI$48:BI$179,0)))) -> 0 | R29: =IF(ISERROR(INDEX('RC'!DH$48:DH$179,MATCH(A29,'RC'!BI$48:BI$179,0))),0,(INDEX('RC'!DH$48:DH$179,MATCH(A29,'RC'!BI$48:BI$179,0)))) -> 0 | S29: 0 | T29: =IF(Entry!B$28="Y",0,IF(ISERROR(INDEX('RC'!CV$48:CV$179,MATCH(A29,'RC'!BI$48:BI$179,0))),0,(INDEX('RC'!CV$48:CV$179,MATCH(A29,'RC'!BI$48:BI$179,0))))) -> 0 | U29: =IF(Entry!B$28="Y",0,IF(ISERROR(INDEX('RC'!CW$48:CW$179,MATCH(A29,'RC'!BI$48:BI$179,0))),0,(INDEX('RC'!CW$48:CW$179,MATCH(A29,'RC'!BI$48:BI$179,0))))) -> 0 | V29: 0 | W29: =IF(ISERROR(INDEX('RC'!CY$48:CY$179,MATCH(A29,'RC'!BI$48:BI$179,0))),0,(INDEX('RC'!CY$48:CY$179,MATCH(A29,'RC'!BI$48:BI$179,0)))) -> 0 | X29: =IF(ISERROR(INDEX('RC'!CZ$48:CZ$179,MATCH(A29,'RC'!BI$48:BI$179,0))),0,(INDEX('RC'!CZ$48:CZ$179,MATCH(A29,'RC'!BI$48:BI$179,0)))) -> 0 | Y29: 0 | Z29: =IF(A29>='RC'!BM$29,0,IF(ISERROR(INDEX('RC'!CF$48:CF$179,MATCH(A29,'RC'!BI$48:BI$179,0))),0,(INDEX('RC'!CF$48:CF$179,MATCH(A29,'RC'!BI$48:BI$179,0))))) -> 0 | AA29: 0 | AB29: 0 | AJ29: 0 | AK29: 0
A30: 2017-03-01 | B30: =IF(ISERROR(INDEX('RC'!BJ$48:BJ$179,MATCH(A30,'RC'!BI$48:BI$179,0))),0,(INDEX('RC'!BJ$48:BJ$179,MATCH(A30,'RC'!BI$48:BI$179,0)))) -> 0 | C30: =IF(B30="",0,IF(B30=0,0,INDEX('RC'!BK$48:BK$179,MATCH(A30,'RC'!BI$48:BI$179,0)))) -> 0 | D30: =IF(B30="",0,IF(B30=0,0,INDEX('RC'!BL$48:BL$179,MATCH(A30,'RC'!BI$48:BI$179,0)))) -> 0 | E30: =IF(B30="",0,IF(B30=0,0,INDEX('RC'!BM$48:BM$179,MATCH(A30,'RC'!BI$48:BI$179,0)))) -> 0 | F30: 0 | G30: =IF(ISERROR(INDEX('RC'!BP$48:BP$179,MATCH(A30,'RC'!BI$48:BI$179,0))),0,(INDEX('RC'!BP$48:BP$179,MATCH(A30,'RC'!BI$48:BI$179,0)))) -> 0 | H30: =IF(B30="",0,IF(B30=0,0,INDEX('RC'!BQ$48:BQ$179,MATCH(A30,'RC'!BI$48:BI$179,0)))) -> 0 | I30: =IF(B30="",0,IF(B30=0,0,INDEX('RC'!BR$48:BR$179,MATCH(A30,'RC'!BI$48:BI$179,0)))) -> 0 | J30: =IF(B30="",0,IF(B30=0,0,INDEX('RC'!BS$48:BS$179,MATCH(A30,'RC'!BI$48:BI$179,0)))) -> 0 | K30: 0 | L30: 0 | M30: 0 | N30: 0 | O30: 0 | P30: 0 | Q30: =IF(ISERROR(INDEX('RC'!DG$48:DG$179,MATCH(A30,'RC'!BI$48:BI$179,0))),0,(INDEX('RC'!DG$48:DG$179,MATCH(A30,'RC'!BI$48:BI$179,0)))) -> 0 | R30: =IF(ISERROR(INDEX('RC'!DH$48:DH$179,MATCH(A30,'RC'!BI$48:BI$179,0))),0,(INDEX('RC'!DH$48:DH$179,MATCH(A30,'RC'!BI$48:BI$179,0)))) -> 0 | S30: 0 | T30: =IF(Entry!B$28="Y",0,IF(ISERROR(INDEX('RC'!CV$48:CV$179,MATCH(A30,'RC'!BI$48:BI$179,0))),0,(INDEX('RC'!CV$48:CV$179,MATCH(A30,'RC'!BI$48:BI$179,0))))) -> 0 | U30: =IF(Entry!B$28="Y",0,IF(ISERROR(INDEX('RC'!CW$48:CW$179,MATCH(A30,'RC'!BI$48:BI$179,0))),0,(INDEX('RC'!CW$48:CW$179,MATCH(A30,'RC'!BI$48:BI$179,0))))) -> 0 | V30: 0 | W30: =IF(ISERROR(INDEX('RC'!CY$48:CY$179,MATCH(A30,'RC'!BI$48:BI$179,0))),0,(INDEX('RC'!CY$48:CY$179,MATCH(A30,'RC'!BI$48:BI$179,0)))) -> 0 | X30: =IF(ISERROR(INDEX('RC'!CZ$48:CZ$179,MATCH(A30,'RC'!BI$48:BI$179,0))),0,(INDEX('RC'!CZ$48:CZ$179,MATCH(A30,'RC'!BI$48:BI$179,0)))) -> 0 | Y30: 0 | Z30: =IF(A30>='RC'!BM$29,0,IF(ISERROR(INDEX('RC'!CF$48:CF$179,MATCH(A30,'RC'!BI$48:BI$179,0))),0,(INDEX('RC'!CF$48:CF$179,MATCH(A30,'RC'!BI$48:BI$179,0))))) -> 0 | AA30: 0 | AB30: 0 | AJ30: 0 | AK30: 0
A31: =EDATE(A30,1) -> 2017-04-01 | B31: =IF(ISERROR(INDEX('RC'!BJ$48:BJ$179,MATCH(A31,'RC'!BI$48:BI$179,0))),0,(INDEX('RC'!BJ$48:BJ$179,MATCH(A31,'RC'!BI$48:BI$179,0)))) -> 0 | C31: =IF(B31="",0,IF(B31=0,0,INDEX('RC'!BK$48:BK$179,MATCH(A31,'RC'!BI$48:BI$179,0)))) -> 0 | D31: =IF(B31="",0,IF(B31=0,0,INDEX('RC'!BL$48:BL$179,MATCH(A31,'RC'!BI$48:BI$179,0)))) -> 0 | E31: =IF(B31="",0,IF(B31=0,0,INDEX('RC'!BM$48:BM$179,MATCH(A31,'RC'!BI$48:BI$179,0)))) -> 0 | F31: 0 | G31: =IF(ISERROR(INDEX('RC'!BP$48:BP$179,MATCH(A31,'RC'!BI$48:BI$179,0))),0,(INDEX('RC'!BP$48:BP$179,MATCH(A31,'RC'!BI$48:BI$179,0)))) -> 0 | H31: =IF(B31="",0,IF(B31=0,0,INDEX('RC'!BQ$48:BQ$179,MATCH(A31,'RC'!BI$48:BI$179,0)))) -> 0 | I31: =IF(B31="",0,IF(B31=0,0,INDEX('RC'!BR$48:BR$179,MATCH(A31,'RC'!BI$48:BI$179,0)))) -> 0 | J31: =IF(B31="",0,IF(B31=0,0,INDEX('RC'!BS$48:BS$179,MATCH(A31,'RC'!BI$48:BI$179,0)))) -> 0 | K31: 0 | L31: 0 | M31: 0 | N31: 0 | O31: 0 | P31: 0 | Q31: =IF(ISERROR(INDEX('RC'!DG$48:DG$179,MATCH(A31,'RC'!BI$48:BI$179,0))),0,(INDEX('RC'!DG$48:DG$179,MATCH(A31,'RC'!BI$48:BI$179,0)))) -> 0 | R31: =IF(ISERROR(INDEX('RC'!DH$48:DH$179,MATCH(A31,'RC'!BI$48:BI$179,0))),0,(INDEX('RC'!DH$48:DH$179,MATCH(A31,'RC'!BI$48:BI$179,0)))) -> 0 | S31: 0 | T31: =IF(Entry!B$28="Y",0,IF(ISERROR(INDEX('RC'!CV$48:CV$179,MATCH(A31,'RC'!BI$48:BI$179,0))),0,(INDEX('RC'!CV$48:CV$179,MATCH(A31,'RC'!BI$48:BI$179,0))))) -> 0 | U31: =IF(Entry!B$28="Y",0,IF(ISERROR(INDEX('RC'!CW$48:CW$179,MATCH(A31,'RC'!BI$48:BI$179,0))),0,(INDEX('RC'!CW$48:CW$179,MATCH(A31,'RC'!BI$48:BI$179,0))))) -> 0 | V31: 0 | W31: =IF(ISERROR(INDEX('RC'!CY$48:CY$179,MATCH(A31,'RC'!BI$48:BI$179,0))),0,(INDEX('RC'!CY$48:CY$179,MATCH(A31,'RC'!BI$48:BI$179,0)))) -> 0 | X31: =IF(ISERROR(INDEX('RC'!CZ$48:CZ$179,MATCH(A31,'RC'!BI$48:BI$179,0))),0,(INDEX('RC'!CZ$48:CZ$179,MATCH(A31,'RC'!BI$48:BI$179,0)))) -> 0 | Y31: 0 | Z31: =IF(A31>='RC'!BM$29,0,IF(ISERROR(INDEX('RC'!CF$48:CF$179,MATCH(A31,'RC'!BI$48:BI$179,0))),0,(INDEX('RC'!CF$48:CF$179,MATCH(A31,'RC'!BI$48:BI$179,0))))) -> 0 | AA31: 0 | AB31: 0 | AJ31: 0 | AK31: 0
A32: =EDATE(A31,1) -> 2017-05-01 | B32: =IF(ISERROR(INDEX('RC'!BJ$48:BJ$179,MATCH(A32,'RC'!BI$48:BI$179,0))),0,(INDEX('RC'!BJ$48:BJ$179,MATCH(A32,'RC'!BI$48:BI$179,0)))) -> 0 | C32: =IF(B32="",0,IF(B32=0,0,INDEX('RC'!BK$48:BK$179,MATCH(A32,'RC'!BI$48:BI$179,0)))) -> 0 | D32: =IF(B32="",0,IF(B32=0,0,INDEX('RC'!BL$48:BL$179,MATCH(A32,'RC'!BI$48:BI$179,0)))) -> 0 | E32: =IF(B32="",0,IF(B32=0,0,INDEX('RC'!BM$48:BM$179,MATCH(A32,'RC'!BI$48:BI$179,0)))) -> 0 | F32: 0 | G32: =IF(ISERROR(INDEX('RC'!BP$48:BP$179,MATCH(A32,'RC'!BI$48:BI$179,0))),0,(INDEX('RC'!BP$48:BP$179,MATCH(A32,'RC'!BI$48:BI$179,0)))) -> 0 | H32: =IF(B32="",0,IF(B32=0,0,INDEX('RC'!BQ$48:BQ$179,MATCH(A32,'RC'!BI$48:BI$179,0)))) -> 0 | I32: =IF(B32="",0,IF(B32=0,0,INDEX('RC'!BR$48:BR$179,MATCH(A32,'RC'!BI$48:BI$179,0)))) -> 0 | J32: =IF(B32="",0,IF(B32=0,0,INDEX('RC'!BS$48:BS$179,MATCH(A32,'RC'!BI$48:BI$179,0)))) -> 0 | K32: 0 | L32: 0 | M32: 0 | N32: 0 | O32: 0 | P32: 0 | Q32: =IF(ISERROR(INDEX('RC'!DG$48:DG$179,MATCH(A32,'RC'!BI$48:BI$179,0))),0,(INDEX('RC'!DG$48:DG$179,MATCH(A32,'RC'!BI$48:BI$179,0)))) -> 0 | R32: =IF(ISERROR(INDEX('RC'!DH$48:DH$179,MATCH(A32,'RC'!BI$48:BI$179,0))),0,(INDEX('RC'!DH$48:DH$179,MATCH(A32,'RC'!BI$48:BI$179,0)))) -> 0 | S32: 0 | T32: =IF(Entry!B$28="Y",0,IF(ISERROR(INDEX('RC'!CV$48:CV$179,MATCH(A32,'RC'!BI$48:BI$179,0))),0,(INDEX('RC'!CV$48:CV$179,MATCH(A32,'RC'!BI$48:BI$179,0))))) -> 0 | U32: =IF(Entry!B$28="Y",0,IF(ISERROR(INDEX('RC'!CW$48:CW$179,MATCH(A32,'RC'!BI$48:BI$179,0))),0,(INDEX('RC'!CW$48:CW$179,MATCH(A32,'RC'!BI$48:BI$179,0))))) -> 0 | V32: 0 | W32: =IF(ISERROR(INDEX('RC'!CY$48:CY$179,MATCH(A32,'RC'!BI$48:BI$179,0))),0,(INDEX('RC'!CY$48:CY$179,MATCH(A32,'RC'!BI$48:BI$179,0)))) -> 0 | X32: =IF(ISERROR(INDEX('RC'!CZ$48:CZ$179,MATCH(A32,'RC'!BI$48:BI$179,0))),0,(INDEX('RC'!CZ$48:CZ$179,MATCH(A32,'RC'!BI$48:BI$179,0)))) -> 0 | Y32: 0 | Z32: =IF(A32>='RC'!BM$29,0,IF(ISERROR(INDEX('RC'!CF$48:CF$179,MATCH(A32,'RC'!BI$48:BI$179,0))),0,(INDEX('RC'!CF$48:CF$179,MATCH(A32,'RC'!BI$48:BI$179,0))))) -> 0 | AA32: 0 | AB32: 0 | AJ32: 0 | AK32: 0
A33: =EDATE(A32,1) -> 2017-06-01 | B33: =IF(ISERROR(INDEX('RC'!BJ$48:BJ$179,MATCH(A33,'RC'!BI$48:BI$179,0))),0,(INDEX('RC'!BJ$48:BJ$179,MATCH(A33,'RC'!BI$48:BI$179,0)))) -> 0 | C33: =IF(B33="",0,IF(B33=0,0,INDEX('RC'!BK$48:BK$179,MATCH(A33,'RC'!BI$48:BI$179,0)))) -> 0 | D33: =IF(B33="",0,IF(B33=0,0,INDEX('RC'!BL$48:BL$179,MATCH(A33,'RC'!BI$48:BI$179,0)))) -> 0 | E33: =IF(B33="",0,IF(B33=0,0,INDEX('RC'!BM$48:BM$179,MATCH(A33,'RC'!BI$48:BI$179,0)))) -> 0 | F33: =SUM(B33:E33) -> 0 | G33: =IF(ISERROR(INDEX('RC'!BP$48:BP$179,MATCH(A33,'RC'!BI$48:BI$179,0))),0,(INDEX('RC'!BP$48:BP$179,MATCH(A33,'RC'!BI$48:BI$179,0)))) -> 0 | H33: =IF(B33="",0,IF(B33=0,0,INDEX('RC'!BQ$48:BQ$179,MATCH(A33,'RC'!BI$48:BI$179,0)))) -> 0 | I33: =IF(B33="",0,IF(B33=0,0,INDEX('RC'!BR$48:BR$179,MATCH(A33,'RC'!BI$48:BI$179,0)))) -> 0 | J33: =IF(B33="",0,IF(B33=0,0,INDEX('RC'!BS$48:BS$179,MATCH(A33,'RC'!BI$48:BI$179,0)))) -> 0 | K33: =SUM(G33:J33) -> 0 | L33: =B33-G33 -> 0 | M33: =C33-H33 -> 0 | N33: =D33-I33 -> 0 | O33: =E33-J33 -> 0 | P33: =SUM(L33:O33) -> 0 | Q33: =IF(ISERROR(INDEX('RC'!DG$48:DG$179,MATCH(A33,'RC'!BI$48:BI$179,0))),0,(INDEX('RC'!DG$48:DG$179,MATCH(A33,'RC'!BI$48:BI$179,0)))) -> 0 | R33: =IF(ISERROR(INDEX('RC'!DH$48:DH$179,MATCH(A33,'RC'!BI$48:BI$179,0))),0,(INDEX('RC'!DH$48:DH$179,MATCH(A33,'RC'!BI$48:BI$179,0)))) -> 0 | S33: 0 | T33: =IF(Entry!B$28="Y",0,IF(ISERROR(INDEX('RC'!CV$48:CV$179,MATCH(A33,'RC'!BI$48:BI$179,0))),0,(INDEX('RC'!CV$48:CV$179,MATCH(A33,'RC'!BI$48:BI$179,0))))) -> 0 | U33: =IF(Entry!B$28="Y",0,IF(ISERROR(INDEX('RC'!CW$48:CW$179,MATCH(A33,'RC'!BI$48:BI$179,0))),0,(INDEX('RC'!CW$48:CW$179,MATCH(A33,'RC'!BI$48:BI$179,0))))) -> 0 | V33: 0 | W33: =IF(ISERROR(INDEX('RC'!CY$48:CY$179,MATCH(A33,'RC'!BI$48:BI$179,0))),0,(INDEX('RC'!CY$48:CY$179,MATCH(A33,'RC'!BI$48:BI$179,0)))) -> 0 | X33: =IF(ISERROR(INDEX('RC'!CZ$48:CZ$179,MATCH(A33,'RC'!BI$48:BI$179,0))),0,(INDEX('RC'!CZ$48:CZ$179,MATCH(A33,'RC'!BI$48:BI$179,0)))) -> 0 | Y33: 0 | Z33: =IF(A33>='RC'!BM$29,0,IF(ISERROR(INDEX('RC'!CF$48:CF$179,MATCH(A33,'RC'!BI$48:BI$179,0))),0,(INDEX('RC'!CF$48:CF$179,MATCH(A33,'RC'!BI$48:BI$179,0))))) -> 0 | AA33: =S33+V33+Y33+Z33 -> 0 | AB33: 0 | AJ33: =IF(B33<1,0,1) -> 0 | AK33: 0
A34: =EDATE(A33,1) -> 2017-07-01 | B34: =IF(ISERROR(INDEX('RC'!BJ$48:BJ$179,MATCH(A34,'RC'!BI$48:BI$179,0))),0,(INDEX('RC'!BJ$48:BJ$179,MATCH(A34,'RC'!BI$48:BI$179,0)))) -> 0 | C34: =IF(B34="",0,IF(B34=0,0,INDEX('RC'!BK$48:BK$179,MATCH(A34,'RC'!BI$48:BI$179,0)))) -> 0 | D34: =IF(B34="",0,IF(B34=0,0,INDEX('RC'!BL$48:BL$179,MATCH(A34,'RC'!BI$48:BI$179,0)))) -> 0 | E34: =IF(B34="",0,IF(B34=0,0,INDEX('RC'!BM$48:BM$179,MATCH(A34,'RC'!BI$48:BI$179,0)))) -> 0 | F34: 0 | G34: =IF(ISERROR(INDEX('RC'!BP$48:BP$179,MATCH(A34,'RC'!BI$48:BI$179,0))),0,(INDEX('RC'!BP$48:BP$179,MATCH(A34,'RC'!BI$48:BI$179,0)))) -> 0 | H34: =IF(B34="",0,IF(B34=0,0,INDEX('RC'!BQ$48:BQ$179,MATCH(A34,'RC'!BI$48:BI$179,0)))) -> 0 | I34: =IF(B34="",0,IF(B34=0,0,INDEX('RC'!BR$48:BR$179,MATCH(A34,'RC'!BI$48:BI$179,0)))) -> 0 | J34: =IF(B34="",0,IF(B34=0,0,INDEX('RC'!BS$48:BS$179,MATCH(A34,'RC'!BI$48:BI$179,0)))) -> 0 | K34: =SUM(G34:J34) -> 0 | L34: =B34-G34 -> 0 | M34: =C34-H34 -> 0 | N34: =D34-I34 -> 0 | O34: =E34-J34 -> 0 | P34: =SUM(L34:O34) -> 0 | Q34: =IF(ISERROR(INDEX('RC'!DG$48:DG$179,MATCH(A34,'RC'!BI$48:BI$179,0))),0,(INDEX('RC'!DG$48:DG$179,MATCH(A34,'RC'!BI$48:BI$179,0)))) -> 0 | R34: =IF(ISERROR(INDEX('RC'!DH$48:DH$179,MATCH(A34,'RC'!BI$48:BI$179,0))),0,(INDEX('RC'!DH$48:DH$179,MATCH(A34,'RC'!BI$48:BI$179,0)))) -> 0 | S34: 0 | T34: =IF(Entry!B$28="Y",0,IF(ISERROR(INDEX('RC'!CV$48:CV$179,MATCH(A34,'RC'!BI$48:BI$179,0))),0,(INDEX('RC'!CV$48:CV$179,MATCH(A34,'RC'!BI$48:BI$179,0))))) -> 0 | U34: =IF(Entry!B$28="Y",0,IF(ISERROR(INDEX('RC'!CW$48:CW$179,MATCH(A34,'RC'!BI$48:BI$179,0))),0,(INDEX('RC'!CW$48:CW$179,MATCH(A34,'RC'!BI$48:BI$179,0))))) -> 0 | V34: 0 | W34: =IF(ISERROR(INDEX('RC'!CY$48:CY$179,MATCH(A34,'RC'!BI$48:BI$179,0))),0,(INDEX('RC'!CY$48:CY$179,MATCH(A34,'RC'!BI$48:BI$179,0)))) -> 0 | X34: =IF(ISERROR(INDEX('RC'!CZ$48:CZ$179,MATCH(A34,'RC'!BI$48:BI$179,0))),0,(INDEX('RC'!CZ$48:CZ$179,MATCH(A34,'RC'!BI$48:BI$179,0)))) -> 0 | Y34: 0 | Z34: =IF(A34>='RC'!BM$29,0,IF(ISERROR(INDEX('RC'!CF$48:CF$179,MATCH(A34,'RC'!BI$48:BI$179,0))),0,(INDEX('RC'!CF$48:CF$179,MATCH(A34,'RC'!BI$48:BI$179,0))))) -> 0 | AA34: 0 | AB34: 0 | AJ34: 0 | AK34: 0
A35: 2017-08-01 | B35: =IF(ISERROR(INDEX('RC'!BJ$48:BJ$179,MATCH(A35,'RC'!BI$48:BI$179,0))),0,(INDEX('RC'!BJ$48:BJ$179,MATCH(A35,'RC'!BI$48:BI$179,0)))) -> 0 | C35: =IF(B35="",0,IF(B35=0,0,INDEX('RC'!BK$48:BK$179,MATCH(A35,'RC'!BI$48:BI$179,0)))) -> 0 | D35: =IF(B35="",0,IF(B35=0,0,INDEX('RC'!BL$48:BL$179,MATCH(A35,'RC'!BI$48:BI$179,0)))) -> 0 | E35: =IF(B35="",0,IF(B35=0,0,INDEX('RC'!BM$48:BM$179,MATCH(A35,'RC'!BI$48:BI$179,0)))) -> 0 | F35: 0 | G35: =IF(ISERROR(INDEX('RC'!BP$48:BP$179,MATCH(A35,'RC'!BI$48:BI$179,0))),0,(INDEX('RC'!BP$48:BP$179,MATCH(A35,'RC'!BI$48:BI$179,0)))) -> 0 | H35: =IF(B35="",0,IF(B35=0,0,INDEX('RC'!BQ$48:BQ$179,MATCH(A35,'RC'!BI$48:BI$179,0)))) -> 0 | I35: =IF(B35="",0,IF(B35=0,0,INDEX('RC'!BR$48:BR$179,MATCH(A35,'RC'!BI$48:BI$179,0)))) -> 0 | J35: =IF(B35="",0,IF(B35=0,0,INDEX('RC'!BS$48:BS$179,MATCH(A35,'RC'!BI$48:BI$179,0)))) -> 0 | K35: 0 | L35: 0 | M35: 0 | N35: 0 | O35: 0 | P35: 0 | Q35: =IF(ISERROR(INDEX('RC'!DG$48:DG$179,MATCH(A35,'RC'!BI$48:BI$179,0))),0,(INDEX('RC'!DG$48:DG$179,MATCH(A35,'RC'!BI$48:BI$179,0)))) -> 0 | R35: =IF(ISERROR(INDEX('RC'!DH$48:DH$179,MATCH(A35,'RC'!BI$48:BI$179,0))),0,(INDEX('RC'!DH$48:DH$179,MATCH(A35,'RC'!BI$48:BI$179,0)))) -> 0 | S35: 0 | T35: =IF(Entry!B$28="Y",0,IF(ISERROR(INDEX('RC'!CV$48:CV$179,MATCH(A35,'RC'!BI$48:BI$179,0))),0,(INDEX('RC'!CV$48:CV$179,MATCH(A35,'RC'!BI$48:BI$179,0))))) -> 0 | U35: =IF(Entry!B$28="Y",0,IF(ISERROR(INDEX('RC'!CW$48:CW$179,MATCH(A35,'RC'!BI$48:BI$179,0))),0,(INDEX('RC'!CW$48:CW$179,MATCH(A35,'RC'!BI$48:BI$179,0))))) -> 0 | V35: 0 | W35: =IF(ISERROR(INDEX('RC'!CY$48:CY$179,MATCH(A35,'RC'!BI$48:BI$179,0))),0,(INDEX('RC'!CY$48:CY$179,MATCH(A35,'RC'!BI$48:BI$179,0)))) -> 0 | X35: =IF(ISERROR(INDEX('RC'!CZ$48:CZ$179,MATCH(A35,'RC'!BI$48:BI$179,0))),0,(INDEX('RC'!CZ$48:CZ$179,MATCH(A35,'RC'!BI$48:BI$179,0)))) -> 0 | Y35: 0 | Z35: =IF(A35>='RC'!BM$29,0,IF(ISERROR(INDEX('RC'!CF$48:CF$179,MATCH(A35,'RC'!BI$48:BI$179,0))),0,(INDEX('RC'!CF$48:CF$179,MATCH(A35,'RC'!BI$48:BI$179,0))))) -> 0 | AA35: 0 | AB35: 0 | AJ35: 0 | AK35: =AJ35 -> 0 | AL35: =IF(AK35=0,"",AK35) ->  | AM35: =IF(AL35=0,"",AL35) -> 
A36: 2017-09-01 | B36: =IF(ISERROR(INDEX('RC'!BJ$48:BJ$179,MATCH(A36,'RC'!BI$48:BI$179,0))),0,(INDEX('RC'!BJ$48:BJ$179,MATCH(A36,'RC'!BI$48:BI$179,0)))) -> 0 | C36: =IF(B36="",0,IF(B36=0,0,INDEX('RC'!BK$48:BK$179,MATCH(A36,'RC'!BI$48:BI$179,0)))) -> 0 | D36: =IF(B36="",0,IF(B36=0,0,INDEX('RC'!BL$48:BL$179,MATCH(A36,'RC'!BI$48:BI$179,0)))) -> 0 | E36: =IF(B36="",0,IF(B36=0,0,INDEX('RC'!BM$48:BM$179,MATCH(A36,'RC'!BI$48:BI$179,0)))) -> 0 | F36: 0 | G36: =IF(ISERROR(INDEX('RC'!BP$48:BP$179,MATCH(A36,'RC'!BI$48:BI$179,0))),0,(INDEX('RC'!BP$48:BP$179,MATCH(A36,'RC'!BI$48:BI$179,0)))) -> 0 | H36: =IF(B36="",0,IF(B36=0,0,INDEX('RC'!BQ$48:BQ$179,MATCH(A36,'RC'!BI$48:BI$179,0)))) -> 0 | I36: =IF(B36="",0,IF(B36=0,0,INDEX('RC'!BR$48:BR$179,MATCH(A36,'RC'!BI$48:BI$179,0)))) -> 0 | J36: =IF(B36="",0,IF(B36=0,0,INDEX('RC'!BS$48:BS$179,MATCH(A36,'RC'!BI$48:BI$179,0)))) -> 0 | K36: 0 | L36: 0 | M36: 0 | N36: 0 | O36: 0 | P36: 0 | Q36: =IF(ISERROR(INDEX('RC'!DG$48:DG$179,MATCH(A36,'RC'!BI$48:BI$179,0))),0,(INDEX('RC'!DG$48:DG$179,MATCH(A36,'RC'!BI$48:BI$179,0)))) -> 0 | R36: =IF(ISERROR(INDEX('RC'!DH$48:DH$179,MATCH(A36,'RC'!BI$48:BI$179,0))),0,(INDEX('RC'!DH$48:DH$179,MATCH(A36,'RC'!BI$48:BI$179,0)))) -> 0 | S36: 0 | T36: =IF(Entry!B$28="Y",0,IF(ISERROR(INDEX('RC'!CV$48:CV$179,MATCH(A36,'RC'!BI$48:BI$179,0))),0,(INDEX('RC'!CV$48:CV$179,MATCH(A36,'RC'!BI$48:BI$179,0))))) -> 0 | U36: =IF(Entry!B$28="Y",0,IF(ISERROR(INDEX('RC'!CW$48:CW$179,MATCH(A36,'RC'!BI$48:BI$179,0))),0,(INDEX('RC'!CW$48:CW$179,MATCH(A36,'RC'!BI$48:BI$179,0))))) -> 0 | V36: 0 | W36: =IF(ISERROR(INDEX('RC'!CY$48:CY$179,MATCH(A36,'RC'!BI$48:BI$179,0))),0,(INDEX('RC'!CY$48:CY$179,MATCH(A36,'RC'!BI$48:BI$179,0)))) -> 0 | X36: =IF(ISERROR(INDEX('RC'!CZ$48:CZ$179,MATCH(A36,'RC'!BI$48:BI$179,0))),0,(INDEX('RC'!CZ$48:CZ$179,MATCH(A36,'RC'!BI$48:BI$179,0)))) -> 0 | Y36: 0 | Z36: =IF(A36>='RC'!BM$29,0,IF(ISERROR(INDEX('RC'!CF$48:CF$179,MATCH(A36,'RC'!BI$48:BI$179,0))),0,(INDEX('RC'!CF$48:CF$179,MATCH(A36,'RC'!BI$48:BI$179,0))))) -> 0 | AA36: 0 | AB36: 0 | AJ36: 0 | AK36: 0
A37: 2017-10-01 | B37: =IF(ISERROR(INDEX('RC'!BJ$48:BJ$179,MATCH(A37,'RC'!BI$48:BI$179,0))),0,(INDEX('RC'!BJ$48:BJ$179,MATCH(A37,'RC'!BI$48:BI$179,0)))) -> 0 | C37: =IF(B37="",0,IF(B37=0,0,INDEX('RC'!BK$48:BK$179,MATCH(A37,'RC'!BI$48:BI$179,0)))) -> 0 | D37: =IF(B37="",0,IF(B37=0,0,INDEX('RC'!BL$48:BL$179,MATCH(A37,'RC'!BI$48:BI$179,0)))) -> 0 | E37: =IF(B37="",0,IF(B37=0,0,INDEX('RC'!BM$48:BM$179,MATCH(A37,'RC'!BI$48:BI$179,0)))) -> 0 | F37: 0 | G37: =IF(ISERROR(INDEX('RC'!BP$48:BP$179,MATCH(A37,'RC'!BI$48:BI$179,0))),0,(INDEX('RC'!BP$48:BP$179,MATCH(A37,'RC'!BI$48:BI$179,0)))) -> 0 | H37: =IF(B37="",0,IF(B37=0,0,INDEX('RC'!BQ$48:BQ$179,MATCH(A37,'RC'!BI$48:BI$179,0)))) -> 0 | I37: =IF(B37="",0,IF(B37=0,0,INDEX('RC'!BR$48:BR$179,MATCH(A37,'RC'!BI$48:BI$179,0)))) -> 0 | J37: =IF(B37="",0,IF(B37=0,0,INDEX('RC'!BS$48:BS$179,MATCH(A37,'RC'!BI$48:BI$179,0)))) -> 0 | K37: 0 | L37: 0 | M37: 0 | N37: 0 | O37: 0 | P37: 0 | Q37: =IF(ISERROR(INDEX('RC'!DG$48:DG$179,MATCH(A37,'RC'!BI$48:BI$179,0))),0,(INDEX('RC'!DG$48:DG$179,MATCH(A37,'RC'!BI$48:BI$179,0)))) -> 0 | R37: =IF(ISERROR(INDEX('RC'!DH$48:DH$179,MATCH(A37,'RC'!BI$48:BI$179,0))),0,(INDEX('RC'!DH$48:DH$179,MATCH(A37,'RC'!BI$48:BI$179,0)))) -> 0 | S37: 0 | T37: =IF(Entry!B$28="Y",0,IF(ISERROR(INDEX('RC'!CV$48:CV$179,MATCH(A37,'RC'!BI$48:BI$179,0))),0,(INDEX('RC'!CV$48:CV$179,MATCH(A37,'RC'!BI$48:BI$179,0))))) -> 0 | U37: =IF(Entry!B$28="Y",0,IF(ISERROR(INDEX('RC'!CW$48:CW$179,MATCH(A37,'RC'!BI$48:BI$179,0))),0,(INDEX('RC'!CW$48:CW$179,MATCH(A37,'RC'!BI$48:BI$179,0))))) -> 0 | V37: 0 | W37: =IF(ISERROR(INDEX('RC'!CY$48:CY$179,MATCH(A37,'RC'!BI$48:BI$179,0))),0,(INDEX('RC'!CY$48:CY$179,MATCH(A37,'RC'!BI$48:BI$179,0)))) -> 0 | X37: =IF(ISERROR(INDEX('RC'!CZ$48:CZ$179,MATCH(A37,'RC'!BI$48:BI$179,0))),0,(INDEX('RC'!CZ$48:CZ$179,MATCH(A37,'RC'!BI$48:BI$179,0)))) -> 0 | Y37: 0 | Z37: =IF(A37>='RC'!BM$29,0,IF(ISERROR(INDEX('RC'!CF$48:CF$179,MATCH(A37,'RC'!BI$48:BI$179,0))),0,(INDEX('RC'!CF$48:CF$179,MATCH(A37,'RC'!BI$48:BI$179,0))))) -> 0 | AA37: 0 | AB37: 0 | AJ37: 0 | AK37: 0
A38: 2017-11-01 | B38: =IF(ISERROR(INDEX('RC'!BJ$48:BJ$179,MATCH(A38,'RC'!BI$48:BI$179,0))),0,(INDEX('RC'!BJ$48:BJ$179,MATCH(A38,'RC'!BI$48:BI$179,0)))) -> 0 | C38: =IF(B38="",0,IF(B38=0,0,INDEX('RC'!BK$48:BK$179,MATCH(A38,'RC'!BI$48:BI$179,0)))) -> 0 | D38: =IF(B38="",0,IF(B38=0,0,INDEX('RC'!BL$48:BL$179,MATCH(A38,'RC'!BI$48:BI$179,0)))) -> 0 | E38: =IF(B38="",0,IF(B38=0,0,INDEX('RC'!BM$48:BM$179,MATCH(A38,'RC'!BI$48:BI$179,0)))) -> 0 | F38: 0 | G38: =IF(ISERROR(INDEX('RC'!BP$48:BP$179,MATCH(A38,'RC'!BI$48:BI$179,0))),0,(INDEX('RC'!BP$48:BP$179,MATCH(A38,'RC'!BI$48:BI$179,0)))) -> 0 | H38: =IF(B38="",0,IF(B38=0,0,INDEX('RC'!BQ$48:BQ$179,MATCH(A38,'RC'!BI$48:BI$179,0)))) -> 0 | I38: =IF(B38="",0,IF(B38=0,0,INDEX('RC'!BR$48:BR$179,MATCH(A38,'RC'!BI$48:BI$179,0)))) -> 0 | J38: =IF(B38="",0,IF(B38=0,0,INDEX('RC'!BS$48:BS$179,MATCH(A38,'RC'!BI$48:BI$179,0)))) -> 0 | K38: 0 | L38: 0 | M38: 0 | N38: 0 | O38: 0 | P38: 0 | Q38: =IF(ISERROR(INDEX('RC'!DG$48:DG$179,MATCH(A38,'RC'!BI$48:BI$179,0))),0,(INDEX('RC'!DG$48:DG$179,MATCH(A38,'RC'!BI$48:BI$179,0)))) -> 0 | R38: =IF(ISERROR(INDEX('RC'!DH$48:DH$179,MATCH(A38,'RC'!BI$48:BI$179,0))),0,(INDEX('RC'!DH$48:DH$179,MATCH(A38,'RC'!BI$48:BI$179,0)))) -> 0 | S38: 0 | T38: =IF(Entry!B$28="Y",0,IF(ISERROR(INDEX('RC'!CV$48:CV$179,MATCH(A38,'RC'!BI$48:BI$179,0))),0,(INDEX('RC'!CV$48:CV$179,MATCH(A38,'RC'!BI$48:BI$179,0))))) -> 0 | U38: =IF(Entry!B$28="Y",0,IF(ISERROR(INDEX('RC'!CW$48:CW$179,MATCH(A38,'RC'!BI$48:BI$179,0))),0,(INDEX('RC'!CW$48:CW$179,MATCH(A38,'RC'!BI$48:BI$179,0))))) -> 0 | V38: 0 | W38: =IF(ISERROR(INDEX('RC'!CY$48:CY$179,MATCH(A38,'RC'!BI$48:BI$179,0))),0,(INDEX('RC'!CY$48:CY$179,MATCH(A38,'RC'!BI$48:BI$179,0)))) -> 0 | X38: =IF(ISERROR(INDEX('RC'!CZ$48:CZ$179,MATCH(A38,'RC'!BI$48:BI$179,0))),0,(INDEX('RC'!CZ$48:CZ$179,MATCH(A38,'RC'!BI$48:BI$179,0)))) -> 0 | Y38: 0 | Z38: =IF(A38>='RC'!BM$29,0,IF(ISERROR(INDEX('RC'!CF$48:CF$179,MATCH(A38,'RC'!BI$48:BI$179,0))),0,(INDEX('RC'!CF$48:CF$179,MATCH(A38,'RC'!BI$48:BI$179,0))))) -> 0 | AA38: 0 | AB38: 0 | AJ38: 0 | AK38: 0
A39: 2017-12-01 | B39: =IF(ISERROR(INDEX('RC'!BJ$48:BJ$179,MATCH(A39,'RC'!BI$48:BI$179,0))),0,(INDEX('RC'!BJ$48:BJ$179,MATCH(A39,'RC'!BI$48:BI$179,0)))) -> 0 | C39: =IF(B39="",0,IF(B39=0,0,INDEX('RC'!BK$48:BK$179,MATCH(A39,'RC'!BI$48:BI$179,0)))) -> 0 | D39: =IF(B39="",0,IF(B39=0,0,INDEX('RC'!BL$48:BL$179,MATCH(A39,'RC'!BI$48:BI$179,0)))) -> 0 | E39: =IF(B39="",0,IF(B39=0,0,INDEX('RC'!BM$48:BM$179,MATCH(A39,'RC'!BI$48:BI$179,0)))) -> 0 | F39: 0 | G39: =IF(ISERROR(INDEX('RC'!BP$48:BP$179,MATCH(A39,'RC'!BI$48:BI$179,0))),0,(INDEX('RC'!BP$48:BP$179,MATCH(A39,'RC'!BI$48:BI$179,0)))) -> 0 | H39: =IF(B39="",0,IF(B39=0,0,INDEX('RC'!BQ$48:BQ$179,MATCH(A39,'RC'!BI$48:BI$179,0)))) -> 0 | I39: =IF(B39="",0,IF(B39=0,0,INDEX('RC'!BR$48:BR$179,MATCH(A39,'RC'!BI$48:BI$179,0)))) -> 0 | J39: =IF(B39="",0,IF(B39=0,0,INDEX('RC'!BS$48:BS$179,MATCH(A39,'RC'!BI$48:BI$179,0)))) -> 0 | K39: 0 | L39: 0 | M39: 0 | N39: 0 | O39: 0 | P39: 0 | Q39: =IF(ISERROR(INDEX('RC'!DG$48:DG$179,MATCH(A39,'RC'!BI$48:BI$179,0))),0,(INDEX('RC'!DG$48:DG$179,MATCH(A39,'RC'!BI$48:BI$179,0)))) -> 0 | R39: =IF(ISERROR(INDEX('RC'!DH$48:DH$179,MATCH(A39,'RC'!BI$48:BI$179,0))),0,(INDEX('RC'!DH$48:DH$179,MATCH(A39,'RC'!BI$48:BI$179,0)))) -> 0 | S39: 0 | T39: =IF(Entry!B$28="Y",0,IF(ISERROR(INDEX('RC'!CV$48:CV$179,MATCH(A39,'RC'!BI$48:BI$179,0))),0,(INDEX('RC'!CV$48:CV$179,MATCH(A39,'RC'!BI$48:BI$179,0))))) -> 0 | U39: =IF(Entry!B$28="Y",0,IF(ISERROR(INDEX('RC'!CW$48:CW$179,MATCH(A39,'RC'!BI$48:BI$179,0))),0,(INDEX('RC'!CW$48:CW$179,MATCH(A39,'RC'!BI$48:BI$179,0))))) -> 0 | V39: 0 | W39: =IF(ISERROR(INDEX('RC'!CY$48:CY$179,MATCH(A39,'RC'!BI$48:BI$179,0))),0,(INDEX('RC'!CY$48:CY$179,MATCH(A39,'RC'!BI$48:BI$179,0)))) -> 0 | X39: =IF(ISERROR(INDEX('RC'!CZ$48:CZ$179,MATCH(A39,'RC'!BI$48:BI$179,0))),0,(INDEX('RC'!CZ$48:CZ$179,MATCH(A39,'RC'!BI$48:BI$179,0)))) -> 0 | Y39: 0 | Z39: =IF(A39>='RC'!BM$29,0,IF(ISERROR(INDEX('RC'!CF$48:CF$179,MATCH(A39,'RC'!BI$48:BI$179,0))),0,(INDEX('RC'!CF$48:CF$179,MATCH(A39,'RC'!BI$48:BI$179,0))))) -> 0 | AA39: 0 | AB39: 0 | AJ39: 0 | AK39: 0
A40: 2018-01-01 | B40: =IF(ISERROR(INDEX('RC'!BJ$48:BJ$179,MATCH(A40,'RC'!BI$48:BI$179,0))),0,(INDEX('RC'!BJ$48:BJ$179,MATCH(A40,'RC'!BI$48:BI$179,0)))) -> 0 | C40: =IF(B40="",0,IF(B40=0,0,INDEX('RC'!BK$48:BK$179,MATCH(A40,'RC'!BI$48:BI$179,0)))) -> 0 | D40: =IF(B40="",0,IF(B40=0,0,INDEX('RC'!BL$48:BL$179,MATCH(A40,'RC'!BI$48:BI$179,0)))) -> 0 | E40: =IF(B40="",0,IF(B40=0,0,INDEX('RC'!BM$48:BM$179,MATCH(A40,'RC'!BI$48:BI$179,0)))) -> 0 | F40: 0 | G40: =IF(ISERROR(INDEX('RC'!BP$48:BP$179,MATCH(A40,'RC'!BI$48:BI$179,0))),0,(INDEX('RC'!BP$48:BP$179,MATCH(A40,'RC'!BI$48:BI$179,0)))) -> 0 | H40: =IF(B40="",0,IF(B40=0,0,INDEX('RC'!BQ$48:BQ$179,MATCH(A40,'RC'!BI$48:BI$179,0)))) -> 0 | I40: =IF(B40="",0,IF(B40=0,0,INDEX('RC'!BR$48:BR$179,MATCH(A40,'RC'!BI$48:BI$179,0)))) -> 0 | J40: =IF(B40="",0,IF(B40=0,0,INDEX('RC'!BS$48:BS$179,MATCH(A40,'RC'!BI$48:BI$179,0)))) -> 0 | K40: 0 | L40: 0 | M40: 0 | N40: 0 | O40: 0 | P40: 0 | Q40: =IF(ISERROR(INDEX('RC'!DG$48:DG$179,MATCH(A40,'RC'!BI$48:BI$179,0))),0,(INDEX('RC'!DG$48:DG$179,MATCH(A40,'RC'!BI$48:BI$179,0)))) -> 0 | R40: =IF(ISERROR(INDEX('RC'!DH$48:DH$179,MATCH(A40,'RC'!BI$48:BI$179,0))),0,(INDEX('RC'!DH$48:DH$179,MATCH(A40,'RC'!BI$48:BI$179,0)))) -> 0 | S40: 0 | T40: =IF(Entry!B$28="Y",0,IF(ISERROR(INDEX('RC'!CV$48:CV$179,MATCH(A40,'RC'!BI$48:BI$179,0))),0,(INDEX('RC'!CV$48:CV$179,MATCH(A40,'RC'!BI$48:BI$179,0))))) -> 0 | U40: =IF(Entry!B$28="Y",0,IF(ISERROR(INDEX('RC'!CW$48:CW$179,MATCH(A40,'RC'!BI$48:BI$179,0))),0,(INDEX('RC'!CW$48:CW$179,MATCH(A40,'RC'!BI$48:BI$179,0))))) -> 0 | V40: 0 | W40: =IF(ISERROR(INDEX('RC'!CY$48:CY$179,MATCH(A40,'RC'!BI$48:BI$179,0))),0,(INDEX('RC'!CY$48:CY$179,MATCH(A40,'RC'!BI$48:BI$179,0)))) -> 0 | X40: =IF(ISERROR(INDEX('RC'!CZ$48:CZ$179,MATCH(A40,'RC'!BI$48:BI$179,0))),0,(INDEX('RC'!CZ$48:CZ$179,MATCH(A40,'RC'!BI$48:BI$179,0)))) -> 0 | Y40: 0 | Z40: =IF(A40>='RC'!BM$29,0,IF(ISERROR(INDEX('RC'!CF$48:CF$179,MATCH(A40,'RC'!BI$48:BI$179,0))),0,(INDEX('RC'!CF$48:CF$179,MATCH(A40,'RC'!BI$48:BI$179,0))))) -> 0 | AA40: 0 | AB40: 0 | AJ40: 0 | AK40: 0
A41: 2018-02-01 | B41: =IF(ISERROR(INDEX('RC'!BJ$48:BJ$179,MATCH(A41,'RC'!BI$48:BI$179,0))),0,(INDEX('RC'!BJ$48:BJ$179,MATCH(A41,'RC'!BI$48:BI$179,0)))) -> 0 | C41: =IF(B41="",0,IF(B41=0,0,INDEX('RC'!BK$48:BK$179,MATCH(A41,'RC'!BI$48:BI$179,0)))) -> 0 | D41: =IF(B41="",0,IF(B41=0,0,INDEX('RC'!BL$48:BL$179,MATCH(A41,'RC'!BI$48:BI$179,0)))) -> 0 | E41: =IF(B41="",0,IF(B41=0,0,INDEX('RC'!BM$48:BM$179,MATCH(A41,'RC'!BI$48:BI$179,0)))) -> 0 | F41: 0 | G41: =IF(ISERROR(INDEX('RC'!BP$48:BP$179,MATCH(A41,'RC'!BI$48:BI$179,0))),0,(INDEX('RC'!BP$48:BP$179,MATCH(A41,'RC'!BI$48:BI$179,0)))) -> 0 | H41: =IF(B41="",0,IF(B41=0,0,INDEX('RC'!BQ$48:BQ$179,MATCH(A41,'RC'!BI$48:BI$179,0)))) -> 0 | I41: =IF(B41="",0,IF(B41=0,0,INDEX('RC'!BR$48:BR$179,MATCH(A41,'RC'!BI$48:BI$179,0)))) -> 0 | J41: =IF(B41="",0,IF(B41=0,0,INDEX('RC'!BS$48:BS$179,MATCH(A41,'RC'!BI$48:BI$179,0)))) -> 0 | K41: 0 | L41: 0 | M41: 0 | N41: 0 | O41: 0 | P41: 0 | Q41: =IF(ISERROR(INDEX('RC'!DG$48:DG$179,MATCH(A41,'RC'!BI$48:BI$179,0))),0,(INDEX('RC'!DG$48:DG$179,MATCH(A41,'RC'!BI$48:BI$179,0)))) -> 0 | R41: =IF(ISERROR(INDEX('RC'!DH$48:DH$179,MATCH(A41,'RC'!BI$48:BI$179,0))),0,(INDEX('RC'!DH$48:DH$179,MATCH(A41,'RC'!BI$48:BI$179,0)))) -> 0 | S41: 0 | T41: =IF(Entry!B$28="Y",0,IF(ISERROR(INDEX('RC'!CV$48:CV$179,MATCH(A41,'RC'!BI$48:BI$179,0))),0,(INDEX('RC'!CV$48:CV$179,MATCH(A41,'RC'!BI$48:BI$179,0))))) -> 0 | U41: =IF(Entry!B$28="Y",0,IF(ISERROR(INDEX('RC'!CW$48:CW$179,MATCH(A41,'RC'!BI$48:BI$179,0))),0,(INDEX('RC'!CW$48:CW$179,MATCH(A41,'RC'!BI$48:BI$179,0))))) -> 0 | V41: 0 | W41: =IF(ISERROR(INDEX('RC'!CY$48:CY$179,MATCH(A41,'RC'!BI$48:BI$179,0))),0,(INDEX('RC'!CY$48:CY$179,MATCH(A41,'RC'!BI$48:BI$179,0)))) -> 0 | X41: =IF(ISERROR(INDEX('RC'!CZ$48:CZ$179,MATCH(A41,'RC'!BI$48:BI$179,0))),0,(INDEX('RC'!CZ$48:CZ$179,MATCH(A41,'RC'!BI$48:BI$179,0)))) -> 0 | Y41: 0 | Z41: =IF(A41>='RC'!BM$29,0,IF(ISERROR(INDEX('RC'!CF$48:CF$179,MATCH(A41,'RC'!BI$48:BI$179,0))),0,(INDEX('RC'!CF$48:CF$179,MATCH(A41,'RC'!BI$48:BI$179,0))))) -> 0 | AA41: 0 | AB41: 0 | AJ41: 0 | AK41: 0
A42: =EDATE(A41,1) -> 2018-03-01 | B42: =IF(ISERROR(INDEX('RC'!BJ$48:BJ$179,MATCH(A42,'RC'!BI$48:BI$179,0))),0,(INDEX('RC'!BJ$48:BJ$179,MATCH(A42,'RC'!BI$48:BI$179,0)))) -> 0 | C42: =IF(B42="",0,IF(B42=0,0,INDEX('RC'!BK$48:BK$179,MATCH(A42,'RC'!BI$48:BI$179,0)))) -> 0 | D42: =IF(B42="",0,IF(B42=0,0,INDEX('RC'!BL$48:BL$179,MATCH(A42,'RC'!BI$48:BI$179,0)))) -> 0 | E42: =IF(B42="",0,IF(B42=0,0,INDEX('RC'!BM$48:BM$179,MATCH(A42,'RC'!BI$48:BI$179,0)))) -> 0 | F42: 0 | G42: =IF(ISERROR(INDEX('RC'!BP$48:BP$179,MATCH(A42,'RC'!BI$48:BI$179,0))),0,(INDEX('RC'!BP$48:BP$179,MATCH(A42,'RC'!BI$48:BI$179,0)))) -> 0 | H42: =IF(B42="",0,IF(B42=0,0,INDEX('RC'!BQ$48:BQ$179,MATCH(A42,'RC'!BI$48:BI$179,0)))) -> 0 | I42: =IF(B42="",0,IF(B42=0,0,INDEX('RC'!BR$48:BR$179,MATCH(A42,'RC'!BI$48:BI$179,0)))) -> 0 | J42: =IF(B42="",0,IF(B42=0,0,INDEX('RC'!BS$48:BS$179,MATCH(A42,'RC'!BI$48:BI$179,0)))) -> 0 | K42: 0 | L42: 0 | M42: 0 | N42: 0 | O42: 0 | P42: 0 | Q42: =IF(ISERROR(INDEX('RC'!DG$48:DG$179,MATCH(A42,'RC'!BI$48:BI$179,0))),0,(INDEX('RC'!DG$48:DG$179,MATCH(A42,'RC'!BI$48:BI$179,0)))) -> 0 | R42: =IF(ISERROR(INDEX('RC'!DH$48:DH$179,MATCH(A42,'RC'!BI$48:BI$179,0))),0,(INDEX('RC'!DH$48:DH$179,MATCH(A42,'RC'!BI$48:BI$179,0)))) -> 0 | S42: 0 | T42: =IF(Entry!B$28="Y",0,IF(ISERROR(INDEX('RC'!CV$48:CV$179,MATCH(A42,'RC'!BI$48:BI$179,0))),0,(INDEX('RC'!CV$48:CV$179,MATCH(A42,'RC'!BI$48:BI$179,0))))) -> 0 | U42: =IF(Entry!B$28="Y",0,IF(ISERROR(INDEX('RC'!CW$48:CW$179,MATCH(A42,'RC'!BI$48:BI$179,0))),0,(INDEX('RC'!CW$48:CW$179,MATCH(A42,'RC'!BI$48:BI$179,0))))) -> 0 | V42: 0 | W42: =IF(ISERROR(INDEX('RC'!CY$48:CY$179,MATCH(A42,'RC'!BI$48:BI$179,0))),0,(INDEX('RC'!CY$48:CY$179,MATCH(A42,'RC'!BI$48:BI$179,0)))) -> 0 | X42: =IF(ISERROR(INDEX('RC'!CZ$48:CZ$179,MATCH(A42,'RC'!BI$48:BI$179,0))),0,(INDEX('RC'!CZ$48:CZ$179,MATCH(A42,'RC'!BI$48:BI$179,0)))) -> 0 | Y42: 0 | Z42: =IF(A42>='RC'!BM$29,0,IF(ISERROR(INDEX('RC'!CF$48:CF$179,MATCH(A42,'RC'!BI$48:BI$179,0))),0,(INDEX('RC'!CF$48:CF$179,MATCH(A42,'RC'!BI$48:BI$179,0))))) -> 0 | AA42: 0 | AB42: 0 | AJ42: 0 | AK42: 0
A43: 2018-04-01 | B43: =IF(ISERROR(INDEX('RC'!BJ$48:BJ$179,MATCH(A43,'RC'!BI$48:BI$179,0))),0,(INDEX('RC'!BJ$48:BJ$179,MATCH(A43,'RC'!BI$48:BI$179,0)))) -> 0 | C43: =IF(B43="",0,IF(B43=0,0,INDEX('RC'!BK$48:BK$179,MATCH(A43,'RC'!BI$48:BI$179,0)))) -> 0 | D43: =IF(B43="",0,IF(B43=0,0,INDEX('RC'!BL$48:BL$179,MATCH(A43,'RC'!BI$48:BI$179,0)))) -> 0 | E43: =IF(B43="",0,IF(B43=0,0,INDEX('RC'!BM$48:BM$179,MATCH(A43,'RC'!BI$48:BI$179,0)))) -> 0 | F43: 0 | G43: =IF(ISERROR(INDEX('RC'!BP$48:BP$179,MATCH(A43,'RC'!BI$48:BI$179,0))),0,(INDEX('RC'!BP$48:BP$179,MATCH(A43,'RC'!BI$48:BI$179,0)))) -> 0 | H43: =IF(B43="",0,IF(B43=0,0,INDEX('RC'!BQ$48:BQ$179,MATCH(A43,'RC'!BI$48:BI$179,0)))) -> 0 | I43: =IF(B43="",0,IF(B43=0,0,INDEX('RC'!BR$48:BR$179,MATCH(A43,'RC'!BI$48:BI$179,0)))) -> 0 | J43: =IF(B43="",0,IF(B43=0,0,INDEX('RC'!BS$48:BS$179,MATCH(A43,'RC'!BI$48:BI$179,0)))) -> 0 | K43: 0 | L43: 0 | M43: 0 | N43: 0 | O43: 0 | P43: 0 | Q43: =IF(ISERROR(INDEX('RC'!DG$48:DG$179,MATCH(A43,'RC'!BI$48:BI$179,0))),0,(INDEX('RC'!DG$48:DG$179,MATCH(A43,'RC'!BI$48:BI$179,0)))) -> 0 | R43: =IF(ISERROR(INDEX('RC'!DH$48:DH$179,MATCH(A43,'RC'!BI$48:BI$179,0))),0,(INDEX('RC'!DH$48:DH$179,MATCH(A43,'RC'!BI$48:BI$179,0)))) -> 0 | S43: 0 | T43: =IF(Entry!B$28="Y",0,IF(ISERROR(INDEX('RC'!CV$48:CV$179,MATCH(A43,'RC'!BI$48:BI$179,0))),0,(INDEX('RC'!CV$48:CV$179,MATCH(A43,'RC'!BI$48:BI$179,0))))) -> 0 | U43: =IF(Entry!B$28="Y",0,IF(ISERROR(INDEX('RC'!CW$48:CW$179,MATCH(A43,'RC'!BI$48:BI$179,0))),0,(INDEX('RC'!CW$48:CW$179,MATCH(A43,'RC'!BI$48:BI$179,0))))) -> 0 | V43: 0 | W43: =IF(ISERROR(INDEX('RC'!CY$48:CY$179,MATCH(A43,'RC'!BI$48:BI$179,0))),0,(INDEX('RC'!CY$48:CY$179,MATCH(A43,'RC'!BI$48:BI$179,0)))) -> 0 | X43: =IF(ISERROR(INDEX('RC'!CZ$48:CZ$179,MATCH(A43,'RC'!BI$48:BI$179,0))),0,(INDEX('RC'!CZ$48:CZ$179,MATCH(A43,'RC'!BI$48:BI$179,0)))) -> 0 | Y43: 0 | Z43: =IF(A43>='RC'!BM$29,0,IF(ISERROR(INDEX('RC'!CF$48:CF$179,MATCH(A43,'RC'!BI$48:BI$179,0))),0,(INDEX('RC'!CF$48:CF$179,MATCH(A43,'RC'!BI$48:BI$179,0))))) -> 0 | AA43: =S43+V43+Y43+Z43 -> 0 | AB43: 0 | AJ43: 0 | AK43: 0
A44: =EDATE(A43,1) -> 2018-05-01 | B44: =IF(ISERROR(INDEX('RC'!BJ$48:BJ$179,MATCH(A44,'RC'!BI$48:BI$179,0))),0,(INDEX('RC'!BJ$48:BJ$179,MATCH(A44,'RC'!BI$48:BI$179,0)))) -> 0 | C44: =IF(B44="",0,IF(B44=0,0,INDEX('RC'!BK$48:BK$179,MATCH(A44,'RC'!BI$48:BI$179,0)))) -> 0 | D44: =IF(B44="",0,IF(B44=0,0,INDEX('RC'!BL$48:BL$179,MATCH(A44,'RC'!BI$48:BI$179,0)))) -> 0 | E44: =IF(B44="",0,IF(B44=0,0,INDEX('RC'!BM$48:BM$179,MATCH(A44,'RC'!BI$48:BI$179,0)))) -> 0 | F44: 0 | G44: =IF(ISERROR(INDEX('RC'!BP$48:BP$179,MATCH(A44,'RC'!BI$48:BI$179,0))),0,(INDEX('RC'!BP$48:BP$179,MATCH(A44,'RC'!BI$48:BI$179,0)))) -> 0 | H44: =IF(B44="",0,IF(B44=0,0,INDEX('RC'!BQ$48:BQ$179,MATCH(A44,'RC'!BI$48:BI$179,0)))) -> 0 | I44: =IF(B44="",0,IF(B44=0,0,INDEX('RC'!BR$48:BR$179,MATCH(A44,'RC'!BI$48:BI$179,0)))) -> 0 | J44: =IF(B44="",0,IF(B44=0,0,INDEX('RC'!BS$48:BS$179,MATCH(A44,'RC'!BI$48:BI$179,0)))) -> 0 | K44: 0 | L44: 0 | M44: 0 | N44: 0 | O44: 0 | P44: 0 | Q44: =IF(ISERROR(INDEX('RC'!DG$48:DG$179,MATCH(A44,'RC'!BI$48:BI$179,0))),0,(INDEX('RC'!DG$48:DG$179,MATCH(A44,'RC'!BI$48:BI$179,0)))) -> 0 | R44: =IF(ISERROR(INDEX('RC'!DH$48:DH$179,MATCH(A44,'RC'!BI$48:BI$179,0))),0,(INDEX('RC'!DH$48:DH$179,MATCH(A44,'RC'!BI$48:BI$179,0)))) -> 0 | S44: 0 | T44: =IF(Entry!B$28="Y",0,IF(ISERROR(INDEX('RC'!CV$48:CV$179,MATCH(A44,'RC'!BI$48:BI$179,0))),0,(INDEX('RC'!CV$48:CV$179,MATCH(A44,'RC'!BI$48:BI$179,0))))) -> 0 | U44: =IF(Entry!B$28="Y",0,IF(ISERROR(INDEX('RC'!CW$48:CW$179,MATCH(A44,'RC'!BI$48:BI$179,0))),0,(INDEX('RC'!CW$48:CW$179,MATCH(A44,'RC'!BI$48:BI$179,0))))) -> 0 | V44: 0 | W44: =IF(ISERROR(INDEX('RC'!CY$48:CY$179,MATCH(A44,'RC'!BI$48:BI$179,0))),0,(INDEX('RC'!CY$48:CY$179,MATCH(A44,'RC'!BI$48:BI$179,0)))) -> 0 | X44: =IF(ISERROR(INDEX('RC'!CZ$48:CZ$179,MATCH(A44,'RC'!BI$48:BI$179,0))),0,(INDEX('RC'!CZ$48:CZ$179,MATCH(A44,'RC'!BI$48:BI$179,0)))) -> 0 | Y44: 0 | Z44: =IF(A44>='RC'!BM$29,0,IF(ISERROR(INDEX('RC'!CF$48:CF$179,MATCH(A44,'RC'!BI$48:BI$179,0))),0,(INDEX('RC'!CF$48:CF$179,MATCH(A44,'RC'!BI$48:BI$179,0))))) -> 0 | AA44: 0 | AB44: 0 | AJ44: 0 | AK44: 0
A45: Totalc/f | B45: =SUM(B12:B44) -> 47709 | C45: =SUM(C12:C44) -> 56774 | D45: 0 | E45: 4771 | F45: 109254 | G45: 45201 | H45: 53789 | I45: 0 | J45: 4520 | K45: =SUM(K12:K44) -> 103510 | L45: 2508 | M45: 2985 | N45: 0 | O45: 251 | P45: 5744 | Q45: 6600 | R45: 4200 | S45: 2400 | T45: =SUM(T12:T44) -> 1160 | U45: =IF(Entry!B$28="Y",0,IF(ISERROR(INDEX('RC'!CW$48:CW$179,MATCH(A45,'RC'!BI$48:BI$179,0))),0,(INDEX('RC'!CW$48:CW$179,MATCH(A45,'RC'!BI$48:BI$179,0))))) -> 0 | V45: =SUM(V12:V44) -> 0 | W45: 2600 | X45: 2600 | Y45: 0 | Z45: 0 | AA45: =SUM(AA12:AA44) -> 2400 | AB45: 3344 | AJ45: =IF(B44=0,0,IF(B47=0,0,1)) -> 0 | AK45: =AJ45 -> 0 | AL45: =IF(AK45=0,"",AK45) ->  | AM45: =IF(AL45=0,"",AL45) -> 
A46: TotalB/f | B46: =B45 -> 47709 | C46: =C45 -> 56774 | D46: 0 | E46: 4771 | F46: 109254 | G46: 45201 | H46: 53789 | I46: 0 | J46: 4520 | K46: =K45 -> 103510 | L46: 2508 | M46: 2985 | N46: 0 | O46: 251 | P46: 5744 | Q46: 6600 | R46: 4200 | S46: 2400 | T46: =T45 -> 1160 | U46: =IF(Entry!B$28="Y",0,IF(ISERROR(INDEX('RC'!CW$48:CW$179,MATCH(A46,'RC'!BI$48:BI$179,0))),0,(INDEX('RC'!CW$48:CW$179,MATCH(A46,'RC'!BI$48:BI$179,0))))) -> 0 | V46: =V45 -> 0 | W46: 2600 | X46: 2600 | Y46: 0 | Z46: 0 | AA46: =AA45 -> 2400 | AB46: 3344 | AJ46: =IF(B44=0,0,IF(B47=0,0,1)) -> 0 | AK46: =AJ46 -> 0 | AL46: =IF(AK46=0,"",AK46) ->  | AM46: =IF(AL46=0,"",AL46) -> 
A47: =EDATE(A44,1) -> 2018-06-01 | B47: =IF(ISERROR(INDEX('RC'!BJ$48:BJ$179,MATCH(A47,'RC'!BI$48:BI$179,0))),0,(INDEX('RC'!BJ$48:BJ$179,MATCH(A47,'RC'!BI$48:BI$179,0)))) -> 0 | C47: =IF(B47="",0,IF(B47=0,0,INDEX('RC'!BK$48:BK$179,MATCH(A47,'RC'!BI$48:BI$179,0)))) -> 0 | D47: =IF(B47="",0,IF(B47=0,0,INDEX('RC'!BL$48:BL$179,MATCH(A47,'RC'!BI$48:BI$179,0)))) -> 0 | E47: =IF(B47="",0,IF(B47=0,0,INDEX('RC'!BM$48:BM$179,MATCH(A47,'RC'!BI$48:BI$179,0)))) -> 0 | F47: 0 | G47: =IF(ISERROR(INDEX('RC'!BP$48:BP$179,MATCH(A47,'RC'!BI$48:BI$179,0))),0,(INDEX('RC'!BP$48:BP$179,MATCH(A47,'RC'!BI$48:BI$179,0)))) -> 0 | H47: =IF(B47="",0,IF(B47=0,0,INDEX('RC'!BQ$48:BQ$179,MATCH(A47,'RC'!BI$48:BI$179,0)))) -> 0 | I47: =IF(B47="",0,IF(B47=0,0,INDEX('RC'!BR$48:BR$179,MATCH(A47,'RC'!BI$48:BI$179,0)))) -> 0 | J47: =IF(B47="",0,IF(B47=0,0,INDEX('RC'!BS$48:BS$179,MATCH(A47,'RC'!BI$48:BI$179,0)))) -> 0 | K47: 0 | L47: 0 | M47: 0 | N47: 0 | O47: 0 | P47: 0 | Q47: =IF(ISERROR(INDEX('RC'!DG$48:DG$179,MATCH(A47,'RC'!BI$48:BI$179,0))),0,(INDEX('RC'!DG$48:DG$179,MATCH(A47,'RC'!BI$48:BI$179,0)))) -> 0 | R47: =IF(ISERROR(INDEX('RC'!DH$48:DH$179,MATCH(A47,'RC'!BI$48:BI$179,0))),0,(INDEX('RC'!DH$48:DH$179,MATCH(A47,'RC'!BI$48:BI$179,0)))) -> 0 | S47: 0 | T47: =IF(Entry!B$28="Y",0,IF(ISERROR(INDEX('RC'!CV$48:CV$179,MATCH(A47,'RC'!BI$48:BI$179,0))),0,(INDEX('RC'!CV$48:CV$179,MATCH(A47,'RC'!BI$48:BI$179,0))))) -> 0 | U47: =IF(Entry!B$28="Y",0,IF(ISERROR(INDEX('RC'!CW$48:CW$179,MATCH(A47,'RC'!BI$48:BI$179,0))),0,(INDEX('RC'!CW$48:CW$179,MATCH(A47,'RC'!BI$48:BI$179,0))))) -> 0 | V47: 0 | W47: =IF(ISERROR(INDEX('RC'!CY$48:CY$179,MATCH(A47,'RC'!BI$48:BI$179,0))),0,(INDEX('RC'!CY$48:CY$179,MATCH(A47,'RC'!BI$48:BI$179,0)))) -> 0 | X47: =IF(ISERROR(INDEX('RC'!CZ$48:CZ$179,MATCH(A47,'RC'!BI$48:BI$179,0))),0,(INDEX('RC'!CZ$48:CZ$179,MATCH(A47,'RC'!BI$48:BI$179,0)))) -> 0 | Y47: 0 | Z47: =IF(A47>='RC'!BM$29,0,IF(ISERROR(INDEX('RC'!CF$48:CF$179,MATCH(A47,'RC'!BI$48:BI$179,0))),0,(INDEX('RC'!CF$48:CF$179,MATCH(A47,'RC'!BI$48:BI$179,0))))) -> 0 | AA47: =S47+V47+Y47+Z47 -> 0 | AB47: =P47-AA47 -> 0 | AJ47: 0 | AK47: 0
A48: =EDATE(A47,1) -> 2018-07-01 | B48: =IF(ISERROR(INDEX('RC'!BJ$48:BJ$179,MATCH(A48,'RC'!BI$48:BI$179,0))),0,(INDEX('RC'!BJ$48:BJ$179,MATCH(A48,'RC'!BI$48:BI$179,0)))) -> 0 | C48: =IF(B48="",0,IF(B48=0,0,INDEX('RC'!BK$48:BK$179,MATCH(A48,'RC'!BI$48:BI$179,0)))) -> 0 | D48: =IF(B48="",0,IF(B48=0,0,INDEX('RC'!BL$48:BL$179,MATCH(A48,'RC'!BI$48:BI$179,0)))) -> 0 | E48: =IF(B48="",0,IF(B48=0,0,INDEX('RC'!BM$48:BM$179,MATCH(A48,'RC'!BI$48:BI$179,0)))) -> 0 | F48: 0 | G48: =IF(ISERROR(INDEX('RC'!BP$48:BP$179,MATCH(A48,'RC'!BI$48:BI$179,0))),0,(INDEX('RC'!BP$48:BP$179,MATCH(A48,'RC'!BI$48:BI$179,0)))) -> 0 | H48: =IF(B48="",0,IF(B48=0,0,INDEX('RC'!BQ$48:BQ$179,MATCH(A48,'RC'!BI$48:BI$179,0)))) -> 0 | I48: =IF(B48="",0,IF(B48=0,0,INDEX('RC'!BR$48:BR$179,MATCH(A48,'RC'!BI$48:BI$179,0)))) -> 0 | J48: =IF(B48="",0,IF(B48=0,0,INDEX('RC'!BS$48:BS$179,MATCH(A48,'RC'!BI$48:BI$179,0)))) -> 0 | K48: 0 | L48: 0 | M48: 0 | N48: 0 | O48: 0 | P48: 0 | Q48: =IF(ISERROR(INDEX('RC'!DG$48:DG$179,MATCH(A48,'RC'!BI$48:BI$179,0))),0,(INDEX('RC'!DG$48:DG$179,MATCH(A48,'RC'!BI$48:BI$179,0)))) -> 0 | R48: =IF(ISERROR(INDEX('RC'!DH$48:DH$179,MATCH(A48,'RC'!BI$48:BI$179,0))),0,(INDEX('RC'!DH$48:DH$179,MATCH(A48,'RC'!BI$48:BI$179,0)))) -> 0 | S48: 0 | T48: =IF(Entry!B$28="Y",0,IF(ISERROR(INDEX('RC'!CV$48:CV$179,MATCH(A48,'RC'!BI$48:BI$179,0))),0,(INDEX('RC'!CV$48:CV$179,MATCH(A48,'RC'!BI$48:BI$179,0))))) -> 0 | U48: =IF(Entry!B$28="Y",0,IF(ISERROR(INDEX('RC'!CW$48:CW$179,MATCH(A48,'RC'!BI$48:BI$179,0))),0,(INDEX('RC'!CW$48:CW$179,MATCH(A48,'RC'!BI$48:BI$179,0))))) -> 0 | V48: 0 | W48: =IF(ISERROR(INDEX('RC'!CY$48:CY$179,MATCH(A48,'RC'!BI$48:BI$179,0))),0,(INDEX('RC'!CY$48:CY$179,MATCH(A48,'RC'!BI$48:BI$179,0)))) -> 0 | X48: =IF(ISERROR(INDEX('RC'!CZ$48:CZ$179,MATCH(A48,'RC'!BI$48:BI$179,0))),0,(INDEX('RC'!CZ$48:CZ$179,MATCH(A48,'RC'!BI$48:BI$179,0)))) -> 0 | Y48: 0 | Z48: =IF(A48>='RC'!BM$29,0,IF(ISERROR(INDEX('RC'!CF$48:CF$179,MATCH(A48,'RC'!BI$48:BI$179,0))),0,(INDEX('RC'!CF$48:CF$179,MATCH(A48,'RC'!BI$48:BI$179,0))))) -> 0 | AA48: 0 | AB48: 0 | AJ48: 0 | AK48: 0
A49: 2018-08-01 | B49: =IF(ISERROR(INDEX('RC'!BJ$48:BJ$179,MATCH(A49,'RC'!BI$48:BI$179,0))),0,(INDEX('RC'!BJ$48:BJ$179,MATCH(A49,'RC'!BI$48:BI$179,0)))) -> 0 | C49: =IF(B49="",0,IF(B49=0,0,INDEX('RC'!BK$48:BK$179,MATCH(A49,'RC'!BI$48:BI$179,0)))) -> 0 | D49: =IF(B49="",0,IF(B49=0,0,INDEX('RC'!BL$48:BL$179,MATCH(A49,'RC'!BI$48:BI$179,0)))) -> 0 | E49: =IF(B49="",0,IF(B49=0,0,INDEX('RC'!BM$48:BM$179,MATCH(A49,'RC'!BI$48:BI$179,0)))) -> 0 | F49: 0 | G49: =IF(ISERROR(INDEX('RC'!BP$48:BP$179,MATCH(A49,'RC'!BI$48:BI$179,0))),0,(INDEX('RC'!BP$48:BP$179,MATCH(A49,'RC'!BI$48:BI$179,0)))) -> 0 | H49: =IF(B49="",0,IF(B49=0,0,INDEX('RC'!BQ$48:BQ$179,MATCH(A49,'RC'!BI$48:BI$179,0)))) -> 0 | I49: =IF(B49="",0,IF(B49=0,0,INDEX('RC'!BR$48:BR$179,MATCH(A49,'RC'!BI$48:BI$179,0)))) -> 0 | J49: =IF(B49="",0,IF(B49=0,0,INDEX('RC'!BS$48:BS$179,MATCH(A49,'RC'!BI$48:BI$179,0)))) -> 0 | K49: 0 | L49: 0 | M49: 0 | N49: 0 | O49: 0 | P49: 0 | Q49: =IF(ISERROR(INDEX('RC'!DG$48:DG$179,MATCH(A49,'RC'!BI$48:BI$179,0))),0,(INDEX('RC'!DG$48:DG$179,MATCH(A49,'RC'!BI$48:BI$179,0)))) -> 0 | R49: =IF(ISERROR(INDEX('RC'!DH$48:DH$179,MATCH(A49,'RC'!BI$48:BI$179,0))),0,(INDEX('RC'!DH$48:DH$179,MATCH(A49,'RC'!BI$48:BI$179,0)))) -> 0 | S49: 0 | T49: =IF(Entry!B$28="Y",0,IF(ISERROR(INDEX('RC'!CV$48:CV$179,MATCH(A49,'RC'!BI$48:BI$179,0))),0,(INDEX('RC'!CV$48:CV$179,MATCH(A49,'RC'!BI$48:BI$179,0))))) -> 0 | U49: =IF(Entry!B$28="Y",0,IF(ISERROR(INDEX('RC'!CW$48:CW$179,MATCH(A49,'RC'!BI$48:BI$179,0))),0,(INDEX('RC'!CW$48:CW$179,MATCH(A49,'RC'!BI$48:BI$179,0))))) -> 0 | V49: 0 | W49: =IF(ISERROR(INDEX('RC'!CY$48:CY$179,MATCH(A49,'RC'!BI$48:BI$179,0))),0,(INDEX('RC'!CY$48:CY$179,MATCH(A49,'RC'!BI$48:BI$179,0)))) -> 0 | X49: =IF(ISERROR(INDEX('RC'!CZ$48:CZ$179,MATCH(A49,'RC'!BI$48:BI$179,0))),0,(INDEX('RC'!CZ$48:CZ$179,MATCH(A49,'RC'!BI$48:BI$179,0)))) -> 0 | Y49: 0 | Z49: =IF(A49>='RC'!BM$29,0,IF(ISERROR(INDEX('RC'!CF$48:CF$179,MATCH(A49,'RC'!BI$48:BI$179,0))),0,(INDEX('RC'!CF$48:CF$179,MATCH(A49,'RC'!BI$48:BI$179,0))))) -> 0 | AA49: 0 | AB49: 0 | AJ49: 0 | AK49: 0
A50: 2018-09-01 | B50: =IF(ISERROR(INDEX('RC'!BJ$48:BJ$179,MATCH(A50,'RC'!BI$48:BI$179,0))),0,(INDEX('RC'!BJ$48:BJ$179,MATCH(A50,'RC'!BI$48:BI$179,0)))) -> 0 | C50: =IF(B50="",0,IF(B50=0,0,INDEX('RC'!BK$48:BK$179,MATCH(A50,'RC'!BI$48:BI$179,0)))) -> 0 | D50: =IF(B50="",0,IF(B50=0,0,INDEX('RC'!BL$48:BL$179,MATCH(A50,'RC'!BI$48:BI$179,0)))) -> 0 | E50: =IF(B50="",0,IF(B50=0,0,INDEX('RC'!BM$48:BM$179,MATCH(A50,'RC'!BI$48:BI$179,0)))) -> 0 | F50: 0 | G50: =IF(ISERROR(INDEX('RC'!BP$48:BP$179,MATCH(A50,'RC'!BI$48:BI$179,0))),0,(INDEX('RC'!BP$48:BP$179,MATCH(A50,'RC'!BI$48:BI$179,0)))) -> 0 | H50: =IF(B50="",0,IF(B50=0,0,INDEX('RC'!BQ$48:BQ$179,MATCH(A50,'RC'!BI$48:BI$179,0)))) -> 0 | I50: =IF(B50="",0,IF(B50=0,0,INDEX('RC'!BR$48:BR$179,MATCH(A50,'RC'!BI$48:BI$179,0)))) -> 0 | J50: =IF(B50="",0,IF(B50=0,0,INDEX('RC'!BS$48:BS$179,MATCH(A50,'RC'!BI$48:BI$179,0)))) -> 0 | K50: 0 | L50: 0 | M50: 0 | N50: 0 | O50: 0 | P50: 0 | Q50: =IF(ISERROR(INDEX('RC'!DG$48:DG$179,MATCH(A50,'RC'!BI$48:BI$179,0))),0,(INDEX('RC'!DG$48:DG$179,MATCH(A50,'RC'!BI$48:BI$179,0)))) -> 0 | R50: =IF(ISERROR(INDEX('RC'!DH$48:DH$179,MATCH(A50,'RC'!BI$48:BI$179,0))),0,(INDEX('RC'!DH$48:DH$179,MATCH(A50,'RC'!BI$48:BI$179,0)))) -> 0 | S50: 0 | T50: =IF(Entry!B$28="Y",0,IF(ISERROR(INDEX('RC'!CV$48:CV$179,MATCH(A50,'RC'!BI$48:BI$179,0))),0,(INDEX('RC'!CV$48:CV$179,MATCH(A50,'RC'!BI$48:BI$179,0))))) -> 0 | U50: =IF(Entry!B$28="Y",0,IF(ISERROR(INDEX('RC'!CW$48:CW$179,MATCH(A50,'RC'!BI$48:BI$179,0))),0,(INDEX('RC'!CW$48:CW$179,MATCH(A50,'RC'!BI$48:BI$179,0))))) -> 0 | V50: 0 | W50: =IF(ISERROR(INDEX('RC'!CY$48:CY$179,MATCH(A50,'RC'!BI$48:BI$179,0))),0,(INDEX('RC'!CY$48:CY$179,MATCH(A50,'RC'!BI$48:BI$179,0)))) -> 0 | X50: =IF(ISERROR(INDEX('RC'!CZ$48:CZ$179,MATCH(A50,'RC'!BI$48:BI$179,0))),0,(INDEX('RC'!CZ$48:CZ$179,MATCH(A50,'RC'!BI$48:BI$179,0)))) -> 0 | Y50: 0 | Z50: =IF(A50>='RC'!BM$29,0,IF(ISERROR(INDEX('RC'!CF$48:CF$179,MATCH(A50,'RC'!BI$48:BI$179,0))),0,(INDEX('RC'!CF$48:CF$179,MATCH(A50,'RC'!BI$48:BI$179,0))))) -> 0 | AA50: 0 | AB50: 0 | AJ50: 0 | AK50: 0
A51: 2018-10-01 | B51: =IF(ISERROR(INDEX('RC'!BJ$48:BJ$179,MATCH(A51,'RC'!BI$48:BI$179,0))),0,(INDEX('RC'!BJ$48:BJ$179,MATCH(A51,'RC'!BI$48:BI$179,0)))) -> 0 | C51: =IF(B51="",0,IF(B51=0,0,INDEX('RC'!BK$48:BK$179,MATCH(A51,'RC'!BI$48:BI$179,0)))) -> 0 | D51: =IF(B51="",0,IF(B51=0,0,INDEX('RC'!BL$48:BL$179,MATCH(A51,'RC'!BI$48:BI$179,0)))) -> 0 | E51: =IF(B51="",0,IF(B51=0,0,INDEX('RC'!BM$48:BM$179,MATCH(A51,'RC'!BI$48:BI$179,0)))) -> 0 | F51: 0 | G51: =IF(ISERROR(INDEX('RC'!BP$48:BP$179,MATCH(A51,'RC'!BI$48:BI$179,0))),0,(INDEX('RC'!BP$48:BP$179,MATCH(A51,'RC'!BI$48:BI$179,0)))) -> 0 | H51: =IF(B51="",0,IF(B51=0,0,INDEX('RC'!BQ$48:BQ$179,MATCH(A51,'RC'!BI$48:BI$179,0)))) -> 0 | I51: =IF(B51="",0,IF(B51=0,0,INDEX('RC'!BR$48:BR$179,MATCH(A51,'RC'!BI$48:BI$179,0)))) -> 0 | J51: =IF(B51="",0,IF(B51=0,0,INDEX('RC'!BS$48:BS$179,MATCH(A51,'RC'!BI$48:BI$179,0)))) -> 0 | K51: 0 | L51: 0 | M51: 0 | N51: 0 | O51: 0 | P51: 0 | Q51: =IF(ISERROR(INDEX('RC'!DG$48:DG$179,MATCH(A51,'RC'!BI$48:BI$179,0))),0,(INDEX('RC'!DG$48:DG$179,MATCH(A51,'RC'!BI$48:BI$179,0)))) -> 0 | R51: =IF(ISERROR(INDEX('RC'!DH$48:DH$179,MATCH(A51,'RC'!BI$48:BI$179,0))),0,(INDEX('RC'!DH$48:DH$179,MATCH(A51,'RC'!BI$48:BI$179,0)))) -> 0 | S51: 0 | T51: =IF(Entry!B$28="Y",0,IF(ISERROR(INDEX('RC'!CV$48:CV$179,MATCH(A51,'RC'!BI$48:BI$179,0))),0,(INDEX('RC'!CV$48:CV$179,MATCH(A51,'RC'!BI$48:BI$179,0))))) -> 0 | U51: =IF(Entry!B$28="Y",0,IF(ISERROR(INDEX('RC'!CW$48:CW$179,MATCH(A51,'RC'!BI$48:BI$179,0))),0,(INDEX('RC'!CW$48:CW$179,MATCH(A51,'RC'!BI$48:BI$179,0))))) -> 0 | V51: 0 | W51: =IF(ISERROR(INDEX('RC'!CY$48:CY$179,MATCH(A51,'RC'!BI$48:BI$179,0))),0,(INDEX('RC'!CY$48:CY$179,MATCH(A51,'RC'!BI$48:BI$179,0)))) -> 0 | X51: =IF(ISERROR(INDEX('RC'!CZ$48:CZ$179,MATCH(A51,'RC'!BI$48:BI$179,0))),0,(INDEX('RC'!CZ$48:CZ$179,MATCH(A51,'RC'!BI$48:BI$179,0)))) -> 0 | Y51: 0 | Z51: =IF(A51>='RC'!BM$29,0,IF(ISERROR(INDEX('RC'!CF$48:CF$179,MATCH(A51,'RC'!BI$48:BI$179,0))),0,(INDEX('RC'!CF$48:CF$179,MATCH(A51,'RC'!BI$48:BI$179,0))))) -> 0 | AA51: 0 | AB51: 0 | AJ51: 0 | AK51: 0
A52: 2018-11-01 | B52: =IF(ISERROR(INDEX('RC'!BJ$48:BJ$179,MATCH(A52,'RC'!BI$48:BI$179,0))),0,(INDEX('RC'!BJ$48:BJ$179,MATCH(A52,'RC'!BI$48:BI$179,0)))) -> 0 | C52: =IF(B52="",0,IF(B52=0,0,INDEX('RC'!BK$48:BK$179,MATCH(A52,'RC'!BI$48:BI$179,0)))) -> 0 | D52: =IF(B52="",0,IF(B52=0,0,INDEX('RC'!BL$48:BL$179,MATCH(A52,'RC'!BI$48:BI$179,0)))) -> 0 | E52: =IF(B52="",0,IF(B52=0,0,INDEX('RC'!BM$48:BM$179,MATCH(A52,'RC'!BI$48:BI$179,0)))) -> 0 | F52: 0 | G52: =IF(ISERROR(INDEX('RC'!BP$48:BP$179,MATCH(A52,'RC'!BI$48:BI$179,0))),0,(INDEX('RC'!BP$48:BP$179,MATCH(A52,'RC'!BI$48:BI$179,0)))) -> 0 | H52: =IF(B52="",0,IF(B52=0,0,INDEX('RC'!BQ$48:BQ$179,MATCH(A52,'RC'!BI$48:BI$179,0)))) -> 0 | I52: =IF(B52="",0,IF(B52=0,0,INDEX('RC'!BR$48:BR$179,MATCH(A52,'RC'!BI$48:BI$179,0)))) -> 0 | J52: =IF(B52="",0,IF(B52=0,0,INDEX('RC'!BS$48:BS$179,MATCH(A52,'RC'!BI$48:BI$179,0)))) -> 0 | K52: 0 | L52: 0 | M52: 0 | N52: 0 | O52: 0 | P52: 0 | Q52: =IF(ISERROR(INDEX('RC'!DG$48:DG$179,MATCH(A52,'RC'!BI$48:BI$179,0))),0,(INDEX('RC'!DG$48:DG$179,MATCH(A52,'RC'!BI$48:BI$179,0)))) -> 0 | R52: =IF(ISERROR(INDEX('RC'!DH$48:DH$179,MATCH(A52,'RC'!BI$48:BI$179,0))),0,(INDEX('RC'!DH$48:DH$179,MATCH(A52,'RC'!BI$48:BI$179,0)))) -> 0 | S52: 0 | T52: =IF(Entry!B$28="Y",0,IF(ISERROR(INDEX('RC'!CV$48:CV$179,MATCH(A52,'RC'!BI$48:BI$179,0))),0,(INDEX('RC'!CV$48:CV$179,MATCH(A52,'RC'!BI$48:BI$179,0))))) -> 0 | U52: =IF(Entry!B$28="Y",0,IF(ISERROR(INDEX('RC'!CW$48:CW$179,MATCH(A52,'RC'!BI$48:BI$179,0))),0,(INDEX('RC'!CW$48:CW$179,MATCH(A52,'RC'!BI$48:BI$179,0))))) -> 0 | V52: 0 | W52: =IF(ISERROR(INDEX('RC'!CY$48:CY$179,MATCH(A52,'RC'!BI$48:BI$179,0))),0,(INDEX('RC'!CY$48:CY$179,MATCH(A52,'RC'!BI$48:BI$179,0)))) -> 0 | X52: =IF(ISERROR(INDEX('RC'!CZ$48:CZ$179,MATCH(A52,'RC'!BI$48:BI$179,0))),0,(INDEX('RC'!CZ$48:CZ$179,MATCH(A52,'RC'!BI$48:BI$179,0)))) -> 0 | Y52: 0 | Z52: =IF(A52>='RC'!BM$29,0,IF(ISERROR(INDEX('RC'!CF$48:CF$179,MATCH(A52,'RC'!BI$48:BI$179,0))),0,(INDEX('RC'!CF$48:CF$179,MATCH(A52,'RC'!BI$48:BI$179,0))))) -> 0 | AA52: 0 | AB52: 0 | AJ52: 0 | AK52: 0
A53: =EDATE(A52,1) -> 2018-12-01 | B53: =IF(ISERROR(INDEX('RC'!BJ$48:BJ$179,MATCH(A53,'RC'!BI$48:BI$179,0))),0,(INDEX('RC'!BJ$48:BJ$179,MATCH(A53,'RC'!BI$48:BI$179,0)))) -> 0 | C53: =IF(B53="",0,IF(B53=0,0,INDEX('RC'!BK$48:BK$179,MATCH(A53,'RC'!BI$48:BI$179,0)))) -> 0 | D53: =IF(B53="",0,IF(B53=0,0,INDEX('RC'!BL$48:BL$179,MATCH(A53,'RC'!BI$48:BI$179,0)))) -> 0 | E53: =IF(B53="",0,IF(B53=0,0,INDEX('RC'!BM$48:BM$179,MATCH(A53,'RC'!BI$48:BI$179,0)))) -> 0 | F53: 0 | G53: =IF(ISERROR(INDEX('RC'!BP$48:BP$179,MATCH(A53,'RC'!BI$48:BI$179,0))),0,(INDEX('RC'!BP$48:BP$179,MATCH(A53,'RC'!BI$48:BI$179,0)))) -> 0 | H53: =IF(B53="",0,IF(B53=0,0,INDEX('RC'!BQ$48:BQ$179,MATCH(A53,'RC'!BI$48:BI$179,0)))) -> 0 | I53: =IF(B53="",0,IF(B53=0,0,INDEX('RC'!BR$48:BR$179,MATCH(A53,'RC'!BI$48:BI$179,0)))) -> 0 | J53: =IF(B53="",0,IF(B53=0,0,INDEX('RC'!BS$48:BS$179,MATCH(A53,'RC'!BI$48:BI$179,0)))) -> 0 | K53: 0 | L53: 0 | M53: 0 | N53: 0 | O53: 0 | P53: 0 | Q53: =IF(ISERROR(INDEX('RC'!DG$48:DG$179,MATCH(A53,'RC'!BI$48:BI$179,0))),0,(INDEX('RC'!DG$48:DG$179,MATCH(A53,'RC'!BI$48:BI$179,0)))) -> 0 | R53: =IF(ISERROR(INDEX('RC'!DH$48:DH$179,MATCH(A53,'RC'!BI$48:BI$179,0))),0,(INDEX('RC'!DH$48:DH$179,MATCH(A53,'RC'!BI$48:BI$179,0)))) -> 0 | S53: 0 | T53: =IF(Entry!B$28="Y",0,IF(ISERROR(INDEX('RC'!CV$48:CV$179,MATCH(A53,'RC'!BI$48:BI$179,0))),0,(INDEX('RC'!CV$48:CV$179,MATCH(A53,'RC'!BI$48:BI$179,0))))) -> 0 | U53: =IF(Entry!B$28="Y",0,IF(ISERROR(INDEX('RC'!CW$48:CW$179,MATCH(A53,'RC'!BI$48:BI$179,0))),0,(INDEX('RC'!CW$48:CW$179,MATCH(A53,'RC'!BI$48:BI$179,0))))) -> 0 | V53: 0 | W53: =IF(ISERROR(INDEX('RC'!CY$48:CY$179,MATCH(A53,'RC'!BI$48:BI$179,0))),0,(INDEX('RC'!CY$48:CY$179,MATCH(A53,'RC'!BI$48:BI$179,0)))) -> 0 | X53: =IF(ISERROR(INDEX('RC'!CZ$48:CZ$179,MATCH(A53,'RC'!BI$48:BI$179,0))),0,(INDEX('RC'!CZ$48:CZ$179,MATCH(A53,'RC'!BI$48:BI$179,0)))) -> 0 | Y53: 0 | Z53: =IF(A53>='RC'!BM$29,0,IF(ISERROR(INDEX('RC'!CF$48:CF$179,MATCH(A53,'RC'!BI$48:BI$179,0))),0,(INDEX('RC'!CF$48:CF$179,MATCH(A53,'RC'!BI$48:BI$179,0))))) -> 0 | AA53: 0 | AB53: 0 | AJ53: 0 | AK53: 0
A54: 2019-01-01 | B54: =IF(ISERROR(INDEX('RC'!BJ$48:BJ$179,MATCH(A54,'RC'!BI$48:BI$179,0))),0,(INDEX('RC'!BJ$48:BJ$179,MATCH(A54,'RC'!BI$48:BI$179,0)))) -> 0 | C54: =IF(B54="",0,IF(B54=0,0,INDEX('RC'!BK$48:BK$179,MATCH(A54,'RC'!BI$48:BI$179,0)))) -> 0 | D54: =IF(B54="",0,IF(B54=0,0,INDEX('RC'!BL$48:BL$179,MATCH(A54,'RC'!BI$48:BI$179,0)))) -> 0 | E54: =IF(B54="",0,IF(B54=0,0,INDEX('RC'!BM$48:BM$179,MATCH(A54,'RC'!BI$48:BI$179,0)))) -> 0 | F54: 0 | G54: =IF(ISERROR(INDEX('RC'!BP$48:BP$179,MATCH(A54,'RC'!BI$48:BI$179,0))),0,(INDEX('RC'!BP$48:BP$179,MATCH(A54,'RC'!BI$48:BI$179,0)))) -> 0 | H54: =IF(B54="",0,IF(B54=0,0,INDEX('RC'!BQ$48:BQ$179,MATCH(A54,'RC'!BI$48:BI$179,0)))) -> 0 | I54: =IF(B54="",0,IF(B54=0,0,INDEX('RC'!BR$48:BR$179,MATCH(A54,'RC'!BI$48:BI$179,0)))) -> 0 | J54: =IF(B54="",0,IF(B54=0,0,INDEX('RC'!BS$48:BS$179,MATCH(A54,'RC'!BI$48:BI$179,0)))) -> 0 | K54: 0 | L54: 0 | M54: 0 | N54: 0 | O54: 0 | P54: 0 | Q54: =IF(ISERROR(INDEX('RC'!DG$48:DG$179,MATCH(A54,'RC'!BI$48:BI$179,0))),0,(INDEX('RC'!DG$48:DG$179,MATCH(A54,'RC'!BI$48:BI$179,0)))) -> 0 | R54: =IF(ISERROR(INDEX('RC'!DH$48:DH$179,MATCH(A54,'RC'!BI$48:BI$179,0))),0,(INDEX('RC'!DH$48:DH$179,MATCH(A54,'RC'!BI$48:BI$179,0)))) -> 0 | S54: 0 | T54: =IF(Entry!B$28="Y",0,IF(ISERROR(INDEX('RC'!CV$48:CV$179,MATCH(A54,'RC'!BI$48:BI$179,0))),0,(INDEX('RC'!CV$48:CV$179,MATCH(A54,'RC'!BI$48:BI$179,0))))) -> 0 | U54: =IF(Entry!B$28="Y",0,IF(ISERROR(INDEX('RC'!CW$48:CW$179,MATCH(A54,'RC'!BI$48:BI$179,0))),0,(INDEX('RC'!CW$48:CW$179,MATCH(A54,'RC'!BI$48:BI$179,0))))) -> 0 | V54: 0 | W54: =IF(ISERROR(INDEX('RC'!CY$48:CY$179,MATCH(A54,'RC'!BI$48:BI$179,0))),0,(INDEX('RC'!CY$48:CY$179,MATCH(A54,'RC'!BI$48:BI$179,0)))) -> 0 | X54: =IF(ISERROR(INDEX('RC'!CZ$48:CZ$179,MATCH(A54,'RC'!BI$48:BI$179,0))),0,(INDEX('RC'!CZ$48:CZ$179,MATCH(A54,'RC'!BI$48:BI$179,0)))) -> 0 | Y54: 0 | Z54: =IF(A54>='RC'!BM$29,0,IF(ISERROR(INDEX('RC'!CF$48:CF$179,MATCH(A54,'RC'!BI$48:BI$179,0))),0,(INDEX('RC'!CF$48:CF$179,MATCH(A54,'RC'!BI$48:BI$179,0))))) -> 0 | AA54: 0 | AB54: 0 | AJ54: 0 | AK54: 0
A55: 2019-02-01 | B55: =IF(ISERROR(INDEX('RC'!BJ$48:BJ$179,MATCH(A55,'RC'!BI$48:BI$179,0))),0,(INDEX('RC'!BJ$48:BJ$179,MATCH(A55,'RC'!BI$48:BI$179,0)))) -> 0 | C55: =IF(B55="",0,IF(B55=0,0,INDEX('RC'!BK$48:BK$179,MATCH(A55,'RC'!BI$48:BI$179,0)))) -> 0 | D55: =IF(B55="",0,IF(B55=0,0,INDEX('RC'!BL$48:BL$179,MATCH(A55,'RC'!BI$48:BI$179,0)))) -> 0 | E55: =IF(B55="",0,IF(B55=0,0,INDEX('RC'!BM$48:BM$179,MATCH(A55,'RC'!BI$48:BI$179,0)))) -> 0 | F55: 0 | G55: =IF(ISERROR(INDEX('RC'!BP$48:BP$179,MATCH(A55,'RC'!BI$48:BI$179,0))),0,(INDEX('RC'!BP$48:BP$179,MATCH(A55,'RC'!BI$48:BI$179,0)))) -> 0 | H55: =IF(B55="",0,IF(B55=0,0,INDEX('RC'!BQ$48:BQ$179,MATCH(A55,'RC'!BI$48:BI$179,0)))) -> 0 | I55: =IF(B55="",0,IF(B55=0,0,INDEX('RC'!BR$48:BR$179,MATCH(A55,'RC'!BI$48:BI$179,0)))) -> 0 | J55: =IF(B55="",0,IF(B55=0,0,INDEX('RC'!BS$48:BS$179,MATCH(A55,'RC'!BI$48:BI$179,0)))) -> 0 | K55: 0 | L55: 0 | M55: 0 | N55: 0 | O55: 0 | P55: 0 | Q55: =IF(ISERROR(INDEX('RC'!DG$48:DG$179,MATCH(A55,'RC'!BI$48:BI$179,0))),0,(INDEX('RC'!DG$48:DG$179,MATCH(A55,'RC'!BI$48:BI$179,0)))) -> 0 | R55: =IF(ISERROR(INDEX('RC'!DH$48:DH$179,MATCH(A55,'RC'!BI$48:BI$179,0))),0,(INDEX('RC'!DH$48:DH$179,MATCH(A55,'RC'!BI$48:BI$179,0)))) -> 0 | S55: 0 | T55: =IF(Entry!B$28="Y",0,IF(ISERROR(INDEX('RC'!CV$48:CV$179,MATCH(A55,'RC'!BI$48:BI$179,0))),0,(INDEX('RC'!CV$48:CV$179,MATCH(A55,'RC'!BI$48:BI$179,0))))) -> 0 | U55: =IF(Entry!B$28="Y",0,IF(ISERROR(INDEX('RC'!CW$48:CW$179,MATCH(A55,'RC'!BI$48:BI$179,0))),0,(INDEX('RC'!CW$48:CW$179,MATCH(A55,'RC'!BI$48:BI$179,0))))) -> 0 | V55: 0 | W55: =IF(ISERROR(INDEX('RC'!CY$48:CY$179,MATCH(A55,'RC'!BI$48:BI$179,0))),0,(INDEX('RC'!CY$48:CY$179,MATCH(A55,'RC'!BI$48:BI$179,0)))) -> 0 | X55: =IF(ISERROR(INDEX('RC'!CZ$48:CZ$179,MATCH(A55,'RC'!BI$48:BI$179,0))),0,(INDEX('RC'!CZ$48:CZ$179,MATCH(A55,'RC'!BI$48:BI$179,0)))) -> 0 | Y55: 0 | Z55: =IF(A55>='RC'!BM$29,0,IF(ISERROR(INDEX('RC'!CF$48:CF$179,MATCH(A55,'RC'!BI$48:BI$179,0))),0,(INDEX('RC'!CF$48:CF$179,MATCH(A55,'RC'!BI$48:BI$179,0))))) -> 0 | AA55: 0 | AB55: 0 | AJ55: 0 | AK55: 0
A56: 2019-03-01 | B56: =IF(ISERROR(INDEX('RC'!BJ$48:BJ$179,MATCH(A56,'RC'!BI$48:BI$179,0))),0,(INDEX('RC'!BJ$48:BJ$179,MATCH(A56,'RC'!BI$48:BI$179,0)))) -> 0 | C56: =IF(B56="",0,IF(B56=0,0,INDEX('RC'!BK$48:BK$179,MATCH(A56,'RC'!BI$48:BI$179,0)))) -> 0 | D56: =IF(B56="",0,IF(B56=0,0,INDEX('RC'!BL$48:BL$179,MATCH(A56,'RC'!BI$48:BI$179,0)))) -> 0 | E56: =IF(B56="",0,IF(B56=0,0,INDEX('RC'!BM$48:BM$179,MATCH(A56,'RC'!BI$48:BI$179,0)))) -> 0 | F56: 0 | G56: =IF(ISERROR(INDEX('RC'!BP$48:BP$179,MATCH(A56,'RC'!BI$48:BI$179,0))),0,(INDEX('RC'!BP$48:BP$179,MATCH(A56,'RC'!BI$48:BI$179,0)))) -> 0 | H56: =IF(B56="",0,IF(B56=0,0,INDEX('RC'!BQ$48:BQ$179,MATCH(A56,'RC'!BI$48:BI$179,0)))) -> 0 | I56: =IF(B56="",0,IF(B56=0,0,INDEX('RC'!BR$48:BR$179,MATCH(A56,'RC'!BI$48:BI$179,0)))) -> 0 | J56: =IF(B56="",0,IF(B56=0,0,INDEX('RC'!BS$48:BS$179,MATCH(A56,'RC'!BI$48:BI$179,0)))) -> 0 | K56: 0 | L56: 0 | M56: 0 | N56: 0 | O56: 0 | P56: 0 | Q56: =IF(ISERROR(INDEX('RC'!DG$48:DG$179,MATCH(A56,'RC'!BI$48:BI$179,0))),0,(INDEX('RC'!DG$48:DG$179,MATCH(A56,'RC'!BI$48:BI$179,0)))) -> 0 | R56: =IF(ISERROR(INDEX('RC'!DH$48:DH$179,MATCH(A56,'RC'!BI$48:BI$179,0))),0,(INDEX('RC'!DH$48:DH$179,MATCH(A56,'RC'!BI$48:BI$179,0)))) -> 0 | S56: 0 | T56: =IF(Entry!B$28="Y",0,IF(ISERROR(INDEX('RC'!CV$48:CV$179,MATCH(A56,'RC'!BI$48:BI$179,0))),0,(INDEX('RC'!CV$48:CV$179,MATCH(A56,'RC'!BI$48:BI$179,0))))) -> 0 | U56: =IF(Entry!B$28="Y",0,IF(ISERROR(INDEX('RC'!CW$48:CW$179,MATCH(A56,'RC'!BI$48:BI$179,0))),0,(INDEX('RC'!CW$48:CW$179,MATCH(A56,'RC'!BI$48:BI$179,0))))) -> 0 | V56: 0 | W56: =IF(ISERROR(INDEX('RC'!CY$48:CY$179,MATCH(A56,'RC'!BI$48:BI$179,0))),0,(INDEX('RC'!CY$48:CY$179,MATCH(A56,'RC'!BI$48:BI$179,0)))) -> 0 | X56: =IF(ISERROR(INDEX('RC'!CZ$48:CZ$179,MATCH(A56,'RC'!BI$48:BI$179,0))),0,(INDEX('RC'!CZ$48:CZ$179,MATCH(A56,'RC'!BI$48:BI$179,0)))) -> 0 | Y56: 0 | Z56: =IF(A56>='RC'!BM$29,0,IF(ISERROR(INDEX('RC'!CF$48:CF$179,MATCH(A56,'RC'!BI$48:BI$179,0))),0,(INDEX('RC'!CF$48:CF$179,MATCH(A56,'RC'!BI$48:BI$179,0))))) -> 0 | AA56: 0 | AB56: 0 | AJ56: 0 | AK56: 0
A57: 2019-04-01 | B57: =IF(ISERROR(INDEX('RC'!BJ$48:BJ$179,MATCH(A57,'RC'!BI$48:BI$179,0))),0,(INDEX('RC'!BJ$48:BJ$179,MATCH(A57,'RC'!BI$48:BI$179,0)))) -> 0 | C57: =IF(B57="",0,IF(B57=0,0,INDEX('RC'!BK$48:BK$179,MATCH(A57,'RC'!BI$48:BI$179,0)))) -> 0 | D57: =IF(B57="",0,IF(B57=0,0,INDEX('RC'!BL$48:BL$179,MATCH(A57,'RC'!BI$48:BI$179,0)))) -> 0 | E57: =IF(B57="",0,IF(B57=0,0,INDEX('RC'!BM$48:BM$179,MATCH(A57,'RC'!BI$48:BI$179,0)))) -> 0 | F57: 0 | G57: =IF(ISERROR(INDEX('RC'!BP$48:BP$179,MATCH(A57,'RC'!BI$48:BI$179,0))),0,(INDEX('RC'!BP$48:BP$179,MATCH(A57,'RC'!BI$48:BI$179,0)))) -> 0 | H57: =IF(B57="",0,IF(B57=0,0,INDEX('RC'!BQ$48:BQ$179,MATCH(A57,'RC'!BI$48:BI$179,0)))) -> 0 | I57: =IF(B57="",0,IF(B57=0,0,INDEX('RC'!BR$48:BR$179,MATCH(A57,'RC'!BI$48:BI$179,0)))) -> 0 | J57: =IF(B57="",0,IF(B57=0,0,INDEX('RC'!BS$48:BS$179,MATCH(A57,'RC'!BI$48:BI$179,0)))) -> 0 | K57: 0 | L57: 0 | M57: 0 | N57: 0 | O57: 0 | P57: 0 | Q57: =IF(ISERROR(INDEX('RC'!DG$48:DG$179,MATCH(A57,'RC'!BI$48:BI$179,0))),0,(INDEX('RC'!DG$48:DG$179,MATCH(A57,'RC'!BI$48:BI$179,0)))) -> 0 | R57: =IF(ISERROR(INDEX('RC'!DH$48:DH$179,MATCH(A57,'RC'!BI$48:BI$179,0))),0,(INDEX('RC'!DH$48:DH$179,MATCH(A57,'RC'!BI$48:BI$179,0)))) -> 0 | S57: 0 | T57: =IF(Entry!B$28="Y",0,IF(ISERROR(INDEX('RC'!CV$48:CV$179,MATCH(A57,'RC'!BI$48:BI$179,0))),0,(INDEX('RC'!CV$48:CV$179,MATCH(A57,'RC'!BI$48:BI$179,0))))) -> 0 | U57: =IF(Entry!B$28="Y",0,IF(ISERROR(INDEX('RC'!CW$48:CW$179,MATCH(A57,'RC'!BI$48:BI$179,0))),0,(INDEX('RC'!CW$48:CW$179,MATCH(A57,'RC'!BI$48:BI$179,0))))) -> 0 | V57: 0 | W57: =IF(ISERROR(INDEX('RC'!CY$48:CY$179,MATCH(A57,'RC'!BI$48:BI$179,0))),0,(INDEX('RC'!CY$48:CY$179,MATCH(A57,'RC'!BI$48:BI$179,0)))) -> 0 | X57: =IF(ISERROR(INDEX('RC'!CZ$48:CZ$179,MATCH(A57,'RC'!BI$48:BI$179,0))),0,(INDEX('RC'!CZ$48:CZ$179,MATCH(A57,'RC'!BI$48:BI$179,0)))) -> 0 | Y57: 0 | Z57: =IF(A57>='RC'!BM$29,0,IF(ISERROR(INDEX('RC'!CF$48:CF$179,MATCH(A57,'RC'!BI$48:BI$179,0))),0,(INDEX('RC'!CF$48:CF$179,MATCH(A57,'RC'!BI$48:BI$179,0))))) -> 0 | AA57: 0 | AB57: 0 | AJ57: 0 | AK57: 0
A58: 2019-05-01 | B58: =IF(ISERROR(INDEX('RC'!BJ$48:BJ$179,MATCH(A58,'RC'!BI$48:BI$179,0))),0,(INDEX('RC'!BJ$48:BJ$179,MATCH(A58,'RC'!BI$48:BI$179,0)))) -> 0 | C58: =IF(B58="",0,IF(B58=0,0,INDEX('RC'!BK$48:BK$179,MATCH(A58,'RC'!BI$48:BI$179,0)))) -> 0 | D58: =IF(B58="",0,IF(B58=0,0,INDEX('RC'!BL$48:BL$179,MATCH(A58,'RC'!BI$48:BI$179,0)))) -> 0 | E58: =IF(B58="",0,IF(B58=0,0,INDEX('RC'!BM$48:BM$179,MATCH(A58,'RC'!BI$48:BI$179,0)))) -> 0 | F58: 0 | G58: =IF(ISERROR(INDEX('RC'!BP$48:BP$179,MATCH(A58,'RC'!BI$48:BI$179,0))),0,(INDEX('RC'!BP$48:BP$179,MATCH(A58,'RC'!BI$48:BI$179,0)))) -> 0 | H58: =IF(B58="",0,IF(B58=0,0,INDEX('RC'!BQ$48:BQ$179,MATCH(A58,'RC'!BI$48:BI$179,0)))) -> 0 | I58: =IF(B58="",0,IF(B58=0,0,INDEX('RC'!BR$48:BR$179,MATCH(A58,'RC'!BI$48:BI$179,0)))) -> 0 | J58: =IF(B58="",0,IF(B58=0,0,INDEX('RC'!BS$48:BS$179,MATCH(A58,'RC'!BI$48:BI$179,0)))) -> 0 | K58: 0 | L58: 0 | M58: 0 | N58: 0 | O58: 0 | P58: 0 | Q58: =IF(ISERROR(INDEX('RC'!DG$48:DG$179,MATCH(A58,'RC'!BI$48:BI$179,0))),0,(INDEX('RC'!DG$48:DG$179,MATCH(A58,'RC'!BI$48:BI$179,0)))) -> 0 | R58: =IF(ISERROR(INDEX('RC'!DH$48:DH$179,MATCH(A58,'RC'!BI$48:BI$179,0))),0,(INDEX('RC'!DH$48:DH$179,MATCH(A58,'RC'!BI$48:BI$179,0)))) -> 0 | S58: 0 | T58: =IF(Entry!B$28="Y",0,IF(ISERROR(INDEX('RC'!CV$48:CV$179,MATCH(A58,'RC'!BI$48:BI$179,0))),0,(INDEX('RC'!CV$48:CV$179,MATCH(A58,'RC'!BI$48:BI$179,0))))) -> 0 | U58: =IF(Entry!B$28="Y",0,IF(ISERROR(INDEX('RC'!CW$48:CW$179,MATCH(A58,'RC'!BI$48:BI$179,0))),0,(INDEX('RC'!CW$48:CW$179,MATCH(A58,'RC'!BI$48:BI$179,0))))) -> 0 | V58: 0 | W58: =IF(ISERROR(INDEX('RC'!CY$48:CY$179,MATCH(A58,'RC'!BI$48:BI$179,0))),0,(INDEX('RC'!CY$48:CY$179,MATCH(A58,'RC'!BI$48:BI$179,0)))) -> 0 | X58: =IF(ISERROR(INDEX('RC'!CZ$48:CZ$179,MATCH(A58,'RC'!BI$48:BI$179,0))),0,(INDEX('RC'!CZ$48:CZ$179,MATCH(A58,'RC'!BI$48:BI$179,0)))) -> 0 | Y58: 0 | Z58: =IF(A58>='RC'!BM$29,0,IF(ISERROR(INDEX('RC'!CF$48:CF$179,MATCH(A58,'RC'!BI$48:BI$179,0))),0,(INDEX('RC'!CF$48:CF$179,MATCH(A58,'RC'!BI$48:BI$179,0))))) -> 0 | AA58: 0 | AB58: 0 | AJ58: 0 | AK58: 0
A59: 2019-06-01 | B59: =IF(ISERROR(INDEX('RC'!BJ$48:BJ$179,MATCH(A59,'RC'!BI$48:BI$179,0))),0,(INDEX('RC'!BJ$48:BJ$179,MATCH(A59,'RC'!BI$48:BI$179,0)))) -> 0 | C59: =IF(B59="",0,IF(B59=0,0,INDEX('RC'!BK$48:BK$179,MATCH(A59,'RC'!BI$48:BI$179,0)))) -> 0 | D59: =IF(B59="",0,IF(B59=0,0,INDEX('RC'!BL$48:BL$179,MATCH(A59,'RC'!BI$48:BI$179,0)))) -> 0 | E59: =IF(B59="",0,IF(B59=0,0,INDEX('RC'!BM$48:BM$179,MATCH(A59,'RC'!BI$48:BI$179,0)))) -> 0 | F59: 0 | G59: =IF(ISERROR(INDEX('RC'!BP$48:BP$179,MATCH(A59,'RC'!BI$48:BI$179,0))),0,(INDEX('RC'!BP$48:BP$179,MATCH(A59,'RC'!BI$48:BI$179,0)))) -> 0 | H59: =IF(B59="",0,IF(B59=0,0,INDEX('RC'!BQ$48:BQ$179,MATCH(A59,'RC'!BI$48:BI$179,0)))) -> 0 | I59: =IF(B59="",0,IF(B59=0,0,INDEX('RC'!BR$48:BR$179,MATCH(A59,'RC'!BI$48:BI$179,0)))) -> 0 | J59: =IF(B59="",0,IF(B59=0,0,INDEX('RC'!BS$48:BS$179,MATCH(A59,'RC'!BI$48:BI$179,0)))) -> 0 | K59: 0 | L59: 0 | M59: 0 | N59: 0 | O59: 0 | P59: 0 | Q59: =IF(ISERROR(INDEX('RC'!DG$48:DG$179,MATCH(A59,'RC'!BI$48:BI$179,0))),0,(INDEX('RC'!DG$48:DG$179,MATCH(A59,'RC'!BI$48:BI$179,0)))) -> 0 | R59: =IF(ISERROR(INDEX('RC'!DH$48:DH$179,MATCH(A59,'RC'!BI$48:BI$179,0))),0,(INDEX('RC'!DH$48:DH$179,MATCH(A59,'RC'!BI$48:BI$179,0)))) -> 0 | S59: 0 | T59: =IF(Entry!B$28="Y",0,IF(ISERROR(INDEX('RC'!CV$48:CV$179,MATCH(A59,'RC'!BI$48:BI$179,0))),0,(INDEX('RC'!CV$48:CV$179,MATCH(A59,'RC'!BI$48:BI$179,0))))) -> 0 | U59: =IF(Entry!B$28="Y",0,IF(ISERROR(INDEX('RC'!CW$48:CW$179,MATCH(A59,'RC'!BI$48:BI$179,0))),0,(INDEX('RC'!CW$48:CW$179,MATCH(A59,'RC'!BI$48:BI$179,0))))) -> 0 | V59: 0 | W59: =IF(ISERROR(INDEX('RC'!CY$48:CY$179,MATCH(A59,'RC'!BI$48:BI$179,0))),0,(INDEX('RC'!CY$48:CY$179,MATCH(A59,'RC'!BI$48:BI$179,0)))) -> 0 | X59: =IF(ISERROR(INDEX('RC'!CZ$48:CZ$179,MATCH(A59,'RC'!BI$48:BI$179,0))),0,(INDEX('RC'!CZ$48:CZ$179,MATCH(A59,'RC'!BI$48:BI$179,0)))) -> 0 | Y59: 0 | Z59: =IF(A59>='RC'!BM$29,0,IF(ISERROR(INDEX('RC'!CF$48:CF$179,MATCH(A59,'RC'!BI$48:BI$179,0))),0,(INDEX('RC'!CF$48:CF$179,MATCH(A59,'RC'!BI$48:BI$179,0))))) -> 0 | AA59: 0 | AB59: 0 | AJ59: 0 | AK59: 0
A60: 2019-07-01 | B60: =IF(ISERROR(INDEX('RC'!BJ$48:BJ$179,MATCH(A60,'RC'!BI$48:BI$179,0))),0,(INDEX('RC'!BJ$48:BJ$179,MATCH(A60,'RC'!BI$48:BI$179,0)))) -> 0 | C60: =IF(B60="",0,IF(B60=0,0,INDEX('RC'!BK$48:BK$179,MATCH(A60,'RC'!BI$48:BI$179,0)))) -> 0 | D60: =IF(B60="",0,IF(B60=0,0,INDEX('RC'!BL$48:BL$179,MATCH(A60,'RC'!BI$48:BI$179,0)))) -> 0 | E60: =IF(B60="",0,IF(B60=0,0,INDEX('RC'!BM$48:BM$179,MATCH(A60,'RC'!BI$48:BI$179,0)))) -> 0 | F60: 0 | G60: =IF(ISERROR(INDEX('RC'!BP$48:BP$179,MATCH(A60,'RC'!BI$48:BI$179,0))),0,(INDEX('RC'!BP$48:BP$179,MATCH(A60,'RC'!BI$48:BI$179,0)))) -> 0 | H60: =IF(B60="",0,IF(B60=0,0,INDEX('RC'!BQ$48:BQ$179,MATCH(A60,'RC'!BI$48:BI$179,0)))) -> 0 | I60: =IF(B60="",0,IF(B60=0,0,INDEX('RC'!BR$48:BR$179,MATCH(A60,'RC'!BI$48:BI$179,0)))) -> 0 | J60: =IF(B60="",0,IF(B60=0,0,INDEX('RC'!BS$48:BS$179,MATCH(A60,'RC'!BI$48:BI$179,0)))) -> 0 | K60: 0 | L60: 0 | M60: 0 | N60: 0 | O60: 0 | P60: 0 | Q60: =IF(ISERROR(INDEX('RC'!DG$48:DG$179,MATCH(A60,'RC'!BI$48:BI$179,0))),0,(INDEX('RC'!DG$48:DG$179,MATCH(A60,'RC'!BI$48:BI$179,0)))) -> 0 | R60: =IF(ISERROR(INDEX('RC'!DH$48:DH$179,MATCH(A60,'RC'!BI$48:BI$179,0))),0,(INDEX('RC'!DH$48:DH$179,MATCH(A60,'RC'!BI$48:BI$179,0)))) -> 0 | S60: 0 | T60: =IF(Entry!B$28="Y",0,IF(ISERROR(INDEX('RC'!CV$48:CV$179,MATCH(A60,'RC'!BI$48:BI$179,0))),0,(INDEX('RC'!CV$48:CV$179,MATCH(A60,'RC'!BI$48:BI$179,0))))) -> 0 | U60: =IF(Entry!B$28="Y",0,IF(ISERROR(INDEX('RC'!CW$48:CW$179,MATCH(A60,'RC'!BI$48:BI$179,0))),0,(INDEX('RC'!CW$48:CW$179,MATCH(A60,'RC'!BI$48:BI$179,0))))) -> 0 | V60: 0 | W60: =IF(ISERROR(INDEX('RC'!CY$48:CY$179,MATCH(A60,'RC'!BI$48:BI$179,0))),0,(INDEX('RC'!CY$48:CY$179,MATCH(A60,'RC'!BI$48:BI$179,0)))) -> 0 | X60: =IF(ISERROR(INDEX('RC'!CZ$48:CZ$179,MATCH(A60,'RC'!BI$48:BI$179,0))),0,(INDEX('RC'!CZ$48:CZ$179,MATCH(A60,'RC'!BI$48:BI$179,0)))) -> 0 | Y60: 0 | Z60: =IF(A60>='RC'!BM$29,0,IF(ISERROR(INDEX('RC'!CF$48:CF$179,MATCH(A60,'RC'!BI$48:BI$179,0))),0,(INDEX('RC'!CF$48:CF$179,MATCH(A60,'RC'!BI$48:BI$179,0))))) -> 0 | AA60: 0 | AB60: 0 | AJ60: 0 | AK60: 0
A61: 2019-08-01 | B61: =IF(ISERROR(INDEX('RC'!BJ$48:BJ$179,MATCH(A61,'RC'!BI$48:BI$179,0))),0,(INDEX('RC'!BJ$48:BJ$179,MATCH(A61,'RC'!BI$48:BI$179,0)))) -> 0 | C61: =IF(B61="",0,IF(B61=0,0,INDEX('RC'!BK$48:BK$179,MATCH(A61,'RC'!BI$48:BI$179,0)))) -> 0 | D61: =IF(B61="",0,IF(B61=0,0,INDEX('RC'!BL$48:BL$179,MATCH(A61,'RC'!BI$48:BI$179,0)))) -> 0 | E61: =IF(B61="",0,IF(B61=0,0,INDEX('RC'!BM$48:BM$179,MATCH(A61,'RC'!BI$48:BI$179,0)))) -> 0 | F61: 0 | G61: =IF(ISERROR(INDEX('RC'!BP$48:BP$179,MATCH(A61,'RC'!BI$48:BI$179,0))),0,(INDEX('RC'!BP$48:BP$179,MATCH(A61,'RC'!BI$48:BI$179,0)))) -> 0 | H61: =IF(B61="",0,IF(B61=0,0,INDEX('RC'!BQ$48:BQ$179,MATCH(A61,'RC'!BI$48:BI$179,0)))) -> 0 | I61: =IF(B61="",0,IF(B61=0,0,INDEX('RC'!BR$48:BR$179,MATCH(A61,'RC'!BI$48:BI$179,0)))) -> 0 | J61: =IF(B61="",0,IF(B61=0,0,INDEX('RC'!BS$48:BS$179,MATCH(A61,'RC'!BI$48:BI$179,0)))) -> 0 | K61: 0 | L61: 0 | M61: 0 | N61: 0 | O61: 0 | P61: 0 | Q61: =IF(ISERROR(INDEX('RC'!DG$48:DG$179,MATCH(A61,'RC'!BI$48:BI$179,0))),0,(INDEX('RC'!DG$48:DG$179,MATCH(A61,'RC'!BI$48:BI$179,0)))) -> 0 | R61: =IF(ISERROR(INDEX('RC'!DH$48:DH$179,MATCH(A61,'RC'!BI$48:BI$179,0))),0,(INDEX('RC'!DH$48:DH$179,MATCH(A61,'RC'!BI$48:BI$179,0)))) -> 0 | S61: 0 | T61: =IF(Entry!B$28="Y",0,IF(ISERROR(INDEX('RC'!CV$48:CV$179,MATCH(A61,'RC'!BI$48:BI$179,0))),0,(INDEX('RC'!CV$48:CV$179,MATCH(A61,'RC'!BI$48:BI$179,0))))) -> 0 | U61: =IF(Entry!B$28="Y",0,IF(ISERROR(INDEX('RC'!CW$48:CW$179,MATCH(A61,'RC'!BI$48:BI$179,0))),0,(INDEX('RC'!CW$48:CW$179,MATCH(A61,'RC'!BI$48:BI$179,0))))) -> 0 | V61: 0 | W61: =IF(ISERROR(INDEX('RC'!CY$48:CY$179,MATCH(A61,'RC'!BI$48:BI$179,0))),0,(INDEX('RC'!CY$48:CY$179,MATCH(A61,'RC'!BI$48:BI$179,0)))) -> 0 | X61: =IF(ISERROR(INDEX('RC'!CZ$48:CZ$179,MATCH(A61,'RC'!BI$48:BI$179,0))),0,(INDEX('RC'!CZ$48:CZ$179,MATCH(A61,'RC'!BI$48:BI$179,0)))) -> 0 | Y61: 0 | Z61: =IF(A61>='RC'!BM$29,0,IF(ISERROR(INDEX('RC'!CF$48:CF$179,MATCH(A61,'RC'!BI$48:BI$179,0))),0,(INDEX('RC'!CF$48:CF$179,MATCH(A61,'RC'!BI$48:BI$179,0))))) -> 0 | AA61: 0 | AB61: 0 | AJ61: 0 | AK61: 0
A62: 2019-09-01 | B62: =IF(ISERROR(INDEX('RC'!BJ$48:BJ$179,MATCH(A62,'RC'!BI$48:BI$179,0))),0,(INDEX('RC'!BJ$48:BJ$179,MATCH(A62,'RC'!BI$48:BI$179,0)))) -> 0 | C62: =IF(B62="",0,IF(B62=0,0,INDEX('RC'!BK$48:BK$179,MATCH(A62,'RC'!BI$48:BI$179,0)))) -> 0 | D62: =IF(B62="",0,IF(B62=0,0,INDEX('RC'!BL$48:BL$179,MATCH(A62,'RC'!BI$48:BI$179,0)))) -> 0 | E62: =IF(B62="",0,IF(B62=0,0,INDEX('RC'!BM$48:BM$179,MATCH(A62,'RC'!BI$48:BI$179,0)))) -> 0 | F62: 0 | G62: =IF(ISERROR(INDEX('RC'!BP$48:BP$179,MATCH(A62,'RC'!BI$48:BI$179,0))),0,(INDEX('RC'!BP$48:BP$179,MATCH(A62,'RC'!BI$48:BI$179,0)))) -> 0 | H62: =IF(B62="",0,IF(B62=0,0,INDEX('RC'!BQ$48:BQ$179,MATCH(A62,'RC'!BI$48:BI$179,0)))) -> 0 | I62: =IF(B62="",0,IF(B62=0,0,INDEX('RC'!BR$48:BR$179,MATCH(A62,'RC'!BI$48:BI$179,0)))) -> 0 | J62: =IF(B62="",0,IF(B62=0,0,INDEX('RC'!BS$48:BS$179,MATCH(A62,'RC'!BI$48:BI$179,0)))) -> 0 | K62: 0 | L62: 0 | M62: 0 | N62: 0 | O62: 0 | P62: 0 | Q62: =IF(ISERROR(INDEX('RC'!DG$48:DG$179,MATCH(A62,'RC'!BI$48:BI$179,0))),0,(INDEX('RC'!DG$48:DG$179,MATCH(A62,'RC'!BI$48:BI$179,0)))) -> 0 | R62: =IF(ISERROR(INDEX('RC'!DH$48:DH$179,MATCH(A62,'RC'!BI$48:BI$179,0))),0,(INDEX('RC'!DH$48:DH$179,MATCH(A62,'RC'!BI$48:BI$179,0)))) -> 0 | S62: 0 | T62: =IF(Entry!B$28="Y",0,IF(ISERROR(INDEX('RC'!CV$48:CV$179,MATCH(A62,'RC'!BI$48:BI$179,0))),0,(INDEX('RC'!CV$48:CV$179,MATCH(A62,'RC'!BI$48:BI$179,0))))) -> 0 | U62: =IF(Entry!B$28="Y",0,IF(ISERROR(INDEX('RC'!CW$48:CW$179,MATCH(A62,'RC'!BI$48:BI$179,0))),0,(INDEX('RC'!CW$48:CW$179,MATCH(A62,'RC'!BI$48:BI$179,0))))) -> 0 | V62: 0 | W62: =IF(ISERROR(INDEX('RC'!CY$48:CY$179,MATCH(A62,'RC'!BI$48:BI$179,0))),0,(INDEX('RC'!CY$48:CY$179,MATCH(A62,'RC'!BI$48:BI$179,0)))) -> 0 | X62: =IF(ISERROR(INDEX('RC'!CZ$48:CZ$179,MATCH(A62,'RC'!BI$48:BI$179,0))),0,(INDEX('RC'!CZ$48:CZ$179,MATCH(A62,'RC'!BI$48:BI$179,0)))) -> 0 | Y62: 0 | Z62: =IF(A62>='RC'!BM$29,0,IF(ISERROR(INDEX('RC'!CF$48:CF$179,MATCH(A62,'RC'!BI$48:BI$179,0))),0,(INDEX('RC'!CF$48:CF$179,MATCH(A62,'RC'!BI$48:BI$179,0))))) -> 0 | AA62: 0 | AB62: 0 | AJ62: 0 | AK62: 0
A63: =EDATE(A62,1) -> 2019-10-01 | B63: =IF(ISERROR(INDEX('RC'!BJ$48:BJ$179,MATCH(A63,'RC'!BI$48:BI$179,0))),0,(INDEX('RC'!BJ$48:BJ$179,MATCH(A63,'RC'!BI$48:BI$179,0)))) -> 0 | C63: =IF(B63="",0,IF(B63=0,0,INDEX('RC'!BK$48:BK$179,MATCH(A63,'RC'!BI$48:BI$179,0)))) -> 0 | D63: =IF(B63="",0,IF(B63=0,0,INDEX('RC'!BL$48:BL$179,MATCH(A63,'RC'!BI$48:BI$179,0)))) -> 0 | E63: =IF(B63="",0,IF(B63=0,0,INDEX('RC'!BM$48:BM$179,MATCH(A63,'RC'!BI$48:BI$179,0)))) -> 0 | F63: 0 | G63: =IF(ISERROR(INDEX('RC'!BP$48:BP$179,MATCH(A63,'RC'!BI$48:BI$179,0))),0,(INDEX('RC'!BP$48:BP$179,MATCH(A63,'RC'!BI$48:BI$179,0)))) -> 0 | H63: =IF(B63="",0,IF(B63=0,0,INDEX('RC'!BQ$48:BQ$179,MATCH(A63,'RC'!BI$48:BI$179,0)))) -> 0 | I63: =IF(B63="",0,IF(B63=0,0,INDEX('RC'!BR$48:BR$179,MATCH(A63,'RC'!BI$48:BI$179,0)))) -> 0 | J63: =IF(B63="",0,IF(B63=0,0,INDEX('RC'!BS$48:BS$179,MATCH(A63,'RC'!BI$48:BI$179,0)))) -> 0 | K63: 0 | L63: 0 | M63: 0 | N63: 0 | O63: 0 | P63: 0 | Q63: =IF(ISERROR(INDEX('RC'!DG$48:DG$179,MATCH(A63,'RC'!BI$48:BI$179,0))),0,(INDEX('RC'!DG$48:DG$179,MATCH(A63,'RC'!BI$48:BI$179,0)))) -> 0 | R63: =IF(ISERROR(INDEX('RC'!DH$48:DH$179,MATCH(A63,'RC'!BI$48:BI$179,0))),0,(INDEX('RC'!DH$48:DH$179,MATCH(A63,'RC'!BI$48:BI$179,0)))) -> 0 | S63: 0 | T63: =IF(Entry!B$28="Y",0,IF(ISERROR(INDEX('RC'!CV$48:CV$179,MATCH(A63,'RC'!BI$48:BI$179,0))),0,(INDEX('RC'!CV$48:CV$179,MATCH(A63,'RC'!BI$48:BI$179,0))))) -> 0 | U63: =IF(Entry!B$28="Y",0,IF(ISERROR(INDEX('RC'!CW$48:CW$179,MATCH(A63,'RC'!BI$48:BI$179,0))),0,(INDEX('RC'!CW$48:CW$179,MATCH(A63,'RC'!BI$48:BI$179,0))))) -> 0 | V63: 0 | W63: =IF(ISERROR(INDEX('RC'!CY$48:CY$179,MATCH(A63,'RC'!BI$48:BI$179,0))),0,(INDEX('RC'!CY$48:CY$179,MATCH(A63,'RC'!BI$48:BI$179,0)))) -> 0 | X63: =IF(ISERROR(INDEX('RC'!CZ$48:CZ$179,MATCH(A63,'RC'!BI$48:BI$179,0))),0,(INDEX('RC'!CZ$48:CZ$179,MATCH(A63,'RC'!BI$48:BI$179,0)))) -> 0 | Y63: 0 | Z63: =IF(A63>='RC'!BM$29,0,IF(ISERROR(INDEX('RC'!CF$48:CF$179,MATCH(A63,'RC'!BI$48:BI$179,0))),0,(INDEX('RC'!CF$48:CF$179,MATCH(A63,'RC'!BI$48:BI$179,0))))) -> 0 | AA63: 0 | AB63: 0 | AJ63: 0 | AK63: 0
A64: =EDATE(A63,1) -> 2019-11-01 | B64: =IF(ISERROR(INDEX('RC'!BJ$48:BJ$179,MATCH(A64,'RC'!BI$48:BI$179,0))),0,(INDEX('RC'!BJ$48:BJ$179,MATCH(A64,'RC'!BI$48:BI$179,0)))) -> 0 | C64: =IF(B64="",0,IF(B64=0,0,INDEX('RC'!BK$48:BK$179,MATCH(A64,'RC'!BI$48:BI$179,0)))) -> 0 | D64: =IF(B64="",0,IF(B64=0,0,INDEX('RC'!BL$48:BL$179,MATCH(A64,'RC'!BI$48:BI$179,0)))) -> 0 | E64: =IF(B64="",0,IF(B64=0,0,INDEX('RC'!BM$48:BM$179,MATCH(A64,'RC'!BI$48:BI$179,0)))) -> 0 | F64: 0 | G64: =IF(ISERROR(INDEX('RC'!BP$48:BP$179,MATCH(A64,'RC'!BI$48:BI$179,0))),0,(INDEX('RC'!BP$48:BP$179,MATCH(A64,'RC'!BI$48:BI$179,0)))) -> 0 | H64: =IF(B64="",0,IF(B64=0,0,INDEX('RC'!BQ$48:BQ$179,MATCH(A64,'RC'!BI$48:BI$179,0)))) -> 0 | I64: =IF(B64="",0,IF(B64=0,0,INDEX('RC'!BR$48:BR$179,MATCH(A64,'RC'!BI$48:BI$179,0)))) -> 0 | J64: =IF(B64="",0,IF(B64=0,0,INDEX('RC'!BS$48:BS$179,MATCH(A64,'RC'!BI$48:BI$179,0)))) -> 0 | K64: 0 | L64: 0 | M64: 0 | N64: 0 | O64: 0 | P64: 0 | Q64: =IF(ISERROR(INDEX('RC'!DG$48:DG$179,MATCH(A64,'RC'!BI$48:BI$179,0))),0,(INDEX('RC'!DG$48:DG$179,MATCH(A64,'RC'!BI$48:BI$179,0)))) -> 0 | R64: =IF(ISERROR(INDEX('RC'!DH$48:DH$179,MATCH(A64,'RC'!BI$48:BI$179,0))),0,(INDEX('RC'!DH$48:DH$179,MATCH(A64,'RC'!BI$48:BI$179,0)))) -> 0 | S64: 0 | T64: =IF(Entry!B$28="Y",0,IF(ISERROR(INDEX('RC'!CV$48:CV$179,MATCH(A64,'RC'!BI$48:BI$179,0))),0,(INDEX('RC'!CV$48:CV$179,MATCH(A64,'RC'!BI$48:BI$179,0))))) -> 0 | U64: =IF(Entry!B$28="Y",0,IF(ISERROR(INDEX('RC'!CW$48:CW$179,MATCH(A64,'RC'!BI$48:BI$179,0))),0,(INDEX('RC'!CW$48:CW$179,MATCH(A64,'RC'!BI$48:BI$179,0))))) -> 0 | V64: 0 | W64: =IF(ISERROR(INDEX('RC'!CY$48:CY$179,MATCH(A64,'RC'!BI$48:BI$179,0))),0,(INDEX('RC'!CY$48:CY$179,MATCH(A64,'RC'!BI$48:BI$179,0)))) -> 0 | X64: =IF(ISERROR(INDEX('RC'!CZ$48:CZ$179,MATCH(A64,'RC'!BI$48:BI$179,0))),0,(INDEX('RC'!CZ$48:CZ$179,MATCH(A64,'RC'!BI$48:BI$179,0)))) -> 0 | Y64: 0 | Z64: =IF(A64>='RC'!BM$29,0,IF(ISERROR(INDEX('RC'!CF$48:CF$179,MATCH(A64,'RC'!BI$48:BI$179,0))),0,(INDEX('RC'!CF$48:CF$179,MATCH(A64,'RC'!BI$48:BI$179,0))))) -> 0 | AA64: 0 | AB64: 0 | AJ64: 0 | AK64: =IF(C64<1,0,1) -> 0 | AL64: =IF(D64<1,0,1) -> 0 | AM64: =IF(E64<1,0,1) -> 0 | AN64: =IF(F64<1,0,1) -> 0
A65: =EDATE(A64,1) -> 2019-12-01 | B65: =IF(ISERROR(INDEX('RC'!BJ$48:BJ$179,MATCH(A65,'RC'!BI$48:BI$179,0))),0,(INDEX('RC'!BJ$48:BJ$179,MATCH(A65,'RC'!BI$48:BI$179,0)))) -> 0 | C65: =IF(B65="",0,IF(B65=0,0,INDEX('RC'!BK$48:BK$179,MATCH(A65,'RC'!BI$48:BI$179,0)))) -> 0 | D65: =IF(B65="",0,IF(B65=0,0,INDEX('RC'!BL$48:BL$179,MATCH(A65,'RC'!BI$48:BI$179,0)))) -> 0 | E65: =IF(B65="",0,IF(B65=0,0,INDEX('RC'!BM$48:BM$179,MATCH(A65,'RC'!BI$48:BI$179,0)))) -> 0 | F65: =SUM(B65:E65) -> 0 | G65: =IF(ISERROR(INDEX('RC'!BP$48:BP$179,MATCH(A65,'RC'!BI$48:BI$179,0))),0,(INDEX('RC'!BP$48:BP$179,MATCH(A65,'RC'!BI$48:BI$179,0)))) -> 0 | H65: =IF(B65="",0,IF(B65=0,0,INDEX('RC'!BQ$48:BQ$179,MATCH(A65,'RC'!BI$48:BI$179,0)))) -> 0 | I65: =IF(B65="",0,IF(B65=0,0,INDEX('RC'!BR$48:BR$179,MATCH(A65,'RC'!BI$48:BI$179,0)))) -> 0 | J65: =IF(B65="",0,IF(B65=0,0,INDEX('RC'!BS$48:BS$179,MATCH(A65,'RC'!BI$48:BI$179,0)))) -> 0 | K65: =SUM(G65:J65) -> 0 | L65: =B65-G65 -> 0 | M65: =C65-H65 -> 0 | N65: =D65-I65 -> 0 | O65: =E65-J65 -> 0 | P65: =SUM(L65:O65) -> 0 | Q65: =IF(ISERROR(INDEX('RC'!DG$48:DG$179,MATCH(A65,'RC'!BI$48:BI$179,0))),0,(INDEX('RC'!DG$48:DG$179,MATCH(A65,'RC'!BI$48:BI$179,0)))) -> 0 | R65: =IF(ISERROR(INDEX('RC'!DH$48:DH$179,MATCH(A65,'RC'!BI$48:BI$179,0))),0,(INDEX('RC'!DH$48:DH$179,MATCH(A65,'RC'!BI$48:BI$179,0)))) -> 0 | S65: 0 | T65: =IF(Entry!B$28="Y",0,IF(ISERROR(INDEX('RC'!CV$48:CV$179,MATCH(A65,'RC'!BI$48:BI$179,0))),0,(INDEX('RC'!CV$48:CV$179,MATCH(A65,'RC'!BI$48:BI$179,0))))) -> 0 | U65: =IF(Entry!B$28="Y",0,IF(ISERROR(INDEX('RC'!CW$48:CW$179,MATCH(A65,'RC'!BI$48:BI$179,0))),0,(INDEX('RC'!CW$48:CW$179,MATCH(A65,'RC'!BI$48:BI$179,0))))) -> 0 | V65: 0 | W65: =IF(ISERROR(INDEX('RC'!CY$48:CY$179,MATCH(A65,'RC'!BI$48:BI$179,0))),0,(INDEX('RC'!CY$48:CY$179,MATCH(A65,'RC'!BI$48:BI$179,0)))) -> 0 | X65: =IF(ISERROR(INDEX('RC'!CZ$48:CZ$179,MATCH(A65,'RC'!BI$48:BI$179,0))),0,(INDEX('RC'!CZ$48:CZ$179,MATCH(A65,'RC'!BI$48:BI$179,0)))) -> 0 | Y65: 0 | Z65: =IF(A65>='RC'!BM$29,0,IF(ISERROR(INDEX('RC'!CF$48:CF$179,MATCH(A65,'RC'!BI$48:BI$179,0))),0,(INDEX('RC'!CF$48:CF$179,MATCH(A65,'RC'!BI$48:BI$179,0))))) -> 0 | AA65: 0 | AB65: 0 | AJ65: =IF(B65<1,0,1) -> 0 | AK65: 0
A66: =EDATE(A65,1) -> 2020-01-01 | B66: =IF(ISERROR(INDEX('RC'!BJ$48:BJ$179,MATCH(A66,'RC'!BI$48:BI$179,0))),0,(INDEX('RC'!BJ$48:BJ$179,MATCH(A66,'RC'!BI$48:BI$179,0)))) -> 0 | C66: =IF(B66="",0,IF(B66=0,0,INDEX('RC'!BK$48:BK$179,MATCH(A66,'RC'!BI$48:BI$179,0)))) -> 0 | D66: =IF(B66="",0,IF(B66=0,0,INDEX('RC'!BL$48:BL$179,MATCH(A66,'RC'!BI$48:BI$179,0)))) -> 0 | E66: =IF(B66="",0,IF(B66=0,0,INDEX('RC'!BM$48:BM$179,MATCH(A66,'RC'!BI$48:BI$179,0)))) -> 0 | F66: 0 | G66: =IF(ISERROR(INDEX('RC'!BP$48:BP$179,MATCH(A66,'RC'!BI$48:BI$179,0))),0,(INDEX('RC'!BP$48:BP$179,MATCH(A66,'RC'!BI$48:BI$179,0)))) -> 0 | H66: =IF(B66="",0,IF(B66=0,0,INDEX('RC'!BQ$48:BQ$179,MATCH(A66,'RC'!BI$48:BI$179,0)))) -> 0 | I66: =IF(B66="",0,IF(B66=0,0,INDEX('RC'!BR$48:BR$179,MATCH(A66,'RC'!BI$48:BI$179,0)))) -> 0 | J66: =IF(B66="",0,IF(B66=0,0,INDEX('RC'!BS$48:BS$179,MATCH(A66,'RC'!BI$48:BI$179,0)))) -> 0 | K66: =SUM(G66:J66) -> 0 | L66: =B66-G66 -> 0 | M66: =C66-H66 -> 0 | N66: =D66-I66 -> 0 | O66: =E66-J66 -> 0 | P66: =SUM(L66:O66) -> 0 | Q66: =IF(ISERROR(INDEX('RC'!DG$48:DG$179,MATCH(A66,'RC'!BI$48:BI$179,0))),0,(INDEX('RC'!DG$48:DG$179,MATCH(A66,'RC'!BI$48:BI$179,0)))) -> 0 | R66: =IF(ISERROR(INDEX('RC'!DH$48:DH$179,MATCH(A66,'RC'!BI$48:BI$179,0))),0,(INDEX('RC'!DH$48:DH$179,MATCH(A66,'RC'!BI$48:BI$179,0)))) -> 0 | S66: 0 | T66: =IF(Entry!B$28="Y",0,IF(ISERROR(INDEX('RC'!CV$48:CV$179,MATCH(A66,'RC'!BI$48:BI$179,0))),0,(INDEX('RC'!CV$48:CV$179,MATCH(A66,'RC'!BI$48:BI$179,0))))) -> 0 | U66: =IF(Entry!B$28="Y",0,IF(ISERROR(INDEX('RC'!CW$48:CW$179,MATCH(A66,'RC'!BI$48:BI$179,0))),0,(INDEX('RC'!CW$48:CW$179,MATCH(A66,'RC'!BI$48:BI$179,0))))) -> 0 | V66: 0 | W66: =IF(ISERROR(INDEX('RC'!CY$48:CY$179,MATCH(A66,'RC'!BI$48:BI$179,0))),0,(INDEX('RC'!CY$48:CY$179,MATCH(A66,'RC'!BI$48:BI$179,0)))) -> 0 | X66: =IF(ISERROR(INDEX('RC'!CZ$48:CZ$179,MATCH(A66,'RC'!BI$48:BI$179,0))),0,(INDEX('RC'!CZ$48:CZ$179,MATCH(A66,'RC'!BI$48:BI$179,0)))) -> 0 | Y66: 0 | Z66: =IF(A66>='RC'!BM$29,0,IF(ISERROR(INDEX('RC'!CF$48:CF$179,MATCH(A66,'RC'!BI$48:BI$179,0))),0,(INDEX('RC'!CF$48:CF$179,MATCH(A66,'RC'!BI$48:BI$179,0))))) -> 0 | AA66: 0 | AB66: 0 | AJ66: 0 | AK66: 0
A67: =EDATE(A66,1) -> 2020-02-01 | B67: =IF(ISERROR(INDEX('RC'!BJ$48:BJ$179,MATCH(A67,'RC'!BI$48:BI$179,0))),0,(INDEX('RC'!BJ$48:BJ$179,MATCH(A67,'RC'!BI$48:BI$179,0)))) -> 0 | C67: =IF(B67="",0,IF(B67=0,0,INDEX('RC'!BK$48:BK$179,MATCH(A67,'RC'!BI$48:BI$179,0)))) -> 0 | D67: =IF(B67="",0,IF(B67=0,0,INDEX('RC'!BL$48:BL$179,MATCH(A67,'RC'!BI$48:BI$179,0)))) -> 0 | E67: =IF(B67="",0,IF(B67=0,0,INDEX('RC'!BM$48:BM$179,MATCH(A67,'RC'!BI$48:BI$179,0)))) -> 0 | F67: 0 | G67: =IF(ISERROR(INDEX('RC'!BP$48:BP$179,MATCH(A67,'RC'!BI$48:BI$179,0))),0,(INDEX('RC'!BP$48:BP$179,MATCH(A67,'RC'!BI$48:BI$179,0)))) -> 0 | H67: =IF(B67="",0,IF(B67=0,0,INDEX('RC'!BQ$48:BQ$179,MATCH(A67,'RC'!BI$48:BI$179,0)))) -> 0 | I67: =IF(B67="",0,IF(B67=0,0,INDEX('RC'!BR$48:BR$179,MATCH(A67,'RC'!BI$48:BI$179,0)))) -> 0 | J67: =IF(B67="",0,IF(B67=0,0,INDEX('RC'!BS$48:BS$179,MATCH(A67,'RC'!BI$48:BI$179,0)))) -> 0 | K67: 0 | L67: 0 | M67: 0 | N67: 0 | O67: 0 | P67: 0 | Q67: =IF(ISERROR(INDEX('RC'!DG$48:DG$179,MATCH(A67,'RC'!BI$48:BI$179,0))),0,(INDEX('RC'!DG$48:DG$179,MATCH(A67,'RC'!BI$48:BI$179,0)))) -> 0 | R67: =IF(ISERROR(INDEX('RC'!DH$48:DH$179,MATCH(A67,'RC'!BI$48:BI$179,0))),0,(INDEX('RC'!DH$48:DH$179,MATCH(A67,'RC'!BI$48:BI$179,0)))) -> 0 | S67: 0 | T67: =IF(Entry!B$28="Y",0,IF(ISERROR(INDEX('RC'!CV$48:CV$179,MATCH(A67,'RC'!BI$48:BI$179,0))),0,(INDEX('RC'!CV$48:CV$179,MATCH(A67,'RC'!BI$48:BI$179,0))))) -> 0 | U67: =IF(Entry!B$28="Y",0,IF(ISERROR(INDEX('RC'!CW$48:CW$179,MATCH(A67,'RC'!BI$48:BI$179,0))),0,(INDEX('RC'!CW$48:CW$179,MATCH(A67,'RC'!BI$48:BI$179,0))))) -> 0 | V67: 0 | W67: =IF(ISERROR(INDEX('RC'!CY$48:CY$179,MATCH(A67,'RC'!BI$48:BI$179,0))),0,(INDEX('RC'!CY$48:CY$179,MATCH(A67,'RC'!BI$48:BI$179,0)))) -> 0 | X67: =IF(ISERROR(INDEX('RC'!CZ$48:CZ$179,MATCH(A67,'RC'!BI$48:BI$179,0))),0,(INDEX('RC'!CZ$48:CZ$179,MATCH(A67,'RC'!BI$48:BI$179,0)))) -> 0 | Y67: 0 | Z67: =IF(A67>='RC'!BM$29,0,IF(ISERROR(INDEX('RC'!CF$48:CF$179,MATCH(A67,'RC'!BI$48:BI$179,0))),0,(INDEX('RC'!CF$48:CF$179,MATCH(A67,'RC'!BI$48:BI$179,0))))) -> 0 | AA67: 0 | AB67: 0 | AJ67: 0 | AK67: 0
A68: =EDATE(A67,1) -> 2020-03-01 | B68: =IF(ISERROR(INDEX('RC'!BJ$48:BJ$179,MATCH(A68,'RC'!BI$48:BI$179,0))),0,(INDEX('RC'!BJ$48:BJ$179,MATCH(A68,'RC'!BI$48:BI$179,0)))) -> 0 | C68: =IF(B68="",0,IF(B68=0,0,INDEX('RC'!BK$48:BK$179,MATCH(A68,'RC'!BI$48:BI$179,0)))) -> 0 | D68: =IF(B68="",0,IF(B68=0,0,INDEX('RC'!BL$48:BL$179,MATCH(A68,'RC'!BI$48:BI$179,0)))) -> 0 | E68: =IF(B68="",0,IF(B68=0,0,INDEX('RC'!BM$48:BM$179,MATCH(A68,'RC'!BI$48:BI$179,0)))) -> 0 | F68: 0 | G68: =IF(ISERROR(INDEX('RC'!BP$48:BP$179,MATCH(A68,'RC'!BI$48:BI$179,0))),0,(INDEX('RC'!BP$48:BP$179,MATCH(A68,'RC'!BI$48:BI$179,0)))) -> 0 | H68: =IF(B68="",0,IF(B68=0,0,INDEX('RC'!BQ$48:BQ$179,MATCH(A68,'RC'!BI$48:BI$179,0)))) -> 0 | I68: =IF(B68="",0,IF(B68=0,0,INDEX('RC'!BR$48:BR$179,MATCH(A68,'RC'!BI$48:BI$179,0)))) -> 0 | J68: =IF(B68="",0,IF(B68=0,0,INDEX('RC'!BS$48:BS$179,MATCH(A68,'RC'!BI$48:BI$179,0)))) -> 0 | K68: 0 | L68: 0 | M68: 0 | N68: 0 | O68: 0 | P68: 0 | Q68: =IF(ISERROR(INDEX('RC'!DG$48:DG$179,MATCH(A68,'RC'!BI$48:BI$179,0))),0,(INDEX('RC'!DG$48:DG$179,MATCH(A68,'RC'!BI$48:BI$179,0)))) -> 0 | R68: =IF(ISERROR(INDEX('RC'!DH$48:DH$179,MATCH(A68,'RC'!BI$48:BI$179,0))),0,(INDEX('RC'!DH$48:DH$179,MATCH(A68,'RC'!BI$48:BI$179,0)))) -> 0 | S68: 0 | T68: =IF(Entry!B$28="Y",0,IF(ISERROR(INDEX('RC'!CV$48:CV$179,MATCH(A68,'RC'!BI$48:BI$179,0))),0,(INDEX('RC'!CV$48:CV$179,MATCH(A68,'RC'!BI$48:BI$179,0))))) -> 0 | U68: =IF(Entry!B$28="Y",0,IF(ISERROR(INDEX('RC'!CW$48:CW$179,MATCH(A68,'RC'!BI$48:BI$179,0))),0,(INDEX('RC'!CW$48:CW$179,MATCH(A68,'RC'!BI$48:BI$179,0))))) -> 0 | V68: 0 | W68: =IF(ISERROR(INDEX('RC'!CY$48:CY$179,MATCH(A68,'RC'!BI$48:BI$179,0))),0,(INDEX('RC'!CY$48:CY$179,MATCH(A68,'RC'!BI$48:BI$179,0)))) -> 0 | X68: =IF(ISERROR(INDEX('RC'!CZ$48:CZ$179,MATCH(A68,'RC'!BI$48:BI$179,0))),0,(INDEX('RC'!CZ$48:CZ$179,MATCH(A68,'RC'!BI$48:BI$179,0)))) -> 0 | Y68: 0 | Z68: =IF(A68>='RC'!BM$29,0,IF(ISERROR(INDEX('RC'!CF$48:CF$179,MATCH(A68,'RC'!BI$48:BI$179,0))),0,(INDEX('RC'!CF$48:CF$179,MATCH(A68,'RC'!BI$48:BI$179,0))))) -> 0 | AA68: 0 | AB68: 0 | AJ68: 0 | AK68: 0
A69: 2020-04-01 | B69: =IF(ISERROR(INDEX('RC'!BJ$48:BJ$179,MATCH(A69,'RC'!BI$48:BI$179,0))),0,(INDEX('RC'!BJ$48:BJ$179,MATCH(A69,'RC'!BI$48:BI$179,0)))) -> 0 | C69: =IF(B69="",0,IF(B69=0,0,INDEX('RC'!BK$48:BK$179,MATCH(A69,'RC'!BI$48:BI$179,0)))) -> 0 | D69: =IF(B69="",0,IF(B69=0,0,INDEX('RC'!BL$48:BL$179,MATCH(A69,'RC'!BI$48:BI$179,0)))) -> 0 | E69: =IF(B69="",0,IF(B69=0,0,INDEX('RC'!BM$48:BM$179,MATCH(A69,'RC'!BI$48:BI$179,0)))) -> 0 | F69: 0 | G69: =IF(ISERROR(INDEX('RC'!BP$48:BP$179,MATCH(A69,'RC'!BI$48:BI$179,0))),0,(INDEX('RC'!BP$48:BP$179,MATCH(A69,'RC'!BI$48:BI$179,0)))) -> 0 | H69: =IF(B69="",0,IF(B69=0,0,INDEX('RC'!BQ$48:BQ$179,MATCH(A69,'RC'!BI$48:BI$179,0)))) -> 0 | I69: =IF(B69="",0,IF(B69=0,0,INDEX('RC'!BR$48:BR$179,MATCH(A69,'RC'!BI$48:BI$179,0)))) -> 0 | J69: =IF(B69="",0,IF(B69=0,0,INDEX('RC'!BS$48:BS$179,MATCH(A69,'RC'!BI$48:BI$179,0)))) -> 0 | K69: 0 | L69: 0 | M69: 0 | N69: 0 | O69: 0 | P69: 0 | Q69: =IF(ISERROR(INDEX('RC'!DG$48:DG$179,MATCH(A69,'RC'!BI$48:BI$179,0))),0,(INDEX('RC'!DG$48:DG$179,MATCH(A69,'RC'!BI$48:BI$179,0)))) -> 0 | R69: =IF(ISERROR(INDEX('RC'!DH$48:DH$179,MATCH(A69,'RC'!BI$48:BI$179,0))),0,(INDEX('RC'!DH$48:DH$179,MATCH(A69,'RC'!BI$48:BI$179,0)))) -> 0 | S69: 0 | T69: =IF(Entry!B$28="Y",0,IF(ISERROR(INDEX('RC'!CV$48:CV$179,MATCH(A69,'RC'!BI$48:BI$179,0))),0,(INDEX('RC'!CV$48:CV$179,MATCH(A69,'RC'!BI$48:BI$179,0))))) -> 0 | U69: =IF(Entry!B$28="Y",0,IF(ISERROR(INDEX('RC'!CW$48:CW$179,MATCH(A69,'RC'!BI$48:BI$179,0))),0,(INDEX('RC'!CW$48:CW$179,MATCH(A69,'RC'!BI$48:BI$179,0))))) -> 0 | V69: 0 | W69: =IF(ISERROR(INDEX('RC'!CY$48:CY$179,MATCH(A69,'RC'!BI$48:BI$179,0))),0,(INDEX('RC'!CY$48:CY$179,MATCH(A69,'RC'!BI$48:BI$179,0)))) -> 0 | X69: =IF(ISERROR(INDEX('RC'!CZ$48:CZ$179,MATCH(A69,'RC'!BI$48:BI$179,0))),0,(INDEX('RC'!CZ$48:CZ$179,MATCH(A69,'RC'!BI$48:BI$179,0)))) -> 0 | Y69: 0 | Z69: =IF(A69>='RC'!BM$29,0,IF(ISERROR(INDEX('RC'!CF$48:CF$179,MATCH(A69,'RC'!BI$48:BI$179,0))),0,(INDEX('RC'!CF$48:CF$179,MATCH(A69,'RC'!BI$48:BI$179,0))))) -> 0 | AA69: 0 | AB69: 0 | AJ69: 0 | AK69: 0
A70: 2020-05-01 | B70: =IF(ISERROR(INDEX('RC'!BJ$48:BJ$179,MATCH(A70,'RC'!BI$48:BI$179,0))),0,(INDEX('RC'!BJ$48:BJ$179,MATCH(A70,'RC'!BI$48:BI$179,0)))) -> 0 | C70: =IF(B70="",0,IF(B70=0,0,INDEX('RC'!BK$48:BK$179,MATCH(A70,'RC'!BI$48:BI$179,0)))) -> 0 | D70: =IF(B70="",0,IF(B70=0,0,INDEX('RC'!BL$48:BL$179,MATCH(A70,'RC'!BI$48:BI$179,0)))) -> 0 | E70: =IF(B70="",0,IF(B70=0,0,INDEX('RC'!BM$48:BM$179,MATCH(A70,'RC'!BI$48:BI$179,0)))) -> 0 | F70: 0 | G70: =IF(ISERROR(INDEX('RC'!BP$48:BP$179,MATCH(A70,'RC'!BI$48:BI$179,0))),0,(INDEX('RC'!BP$48:BP$179,MATCH(A70,'RC'!BI$48:BI$179,0)))) -> 0 | H70: =IF(B70="",0,IF(B70=0,0,INDEX('RC'!BQ$48:BQ$179,MATCH(A70,'RC'!BI$48:BI$179,0)))) -> 0 | I70: =IF(B70="",0,IF(B70=0,0,INDEX('RC'!BR$48:BR$179,MATCH(A70,'RC'!BI$48:BI$179,0)))) -> 0 | J70: =IF(B70="",0,IF(B70=0,0,INDEX('RC'!BS$48:BS$179,MATCH(A70,'RC'!BI$48:BI$179,0)))) -> 0 | K70: 0 | L70: 0 | M70: 0 | N70: 0 | O70: 0 | P70: 0 | Q70: =IF(ISERROR(INDEX('RC'!DG$48:DG$179,MATCH(A70,'RC'!BI$48:BI$179,0))),0,(INDEX('RC'!DG$48:DG$179,MATCH(A70,'RC'!BI$48:BI$179,0)))) -> 0 | R70: =IF(ISERROR(INDEX('RC'!DH$48:DH$179,MATCH(A70,'RC'!BI$48:BI$179,0))),0,(INDEX('RC'!DH$48:DH$179,MATCH(A70,'RC'!BI$48:BI$179,0)))) -> 0 | S70: 0 | T70: =IF(Entry!B$28="Y",0,IF(ISERROR(INDEX('RC'!CV$48:CV$179,MATCH(A70,'RC'!BI$48:BI$179,0))),0,(INDEX('RC'!CV$48:CV$179,MATCH(A70,'RC'!BI$48:BI$179,0))))) -> 0 | U70: =IF(Entry!B$28="Y",0,IF(ISERROR(INDEX('RC'!CW$48:CW$179,MATCH(A70,'RC'!BI$48:BI$179,0))),0,(INDEX('RC'!CW$48:CW$179,MATCH(A70,'RC'!BI$48:BI$179,0))))) -> 0 | V70: 0 | W70: =IF(ISERROR(INDEX('RC'!CY$48:CY$179,MATCH(A70,'RC'!BI$48:BI$179,0))),0,(INDEX('RC'!CY$48:CY$179,MATCH(A70,'RC'!BI$48:BI$179,0)))) -> 0 | X70: =IF(ISERROR(INDEX('RC'!CZ$48:CZ$179,MATCH(A70,'RC'!BI$48:BI$179,0))),0,(INDEX('RC'!CZ$48:CZ$179,MATCH(A70,'RC'!BI$48:BI$179,0)))) -> 0 | Y70: 0 | Z70: =IF(A70>='RC'!BM$29,0,IF(ISERROR(INDEX('RC'!CF$48:CF$179,MATCH(A70,'RC'!BI$48:BI$179,0))),0,(INDEX('RC'!CF$48:CF$179,MATCH(A70,'RC'!BI$48:BI$179,0))))) -> 0 | AA70: 0 | AB70: 0 | AJ70: 0 | AK70: 0
A71: 2020-06-01 | B71: =IF(ISERROR(INDEX('RC'!BJ$48:BJ$179,MATCH(A71,'RC'!BI$48:BI$179,0))),0,(INDEX('RC'!BJ$48:BJ$179,MATCH(A71,'RC'!BI$48:BI$179,0)))) -> 0 | C71: =IF(B71="",0,IF(B71=0,0,INDEX('RC'!BK$48:BK$179,MATCH(A71,'RC'!BI$48:BI$179,0)))) -> 0 | D71: =IF(B71="",0,IF(B71=0,0,INDEX('RC'!BL$48:BL$179,MATCH(A71,'RC'!BI$48:BI$179,0)))) -> 0 | E71: =IF(B71="",0,IF(B71=0,0,INDEX('RC'!BM$48:BM$179,MATCH(A71,'RC'!BI$48:BI$179,0)))) -> 0 | F71: 0 | G71: =IF(ISERROR(INDEX('RC'!BP$48:BP$179,MATCH(A71,'RC'!BI$48:BI$179,0))),0,(INDEX('RC'!BP$48:BP$179,MATCH(A71,'RC'!BI$48:BI$179,0)))) -> 0 | H71: =IF(B71="",0,IF(B71=0,0,INDEX('RC'!BQ$48:BQ$179,MATCH(A71,'RC'!BI$48:BI$179,0)))) -> 0 | I71: =IF(B71="",0,IF(B71=0,0,INDEX('RC'!BR$48:BR$179,MATCH(A71,'RC'!BI$48:BI$179,0)))) -> 0 | J71: =IF(B71="",0,IF(B71=0,0,INDEX('RC'!BS$48:BS$179,MATCH(A71,'RC'!BI$48:BI$179,0)))) -> 0 | K71: 0 | L71: 0 | M71: 0 | N71: 0 | O71: 0 | P71: 0 | Q71: =IF(ISERROR(INDEX('RC'!DG$48:DG$179,MATCH(A71,'RC'!BI$48:BI$179,0))),0,(INDEX('RC'!DG$48:DG$179,MATCH(A71,'RC'!BI$48:BI$179,0)))) -> 0 | R71: =IF(ISERROR(INDEX('RC'!DH$48:DH$179,MATCH(A71,'RC'!BI$48:BI$179,0))),0,(INDEX('RC'!DH$48:DH$179,MATCH(A71,'RC'!BI$48:BI$179,0)))) -> 0 | S71: 0 | T71: =IF(Entry!B$28="Y",0,IF(ISERROR(INDEX('RC'!CV$48:CV$179,MATCH(A71,'RC'!BI$48:BI$179,0))),0,(INDEX('RC'!CV$48:CV$179,MATCH(A71,'RC'!BI$48:BI$179,0))))) -> 0 | U71: =IF(Entry!B$28="Y",0,IF(ISERROR(INDEX('RC'!CW$48:CW$179,MATCH(A71,'RC'!BI$48:BI$179,0))),0,(INDEX('RC'!CW$48:CW$179,MATCH(A71,'RC'!BI$48:BI$179,0))))) -> 0 | V71: 0 | W71: =IF(ISERROR(INDEX('RC'!CY$48:CY$179,MATCH(A71,'RC'!BI$48:BI$179,0))),0,(INDEX('RC'!CY$48:CY$179,MATCH(A71,'RC'!BI$48:BI$179,0)))) -> 0 | X71: =IF(ISERROR(INDEX('RC'!CZ$48:CZ$179,MATCH(A71,'RC'!BI$48:BI$179,0))),0,(INDEX('RC'!CZ$48:CZ$179,MATCH(A71,'RC'!BI$48:BI$179,0)))) -> 0 | Y71: 0 | Z71: =IF(A71>='RC'!BM$29,0,IF(ISERROR(INDEX('RC'!CF$48:CF$179,MATCH(A71,'RC'!BI$48:BI$179,0))),0,(INDEX('RC'!CF$48:CF$179,MATCH(A71,'RC'!BI$48:BI$179,0))))) -> 0 | AA71: 0 | AB71: 0 | AJ71: 0 | AK71: 0
A72: 2020-07-01 | B72: =IF(ISERROR(INDEX('RC'!BJ$48:BJ$179,MATCH(A72,'RC'!BI$48:BI$179,0))),0,(INDEX('RC'!BJ$48:BJ$179,MATCH(A72,'RC'!BI$48:BI$179,0)))) -> 0 | C72: =IF(B72="",0,IF(B72=0,0,INDEX('RC'!BK$48:BK$179,MATCH(A72,'RC'!BI$48:BI$179,0)))) -> 0 | D72: =IF(B72="",0,IF(B72=0,0,INDEX('RC'!BL$48:BL$179,MATCH(A72,'RC'!BI$48:BI$179,0)))) -> 0 | E72: =IF(B72="",0,IF(B72=0,0,INDEX('RC'!BM$48:BM$179,MATCH(A72,'RC'!BI$48:BI$179,0)))) -> 0 | F72: 0 | G72: =IF(ISERROR(INDEX('RC'!BP$48:BP$179,MATCH(A72,'RC'!BI$48:BI$179,0))),0,(INDEX('RC'!BP$48:BP$179,MATCH(A72,'RC'!BI$48:BI$179,0)))) -> 0 | H72: =IF(B72="",0,IF(B72=0,0,INDEX('RC'!BQ$48:BQ$179,MATCH(A72,'RC'!BI$48:BI$179,0)))) -> 0 | I72: =IF(B72="",0,IF(B72=0,0,INDEX('RC'!BR$48:BR$179,MATCH(A72,'RC'!BI$48:BI$179,0)))) -> 0 | J72: =IF(B72="",0,IF(B72=0,0,INDEX('RC'!BS$48:BS$179,MATCH(A72,'RC'!BI$48:BI$179,0)))) -> 0 | K72: 0 | L72: 0 | M72: 0 | N72: 0 | O72: 0 | P72: 0 | Q72: =IF(ISERROR(INDEX('RC'!DG$48:DG$179,MATCH(A72,'RC'!BI$48:BI$179,0))),0,(INDEX('RC'!DG$48:DG$179,MATCH(A72,'RC'!BI$48:BI$179,0)))) -> 0 | R72: =IF(ISERROR(INDEX('RC'!DH$48:DH$179,MATCH(A72,'RC'!BI$48:BI$179,0))),0,(INDEX('RC'!DH$48:DH$179,MATCH(A72,'RC'!BI$48:BI$179,0)))) -> 0 | S72: 0 | T72: =IF(Entry!B$28="Y",0,IF(ISERROR(INDEX('RC'!CV$48:CV$179,MATCH(A72,'RC'!BI$48:BI$179,0))),0,(INDEX('RC'!CV$48:CV$179,MATCH(A72,'RC'!BI$48:BI$179,0))))) -> 0 | U72: =IF(Entry!B$28="Y",0,IF(ISERROR(INDEX('RC'!CW$48:CW$179,MATCH(A72,'RC'!BI$48:BI$179,0))),0,(INDEX('RC'!CW$48:CW$179,MATCH(A72,'RC'!BI$48:BI$179,0))))) -> 0 | V72: 0 | W72: =IF(ISERROR(INDEX('RC'!CY$48:CY$179,MATCH(A72,'RC'!BI$48:BI$179,0))),0,(INDEX('RC'!CY$48:CY$179,MATCH(A72,'RC'!BI$48:BI$179,0)))) -> 0 | X72: =IF(ISERROR(INDEX('RC'!CZ$48:CZ$179,MATCH(A72,'RC'!BI$48:BI$179,0))),0,(INDEX('RC'!CZ$48:CZ$179,MATCH(A72,'RC'!BI$48:BI$179,0)))) -> 0 | Y72: 0 | Z72: =IF(A72>='RC'!BM$29,0,IF(ISERROR(INDEX('RC'!CF$48:CF$179,MATCH(A72,'RC'!BI$48:BI$179,0))),0,(INDEX('RC'!CF$48:CF$179,MATCH(A72,'RC'!BI$48:BI$179,0))))) -> 0 | AA72: 0 | AB72: 0 | AJ72: 0 | AK72: 0
A73: 2020-08-01 | B73: =IF(ISERROR(INDEX('RC'!BJ$48:BJ$179,MATCH(A73,'RC'!BI$48:BI$179,0))),0,(INDEX('RC'!BJ$48:BJ$179,MATCH(A73,'RC'!BI$48:BI$179,0)))) -> 0 | C73: =IF(B73="",0,IF(B73=0,0,INDEX('RC'!BK$48:BK$179,MATCH(A73,'RC'!BI$48:BI$179,0)))) -> 0 | D73: =IF(B73="",0,IF(B73=0,0,INDEX('RC'!BL$48:BL$179,MATCH(A73,'RC'!BI$48:BI$179,0)))) -> 0 | E73: =IF(B73="",0,IF(B73=0,0,INDEX('RC'!BM$48:BM$179,MATCH(A73,'RC'!BI$48:BI$179,0)))) -> 0 | F73: 0 | G73: =IF(ISERROR(INDEX('RC'!BP$48:BP$179,MATCH(A73,'RC'!BI$48:BI$179,0))),0,(INDEX('RC'!BP$48:BP$179,MATCH(A73,'RC'!BI$48:BI$179,0)))) -> 0 | H73: =IF(B73="",0,IF(B73=0,0,INDEX('RC'!BQ$48:BQ$179,MATCH(A73,'RC'!BI$48:BI$179,0)))) -> 0 | I73: =IF(B73="",0,IF(B73=0,0,INDEX('RC'!BR$48:BR$179,MATCH(A73,'RC'!BI$48:BI$179,0)))) -> 0 | J73: =IF(B73="",0,IF(B73=0,0,INDEX('RC'!BS$48:BS$179,MATCH(A73,'RC'!BI$48:BI$179,0)))) -> 0 | K73: 0 | L73: 0 | M73: 0 | N73: 0 | O73: 0 | P73: 0 | Q73: =IF(ISERROR(INDEX('RC'!DG$48:DG$179,MATCH(A73,'RC'!BI$48:BI$179,0))),0,(INDEX('RC'!DG$48:DG$179,MATCH(A73,'RC'!BI$48:BI$179,0)))) -> 0 | R73: =IF(ISERROR(INDEX('RC'!DH$48:DH$179,MATCH(A73,'RC'!BI$48:BI$179,0))),0,(INDEX('RC'!DH$48:DH$179,MATCH(A73,'RC'!BI$48:BI$179,0)))) -> 0 | S73: 0 | T73: =IF(Entry!B$28="Y",0,IF(ISERROR(INDEX('RC'!CV$48:CV$179,MATCH(A73,'RC'!BI$48:BI$179,0))),0,(INDEX('RC'!CV$48:CV$179,MATCH(A73,'RC'!BI$48:BI$179,0))))) -> 0 | U73: =IF(Entry!B$28="Y",0,IF(ISERROR(INDEX('RC'!CW$48:CW$179,MATCH(A73,'RC'!BI$48:BI$179,0))),0,(INDEX('RC'!CW$48:CW$179,MATCH(A73,'RC'!BI$48:BI$179,0))))) -> 0 | V73: 0 | W73: =IF(ISERROR(INDEX('RC'!CY$48:CY$179,MATCH(A73,'RC'!BI$48:BI$179,0))),0,(INDEX('RC'!CY$48:CY$179,MATCH(A73,'RC'!BI$48:BI$179,0)))) -> 0 | X73: =IF(ISERROR(INDEX('RC'!CZ$48:CZ$179,MATCH(A73,'RC'!BI$48:BI$179,0))),0,(INDEX('RC'!CZ$48:CZ$179,MATCH(A73,'RC'!BI$48:BI$179,0)))) -> 0 | Y73: 0 | Z73: =IF(A73>='RC'!BM$29,0,IF(ISERROR(INDEX('RC'!CF$48:CF$179,MATCH(A73,'RC'!BI$48:BI$179,0))),0,(INDEX('RC'!CF$48:CF$179,MATCH(A73,'RC'!BI$48:BI$179,0))))) -> 0 | AA73: 0 | AB73: 0 | AJ73: 0 | AK73: 0
A74: 2020-09-01 | B74: =IF(ISERROR(INDEX('RC'!BJ$48:BJ$179,MATCH(A74,'RC'!BI$48:BI$179,0))),0,(INDEX('RC'!BJ$48:BJ$179,MATCH(A74,'RC'!BI$48:BI$179,0)))) -> 0 | C74: =IF(B74="",0,IF(B74=0,0,INDEX('RC'!BK$48:BK$179,MATCH(A74,'RC'!BI$48:BI$179,0)))) -> 0 | D74: =IF(B74="",0,IF(B74=0,0,INDEX('RC'!BL$48:BL$179,MATCH(A74,'RC'!BI$48:BI$179,0)))) -> 0 | E74: =IF(B74="",0,IF(B74=0,0,INDEX('RC'!BM$48:BM$179,MATCH(A74,'RC'!BI$48:BI$179,0)))) -> 0 | F74: 0 | G74: =IF(ISERROR(INDEX('RC'!BP$48:BP$179,MATCH(A74,'RC'!BI$48:BI$179,0))),0,(INDEX('RC'!BP$48:BP$179,MATCH(A74,'RC'!BI$48:BI$179,0)))) -> 0 | H74: =IF(B74="",0,IF(B74=0,0,INDEX('RC'!BQ$48:BQ$179,MATCH(A74,'RC'!BI$48:BI$179,0)))) -> 0 | I74: =IF(B74="",0,IF(B74=0,0,INDEX('RC'!BR$48:BR$179,MATCH(A74,'RC'!BI$48:BI$179,0)))) -> 0 | J74: =IF(B74="",0,IF(B74=0,0,INDEX('RC'!BS$48:BS$179,MATCH(A74,'RC'!BI$48:BI$179,0)))) -> 0 | K74: 0 | L74: 0 | M74: 0 | N74: 0 | O74: 0 | P74: 0 | Q74: =IF(ISERROR(INDEX('RC'!DG$48:DG$179,MATCH(A74,'RC'!BI$48:BI$179,0))),0,(INDEX('RC'!DG$48:DG$179,MATCH(A74,'RC'!BI$48:BI$179,0)))) -> 0 | R74: =IF(ISERROR(INDEX('RC'!DH$48:DH$179,MATCH(A74,'RC'!BI$48:BI$179,0))),0,(INDEX('RC'!DH$48:DH$179,MATCH(A74,'RC'!BI$48:BI$179,0)))) -> 0 | S74: 0 | T74: =IF(Entry!B$28="Y",0,IF(ISERROR(INDEX('RC'!CV$48:CV$179,MATCH(A74,'RC'!BI$48:BI$179,0))),0,(INDEX('RC'!CV$48:CV$179,MATCH(A74,'RC'!BI$48:BI$179,0))))) -> 0 | U74: =IF(Entry!B$28="Y",0,IF(ISERROR(INDEX('RC'!CW$48:CW$179,MATCH(A74,'RC'!BI$48:BI$179,0))),0,(INDEX('RC'!CW$48:CW$179,MATCH(A74,'RC'!BI$48:BI$179,0))))) -> 0 | V74: 0 | W74: =IF(ISERROR(INDEX('RC'!CY$48:CY$179,MATCH(A74,'RC'!BI$48:BI$179,0))),0,(INDEX('RC'!CY$48:CY$179,MATCH(A74,'RC'!BI$48:BI$179,0)))) -> 0 | X74: =IF(ISERROR(INDEX('RC'!CZ$48:CZ$179,MATCH(A74,'RC'!BI$48:BI$179,0))),0,(INDEX('RC'!CZ$48:CZ$179,MATCH(A74,'RC'!BI$48:BI$179,0)))) -> 0 | Y74: 0 | Z74: =IF(A74>='RC'!BM$29,0,IF(ISERROR(INDEX('RC'!CF$48:CF$179,MATCH(A74,'RC'!BI$48:BI$179,0))),0,(INDEX('RC'!CF$48:CF$179,MATCH(A74,'RC'!BI$48:BI$179,0))))) -> 0 | AA74: 0 | AB74: 0 | AJ74: 0 | AK74: 0
A75: 2020-10-01 | B75: =IF(ISERROR(INDEX('RC'!BJ$48:BJ$179,MATCH(A75,'RC'!BI$48:BI$179,0))),0,(INDEX('RC'!BJ$48:BJ$179,MATCH(A75,'RC'!BI$48:BI$179,0)))) -> 0 | C75: =IF(B75="",0,IF(B75=0,0,INDEX('RC'!BK$48:BK$179,MATCH(A75,'RC'!BI$48:BI$179,0)))) -> 0 | D75: =IF(B75="",0,IF(B75=0,0,INDEX('RC'!BL$48:BL$179,MATCH(A75,'RC'!BI$48:BI$179,0)))) -> 0 | E75: =IF(B75="",0,IF(B75=0,0,INDEX('RC'!BM$48:BM$179,MATCH(A75,'RC'!BI$48:BI$179,0)))) -> 0 | F75: 0 | G75: =IF(ISERROR(INDEX('RC'!BP$48:BP$179,MATCH(A75,'RC'!BI$48:BI$179,0))),0,(INDEX('RC'!BP$48:BP$179,MATCH(A75,'RC'!BI$48:BI$179,0)))) -> 0 | H75: =IF(B75="",0,IF(B75=0,0,INDEX('RC'!BQ$48:BQ$179,MATCH(A75,'RC'!BI$48:BI$179,0)))) -> 0 | I75: =IF(B75="",0,IF(B75=0,0,INDEX('RC'!BR$48:BR$179,MATCH(A75,'RC'!BI$48:BI$179,0)))) -> 0 | J75: =IF(B75="",0,IF(B75=0,0,INDEX('RC'!BS$48:BS$179,MATCH(A75,'RC'!BI$48:BI$179,0)))) -> 0 | K75: 0 | L75: 0 | M75: 0 | N75: 0 | O75: 0 | P75: 0 | Q75: =IF(ISERROR(INDEX('RC'!DG$48:DG$179,MATCH(A75,'RC'!BI$48:BI$179,0))),0,(INDEX('RC'!DG$48:DG$179,MATCH(A75,'RC'!BI$48:BI$179,0)))) -> 0 | R75: =IF(ISERROR(INDEX('RC'!DH$48:DH$179,MATCH(A75,'RC'!BI$48:BI$179,0))),0,(INDEX('RC'!DH$48:DH$179,MATCH(A75,'RC'!BI$48:BI$179,0)))) -> 0 | S75: 0 | T75: =IF(Entry!B$28="Y",0,IF(ISERROR(INDEX('RC'!CV$48:CV$179,MATCH(A75,'RC'!BI$48:BI$179,0))),0,(INDEX('RC'!CV$48:CV$179,MATCH(A75,'RC'!BI$48:BI$179,0))))) -> 0 | U75: =IF(Entry!B$28="Y",0,IF(ISERROR(INDEX('RC'!CW$48:CW$179,MATCH(A75,'RC'!BI$48:BI$179,0))),0,(INDEX('RC'!CW$48:CW$179,MATCH(A75,'RC'!BI$48:BI$179,0))))) -> 0 | V75: 0 | W75: =IF(ISERROR(INDEX('RC'!CY$48:CY$179,MATCH(A75,'RC'!BI$48:BI$179,0))),0,(INDEX('RC'!CY$48:CY$179,MATCH(A75,'RC'!BI$48:BI$179,0)))) -> 0 | X75: =IF(ISERROR(INDEX('RC'!CZ$48:CZ$179,MATCH(A75,'RC'!BI$48:BI$179,0))),0,(INDEX('RC'!CZ$48:CZ$179,MATCH(A75,'RC'!BI$48:BI$179,0)))) -> 0 | Y75: 0 | Z75: =IF(A75>='RC'!BM$29,0,IF(ISERROR(INDEX('RC'!CF$48:CF$179,MATCH(A75,'RC'!BI$48:BI$179,0))),0,(INDEX('RC'!CF$48:CF$179,MATCH(A75,'RC'!BI$48:BI$179,0))))) -> 0 | AA75: 0 | AB75: 0 | AJ75: 0 | AK75: 0
A76: 2020-11-01 | B76: =IF(ISERROR(INDEX('RC'!BJ$48:BJ$179,MATCH(A76,'RC'!BI$48:BI$179,0))),0,(INDEX('RC'!BJ$48:BJ$179,MATCH(A76,'RC'!BI$48:BI$179,0)))) -> 0 | C76: =IF(B76="",0,IF(B76=0,0,INDEX('RC'!BK$48:BK$179,MATCH(A76,'RC'!BI$48:BI$179,0)))) -> 0 | D76: =IF(B76="",0,IF(B76=0,0,INDEX('RC'!BL$48:BL$179,MATCH(A76,'RC'!BI$48:BI$179,0)))) -> 0 | E76: =IF(B76="",0,IF(B76=0,0,INDEX('RC'!BM$48:BM$179,MATCH(A76,'RC'!BI$48:BI$179,0)))) -> 0 | F76: 0 | G76: =IF(ISERROR(INDEX('RC'!BP$48:BP$179,MATCH(A76,'RC'!BI$48:BI$179,0))),0,(INDEX('RC'!BP$48:BP$179,MATCH(A76,'RC'!BI$48:BI$179,0)))) -> 0 | H76: =IF(B76="",0,IF(B76=0,0,INDEX('RC'!BQ$48:BQ$179,MATCH(A76,'RC'!BI$48:BI$179,0)))) -> 0 | I76: =IF(B76="",0,IF(B76=0,0,INDEX('RC'!BR$48:BR$179,MATCH(A76,'RC'!BI$48:BI$179,0)))) -> 0 | J76: =IF(B76="",0,IF(B76=0,0,INDEX('RC'!BS$48:BS$179,MATCH(A76,'RC'!BI$48:BI$179,0)))) -> 0 | K76: 0 | L76: 0 | M76: 0 | N76: 0 | O76: 0 | P76: 0 | Q76: =IF(ISERROR(INDEX('RC'!DG$48:DG$179,MATCH(A76,'RC'!BI$48:BI$179,0))),0,(INDEX('RC'!DG$48:DG$179,MATCH(A76,'RC'!BI$48:BI$179,0)))) -> 0 | R76: =IF(ISERROR(INDEX('RC'!DH$48:DH$179,MATCH(A76,'RC'!BI$48:BI$179,0))),0,(INDEX('RC'!DH$48:DH$179,MATCH(A76,'RC'!BI$48:BI$179,0)))) -> 0 | S76: 0 | T76: =IF(Entry!B$28="Y",0,IF(ISERROR(INDEX('RC'!CV$48:CV$179,MATCH(A76,'RC'!BI$48:BI$179,0))),0,(INDEX('RC'!CV$48:CV$179,MATCH(A76,'RC'!BI$48:BI$179,0))))) -> 0 | U76: =IF(Entry!B$28="Y",0,IF(ISERROR(INDEX('RC'!CW$48:CW$179,MATCH(A76,'RC'!BI$48:BI$179,0))),0,(INDEX('RC'!CW$48:CW$179,MATCH(A76,'RC'!BI$48:BI$179,0))))) -> 0 | V76: 0 | W76: =IF(ISERROR(INDEX('RC'!CY$48:CY$179,MATCH(A76,'RC'!BI$48:BI$179,0))),0,(INDEX('RC'!CY$48:CY$179,MATCH(A76,'RC'!BI$48:BI$179,0)))) -> 0 | X76: =IF(ISERROR(INDEX('RC'!CZ$48:CZ$179,MATCH(A76,'RC'!BI$48:BI$179,0))),0,(INDEX('RC'!CZ$48:CZ$179,MATCH(A76,'RC'!BI$48:BI$179,0)))) -> 0 | Y76: 0 | Z76: =IF(A76>='RC'!BM$29,0,IF(ISERROR(INDEX('RC'!CF$48:CF$179,MATCH(A76,'RC'!BI$48:BI$179,0))),0,(INDEX('RC'!CF$48:CF$179,MATCH(A76,'RC'!BI$48:BI$179,0))))) -> 0 | AA76: 0 | AB76: 0 | AJ76: 0 | AK76: 0
A77: 2020-12-01 | B77: =IF(ISERROR(INDEX('RC'!BJ$48:BJ$179,MATCH(A77,'RC'!BI$48:BI$179,0))),0,(INDEX('RC'!BJ$48:BJ$179,MATCH(A77,'RC'!BI$48:BI$179,0)))) -> 0 | C77: =IF(B77="",0,IF(B77=0,0,INDEX('RC'!BK$48:BK$179,MATCH(A77,'RC'!BI$48:BI$179,0)))) -> 0 | D77: =IF(B77="",0,IF(B77=0,0,INDEX('RC'!BL$48:BL$179,MATCH(A77,'RC'!BI$48:BI$179,0)))) -> 0 | E77: =IF(B77="",0,IF(B77=0,0,INDEX('RC'!BM$48:BM$179,MATCH(A77,'RC'!BI$48:BI$179,0)))) -> 0 | F77: 0 | G77: =IF(ISERROR(INDEX('RC'!BP$48:BP$179,MATCH(A77,'RC'!BI$48:BI$179,0))),0,(INDEX('RC'!BP$48:BP$179,MATCH(A77,'RC'!BI$48:BI$179,0)))) -> 0 | H77: =IF(B77="",0,IF(B77=0,0,INDEX('RC'!BQ$48:BQ$179,MATCH(A77,'RC'!BI$48:BI$179,0)))) -> 0 | I77: =IF(B77="",0,IF(B77=0,0,INDEX('RC'!BR$48:BR$179,MATCH(A77,'RC'!BI$48:BI$179,0)))) -> 0 | J77: =IF(B77="",0,IF(B77=0,0,INDEX('RC'!BS$48:BS$179,MATCH(A77,'RC'!BI$48:BI$179,0)))) -> 0 | K77: 0 | L77: 0 | M77: 0 | N77: 0 | O77: 0 | P77: 0 | Q77: =IF(ISERROR(INDEX('RC'!DG$48:DG$179,MATCH(A77,'RC'!BI$48:BI$179,0))),0,(INDEX('RC'!DG$48:DG$179,MATCH(A77,'RC'!BI$48:BI$179,0)))) -> 0 | R77: =IF(ISERROR(INDEX('RC'!DH$48:DH$179,MATCH(A77,'RC'!BI$48:BI$179,0))),0,(INDEX('RC'!DH$48:DH$179,MATCH(A77,'RC'!BI$48:BI$179,0)))) -> 0 | S77: =Q77-R77 -> 0 | T77: =IF(Entry!B$28="Y",0,IF(ISERROR(INDEX('RC'!CV$48:CV$179,MATCH(A77,'RC'!BI$48:BI$179,0))),0,(INDEX('RC'!CV$48:CV$179,MATCH(A77,'RC'!BI$48:BI$179,0))))) -> 0 | U77: =IF(Entry!B$28="Y",0,IF(ISERROR(INDEX('RC'!CW$48:CW$179,MATCH(A77,'RC'!BI$48:BI$179,0))),0,(INDEX('RC'!CW$48:CW$179,MATCH(A77,'RC'!BI$48:BI$179,0))))) -> 0 | V77: =T77-U77 -> 0 | W77: =IF(ISERROR(INDEX('RC'!CY$48:CY$179,MATCH(A77,'RC'!BI$48:BI$179,0))),0,(INDEX('RC'!CY$48:CY$179,MATCH(A77,'RC'!BI$48:BI$179,0)))) -> 0 | X77: =IF(ISERROR(INDEX('RC'!CZ$48:CZ$179,MATCH(A77,'RC'!BI$48:BI$179,0))),0,(INDEX('RC'!CZ$48:CZ$179,MATCH(A77,'RC'!BI$48:BI$179,0)))) -> 0 | Y77: =W77-X77 -> 0 | Z77: =IF(A77>='RC'!BM$29,0,IF(ISERROR(INDEX('RC'!CF$48:CF$179,MATCH(A77,'RC'!BI$48:BI$179,0))),0,(INDEX('RC'!CF$48:CF$179,MATCH(A77,'RC'!BI$48:BI$179,0))))) -> 0 | AA77: 0 | AB77: 0 | AJ77: 0 | AK77: 0
A78: 2021-01-01 | B78: =IF(ISERROR(INDEX('RC'!BJ$48:BJ$179,MATCH(A78,'RC'!BI$48:BI$179,0))),0,(INDEX('RC'!BJ$48:BJ$179,MATCH(A78,'RC'!BI$48:BI$179,0)))) -> 0 | C78: =IF(B78="",0,IF(B78=0,0,INDEX('RC'!BK$48:BK$179,MATCH(A78,'RC'!BI$48:BI$179,0)))) -> 0 | D78: =IF(B78="",0,IF(B78=0,0,INDEX('RC'!BL$48:BL$179,MATCH(A78,'RC'!BI$48:BI$179,0)))) -> 0 | E78: =IF(B78="",0,IF(B78=0,0,INDEX('RC'!BM$48:BM$179,MATCH(A78,'RC'!BI$48:BI$179,0)))) -> 0 | F78: 0 | G78: =IF(ISERROR(INDEX('RC'!BP$48:BP$179,MATCH(A78,'RC'!BI$48:BI$179,0))),0,(INDEX('RC'!BP$48:BP$179,MATCH(A78,'RC'!BI$48:BI$179,0)))) -> 0 | H78: =IF(B78="",0,IF(B78=0,0,INDEX('RC'!BQ$48:BQ$179,MATCH(A78,'RC'!BI$48:BI$179,0)))) -> 0 | I78: =IF(B78="",0,IF(B78=0,0,INDEX('RC'!BR$48:BR$179,MATCH(A78,'RC'!BI$48:BI$179,0)))) -> 0 | J78: =IF(B78="",0,IF(B78=0,0,INDEX('RC'!BS$48:BS$179,MATCH(A78,'RC'!BI$48:BI$179,0)))) -> 0 | K78: 0 | L78: 0 | M78: 0 | N78: 0 | O78: 0 | P78: 0 | Q78: =IF(ISERROR(INDEX('RC'!DG$48:DG$179,MATCH(A78,'RC'!BI$48:BI$179,0))),0,(INDEX('RC'!DG$48:DG$179,MATCH(A78,'RC'!BI$48:BI$179,0)))) -> 0 | R78: =IF(ISERROR(INDEX('RC'!DH$48:DH$179,MATCH(A78,'RC'!BI$48:BI$179,0))),0,(INDEX('RC'!DH$48:DH$179,MATCH(A78,'RC'!BI$48:BI$179,0)))) -> 0 | S78: 0 | T78: =IF(Entry!B$28="Y",0,IF(ISERROR(INDEX('RC'!CV$48:CV$179,MATCH(A78,'RC'!BI$48:BI$179,0))),0,(INDEX('RC'!CV$48:CV$179,MATCH(A78,'RC'!BI$48:BI$179,0))))) -> 0 | U78: =IF(Entry!B$28="Y",0,IF(ISERROR(INDEX('RC'!CW$48:CW$179,MATCH(A78,'RC'!BI$48:BI$179,0))),0,(INDEX('RC'!CW$48:CW$179,MATCH(A78,'RC'!BI$48:BI$179,0))))) -> 0 | V78: 0 | W78: =IF(ISERROR(INDEX('RC'!CY$48:CY$179,MATCH(A78,'RC'!BI$48:BI$179,0))),0,(INDEX('RC'!CY$48:CY$179,MATCH(A78,'RC'!BI$48:BI$179,0)))) -> 0 | X78: =IF(ISERROR(INDEX('RC'!CZ$48:CZ$179,MATCH(A78,'RC'!BI$48:BI$179,0))),0,(INDEX('RC'!CZ$48:CZ$179,MATCH(A78,'RC'!BI$48:BI$179,0)))) -> 0 | Y78: 0 | Z78: =IF(A78>='RC'!BM$29,0,IF(ISERROR(INDEX('RC'!CF$48:CF$179,MATCH(A78,'RC'!BI$48:BI$179,0))),0,(INDEX('RC'!CF$48:CF$179,MATCH(A78,'RC'!BI$48:BI$179,0))))) -> 0 | AA78: 0 | AB78: 0 | AJ78: 0 | AK78: 0
A79: 2021-02-01 | B79: =IF(ISERROR(INDEX('RC'!BJ$48:BJ$179,MATCH(A79,'RC'!BI$48:BI$179,0))),0,(INDEX('RC'!BJ$48:BJ$179,MATCH(A79,'RC'!BI$48:BI$179,0)))) -> 0 | C79: =IF(B79="",0,IF(B79=0,0,INDEX('RC'!BK$48:BK$179,MATCH(A79,'RC'!BI$48:BI$179,0)))) -> 0 | D79: =IF(B79="",0,IF(B79=0,0,INDEX('RC'!BL$48:BL$179,MATCH(A79,'RC'!BI$48:BI$179,0)))) -> 0 | E79: =IF(B79="",0,IF(B79=0,0,INDEX('RC'!BM$48:BM$179,MATCH(A79,'RC'!BI$48:BI$179,0)))) -> 0 | F79: 0 | G79: =IF(ISERROR(INDEX('RC'!BP$48:BP$179,MATCH(A79,'RC'!BI$48:BI$179,0))),0,(INDEX('RC'!BP$48:BP$179,MATCH(A79,'RC'!BI$48:BI$179,0)))) -> 0 | H79: =IF(B79="",0,IF(B79=0,0,INDEX('RC'!BQ$48:BQ$179,MATCH(A79,'RC'!BI$48:BI$179,0)))) -> 0 | I79: =IF(B79="",0,IF(B79=0,0,INDEX('RC'!BR$48:BR$179,MATCH(A79,'RC'!BI$48:BI$179,0)))) -> 0 | J79: =IF(B79="",0,IF(B79=0,0,INDEX('RC'!BS$48:BS$179,MATCH(A79,'RC'!BI$48:BI$179,0)))) -> 0 | K79: 0 | L79: 0 | M79: 0 | N79: 0 | O79: 0 | P79: 0 | Q79: =IF(ISERROR(INDEX('RC'!DG$48:DG$179,MATCH(A79,'RC'!BI$48:BI$179,0))),0,(INDEX('RC'!DG$48:DG$179,MATCH(A79,'RC'!BI$48:BI$179,0)))) -> 0 | R79: =IF(ISERROR(INDEX('RC'!DH$48:DH$179,MATCH(A79,'RC'!BI$48:BI$179,0))),0,(INDEX('RC'!DH$48:DH$179,MATCH(A79,'RC'!BI$48:BI$179,0)))) -> 0 | S79: 0 | T79: =IF(Entry!B$28="Y",0,IF(ISERROR(INDEX('RC'!CV$48:CV$179,MATCH(A79,'RC'!BI$48:BI$179,0))),0,(INDEX('RC'!CV$48:CV$179,MATCH(A79,'RC'!BI$48:BI$179,0))))) -> 0 | U79: =IF(Entry!B$28="Y",0,IF(ISERROR(INDEX('RC'!CW$48:CW$179,MATCH(A79,'RC'!BI$48:BI$179,0))),0,(INDEX('RC'!CW$48:CW$179,MATCH(A79,'RC'!BI$48:BI$179,0))))) -> 0 | V79: 0 | W79: =IF(ISERROR(INDEX('RC'!CY$48:CY$179,MATCH(A79,'RC'!BI$48:BI$179,0))),0,(INDEX('RC'!CY$48:CY$179,MATCH(A79,'RC'!BI$48:BI$179,0)))) -> 0 | X79: =IF(ISERROR(INDEX('RC'!CZ$48:CZ$179,MATCH(A79,'RC'!BI$48:BI$179,0))),0,(INDEX('RC'!CZ$48:CZ$179,MATCH(A79,'RC'!BI$48:BI$179,0)))) -> 0 | Y79: 0 | Z79: =IF(A79>='RC'!BM$29,0,IF(ISERROR(INDEX('RC'!CF$48:CF$179,MATCH(A79,'RC'!BI$48:BI$179,0))),0,(INDEX('RC'!CF$48:CF$179,MATCH(A79,'RC'!BI$48:BI$179,0))))) -> 0 | AA79: 0 | AB79: 0 | AJ79: 0 | AK79: 0
A80: 2021-03-01 | B80: =IF(ISERROR(INDEX('RC'!BJ$48:BJ$179,MATCH(A80,'RC'!BI$48:BI$179,0))),0,(INDEX('RC'!BJ$48:BJ$179,MATCH(A80,'RC'!BI$48:BI$179,0)))) -> 0 | C80: =IF(B80="",0,IF(B80=0,0,INDEX('RC'!BK$48:BK$179,MATCH(A80,'RC'!BI$48:BI$179,0)))) -> 0 | D80: =IF(B80="",0,IF(B80=0,0,INDEX('RC'!BL$48:BL$179,MATCH(A80,'RC'!BI$48:BI$179,0)))) -> 0 | E80: =IF(B80="",0,IF(B80=0,0,INDEX('RC'!BM$48:BM$179,MATCH(A80,'RC'!BI$48:BI$179,0)))) -> 0 | F80: 0 | G80: =IF(ISERROR(INDEX('RC'!BP$48:BP$179,MATCH(A80,'RC'!BI$48:BI$179,0))),0,(INDEX('RC'!BP$48:BP$179,MATCH(A80,'RC'!BI$48:BI$179,0)))) -> 0 | H80: =IF(B80="",0,IF(B80=0,0,INDEX('RC'!BQ$48:BQ$179,MATCH(A80,'RC'!BI$48:BI$179,0)))) -> 0 | I80: =IF(B80="",0,IF(B80=0,0,INDEX('RC'!BR$48:BR$179,MATCH(A80,'RC'!BI$48:BI$179,0)))) -> 0 | J80: =IF(B80="",0,IF(B80=0,0,INDEX('RC'!BS$48:BS$179,MATCH(A80,'RC'!BI$48:BI$179,0)))) -> 0 | K80: 0 | L80: 0 | M80: 0 | N80: 0 | O80: 0 | P80: 0 | Q80: =IF(ISERROR(INDEX('RC'!DG$48:DG$179,MATCH(A80,'RC'!BI$48:BI$179,0))),0,(INDEX('RC'!DG$48:DG$179,MATCH(A80,'RC'!BI$48:BI$179,0)))) -> 0 | R80: =IF(ISERROR(INDEX('RC'!DH$48:DH$179,MATCH(A80,'RC'!BI$48:BI$179,0))),0,(INDEX('RC'!DH$48:DH$179,MATCH(A80,'RC'!BI$48:BI$179,0)))) -> 0 | S80: 0 | T80: =IF(Entry!B$28="Y",0,IF(ISERROR(INDEX('RC'!CV$48:CV$179,MATCH(A80,'RC'!BI$48:BI$179,0))),0,(INDEX('RC'!CV$48:CV$179,MATCH(A80,'RC'!BI$48:BI$179,0))))) -> 0 | U80: =IF(Entry!B$28="Y",0,IF(ISERROR(INDEX('RC'!CW$48:CW$179,MATCH(A80,'RC'!BI$48:BI$179,0))),0,(INDEX('RC'!CW$48:CW$179,MATCH(A80,'RC'!BI$48:BI$179,0))))) -> 0 | V80: 0 | W80: =IF(ISERROR(INDEX('RC'!CY$48:CY$179,MATCH(A80,'RC'!BI$48:BI$179,0))),0,(INDEX('RC'!CY$48:CY$179,MATCH(A80,'RC'!BI$48:BI$179,0)))) -> 0 | X80: =IF(ISERROR(INDEX('RC'!CZ$48:CZ$179,MATCH(A80,'RC'!BI$48:BI$179,0))),0,(INDEX('RC'!CZ$48:CZ$179,MATCH(A80,'RC'!BI$48:BI$179,0)))) -> 0 | Y80: 0 | Z80: =IF(A80>='RC'!BM$29,0,IF(ISERROR(INDEX('RC'!CF$48:CF$179,MATCH(A80,'RC'!BI$48:BI$179,0))),0,(INDEX('RC'!CF$48:CF$179,MATCH(A80,'RC'!BI$48:BI$179,0))))) -> 0 | AA80: 0 | AB80: 0 | AJ80: 0 | AK80: 0
A81: 2021-04-01 | B81: =IF(ISERROR(INDEX('RC'!BJ$48:BJ$179,MATCH(A81,'RC'!BI$48:BI$179,0))),0,(INDEX('RC'!BJ$48:BJ$179,MATCH(A81,'RC'!BI$48:BI$179,0)))) -> 0 | C81: =IF(B81="",0,IF(B81=0,0,INDEX('RC'!BK$48:BK$179,MATCH(A81,'RC'!BI$48:BI$179,0)))) -> 0 | D81: =IF(B81="",0,IF(B81=0,0,INDEX('RC'!BL$48:BL$179,MATCH(A81,'RC'!BI$48:BI$179,0)))) -> 0 | E81: =IF(B81="",0,IF(B81=0,0,INDEX('RC'!BM$48:BM$179,MATCH(A81,'RC'!BI$48:BI$179,0)))) -> 0 | F81: 0 | G81: =IF(ISERROR(INDEX('RC'!BP$48:BP$179,MATCH(A81,'RC'!BI$48:BI$179,0))),0,(INDEX('RC'!BP$48:BP$179,MATCH(A81,'RC'!BI$48:BI$179,0)))) -> 0 | H81: =IF(B81="",0,IF(B81=0,0,INDEX('RC'!BQ$48:BQ$179,MATCH(A81,'RC'!BI$48:BI$179,0)))) -> 0 | I81: =IF(B81="",0,IF(B81=0,0,INDEX('RC'!BR$48:BR$179,MATCH(A81,'RC'!BI$48:BI$179,0)))) -> 0 | J81: =IF(B81="",0,IF(B81=0,0,INDEX('RC'!BS$48:BS$179,MATCH(A81,'RC'!BI$48:BI$179,0)))) -> 0 | K81: 0 | L81: 0 | M81: 0 | N81: 0 | O81: 0 | P81: 0 | Q81: =IF(ISERROR(INDEX('RC'!DG$48:DG$179,MATCH(A81,'RC'!BI$48:BI$179,0))),0,(INDEX('RC'!DG$48:DG$179,MATCH(A81,'RC'!BI$48:BI$179,0)))) -> 0 | R81: =IF(ISERROR(INDEX('RC'!DH$48:DH$179,MATCH(A81,'RC'!BI$48:BI$179,0))),0,(INDEX('RC'!DH$48:DH$179,MATCH(A81,'RC'!BI$48:BI$179,0)))) -> 0 | S81: 0 | T81: =IF(Entry!B$28="Y",0,IF(ISERROR(INDEX('RC'!CV$48:CV$179,MATCH(A81,'RC'!BI$48:BI$179,0))),0,(INDEX('RC'!CV$48:CV$179,MATCH(A81,'RC'!BI$48:BI$179,0))))) -> 0 | U81: =IF(Entry!B$28="Y",0,IF(ISERROR(INDEX('RC'!CW$48:CW$179,MATCH(A81,'RC'!BI$48:BI$179,0))),0,(INDEX('RC'!CW$48:CW$179,MATCH(A81,'RC'!BI$48:BI$179,0))))) -> 0 | V81: 0 | W81: =IF(ISERROR(INDEX('RC'!CY$48:CY$179,MATCH(A81,'RC'!BI$48:BI$179,0))),0,(INDEX('RC'!CY$48:CY$179,MATCH(A81,'RC'!BI$48:BI$179,0)))) -> 0 | X81: =IF(ISERROR(INDEX('RC'!CZ$48:CZ$179,MATCH(A81,'RC'!BI$48:BI$179,0))),0,(INDEX('RC'!CZ$48:CZ$179,MATCH(A81,'RC'!BI$48:BI$179,0)))) -> 0 | Y81: 0 | Z81: =IF(A81>='RC'!BM$29,0,IF(ISERROR(INDEX('RC'!CF$48:CF$179,MATCH(A81,'RC'!BI$48:BI$179,0))),0,(INDEX('RC'!CF$48:CF$179,MATCH(A81,'RC'!BI$48:BI$179,0))))) -> 0 | AA81: 0 | AB81: 0 | AJ81: 0 | AK81: 0
A82: 2021-05-01 | B82: =IF(ISERROR(INDEX('RC'!BJ$48:BJ$179,MATCH(A82,'RC'!BI$48:BI$179,0))),0,(INDEX('RC'!BJ$48:BJ$179,MATCH(A82,'RC'!BI$48:BI$179,0)))) -> 0 | C82: =IF(B82="",0,IF(B82=0,0,INDEX('RC'!BK$48:BK$179,MATCH(A82,'RC'!BI$48:BI$179,0)))) -> 0 | D82: =IF(B82="",0,IF(B82=0,0,INDEX('RC'!BL$48:BL$179,MATCH(A82,'RC'!BI$48:BI$179,0)))) -> 0 | E82: =IF(B82="",0,IF(B82=0,0,INDEX('RC'!BM$48:BM$179,MATCH(A82,'RC'!BI$48:BI$179,0)))) -> 0 | F82: 0 | G82: =IF(ISERROR(INDEX('RC'!BP$48:BP$179,MATCH(A82,'RC'!BI$48:BI$179,0))),0,(INDEX('RC'!BP$48:BP$179,MATCH(A82,'RC'!BI$48:BI$179,0)))) -> 0 | H82: =IF(B82="",0,IF(B82=0,0,INDEX('RC'!BQ$48:BQ$179,MATCH(A82,'RC'!BI$48:BI$179,0)))) -> 0 | I82: =IF(B82="",0,IF(B82=0,0,INDEX('RC'!BR$48:BR$179,MATCH(A82,'RC'!BI$48:BI$179,0)))) -> 0 | J82: =IF(B82="",0,IF(B82=0,0,INDEX('RC'!BS$48:BS$179,MATCH(A82,'RC'!BI$48:BI$179,0)))) -> 0 | K82: 0 | L82: 0 | M82: 0 | N82: 0 | O82: 0 | P82: 0 | Q82: =IF(ISERROR(INDEX('RC'!DG$48:DG$179,MATCH(A82,'RC'!BI$48:BI$179,0))),0,(INDEX('RC'!DG$48:DG$179,MATCH(A82,'RC'!BI$48:BI$179,0)))) -> 0 | R82: =IF(ISERROR(INDEX('RC'!DH$48:DH$179,MATCH(A82,'RC'!BI$48:BI$179,0))),0,(INDEX('RC'!DH$48:DH$179,MATCH(A82,'RC'!BI$48:BI$179,0)))) -> 0 | S82: 0 | T82: =IF(Entry!B$28="Y",0,IF(ISERROR(INDEX('RC'!CV$48:CV$179,MATCH(A82,'RC'!BI$48:BI$179,0))),0,(INDEX('RC'!CV$48:CV$179,MATCH(A82,'RC'!BI$48:BI$179,0))))) -> 0 | U82: =IF(Entry!B$28="Y",0,IF(ISERROR(INDEX('RC'!CW$48:CW$179,MATCH(A82,'RC'!BI$48:BI$179,0))),0,(INDEX('RC'!CW$48:CW$179,MATCH(A82,'RC'!BI$48:BI$179,0))))) -> 0 | V82: 0 | W82: =IF(ISERROR(INDEX('RC'!CY$48:CY$179,MATCH(A82,'RC'!BI$48:BI$179,0))),0,(INDEX('RC'!CY$48:CY$179,MATCH(A82,'RC'!BI$48:BI$179,0)))) -> 0 | X82: =IF(ISERROR(INDEX('RC'!CZ$48:CZ$179,MATCH(A82,'RC'!BI$48:BI$179,0))),0,(INDEX('RC'!CZ$48:CZ$179,MATCH(A82,'RC'!BI$48:BI$179,0)))) -> 0 | Y82: 0 | Z82: =IF(A82>='RC'!BM$29,0,IF(ISERROR(INDEX('RC'!CF$48:CF$179,MATCH(A82,'RC'!BI$48:BI$179,0))),0,(INDEX('RC'!CF$48:CF$179,MATCH(A82,'RC'!BI$48:BI$179,0))))) -> 0 | AA82: 0 | AB82: 0 | AJ82: 0 | AK82: 0
A83: 2021-06-01 | B83: =IF(ISERROR(INDEX('RC'!BJ$48:BJ$179,MATCH(A83,'RC'!BI$48:BI$179,0))),0,(INDEX('RC'!BJ$48:BJ$179,MATCH(A83,'RC'!BI$48:BI$179,0)))) -> 0 | C83: =IF(B83="",0,IF(B83=0,0,INDEX('RC'!BK$48:BK$179,MATCH(A83,'RC'!BI$48:BI$179,0)))) -> 0 | D83: =IF(B83="",0,IF(B83=0,0,INDEX('RC'!BL$48:BL$179,MATCH(A83,'RC'!BI$48:BI$179,0)))) -> 0 | E83: =IF(B83="",0,IF(B83=0,0,INDEX('RC'!BM$48:BM$179,MATCH(A83,'RC'!BI$48:BI$179,0)))) -> 0 | F83: 0 | G83: =IF(ISERROR(INDEX('RC'!BP$48:BP$179,MATCH(A83,'RC'!BI$48:BI$179,0))),0,(INDEX('RC'!BP$48:BP$179,MATCH(A83,'RC'!BI$48:BI$179,0)))) -> 0 | H83: =IF(B83="",0,IF(B83=0,0,INDEX('RC'!BQ$48:BQ$179,MATCH(A83,'RC'!BI$48:BI$179,0)))) -> 0 | I83: =IF(B83="",0,IF(B83=0,0,INDEX('RC'!BR$48:BR$179,MATCH(A83,'RC'!BI$48:BI$179,0)))) -> 0 | J83: =IF(B83="",0,IF(B83=0,0,INDEX('RC'!BS$48:BS$179,MATCH(A83,'RC'!BI$48:BI$179,0)))) -> 0 | K83: 0 | L83: 0 | M83: 0 | N83: 0 | O83: 0 | P83: 0 | Q83: =IF(ISERROR(INDEX('RC'!DG$48:DG$179,MATCH(A83,'RC'!BI$48:BI$179,0))),0,(INDEX('RC'!DG$48:DG$179,MATCH(A83,'RC'!BI$48:BI$179,0)))) -> 0 | R83: =IF(ISERROR(INDEX('RC'!DH$48:DH$179,MATCH(A83,'RC'!BI$48:BI$179,0))),0,(INDEX('RC'!DH$48:DH$179,MATCH(A83,'RC'!BI$48:BI$179,0)))) -> 0 | S83: 0 | T83: =IF(Entry!B$28="Y",0,IF(ISERROR(INDEX('RC'!CV$48:CV$179,MATCH(A83,'RC'!BI$48:BI$179,0))),0,(INDEX('RC'!CV$48:CV$179,MATCH(A83,'RC'!BI$48:BI$179,0))))) -> 0 | U83: =IF(Entry!B$28="Y",0,IF(ISERROR(INDEX('RC'!CW$48:CW$179,MATCH(A83,'RC'!BI$48:BI$179,0))),0,(INDEX('RC'!CW$48:CW$179,MATCH(A83,'RC'!BI$48:BI$179,0))))) -> 0 | V83: 0 | W83: =IF(ISERROR(INDEX('RC'!CY$48:CY$179,MATCH(A83,'RC'!BI$48:BI$179,0))),0,(INDEX('RC'!CY$48:CY$179,MATCH(A83,'RC'!BI$48:BI$179,0)))) -> 0 | X83: =IF(ISERROR(INDEX('RC'!CZ$48:CZ$179,MATCH(A83,'RC'!BI$48:BI$179,0))),0,(INDEX('RC'!CZ$48:CZ$179,MATCH(A83,'RC'!BI$48:BI$179,0)))) -> 0 | Y83: 0 | Z83: =IF(A83>='RC'!BM$29,0,IF(ISERROR(INDEX('RC'!CF$48:CF$179,MATCH(A83,'RC'!BI$48:BI$179,0))),0,(INDEX('RC'!CF$48:CF$179,MATCH(A83,'RC'!BI$48:BI$179,0))))) -> 0 | AA83: 0 | AB83: 0 | AJ83: 0 | AK83: 0
A84: 2021-07-01 | B84: =IF(ISERROR(INDEX('RC'!BJ$48:BJ$179,MATCH(A84,'RC'!BI$48:BI$179,0))),0,(INDEX('RC'!BJ$48:BJ$179,MATCH(A84,'RC'!BI$48:BI$179,0)))) -> 0 | C84: =IF(B84="",0,IF(B84=0,0,INDEX('RC'!BK$48:BK$179,MATCH(A84,'RC'!BI$48:BI$179,0)))) -> 0 | D84: =IF(B84="",0,IF(B84=0,0,INDEX('RC'!BL$48:BL$179,MATCH(A84,'RC'!BI$48:BI$179,0)))) -> 0 | E84: =IF(B84="",0,IF(B84=0,0,INDEX('RC'!BM$48:BM$179,MATCH(A84,'RC'!BI$48:BI$179,0)))) -> 0 | F84: 0 | G84: =IF(ISERROR(INDEX('RC'!BP$48:BP$179,MATCH(A84,'RC'!BI$48:BI$179,0))),0,(INDEX('RC'!BP$48:BP$179,MATCH(A84,'RC'!BI$48:BI$179,0)))) -> 0 | H84: =IF(B84="",0,IF(B84=0,0,INDEX('RC'!BQ$48:BQ$179,MATCH(A84,'RC'!BI$48:BI$179,0)))) -> 0 | I84: =IF(B84="",0,IF(B84=0,0,INDEX('RC'!BR$48:BR$179,MATCH(A84,'RC'!BI$48:BI$179,0)))) -> 0 | J84: =IF(B84="",0,IF(B84=0,0,INDEX('RC'!BS$48:BS$179,MATCH(A84,'RC'!BI$48:BI$179,0)))) -> 0 | K84: 0 | L84: 0 | M84: 0 | N84: 0 | O84: 0 | P84: 0 | Q84: =IF(ISERROR(INDEX('RC'!DG$48:DG$179,MATCH(A84,'RC'!BI$48:BI$179,0))),0,(INDEX('RC'!DG$48:DG$179,MATCH(A84,'RC'!BI$48:BI$179,0)))) -> 0 | R84: =IF(ISERROR(INDEX('RC'!DH$48:DH$179,MATCH(A84,'RC'!BI$48:BI$179,0))),0,(INDEX('RC'!DH$48:DH$179,MATCH(A84,'RC'!BI$48:BI$179,0)))) -> 0 | S84: 0 | T84: =IF(Entry!B$28="Y",0,IF(ISERROR(INDEX('RC'!CV$48:CV$179,MATCH(A84,'RC'!BI$48:BI$179,0))),0,(INDEX('RC'!CV$48:CV$179,MATCH(A84,'RC'!BI$48:BI$179,0))))) -> 0 | U84: =IF(Entry!B$28="Y",0,IF(ISERROR(INDEX('RC'!CW$48:CW$179,MATCH(A84,'RC'!BI$48:BI$179,0))),0,(INDEX('RC'!CW$48:CW$179,MATCH(A84,'RC'!BI$48:BI$179,0))))) -> 0 | V84: 0 | W84: =IF(ISERROR(INDEX('RC'!CY$48:CY$179,MATCH(A84,'RC'!BI$48:BI$179,0))),0,(INDEX('RC'!CY$48:CY$179,MATCH(A84,'RC'!BI$48:BI$179,0)))) -> 0 | X84: =IF(ISERROR(INDEX('RC'!CZ$48:CZ$179,MATCH(A84,'RC'!BI$48:BI$179,0))),0,(INDEX('RC'!CZ$48:CZ$179,MATCH(A84,'RC'!BI$48:BI$179,0)))) -> 0 | Y84: 0 | Z84: =IF(A84>='RC'!BM$29,0,IF(ISERROR(INDEX('RC'!CF$48:CF$179,MATCH(A84,'RC'!BI$48:BI$179,0))),0,(INDEX('RC'!CF$48:CF$179,MATCH(A84,'RC'!BI$48:BI$179,0))))) -> 0 | AA84: 0 | AB84: 0 | AJ84: 0 | AK84: 0
A85: 2021-08-01 | B85: =IF(ISERROR(INDEX('RC'!BJ$48:BJ$179,MATCH(A85,'RC'!BI$48:BI$179,0))),0,(INDEX('RC'!BJ$48:BJ$179,MATCH(A85,'RC'!BI$48:BI$179,0)))) -> 0 | C85: =IF(B85="",0,IF(B85=0,0,INDEX('RC'!BK$48:BK$179,MATCH(A85,'RC'!BI$48:BI$179,0)))) -> 0 | D85: =IF(B85="",0,IF(B85=0,0,INDEX('RC'!BL$48:BL$179,MATCH(A85,'RC'!BI$48:BI$179,0)))) -> 0 | E85: =IF(B85="",0,IF(B85=0,0,INDEX('RC'!BM$48:BM$179,MATCH(A85,'RC'!BI$48:BI$179,0)))) -> 0 | F85: 0 | G85: =IF(ISERROR(INDEX('RC'!BP$48:BP$179,MATCH(A85,'RC'!BI$48:BI$179,0))),0,(INDEX('RC'!BP$48:BP$179,MATCH(A85,'RC'!BI$48:BI$179,0)))) -> 0 | H85: =IF(B85="",0,IF(B85=0,0,INDEX('RC'!BQ$48:BQ$179,MATCH(A85,'RC'!BI$48:BI$179,0)))) -> 0 | I85: =IF(B85="",0,IF(B85=0,0,INDEX('RC'!BR$48:BR$179,MATCH(A85,'RC'!BI$48:BI$179,0)))) -> 0 | J85: =IF(B85="",0,IF(B85=0,0,INDEX('RC'!BS$48:BS$179,MATCH(A85,'RC'!BI$48:BI$179,0)))) -> 0 | K85: 0 | L85: 0 | M85: 0 | N85: 0 | O85: 0 | P85: 0 | Q85: =IF(ISERROR(INDEX('RC'!DG$48:DG$179,MATCH(A85,'RC'!BI$48:BI$179,0))),0,(INDEX('RC'!DG$48:DG$179,MATCH(A85,'RC'!BI$48:BI$179,0)))) -> 0 | R85: =IF(ISERROR(INDEX('RC'!DH$48:DH$179,MATCH(A85,'RC'!BI$48:BI$179,0))),0,(INDEX('RC'!DH$48:DH$179,MATCH(A85,'RC'!BI$48:BI$179,0)))) -> 0 | S85: 0 | T85: =IF(Entry!B$28="Y",0,IF(ISERROR(INDEX('RC'!CV$48:CV$179,MATCH(A85,'RC'!BI$48:BI$179,0))),0,(INDEX('RC'!CV$48:CV$179,MATCH(A85,'RC'!BI$48:BI$179,0))))) -> 0 | U85: =IF(Entry!B$28="Y",0,IF(ISERROR(INDEX('RC'!CW$48:CW$179,MATCH(A85,'RC'!BI$48:BI$179,0))),0,(INDEX('RC'!CW$48:CW$179,MATCH(A85,'RC'!BI$48:BI$179,0))))) -> 0 | V85: 0 | W85: =IF(ISERROR(INDEX('RC'!CY$48:CY$179,MATCH(A85,'RC'!BI$48:BI$179,0))),0,(INDEX('RC'!CY$48:CY$179,MATCH(A85,'RC'!BI$48:BI$179,0)))) -> 0 | X85: =IF(ISERROR(INDEX('RC'!CZ$48:CZ$179,MATCH(A85,'RC'!BI$48:BI$179,0))),0,(INDEX('RC'!CZ$48:CZ$179,MATCH(A85,'RC'!BI$48:BI$179,0)))) -> 0 | Y85: 0 | Z85: =IF(A85>='RC'!BM$29,0,IF(ISERROR(INDEX('RC'!CF$48:CF$179,MATCH(A85,'RC'!BI$48:BI$179,0))),0,(INDEX('RC'!CF$48:CF$179,MATCH(A85,'RC'!BI$48:BI$179,0))))) -> 0 | AA85: 0 | AB85: 0 | AJ85: 0 | AK85: 0
A86: 2021-09-01 | B86: =IF(ISERROR(INDEX('RC'!BJ$48:BJ$179,MATCH(A86,'RC'!BI$48:BI$179,0))),0,(INDEX('RC'!BJ$48:BJ$179,MATCH(A86,'RC'!BI$48:BI$179,0)))) -> 0 | C86: =IF(B86="",0,IF(B86=0,0,INDEX('RC'!BK$48:BK$179,MATCH(A86,'RC'!BI$48:BI$179,0)))) -> 0 | D86: =IF(B86="",0,IF(B86=0,0,INDEX('RC'!BL$48:BL$179,MATCH(A86,'RC'!BI$48:BI$179,0)))) -> 0 | E86: =IF(B86="",0,IF(B86=0,0,INDEX('RC'!BM$48:BM$179,MATCH(A86,'RC'!BI$48:BI$179,0)))) -> 0 | F86: 0 | G86: =IF(ISERROR(INDEX('RC'!BP$48:BP$179,MATCH(A86,'RC'!BI$48:BI$179,0))),0,(INDEX('RC'!BP$48:BP$179,MATCH(A86,'RC'!BI$48:BI$179,0)))) -> 0 | H86: =IF(B86="",0,IF(B86=0,0,INDEX('RC'!BQ$48:BQ$179,MATCH(A86,'RC'!BI$48:BI$179,0)))) -> 0 | I86: =IF(B86="",0,IF(B86=0,0,INDEX('RC'!BR$48:BR$179,MATCH(A86,'RC'!BI$48:BI$179,0)))) -> 0 | J86: =IF(B86="",0,IF(B86=0,0,INDEX('RC'!BS$48:BS$179,MATCH(A86,'RC'!BI$48:BI$179,0)))) -> 0 | K86: 0 | L86: 0 | M86: 0 | N86: 0 | O86: 0 | P86: 0 | Q86: =IF(ISERROR(INDEX('RC'!DG$48:DG$179,MATCH(A86,'RC'!BI$48:BI$179,0))),0,(INDEX('RC'!DG$48:DG$179,MATCH(A86,'RC'!BI$48:BI$179,0)))) -> 0 | R86: =IF(ISERROR(INDEX('RC'!DH$48:DH$179,MATCH(A86,'RC'!BI$48:BI$179,0))),0,(INDEX('RC'!DH$48:DH$179,MATCH(A86,'RC'!BI$48:BI$179,0)))) -> 0 | S86: 0 | T86: =IF(Entry!B$28="Y",0,IF(ISERROR(INDEX('RC'!CV$48:CV$179,MATCH(A86,'RC'!BI$48:BI$179,0))),0,(INDEX('RC'!CV$48:CV$179,MATCH(A86,'RC'!BI$48:BI$179,0))))) -> 0 | U86: =IF(Entry!B$28="Y",0,IF(ISERROR(INDEX('RC'!CW$48:CW$179,MATCH(A86,'RC'!BI$48:BI$179,0))),0,(INDEX('RC'!CW$48:CW$179,MATCH(A86,'RC'!BI$48:BI$179,0))))) -> 0 | V86: 0 | W86: =IF(ISERROR(INDEX('RC'!CY$48:CY$179,MATCH(A86,'RC'!BI$48:BI$179,0))),0,(INDEX('RC'!CY$48:CY$179,MATCH(A86,'RC'!BI$48:BI$179,0)))) -> 0 | X86: =IF(ISERROR(INDEX('RC'!CZ$48:CZ$179,MATCH(A86,'RC'!BI$48:BI$179,0))),0,(INDEX('RC'!CZ$48:CZ$179,MATCH(A86,'RC'!BI$48:BI$179,0)))) -> 0 | Y86: 0 | Z86: =IF(A86>='RC'!BM$29,0,IF(ISERROR(INDEX('RC'!CF$48:CF$179,MATCH(A86,'RC'!BI$48:BI$179,0))),0,(INDEX('RC'!CF$48:CF$179,MATCH(A86,'RC'!BI$48:BI$179,0))))) -> 0 | AA86: 0 | AB86: 0 | AJ86: 0 | AK86: 0
A87: 2021-10-01 | B87: =IF(ISERROR(INDEX('RC'!BJ$48:BJ$179,MATCH(A87,'RC'!BI$48:BI$179,0))),0,(INDEX('RC'!BJ$48:BJ$179,MATCH(A87,'RC'!BI$48:BI$179,0)))) -> 0 | C87: =IF(B87="",0,IF(B87=0,0,INDEX('RC'!BK$48:BK$179,MATCH(A87,'RC'!BI$48:BI$179,0)))) -> 0 | D87: =IF(B87="",0,IF(B87=0,0,INDEX('RC'!BL$48:BL$179,MATCH(A87,'RC'!BI$48:BI$179,0)))) -> 0 | E87: =IF(B87="",0,IF(B87=0,0,INDEX('RC'!BM$48:BM$179,MATCH(A87,'RC'!BI$48:BI$179,0)))) -> 0 | F87: 0 | G87: =IF(ISERROR(INDEX('RC'!BP$48:BP$179,MATCH(A87,'RC'!BI$48:BI$179,0))),0,(INDEX('RC'!BP$48:BP$179,MATCH(A87,'RC'!BI$48:BI$179,0)))) -> 0 | H87: =IF(B87="",0,IF(B87=0,0,INDEX('RC'!BQ$48:BQ$179,MATCH(A87,'RC'!BI$48:BI$179,0)))) -> 0 | I87: =IF(B87="",0,IF(B87=0,0,INDEX('RC'!BR$48:BR$179,MATCH(A87,'RC'!BI$48:BI$179,0)))) -> 0 | J87: =IF(B87="",0,IF(B87=0,0,INDEX('RC'!BS$48:BS$179,MATCH(A87,'RC'!BI$48:BI$179,0)))) -> 0 | K87: 0 | L87: 0 | M87: 0 | N87: 0 | O87: 0 | P87: 0 | Q87: =IF(ISERROR(INDEX('RC'!DG$48:DG$179,MATCH(A87,'RC'!BI$48:BI$179,0))),0,(INDEX('RC'!DG$48:DG$179,MATCH(A87,'RC'!BI$48:BI$179,0)))) -> 0 | R87: =IF(ISERROR(INDEX('RC'!DH$48:DH$179,MATCH(A87,'RC'!BI$48:BI$179,0))),0,(INDEX('RC'!DH$48:DH$179,MATCH(A87,'RC'!BI$48:BI$179,0)))) -> 0 | S87: 0 | T87: =IF(Entry!B$28="Y",0,IF(ISERROR(INDEX('RC'!CV$48:CV$179,MATCH(A87,'RC'!BI$48:BI$179,0))),0,(INDEX('RC'!CV$48:CV$179,MATCH(A87,'RC'!BI$48:BI$179,0))))) -> 0 | U87: =IF(Entry!B$28="Y",0,IF(ISERROR(INDEX('RC'!CW$48:CW$179,MATCH(A87,'RC'!BI$48:BI$179,0))),0,(INDEX('RC'!CW$48:CW$179,MATCH(A87,'RC'!BI$48:BI$179,0))))) -> 0 | V87: 0 | W87: =IF(ISERROR(INDEX('RC'!CY$48:CY$179,MATCH(A87,'RC'!BI$48:BI$179,0))),0,(INDEX('RC'!CY$48:CY$179,MATCH(A87,'RC'!BI$48:BI$179,0)))) -> 0 | X87: =IF(ISERROR(INDEX('RC'!CZ$48:CZ$179,MATCH(A87,'RC'!BI$48:BI$179,0))),0,(INDEX('RC'!CZ$48:CZ$179,MATCH(A87,'RC'!BI$48:BI$179,0)))) -> 0 | Y87: 0 | Z87: =IF(A87>='RC'!BM$29,0,IF(ISERROR(INDEX('RC'!CF$48:CF$179,MATCH(A87,'RC'!BI$48:BI$179,0))),0,(INDEX('RC'!CF$48:CF$179,MATCH(A87,'RC'!BI$48:BI$179,0))))) -> 0 | AA87: 0 | AB87: 0 | AJ87: 0 | AK87: 0
A88: Totalc/f | B88: =SUM(B46:B87) -> 47709 | C88: =SUM(C46:C87) -> 56774 | D88: 0 | E88: 4771 | F88: 109254 | G88: 45201 | H88: 53789 | I88: 0 | J88: 4520 | K88: =SUM(K46:K87) -> 103510 | L88: 2508 | M88: 2985 | N88: =SUM(N46:N87) -> 0 | O88: 251 | P88: 5744 | Q88: 6600 | R88: 4200 | S88: 2400 | T88: 1160 | U88: =IF(Entry!B$28="Y",0,IF(ISERROR(INDEX('RC'!CW$48:CW$179,MATCH(A88,'RC'!BI$48:BI$179,0))),0,(INDEX('RC'!CW$48:CW$179,MATCH(A88,'RC'!BI$48:BI$179,0))))) -> 0 | V88: =SUM(V46:V87) -> 0 | W88: 2600 | X88: 2600 | Y88: 0 | Z88: 0 | AA88: 2400 | AB88: 3344 | AJ88: =IF(B87=0,0,IF(B90=0,0,1)) -> 0 | AK88: =AJ88 -> 0 | AL88: =IF(AK88=0,"",AK88) ->  | AM88: =IF(AL88=0,"",AL88) -> 
A89: TotalB/f | B89: =B88 -> 47709 | C89: =C88 -> 56774 | D89: 0 | E89: 4771 | F89: 109254 | G89: 45201 | H89: 53789 | I89: 0 | J89: 4520 | K89: =K88 -> 103510 | L89: 2508 | M89: 2985 | N89: =N88 -> 0 | O89: 251 | P89: 5744 | Q89: 6600 | R89: 4200 | S89: 2400 | T89: 1160 | U89: =IF(Entry!B$28="Y",0,IF(ISERROR(INDEX('RC'!CW$48:CW$179,MATCH(A89,'RC'!BI$48:BI$179,0))),0,(INDEX('RC'!CW$48:CW$179,MATCH(A89,'RC'!BI$48:BI$179,0))))) -> 0 | V89: =V88 -> 0 | W89: 2600 | X89: 2600 | Y89: 0 | Z89: 0 | AA89: 2400 | AB89: 3344 | AJ89: =IF(B87=0,0,IF(B90=0,0,1)) -> 0 | AK89: =AJ89 -> 0 | AL89: =IF(AK89=0,"",AK89) ->  | AM89: =IF(AL89=0,"",AL89) -> 
A90: =EDATE(A87,1) -> 2021-11-01 | B90: =IF(ISERROR(INDEX('RC'!BJ$48:BJ$179,MATCH(A90,'RC'!BI$48:BI$179,0))),0,(INDEX('RC'!BJ$48:BJ$179,MATCH(A90,'RC'!BI$48:BI$179,0)))) -> 0 | C90: =IF(B90="",0,IF(B90=0,0,INDEX('RC'!BK$48:BK$179,MATCH(A90,'RC'!BI$48:BI$179,0)))) -> 0 | D90: =IF(B90="",0,IF(B90=0,0,INDEX('RC'!BL$48:BL$179,MATCH(A90,'RC'!BI$48:BI$179,0)))) -> 0 | E90: =IF(B90="",0,IF(B90=0,0,INDEX('RC'!BM$48:BM$179,MATCH(A90,'RC'!BI$48:BI$179,0)))) -> 0 | F90: 0 | G90: =IF(ISERROR(INDEX('RC'!BP$48:BP$179,MATCH(A90,'RC'!BI$48:BI$179,0))),0,(INDEX('RC'!BP$48:BP$179,MATCH(A90,'RC'!BI$48:BI$179,0)))) -> 0 | H90: =IF(B90="",0,IF(B90=0,0,INDEX('RC'!BQ$48:BQ$179,MATCH(A90,'RC'!BI$48:BI$179,0)))) -> 0 | I90: =IF(B90="",0,IF(B90=0,0,INDEX('RC'!BR$48:BR$179,MATCH(A90,'RC'!BI$48:BI$179,0)))) -> 0 | J90: =IF(B90="",0,IF(B90=0,0,INDEX('RC'!BS$48:BS$179,MATCH(A90,'RC'!BI$48:BI$179,0)))) -> 0 | K90: 0 | L90: 0 | M90: 0 | N90: 0 | O90: 0 | P90: 0 | Q90: =IF(ISERROR(INDEX('RC'!DG$48:DG$179,MATCH(A90,'RC'!BI$48:BI$179,0))),0,(INDEX('RC'!DG$48:DG$179,MATCH(A90,'RC'!BI$48:BI$179,0)))) -> 0 | R90: =IF(ISERROR(INDEX('RC'!DH$48:DH$179,MATCH(A90,'RC'!BI$48:BI$179,0))),0,(INDEX('RC'!DH$48:DH$179,MATCH(A90,'RC'!BI$48:BI$179,0)))) -> 0 | S90: 0 | T90: =IF(Entry!B$28="Y",0,IF(ISERROR(INDEX('RC'!CV$48:CV$179,MATCH(A90,'RC'!BI$48:BI$179,0))),0,(INDEX('RC'!CV$48:CV$179,MATCH(A90,'RC'!BI$48:BI$179,0))))) -> 0 | U90: =IF(Entry!B$28="Y",0,IF(ISERROR(INDEX('RC'!CW$48:CW$179,MATCH(A90,'RC'!BI$48:BI$179,0))),0,(INDEX('RC'!CW$48:CW$179,MATCH(A90,'RC'!BI$48:BI$179,0))))) -> 0 | V90: 0 | W90: =IF(ISERROR(INDEX('RC'!CY$48:CY$179,MATCH(A90,'RC'!BI$48:BI$179,0))),0,(INDEX('RC'!CY$48:CY$179,MATCH(A90,'RC'!BI$48:BI$179,0)))) -> 0 | X90: =IF(ISERROR(INDEX('RC'!CZ$48:CZ$179,MATCH(A90,'RC'!BI$48:BI$179,0))),0,(INDEX('RC'!CZ$48:CZ$179,MATCH(A90,'RC'!BI$48:BI$179,0)))) -> 0 | Y90: 0 | Z90: =IF(A90>='RC'!BM$29,0,IF(ISERROR(INDEX('RC'!CF$48:CF$179,MATCH(A90,'RC'!BI$48:BI$179,0))),0,(INDEX('RC'!CF$48:CF$179,MATCH(A90,'RC'!BI$48:BI$179,0))))) -> 0 | AA90: =S90+V90+Y90+Z90 -> 0 | AB90: =P90-AA90 -> 0 | AJ90: 0 | AK90: 0
A91: 2021-12-01 | B91: =IF(ISERROR(INDEX('RC'!BJ$48:BJ$179,MATCH(A91,'RC'!BI$48:BI$179,0))),0,(INDEX('RC'!BJ$48:BJ$179,MATCH(A91,'RC'!BI$48:BI$179,0)))) -> 0 | C91: =IF(B91="",0,IF(B91=0,0,INDEX('RC'!BK$48:BK$179,MATCH(A91,'RC'!BI$48:BI$179,0)))) -> 0 | D91: =IF(B91="",0,IF(B91=0,0,INDEX('RC'!BL$48:BL$179,MATCH(A91,'RC'!BI$48:BI$179,0)))) -> 0 | E91: =IF(B91="",0,IF(B91=0,0,INDEX('RC'!BM$48:BM$179,MATCH(A91,'RC'!BI$48:BI$179,0)))) -> 0 | F91: 0 | G91: =IF(ISERROR(INDEX('RC'!BP$48:BP$179,MATCH(A91,'RC'!BI$48:BI$179,0))),0,(INDEX('RC'!BP$48:BP$179,MATCH(A91,'RC'!BI$48:BI$179,0)))) -> 0 | H91: =IF(B91="",0,IF(B91=0,0,INDEX('RC'!BQ$48:BQ$179,MATCH(A91,'RC'!BI$48:BI$179,0)))) -> 0 | I91: =IF(B91="",0,IF(B91=0,0,INDEX('RC'!BR$48:BR$179,MATCH(A91,'RC'!BI$48:BI$179,0)))) -> 0 | J91: =IF(B91="",0,IF(B91=0,0,INDEX('RC'!BS$48:BS$179,MATCH(A91,'RC'!BI$48:BI$179,0)))) -> 0 | K91: 0 | L91: 0 | M91: 0 | N91: 0 | O91: 0 | P91: 0 | Q91: =IF(ISERROR(INDEX('RC'!DG$48:DG$179,MATCH(A91,'RC'!BI$48:BI$179,0))),0,(INDEX('RC'!DG$48:DG$179,MATCH(A91,'RC'!BI$48:BI$179,0)))) -> 0 | R91: =IF(ISERROR(INDEX('RC'!DH$48:DH$179,MATCH(A91,'RC'!BI$48:BI$179,0))),0,(INDEX('RC'!DH$48:DH$179,MATCH(A91,'RC'!BI$48:BI$179,0)))) -> 0 | S91: 0 | T91: =IF(Entry!B$28="Y",0,IF(ISERROR(INDEX('RC'!CV$48:CV$179,MATCH(A91,'RC'!BI$48:BI$179,0))),0,(INDEX('RC'!CV$48:CV$179,MATCH(A91,'RC'!BI$48:BI$179,0))))) -> 0 | U91: =IF(Entry!B$28="Y",0,IF(ISERROR(INDEX('RC'!CW$48:CW$179,MATCH(A91,'RC'!BI$48:BI$179,0))),0,(INDEX('RC'!CW$48:CW$179,MATCH(A91,'RC'!BI$48:BI$179,0))))) -> 0 | V91: 0 | W91: =IF(ISERROR(INDEX('RC'!CY$48:CY$179,MATCH(A91,'RC'!BI$48:BI$179,0))),0,(INDEX('RC'!CY$48:CY$179,MATCH(A91,'RC'!BI$48:BI$179,0)))) -> 0 | X91: =IF(ISERROR(INDEX('RC'!CZ$48:CZ$179,MATCH(A91,'RC'!BI$48:BI$179,0))),0,(INDEX('RC'!CZ$48:CZ$179,MATCH(A91,'RC'!BI$48:BI$179,0)))) -> 0 | Y91: 0 | Z91: =IF(A91>='RC'!BM$29,0,IF(ISERROR(INDEX('RC'!CF$48:CF$179,MATCH(A91,'RC'!BI$48:BI$179,0))),0,(INDEX('RC'!CF$48:CF$179,MATCH(A91,'RC'!BI$48:BI$179,0))))) -> 0 | AA91: 0 | AB91: 0 | AJ91: 0 | AK91: 0
A92: =EDATE(A91,1) -> 2022-01-01 | B92: =IF(ISERROR(INDEX('RC'!BJ$48:BJ$179,MATCH(A92,'RC'!BI$48:BI$179,0))),0,(INDEX('RC'!BJ$48:BJ$179,MATCH(A92,'RC'!BI$48:BI$179,0)))) -> 0 | C92: =IF(B92="",0,IF(B92=0,0,INDEX('RC'!BK$48:BK$179,MATCH(A92,'RC'!BI$48:BI$179,0)))) -> 0 | D92: =IF(B92="",0,IF(B92=0,0,INDEX('RC'!BL$48:BL$179,MATCH(A92,'RC'!BI$48:BI$179,0)))) -> 0 | E92: =IF(B92="",0,IF(B92=0,0,INDEX('RC'!BM$48:BM$179,MATCH(A92,'RC'!BI$48:BI$179,0)))) -> 0 | F92: 0 | G92: =IF(ISERROR(INDEX('RC'!BP$48:BP$179,MATCH(A92,'RC'!BI$48:BI$179,0))),0,(INDEX('RC'!BP$48:BP$179,MATCH(A92,'RC'!BI$48:BI$179,0)))) -> 0 | H92: =IF(B92="",0,IF(B92=0,0,INDEX('RC'!BQ$48:BQ$179,MATCH(A92,'RC'!BI$48:BI$179,0)))) -> 0 | I92: =IF(B92="",0,IF(B92=0,0,INDEX('RC'!BR$48:BR$179,MATCH(A92,'RC'!BI$48:BI$179,0)))) -> 0 | J92: =IF(B92="",0,IF(B92=0,0,INDEX('RC'!BS$48:BS$179,MATCH(A92,'RC'!BI$48:BI$179,0)))) -> 0 | K92: 0 | L92: 0 | M92: 0 | N92: 0 | O92: 0 | P92: 0 | Q92: =IF(ISERROR(INDEX('RC'!DG$48:DG$179,MATCH(A92,'RC'!BI$48:BI$179,0))),0,(INDEX('RC'!DG$48:DG$179,MATCH(A92,'RC'!BI$48:BI$179,0)))) -> 0 | R92: =IF(ISERROR(INDEX('RC'!DH$48:DH$179,MATCH(A92,'RC'!BI$48:BI$179,0))),0,(INDEX('RC'!DH$48:DH$179,MATCH(A92,'RC'!BI$48:BI$179,0)))) -> 0 | S92: 0 | T92: =IF(Entry!B$28="Y",0,IF(ISERROR(INDEX('RC'!CV$48:CV$179,MATCH(A92,'RC'!BI$48:BI$179,0))),0,(INDEX('RC'!CV$48:CV$179,MATCH(A92,'RC'!BI$48:BI$179,0))))) -> 0 | U92: =IF(Entry!B$28="Y",0,IF(ISERROR(INDEX('RC'!CW$48:CW$179,MATCH(A92,'RC'!BI$48:BI$179,0))),0,(INDEX('RC'!CW$48:CW$179,MATCH(A92,'RC'!BI$48:BI$179,0))))) -> 0 | V92: 0 | W92: =IF(ISERROR(INDEX('RC'!CY$48:CY$179,MATCH(A92,'RC'!BI$48:BI$179,0))),0,(INDEX('RC'!CY$48:CY$179,MATCH(A92,'RC'!BI$48:BI$179,0)))) -> 0 | X92: =IF(ISERROR(INDEX('RC'!CZ$48:CZ$179,MATCH(A92,'RC'!BI$48:BI$179,0))),0,(INDEX('RC'!CZ$48:CZ$179,MATCH(A92,'RC'!BI$48:BI$179,0)))) -> 0 | Y92: 0 | Z92: =IF(A92>='RC'!BM$29,0,IF(ISERROR(INDEX('RC'!CF$48:CF$179,MATCH(A92,'RC'!BI$48:BI$179,0))),0,(INDEX('RC'!CF$48:CF$179,MATCH(A92,'RC'!BI$48:BI$179,0))))) -> 0 | AA92: 0 | AB92: 0 | AJ92: 0 | AK92: 0
A93: 2022-02-01 | B93: =IF(ISERROR(INDEX('RC'!BJ$48:BJ$179,MATCH(A93,'RC'!BI$48:BI$179,0))),0,(INDEX('RC'!BJ$48:BJ$179,MATCH(A93,'RC'!BI$48:BI$179,0)))) -> 0 | C93: =IF(B93="",0,IF(B93=0,0,INDEX('RC'!BK$48:BK$179,MATCH(A93,'RC'!BI$48:BI$179,0)))) -> 0 | D93: =IF(B93="",0,IF(B93=0,0,INDEX('RC'!BL$48:BL$179,MATCH(A93,'RC'!BI$48:BI$179,0)))) -> 0 | E93: =IF(B93="",0,IF(B93=0,0,INDEX('RC'!BM$48:BM$179,MATCH(A93,'RC'!BI$48:BI$179,0)))) -> 0 | F93: 0 | G93: =IF(ISERROR(INDEX('RC'!BP$48:BP$179,MATCH(A93,'RC'!BI$48:BI$179,0))),0,(INDEX('RC'!BP$48:BP$179,MATCH(A93,'RC'!BI$48:BI$179,0)))) -> 0 | H93: =IF(B93="",0,IF(B93=0,0,INDEX('RC'!BQ$48:BQ$179,MATCH(A93,'RC'!BI$48:BI$179,0)))) -> 0 | I93: =IF(B93="",0,IF(B93=0,0,INDEX('RC'!BR$48:BR$179,MATCH(A93,'RC'!BI$48:BI$179,0)))) -> 0 | J93: =IF(B93="",0,IF(B93=0,0,INDEX('RC'!BS$48:BS$179,MATCH(A93,'RC'!BI$48:BI$179,0)))) -> 0 | K93: 0 | L93: 0 | M93: 0 | N93: 0 | O93: 0 | P93: 0 | Q93: =IF(ISERROR(INDEX('RC'!DG$48:DG$179,MATCH(A93,'RC'!BI$48:BI$179,0))),0,(INDEX('RC'!DG$48:DG$179,MATCH(A93,'RC'!BI$48:BI$179,0)))) -> 0 | R93: =IF(ISERROR(INDEX('RC'!DH$48:DH$179,MATCH(A93,'RC'!BI$48:BI$179,0))),0,(INDEX('RC'!DH$48:DH$179,MATCH(A93,'RC'!BI$48:BI$179,0)))) -> 0 | S93: 0 | T93: =IF(Entry!B$28="Y",0,IF(ISERROR(INDEX('RC'!CV$48:CV$179,MATCH(A93,'RC'!BI$48:BI$179,0))),0,(INDEX('RC'!CV$48:CV$179,MATCH(A93,'RC'!BI$48:BI$179,0))))) -> 0 | U93: =IF(Entry!B$28="Y",0,IF(ISERROR(INDEX('RC'!CW$48:CW$179,MATCH(A93,'RC'!BI$48:BI$179,0))),0,(INDEX('RC'!CW$48:CW$179,MATCH(A93,'RC'!BI$48:BI$179,0))))) -> 0 | V93: 0 | W93: =IF(ISERROR(INDEX('RC'!CY$48:CY$179,MATCH(A93,'RC'!BI$48:BI$179,0))),0,(INDEX('RC'!CY$48:CY$179,MATCH(A93,'RC'!BI$48:BI$179,0)))) -> 0 | X93: =IF(ISERROR(INDEX('RC'!CZ$48:CZ$179,MATCH(A93,'RC'!BI$48:BI$179,0))),0,(INDEX('RC'!CZ$48:CZ$179,MATCH(A93,'RC'!BI$48:BI$179,0)))) -> 0 | Y93: 0 | Z93: =IF(A93>='RC'!BM$29,0,IF(ISERROR(INDEX('RC'!CF$48:CF$179,MATCH(A93,'RC'!BI$48:BI$179,0))),0,(INDEX('RC'!CF$48:CF$179,MATCH(A93,'RC'!BI$48:BI$179,0))))) -> 0 | AA93: 0 | AB93: 0 | AJ93: 0 | AK93: 0
A94: 2022-03-01 | B94: =IF(ISERROR(INDEX('RC'!BJ$48:BJ$179,MATCH(A94,'RC'!BI$48:BI$179,0))),0,(INDEX('RC'!BJ$48:BJ$179,MATCH(A94,'RC'!BI$48:BI$179,0)))) -> 0 | C94: =IF(B94="",0,IF(B94=0,0,INDEX('RC'!BK$48:BK$179,MATCH(A94,'RC'!BI$48:BI$179,0)))) -> 0 | D94: =IF(B94="",0,IF(B94=0,0,INDEX('RC'!BL$48:BL$179,MATCH(A94,'RC'!BI$48:BI$179,0)))) -> 0 | E94: =IF(B94="",0,IF(B94=0,0,INDEX('RC'!BM$48:BM$179,MATCH(A94,'RC'!BI$48:BI$179,0)))) -> 0 | F94: 0 | G94: =IF(ISERROR(INDEX('RC'!BP$48:BP$179,MATCH(A94,'RC'!BI$48:BI$179,0))),0,(INDEX('RC'!BP$48:BP$179,MATCH(A94,'RC'!BI$48:BI$179,0)))) -> 0 | H94: =IF(B94="",0,IF(B94=0,0,INDEX('RC'!BQ$48:BQ$179,MATCH(A94,'RC'!BI$48:BI$179,0)))) -> 0 | I94: =IF(B94="",0,IF(B94=0,0,INDEX('RC'!BR$48:BR$179,MATCH(A94,'RC'!BI$48:BI$179,0)))) -> 0 | J94: =IF(B94="",0,IF(B94=0,0,INDEX('RC'!BS$48:BS$179,MATCH(A94,'RC'!BI$48:BI$179,0)))) -> 0 | K94: 0 | L94: 0 | M94: 0 | N94: 0 | O94: 0 | P94: 0 | Q94: =IF(ISERROR(INDEX('RC'!DG$48:DG$179,MATCH(A94,'RC'!BI$48:BI$179,0))),0,(INDEX('RC'!DG$48:DG$179,MATCH(A94,'RC'!BI$48:BI$179,0)))) -> 0 | R94: =IF(ISERROR(INDEX('RC'!DH$48:DH$179,MATCH(A94,'RC'!BI$48:BI$179,0))),0,(INDEX('RC'!DH$48:DH$179,MATCH(A94,'RC'!BI$48:BI$179,0)))) -> 0 | S94: 0 | T94: =IF(Entry!B$28="Y",0,IF(ISERROR(INDEX('RC'!CV$48:CV$179,MATCH(A94,'RC'!BI$48:BI$179,0))),0,(INDEX('RC'!CV$48:CV$179,MATCH(A94,'RC'!BI$48:BI$179,0))))) -> 0 | U94: =IF(Entry!B$28="Y",0,IF(ISERROR(INDEX('RC'!CW$48:CW$179,MATCH(A94,'RC'!BI$48:BI$179,0))),0,(INDEX('RC'!CW$48:CW$179,MATCH(A94,'RC'!BI$48:BI$179,0))))) -> 0 | V94: 0 | W94: =IF(ISERROR(INDEX('RC'!CY$48:CY$179,MATCH(A94,'RC'!BI$48:BI$179,0))),0,(INDEX('RC'!CY$48:CY$179,MATCH(A94,'RC'!BI$48:BI$179,0)))) -> 0 | X94: =IF(ISERROR(INDEX('RC'!CZ$48:CZ$179,MATCH(A94,'RC'!BI$48:BI$179,0))),0,(INDEX('RC'!CZ$48:CZ$179,MATCH(A94,'RC'!BI$48:BI$179,0)))) -> 0 | Y94: 0 | Z94: =IF(A94>='RC'!BM$29,0,IF(ISERROR(INDEX('RC'!CF$48:CF$179,MATCH(A94,'RC'!BI$48:BI$179,0))),0,(INDEX('RC'!CF$48:CF$179,MATCH(A94,'RC'!BI$48:BI$179,0))))) -> 0 | AA94: 0 | AB94: 0 | AJ94: 0 | AK94: 0
A95: 2022-04-01 | B95: =IF(ISERROR(INDEX('RC'!BJ$48:BJ$179,MATCH(A95,'RC'!BI$48:BI$179,0))),0,(INDEX('RC'!BJ$48:BJ$179,MATCH(A95,'RC'!BI$48:BI$179,0)))) -> 0 | C95: =IF(B95="",0,IF(B95=0,0,INDEX('RC'!BK$48:BK$179,MATCH(A95,'RC'!BI$48:BI$179,0)))) -> 0 | D95: =IF(B95="",0,IF(B95=0,0,INDEX('RC'!BL$48:BL$179,MATCH(A95,'RC'!BI$48:BI$179,0)))) -> 0 | E95: =IF(B95="",0,IF(B95=0,0,INDEX('RC'!BM$48:BM$179,MATCH(A95,'RC'!BI$48:BI$179,0)))) -> 0 | F95: 0 | G95: =IF(ISERROR(INDEX('RC'!BP$48:BP$179,MATCH(A95,'RC'!BI$48:BI$179,0))),0,(INDEX('RC'!BP$48:BP$179,MATCH(A95,'RC'!BI$48:BI$179,0)))) -> 0 | H95: =IF(B95="",0,IF(B95=0,0,INDEX('RC'!BQ$48:BQ$179,MATCH(A95,'RC'!BI$48:BI$179,0)))) -> 0 | I95: =IF(B95="",0,IF(B95=0,0,INDEX('RC'!BR$48:BR$179,MATCH(A95,'RC'!BI$48:BI$179,0)))) -> 0 | J95: =IF(B95="",0,IF(B95=0,0,INDEX('RC'!BS$48:BS$179,MATCH(A95,'RC'!BI$48:BI$179,0)))) -> 0 | K95: 0 | L95: 0 | M95: 0 | N95: 0 | O95: 0 | P95: 0 | Q95: =IF(ISERROR(INDEX('RC'!DG$48:DG$179,MATCH(A95,'RC'!BI$48:BI$179,0))),0,(INDEX('RC'!DG$48:DG$179,MATCH(A95,'RC'!BI$48:BI$179,0)))) -> 0 | R95: =IF(ISERROR(INDEX('RC'!DH$48:DH$179,MATCH(A95,'RC'!BI$48:BI$179,0))),0,(INDEX('RC'!DH$48:DH$179,MATCH(A95,'RC'!BI$48:BI$179,0)))) -> 0 | S95: 0 | T95: =IF(Entry!B$28="Y",0,IF(ISERROR(INDEX('RC'!CV$48:CV$179,MATCH(A95,'RC'!BI$48:BI$179,0))),0,(INDEX('RC'!CV$48:CV$179,MATCH(A95,'RC'!BI$48:BI$179,0))))) -> 0 | U95: =IF(Entry!B$28="Y",0,IF(ISERROR(INDEX('RC'!CW$48:CW$179,MATCH(A95,'RC'!BI$48:BI$179,0))),0,(INDEX('RC'!CW$48:CW$179,MATCH(A95,'RC'!BI$48:BI$179,0))))) -> 0 | V95: 0 | W95: =IF(ISERROR(INDEX('RC'!CY$48:CY$179,MATCH(A95,'RC'!BI$48:BI$179,0))),0,(INDEX('RC'!CY$48:CY$179,MATCH(A95,'RC'!BI$48:BI$179,0)))) -> 0 | X95: =IF(ISERROR(INDEX('RC'!CZ$48:CZ$179,MATCH(A95,'RC'!BI$48:BI$179,0))),0,(INDEX('RC'!CZ$48:CZ$179,MATCH(A95,'RC'!BI$48:BI$179,0)))) -> 0 | Y95: 0 | Z95: =IF(A95>='RC'!BM$29,0,IF(ISERROR(INDEX('RC'!CF$48:CF$179,MATCH(A95,'RC'!BI$48:BI$179,0))),0,(INDEX('RC'!CF$48:CF$179,MATCH(A95,'RC'!BI$48:BI$179,0))))) -> 0 | AA95: 0 | AB95: 0 | AJ95: 0 | AK95: 0
A96: 2022-05-01 | B96: =IF(ISERROR(INDEX('RC'!BJ$48:BJ$179,MATCH(A96,'RC'!BI$48:BI$179,0))),0,(INDEX('RC'!BJ$48:BJ$179,MATCH(A96,'RC'!BI$48:BI$179,0)))) -> 0 | C96: =IF(B96="",0,IF(B96=0,0,INDEX('RC'!BK$48:BK$179,MATCH(A96,'RC'!BI$48:BI$179,0)))) -> 0 | D96: =IF(B96="",0,IF(B96=0,0,INDEX('RC'!BL$48:BL$179,MATCH(A96,'RC'!BI$48:BI$179,0)))) -> 0 | E96: =IF(B96="",0,IF(B96=0,0,INDEX('RC'!BM$48:BM$179,MATCH(A96,'RC'!BI$48:BI$179,0)))) -> 0 | F96: 0 | G96: =IF(ISERROR(INDEX('RC'!BP$48:BP$179,MATCH(A96,'RC'!BI$48:BI$179,0))),0,(INDEX('RC'!BP$48:BP$179,MATCH(A96,'RC'!BI$48:BI$179,0)))) -> 0 | H96: =IF(B96="",0,IF(B96=0,0,INDEX('RC'!BQ$48:BQ$179,MATCH(A96,'RC'!BI$48:BI$179,0)))) -> 0 | I96: =IF(B96="",0,IF(B96=0,0,INDEX('RC'!BR$48:BR$179,MATCH(A96,'RC'!BI$48:BI$179,0)))) -> 0 | J96: =IF(B96="",0,IF(B96=0,0,INDEX('RC'!BS$48:BS$179,MATCH(A96,'RC'!BI$48:BI$179,0)))) -> 0 | K96: 0 | L96: 0 | M96: 0 | N96: 0 | O96: 0 | P96: 0 | Q96: =IF(ISERROR(INDEX('RC'!DG$48:DG$179,MATCH(A96,'RC'!BI$48:BI$179,0))),0,(INDEX('RC'!DG$48:DG$179,MATCH(A96,'RC'!BI$48:BI$179,0)))) -> 0 | R96: =IF(ISERROR(INDEX('RC'!DH$48:DH$179,MATCH(A96,'RC'!BI$48:BI$179,0))),0,(INDEX('RC'!DH$48:DH$179,MATCH(A96,'RC'!BI$48:BI$179,0)))) -> 0 | S96: 0 | T96: =IF(Entry!B$28="Y",0,IF(ISERROR(INDEX('RC'!CV$48:CV$179,MATCH(A96,'RC'!BI$48:BI$179,0))),0,(INDEX('RC'!CV$48:CV$179,MATCH(A96,'RC'!BI$48:BI$179,0))))) -> 0 | U96: =IF(Entry!B$28="Y",0,IF(ISERROR(INDEX('RC'!CW$48:CW$179,MATCH(A96,'RC'!BI$48:BI$179,0))),0,(INDEX('RC'!CW$48:CW$179,MATCH(A96,'RC'!BI$48:BI$179,0))))) -> 0 | V96: 0 | W96: =IF(ISERROR(INDEX('RC'!CY$48:CY$179,MATCH(A96,'RC'!BI$48:BI$179,0))),0,(INDEX('RC'!CY$48:CY$179,MATCH(A96,'RC'!BI$48:BI$179,0)))) -> 0 | X96: =IF(ISERROR(INDEX('RC'!CZ$48:CZ$179,MATCH(A96,'RC'!BI$48:BI$179,0))),0,(INDEX('RC'!CZ$48:CZ$179,MATCH(A96,'RC'!BI$48:BI$179,0)))) -> 0 | Y96: 0 | Z96: =IF(A96>='RC'!BM$29,0,IF(ISERROR(INDEX('RC'!CF$48:CF$179,MATCH(A96,'RC'!BI$48:BI$179,0))),0,(INDEX('RC'!CF$48:CF$179,MATCH(A96,'RC'!BI$48:BI$179,0))))) -> 0 | AA96: 0 | AB96: 0 | AJ96: 0 | AK96: 0
A97: =EDATE(A96,1) -> 2022-06-01 | B97: =IF(ISERROR(INDEX('RC'!BJ$48:BJ$179,MATCH(A97,'RC'!BI$48:BI$179,0))),0,(INDEX('RC'!BJ$48:BJ$179,MATCH(A97,'RC'!BI$48:BI$179,0)))) -> 0 | C97: =IF(B97="",0,IF(B97=0,0,INDEX('RC'!BK$48:BK$179,MATCH(A97,'RC'!BI$48:BI$179,0)))) -> 0 | D97: =IF(B97="",0,IF(B97=0,0,INDEX('RC'!BL$48:BL$179,MATCH(A97,'RC'!BI$48:BI$179,0)))) -> 0 | E97: =IF(B97="",0,IF(B97=0,0,INDEX('RC'!BM$48:BM$179,MATCH(A97,'RC'!BI$48:BI$179,0)))) -> 0 | F97: =SUM(B97:E97) -> 0 | G97: =IF(ISERROR(INDEX('RC'!BP$48:BP$179,MATCH(A97,'RC'!BI$48:BI$179,0))),0,(INDEX('RC'!BP$48:BP$179,MATCH(A97,'RC'!BI$48:BI$179,0)))) -> 0 | H97: =IF(B97="",0,IF(B97=0,0,INDEX('RC'!BQ$48:BQ$179,MATCH(A97,'RC'!BI$48:BI$179,0)))) -> 0 | I97: =IF(B97="",0,IF(B97=0,0,INDEX('RC'!BR$48:BR$179,MATCH(A97,'RC'!BI$48:BI$179,0)))) -> 0 | J97: =IF(B97="",0,IF(B97=0,0,INDEX('RC'!BS$48:BS$179,MATCH(A97,'RC'!BI$48:BI$179,0)))) -> 0 | K97: =SUM(G97:J97) -> 0 | L97: =B97-G97 -> 0 | M97: =C97-H97 -> 0 | N97: =D97-I97 -> 0 | O97: =E97-J97 -> 0 | P97: =SUM(L97:O97) -> 0 | Q97: =IF(ISERROR(INDEX('RC'!DG$48:DG$179,MATCH(A97,'RC'!BI$48:BI$179,0))),0,(INDEX('RC'!DG$48:DG$179,MATCH(A97,'RC'!BI$48:BI$179,0)))) -> 0 | R97: =IF(ISERROR(INDEX('RC'!DH$48:DH$179,MATCH(A97,'RC'!BI$48:BI$179,0))),0,(INDEX('RC'!DH$48:DH$179,MATCH(A97,'RC'!BI$48:BI$179,0)))) -> 0 | S97: 0 | T97: =IF(Entry!B$28="Y",0,IF(ISERROR(INDEX('RC'!CV$48:CV$179,MATCH(A97,'RC'!BI$48:BI$179,0))),0,(INDEX('RC'!CV$48:CV$179,MATCH(A97,'RC'!BI$48:BI$179,0))))) -> 0 | U97: =IF(Entry!B$28="Y",0,IF(ISERROR(INDEX('RC'!CW$48:CW$179,MATCH(A97,'RC'!BI$48:BI$179,0))),0,(INDEX('RC'!CW$48:CW$179,MATCH(A97,'RC'!BI$48:BI$179,0))))) -> 0 | V97: 0 | W97: =IF(ISERROR(INDEX('RC'!CY$48:CY$179,MATCH(A97,'RC'!BI$48:BI$179,0))),0,(INDEX('RC'!CY$48:CY$179,MATCH(A97,'RC'!BI$48:BI$179,0)))) -> 0 | X97: =IF(ISERROR(INDEX('RC'!CZ$48:CZ$179,MATCH(A97,'RC'!BI$48:BI$179,0))),0,(INDEX('RC'!CZ$48:CZ$179,MATCH(A97,'RC'!BI$48:BI$179,0)))) -> 0 | Y97: 0 | Z97: =IF(A97>='RC'!BM$29,0,IF(ISERROR(INDEX('RC'!CF$48:CF$179,MATCH(A97,'RC'!BI$48:BI$179,0))),0,(INDEX('RC'!CF$48:CF$179,MATCH(A97,'RC'!BI$48:BI$179,0))))) -> 0 | AA97: 0 | AB97: 0 | AJ97: =IF(B97<1,0,1) -> 0 | AK97: 0
A98: =EDATE(A97,1) -> 2022-07-01 | B98: =IF(ISERROR(INDEX('RC'!BJ$48:BJ$179,MATCH(A98,'RC'!BI$48:BI$179,0))),0,(INDEX('RC'!BJ$48:BJ$179,MATCH(A98,'RC'!BI$48:BI$179,0)))) -> 0 | C98: =IF(B98="",0,IF(B98=0,0,INDEX('RC'!BK$48:BK$179,MATCH(A98,'RC'!BI$48:BI$179,0)))) -> 0 | D98: =IF(B98="",0,IF(B98=0,0,INDEX('RC'!BL$48:BL$179,MATCH(A98,'RC'!BI$48:BI$179,0)))) -> 0 | E98: =IF(B98="",0,IF(B98=0,0,INDEX('RC'!BM$48:BM$179,MATCH(A98,'RC'!BI$48:BI$179,0)))) -> 0 | F98: 0 | G98: =IF(ISERROR(INDEX('RC'!BP$48:BP$179,MATCH(A98,'RC'!BI$48:BI$179,0))),0,(INDEX('RC'!BP$48:BP$179,MATCH(A98,'RC'!BI$48:BI$179,0)))) -> 0 | H98: =IF(B98="",0,IF(B98=0,0,INDEX('RC'!BQ$48:BQ$179,MATCH(A98,'RC'!BI$48:BI$179,0)))) -> 0 | I98: =IF(B98="",0,IF(B98=0,0,INDEX('RC'!BR$48:BR$179,MATCH(A98,'RC'!BI$48:BI$179,0)))) -> 0 | J98: =IF(B98="",0,IF(B98=0,0,INDEX('RC'!BS$48:BS$179,MATCH(A98,'RC'!BI$48:BI$179,0)))) -> 0 | K98: =SUM(G98:J98) -> 0 | L98: =B98-G98 -> 0 | M98: =C98-H98 -> 0 | N98: =D98-I98 -> 0 | O98: =E98-J98 -> 0 | P98: =SUM(L98:O98) -> 0 | Q98: =IF(ISERROR(INDEX('RC'!DG$48:DG$179,MATCH(A98,'RC'!BI$48:BI$179,0))),0,(INDEX('RC'!DG$48:DG$179,MATCH(A98,'RC'!BI$48:BI$179,0)))) -> 0 | R98: =IF(ISERROR(INDEX('RC'!DH$48:DH$179,MATCH(A98,'RC'!BI$48:BI$179,0))),0,(INDEX('RC'!DH$48:DH$179,MATCH(A98,'RC'!BI$48:BI$179,0)))) -> 0 | S98: 0 | T98: =IF(Entry!B$28="Y",0,IF(ISERROR(INDEX('RC'!CV$48:CV$179,MATCH(A98,'RC'!BI$48:BI$179,0))),0,(INDEX('RC'!CV$48:CV$179,MATCH(A98,'RC'!BI$48:BI$179,0))))) -> 0 | U98: =IF(Entry!B$28="Y",0,IF(ISERROR(INDEX('RC'!CW$48:CW$179,MATCH(A98,'RC'!BI$48:BI$179,0))),0,(INDEX('RC'!CW$48:CW$179,MATCH(A98,'RC'!BI$48:BI$179,0))))) -> 0 | V98: 0 | W98: =IF(ISERROR(INDEX('RC'!CY$48:CY$179,MATCH(A98,'RC'!BI$48:BI$179,0))),0,(INDEX('RC'!CY$48:CY$179,MATCH(A98,'RC'!BI$48:BI$179,0)))) -> 0 | X98: =IF(ISERROR(INDEX('RC'!CZ$48:CZ$179,MATCH(A98,'RC'!BI$48:BI$179,0))),0,(INDEX('RC'!CZ$48:CZ$179,MATCH(A98,'RC'!BI$48:BI$179,0)))) -> 0 | Y98: 0 | Z98: =IF(A98>='RC'!BM$29,0,IF(ISERROR(INDEX('RC'!CF$48:CF$179,MATCH(A98,'RC'!BI$48:BI$179,0))),0,(INDEX('RC'!CF$48:CF$179,MATCH(A98,'RC'!BI$48:BI$179,0))))) -> 0 | AA98: 0 | AB98: 0 | AJ98: 0 | AK98: 0
A99: 2022-08-01 | B99: =IF(ISERROR(INDEX('RC'!BJ$48:BJ$179,MATCH(A99,'RC'!BI$48:BI$179,0))),0,(INDEX('RC'!BJ$48:BJ$179,MATCH(A99,'RC'!BI$48:BI$179,0)))) -> 0 | C99: =IF(B99="",0,IF(B99=0,0,INDEX('RC'!BK$48:BK$179,MATCH(A99,'RC'!BI$48:BI$179,0)))) -> 0 | D99: =IF(B99="",0,IF(B99=0,0,INDEX('RC'!BL$48:BL$179,MATCH(A99,'RC'!BI$48:BI$179,0)))) -> 0 | E99: =IF(B99="",0,IF(B99=0,0,INDEX('RC'!BM$48:BM$179,MATCH(A99,'RC'!BI$48:BI$179,0)))) -> 0 | F99: 0 | G99: =IF(ISERROR(INDEX('RC'!BP$48:BP$179,MATCH(A99,'RC'!BI$48:BI$179,0))),0,(INDEX('RC'!BP$48:BP$179,MATCH(A99,'RC'!BI$48:BI$179,0)))) -> 0 | H99: =IF(B99="",0,IF(B99=0,0,INDEX('RC'!BQ$48:BQ$179,MATCH(A99,'RC'!BI$48:BI$179,0)))) -> 0 | I99: =IF(B99="",0,IF(B99=0,0,INDEX('RC'!BR$48:BR$179,MATCH(A99,'RC'!BI$48:BI$179,0)))) -> 0 | J99: =IF(B99="",0,IF(B99=0,0,INDEX('RC'!BS$48:BS$179,MATCH(A99,'RC'!BI$48:BI$179,0)))) -> 0 | K99: 0 | L99: 0 | M99: 0 | N99: 0 | O99: 0 | P99: 0 | Q99: =IF(ISERROR(INDEX('RC'!DG$48:DG$179,MATCH(A99,'RC'!BI$48:BI$179,0))),0,(INDEX('RC'!DG$48:DG$179,MATCH(A99,'RC'!BI$48:BI$179,0)))) -> 0 | R99: =IF(ISERROR(INDEX('RC'!DH$48:DH$179,MATCH(A99,'RC'!BI$48:BI$179,0))),0,(INDEX('RC'!DH$48:DH$179,MATCH(A99,'RC'!BI$48:BI$179,0)))) -> 0 | S99: 0 | T99: =IF(Entry!B$28="Y",0,IF(ISERROR(INDEX('RC'!CV$48:CV$179,MATCH(A99,'RC'!BI$48:BI$179,0))),0,(INDEX('RC'!CV$48:CV$179,MATCH(A99,'RC'!BI$48:BI$179,0))))) -> 0 | U99: =IF(Entry!B$28="Y",0,IF(ISERROR(INDEX('RC'!CW$48:CW$179,MATCH(A99,'RC'!BI$48:BI$179,0))),0,(INDEX('RC'!CW$48:CW$179,MATCH(A99,'RC'!BI$48:BI$179,0))))) -> 0 | V99: 0 | W99: =IF(ISERROR(INDEX('RC'!CY$48:CY$179,MATCH(A99,'RC'!BI$48:BI$179,0))),0,(INDEX('RC'!CY$48:CY$179,MATCH(A99,'RC'!BI$48:BI$179,0)))) -> 0 | X99: =IF(ISERROR(INDEX('RC'!CZ$48:CZ$179,MATCH(A99,'RC'!BI$48:BI$179,0))),0,(INDEX('RC'!CZ$48:CZ$179,MATCH(A99,'RC'!BI$48:BI$179,0)))) -> 0 | Y99: 0 | Z99: =IF(A99>='RC'!BM$29,0,IF(ISERROR(INDEX('RC'!CF$48:CF$179,MATCH(A99,'RC'!BI$48:BI$179,0))),0,(INDEX('RC'!CF$48:CF$179,MATCH(A99,'RC'!BI$48:BI$179,0))))) -> 0 | AA99: 0 | AB99: 0 | AJ99: 0 | AK99: =AJ99 -> 0 | AL99: =IF(AK99=0,"",AK99) ->  | AM99: =IF(AL99=0,"",AL99) -> 
A100: 2022-09-01 | B100: =IF(ISERROR(INDEX('RC'!BJ$48:BJ$179,MATCH(A100,'RC'!BI$48:BI$179,0))),0,(INDEX('RC'!BJ$48:BJ$179,MATCH(A100,'RC'!BI$48:BI$179,0)))) -> 0 | C100: =IF(B100="",0,IF(B100=0,0,INDEX('RC'!BK$48:BK$179,MATCH(A100,'RC'!BI$48:BI$179,0)))) -> 0 | D100: =IF(B100="",0,IF(B100=0,0,INDEX('RC'!BL$48:BL$179,MATCH(A100,'RC'!BI$48:BI$179,0)))) -> 0 | E100: =IF(B100="",0,IF(B100=0,0,INDEX('RC'!BM$48:BM$179,MATCH(A100,'RC'!BI$48:BI$179,0)))) -> 0 | F100: 0 | G100: =IF(ISERROR(INDEX('RC'!BP$48:BP$179,MATCH(A100,'RC'!BI$48:BI$179,0))),0,(INDEX('RC'!BP$48:BP$179,MATCH(A100,'RC'!BI$48:BI$179,0)))) -> 0 | H100: =IF(B100="",0,IF(B100=0,0,INDEX('RC'!BQ$48:BQ$179,MATCH(A100,'RC'!BI$48:BI$179,0)))) -> 0 | I100: =IF(B100="",0,IF(B100=0,0,INDEX('RC'!BR$48:BR$179,MATCH(A100,'RC'!BI$48:BI$179,0)))) -> 0 | J100: =IF(B100="",0,IF(B100=0,0,INDEX('RC'!BS$48:BS$179,MATCH(A100,'RC'!BI$48:BI$179,0)))) -> 0 | K100: 0 | L100: 0 | M100: 0 | N100: 0 | O100: 0 | P100: 0 | Q100: =IF(ISERROR(INDEX('RC'!DG$48:DG$179,MATCH(A100,'RC'!BI$48:BI$179,0))),0,(INDEX('RC'!DG$48:DG$179,MATCH(A100,'RC'!BI$48:BI$179,0)))) -> 0 | R100: =IF(ISERROR(INDEX('RC'!DH$48:DH$179,MATCH(A100,'RC'!BI$48:BI$179,0))),0,(INDEX('RC'!DH$48:DH$179,MATCH(A100,'RC'!BI$48:BI$179,0)))) -> 0 | S100: 0 | T100: =IF(Entry!B$28="Y",0,IF(ISERROR(INDEX('RC'!CV$48:CV$179,MATCH(A100,'RC'!BI$48:BI$179,0))),0,(INDEX('RC'!CV$48:CV$179,MATCH(A100,'RC'!BI$48:BI$179,0))))) -> 0 | U100: =IF(Entry!B$28="Y",0,IF(ISERROR(INDEX('RC'!CW$48:CW$179,MATCH(A100,'RC'!BI$48:BI$179,0))),0,(INDEX('RC'!CW$48:CW$179,MATCH(A100,'RC'!BI$48:BI$179,0))))) -> 0 | V100: 0 | W100: =IF(ISERROR(INDEX('RC'!CY$48:CY$179,MATCH(A100,'RC'!BI$48:BI$179,0))),0,(INDEX('RC'!CY$48:CY$179,MATCH(A100,'RC'!BI$48:BI$179,0)))) -> 0 | X100: =IF(ISERROR(INDEX('RC'!CZ$48:CZ$179,MATCH(A100,'RC'!BI$48:BI$179,0))),0,(INDEX('RC'!CZ$48:CZ$179,MATCH(A100,'RC'!BI$48:BI$179,0)))) -> 0 | Y100: 0 | Z100: =IF(A100>='RC'!BM$29,0,IF(ISERROR(INDEX('RC'!CF$48:CF$179,MATCH(A100,'RC'!BI$48:BI$179,0))),0,(INDEX('RC'!CF$48:CF$179,MATCH(A100,'RC'!BI$48:BI$179,0))))) -> 0 | AA100: 0 | AB100: 0 | AJ100: 0 | AK100: 0
A101: 2022-10-01 | B101: =IF(ISERROR(INDEX('RC'!BJ$48:BJ$179,MATCH(A101,'RC'!BI$48:BI$179,0))),0,(INDEX('RC'!BJ$48:BJ$179,MATCH(A101,'RC'!BI$48:BI$179,0)))) -> 0 | C101: =IF(B101="",0,IF(B101=0,0,INDEX('RC'!BK$48:BK$179,MATCH(A101,'RC'!BI$48:BI$179,0)))) -> 0 | D101: =IF(B101="",0,IF(B101=0,0,INDEX('RC'!BL$48:BL$179,MATCH(A101,'RC'!BI$48:BI$179,0)))) -> 0 | E101: =IF(B101="",0,IF(B101=0,0,INDEX('RC'!BM$48:BM$179,MATCH(A101,'RC'!BI$48:BI$179,0)))) -> 0 | F101: 0 | G101: =IF(ISERROR(INDEX('RC'!BP$48:BP$179,MATCH(A101,'RC'!BI$48:BI$179,0))),0,(INDEX('RC'!BP$48:BP$179,MATCH(A101,'RC'!BI$48:BI$179,0)))) -> 0 | H101: =IF(B101="",0,IF(B101=0,0,INDEX('RC'!BQ$48:BQ$179,MATCH(A101,'RC'!BI$48:BI$179,0)))) -> 0 | I101: =IF(B101="",0,IF(B101=0,0,INDEX('RC'!BR$48:BR$179,MATCH(A101,'RC'!BI$48:BI$179,0)))) -> 0 | J101: =IF(B101="",0,IF(B101=0,0,INDEX('RC'!BS$48:BS$179,MATCH(A101,'RC'!BI$48:BI$179,0)))) -> 0 | K101: 0 | L101: 0 | M101: 0 | N101: 0 | O101: 0 | P101: 0 | Q101: =IF(ISERROR(INDEX('RC'!DG$48:DG$179,MATCH(A101,'RC'!BI$48:BI$179,0))),0,(INDEX('RC'!DG$48:DG$179,MATCH(A101,'RC'!BI$48:BI$179,0)))) -> 0 | R101: =IF(ISERROR(INDEX('RC'!DH$48:DH$179,MATCH(A101,'RC'!BI$48:BI$179,0))),0,(INDEX('RC'!DH$48:DH$179,MATCH(A101,'RC'!BI$48:BI$179,0)))) -> 0 | S101: 0 | T101: =IF(Entry!B$28="Y",0,IF(ISERROR(INDEX('RC'!CV$48:CV$179,MATCH(A101,'RC'!BI$48:BI$179,0))),0,(INDEX('RC'!CV$48:CV$179,MATCH(A101,'RC'!BI$48:BI$179,0))))) -> 0 | U101: =IF(Entry!B$28="Y",0,IF(ISERROR(INDEX('RC'!CW$48:CW$179,MATCH(A101,'RC'!BI$48:BI$179,0))),0,(INDEX('RC'!CW$48:CW$179,MATCH(A101,'RC'!BI$48:BI$179,0))))) -> 0 | V101: 0 | W101: =IF(ISERROR(INDEX('RC'!CY$48:CY$179,MATCH(A101,'RC'!BI$48:BI$179,0))),0,(INDEX('RC'!CY$48:CY$179,MATCH(A101,'RC'!BI$48:BI$179,0)))) -> 0 | X101: =IF(ISERROR(INDEX('RC'!CZ$48:CZ$179,MATCH(A101,'RC'!BI$48:BI$179,0))),0,(INDEX('RC'!CZ$48:CZ$179,MATCH(A101,'RC'!BI$48:BI$179,0)))) -> 0 | Y101: 0 | Z101: =IF(A101>='RC'!BM$29,0,IF(ISERROR(INDEX('RC'!CF$48:CF$179,MATCH(A101,'RC'!BI$48:BI$179,0))),0,(INDEX('RC'!CF$48:CF$179,MATCH(A101,'RC'!BI$48:BI$179,0))))) -> 0 | AA101: 0 | AB101: 0 | AJ101: 0 | AK101: 0
A102: 2022-11-01 | B102: =IF(ISERROR(INDEX('RC'!BJ$48:BJ$179,MATCH(A102,'RC'!BI$48:BI$179,0))),0,(INDEX('RC'!BJ$48:BJ$179,MATCH(A102,'RC'!BI$48:BI$179,0)))) -> 0 | C102: =IF(B102="",0,IF(B102=0,0,INDEX('RC'!BK$48:BK$179,MATCH(A102,'RC'!BI$48:BI$179,0)))) -> 0 | D102: =IF(B102="",0,IF(B102=0,0,INDEX('RC'!BL$48:BL$179,MATCH(A102,'RC'!BI$48:BI$179,0)))) -> 0 | E102: =IF(B102="",0,IF(B102=0,0,INDEX('RC'!BM$48:BM$179,MATCH(A102,'RC'!BI$48:BI$179,0)))) -> 0 | F102: 0 | G102: =IF(ISERROR(INDEX('RC'!BP$48:BP$179,MATCH(A102,'RC'!BI$48:BI$179,0))),0,(INDEX('RC'!BP$48:BP$179,MATCH(A102,'RC'!BI$48:BI$179,0)))) -> 0 | H102: =IF(B102="",0,IF(B102=0,0,INDEX('RC'!BQ$48:BQ$179,MATCH(A102,'RC'!BI$48:BI$179,0)))) -> 0 | I102: =IF(B102="",0,IF(B102=0,0,INDEX('RC'!BR$48:BR$179,MATCH(A102,'RC'!BI$48:BI$179,0)))) -> 0 | J102: =IF(B102="",0,IF(B102=0,0,INDEX('RC'!BS$48:BS$179,MATCH(A102,'RC'!BI$48:BI$179,0)))) -> 0 | K102: 0 | L102: 0 | M102: 0 | N102: 0 | O102: 0 | P102: 0 | Q102: =IF(ISERROR(INDEX('RC'!DG$48:DG$179,MATCH(A102,'RC'!BI$48:BI$179,0))),0,(INDEX('RC'!DG$48:DG$179,MATCH(A102,'RC'!BI$48:BI$179,0)))) -> 0 | R102: =IF(ISERROR(INDEX('RC'!DH$48:DH$179,MATCH(A102,'RC'!BI$48:BI$179,0))),0,(INDEX('RC'!DH$48:DH$179,MATCH(A102,'RC'!BI$48:BI$179,0)))) -> 0 | S102: 0 | T102: =IF(Entry!B$28="Y",0,IF(ISERROR(INDEX('RC'!CV$48:CV$179,MATCH(A102,'RC'!BI$48:BI$179,0))),0,(INDEX('RC'!CV$48:CV$179,MATCH(A102,'RC'!BI$48:BI$179,0))))) -> 0 | U102: =IF(Entry!B$28="Y",0,IF(ISERROR(INDEX('RC'!CW$48:CW$179,MATCH(A102,'RC'!BI$48:BI$179,0))),0,(INDEX('RC'!CW$48:CW$179,MATCH(A102,'RC'!BI$48:BI$179,0))))) -> 0 | V102: 0 | W102: =IF(ISERROR(INDEX('RC'!CY$48:CY$179,MATCH(A102,'RC'!BI$48:BI$179,0))),0,(INDEX('RC'!CY$48:CY$179,MATCH(A102,'RC'!BI$48:BI$179,0)))) -> 0 | X102: =IF(ISERROR(INDEX('RC'!CZ$48:CZ$179,MATCH(A102,'RC'!BI$48:BI$179,0))),0,(INDEX('RC'!CZ$48:CZ$179,MATCH(A102,'RC'!BI$48:BI$179,0)))) -> 0 | Y102: 0 | Z102: =IF(A102>='RC'!BM$29,0,IF(ISERROR(INDEX('RC'!CF$48:CF$179,MATCH(A102,'RC'!BI$48:BI$179,0))),0,(INDEX('RC'!CF$48:CF$179,MATCH(A102,'RC'!BI$48:BI$179,0))))) -> 0 | AA102: 0 | AB102: 0 | AJ102: 0 | AK102: 0
A103: 2022-12-01 | B103: =IF(ISERROR(INDEX('RC'!BJ$48:BJ$179,MATCH(A103,'RC'!BI$48:BI$179,0))),0,(INDEX('RC'!BJ$48:BJ$179,MATCH(A103,'RC'!BI$48:BI$179,0)))) -> 0 | C103: =IF(B103="",0,IF(B103=0,0,INDEX('RC'!BK$48:BK$179,MATCH(A103,'RC'!BI$48:BI$179,0)))) -> 0 | D103: =IF(B103="",0,IF(B103=0,0,INDEX('RC'!BL$48:BL$179,MATCH(A103,'RC'!BI$48:BI$179,0)))) -> 0 | E103: =IF(B103="",0,IF(B103=0,0,INDEX('RC'!BM$48:BM$179,MATCH(A103,'RC'!BI$48:BI$179,0)))) -> 0 | F103: 0 | G103: =IF(ISERROR(INDEX('RC'!BP$48:BP$179,MATCH(A103,'RC'!BI$48:BI$179,0))),0,(INDEX('RC'!BP$48:BP$179,MATCH(A103,'RC'!BI$48:BI$179,0)))) -> 0 | H103: =IF(B103="",0,IF(B103=0,0,INDEX('RC'!BQ$48:BQ$179,MATCH(A103,'RC'!BI$48:BI$179,0)))) -> 0 | I103: =IF(B103="",0,IF(B103=0,0,INDEX('RC'!BR$48:BR$179,MATCH(A103,'RC'!BI$48:BI$179,0)))) -> 0 | J103: =IF(B103="",0,IF(B103=0,0,INDEX('RC'!BS$48:BS$179,MATCH(A103,'RC'!BI$48:BI$179,0)))) -> 0 | K103: 0 | L103: 0 | M103: 0 | N103: 0 | O103: 0 | P103: 0 | Q103: =IF(ISERROR(INDEX('RC'!DG$48:DG$179,MATCH(A103,'RC'!BI$48:BI$179,0))),0,(INDEX('RC'!DG$48:DG$179,MATCH(A103,'RC'!BI$48:BI$179,0)))) -> 0 | R103: =IF(ISERROR(INDEX('RC'!DH$48:DH$179,MATCH(A103,'RC'!BI$48:BI$179,0))),0,(INDEX('RC'!DH$48:DH$179,MATCH(A103,'RC'!BI$48:BI$179,0)))) -> 0 | S103: 0 | T103: =IF(Entry!B$28="Y",0,IF(ISERROR(INDEX('RC'!CV$48:CV$179,MATCH(A103,'RC'!BI$48:BI$179,0))),0,(INDEX('RC'!CV$48:CV$179,MATCH(A103,'RC'!BI$48:BI$179,0))))) -> 0 | U103: =IF(Entry!B$28="Y",0,IF(ISERROR(INDEX('RC'!CW$48:CW$179,MATCH(A103,'RC'!BI$48:BI$179,0))),0,(INDEX('RC'!CW$48:CW$179,MATCH(A103,'RC'!BI$48:BI$179,0))))) -> 0 | V103: 0 | W103: =IF(ISERROR(INDEX('RC'!CY$48:CY$179,MATCH(A103,'RC'!BI$48:BI$179,0))),0,(INDEX('RC'!CY$48:CY$179,MATCH(A103,'RC'!BI$48:BI$179,0)))) -> 0 | X103: =IF(ISERROR(INDEX('RC'!CZ$48:CZ$179,MATCH(A103,'RC'!BI$48:BI$179,0))),0,(INDEX('RC'!CZ$48:CZ$179,MATCH(A103,'RC'!BI$48:BI$179,0)))) -> 0 | Y103: 0 | Z103: =IF(A103>='RC'!BM$29,0,IF(ISERROR(INDEX('RC'!CF$48:CF$179,MATCH(A103,'RC'!BI$48:BI$179,0))),0,(INDEX('RC'!CF$48:CF$179,MATCH(A103,'RC'!BI$48:BI$179,0))))) -> 0 | AA103: 0 | AB103: 0 | AJ103: 0 | AK103: 0
A104: 2023-01-01 | B104: =IF(ISERROR(INDEX('RC'!BJ$48:BJ$179,MATCH(A104,'RC'!BI$48:BI$179,0))),0,(INDEX('RC'!BJ$48:BJ$179,MATCH(A104,'RC'!BI$48:BI$179,0)))) -> 0 | C104: =IF(B104="",0,IF(B104=0,0,INDEX('RC'!BK$48:BK$179,MATCH(A104,'RC'!BI$48:BI$179,0)))) -> 0 | D104: =IF(B104="",0,IF(B104=0,0,INDEX('RC'!BL$48:BL$179,MATCH(A104,'RC'!BI$48:BI$179,0)))) -> 0 | E104: =IF(B104="",0,IF(B104=0,0,INDEX('RC'!BM$48:BM$179,MATCH(A104,'RC'!BI$48:BI$179,0)))) -> 0 | F104: 0 | G104: =IF(ISERROR(INDEX('RC'!BP$48:BP$179,MATCH(A104,'RC'!BI$48:BI$179,0))),0,(INDEX('RC'!BP$48:BP$179,MATCH(A104,'RC'!BI$48:BI$179,0)))) -> 0 | H104: =IF(B104="",0,IF(B104=0,0,INDEX('RC'!BQ$48:BQ$179,MATCH(A104,'RC'!BI$48:BI$179,0)))) -> 0 | I104: =IF(B104="",0,IF(B104=0,0,INDEX('RC'!BR$48:BR$179,MATCH(A104,'RC'!BI$48:BI$179,0)))) -> 0 | J104: =IF(B104="",0,IF(B104=0,0,INDEX('RC'!BS$48:BS$179,MATCH(A104,'RC'!BI$48:BI$179,0)))) -> 0 | K104: 0 | L104: 0 | M104: 0 | N104: 0 | O104: 0 | P104: 0 | Q104: =IF(ISERROR(INDEX('RC'!DG$48:DG$179,MATCH(A104,'RC'!BI$48:BI$179,0))),0,(INDEX('RC'!DG$48:DG$179,MATCH(A104,'RC'!BI$48:BI$179,0)))) -> 0 | R104: =IF(ISERROR(INDEX('RC'!DH$48:DH$179,MATCH(A104,'RC'!BI$48:BI$179,0))),0,(INDEX('RC'!DH$48:DH$179,MATCH(A104,'RC'!BI$48:BI$179,0)))) -> 0 | S104: 0 | T104: =IF(Entry!B$28="Y",0,IF(ISERROR(INDEX('RC'!CV$48:CV$179,MATCH(A104,'RC'!BI$48:BI$179,0))),0,(INDEX('RC'!CV$48:CV$179,MATCH(A104,'RC'!BI$48:BI$179,0))))) -> 0 | U104: =IF(Entry!B$28="Y",0,IF(ISERROR(INDEX('RC'!CW$48:CW$179,MATCH(A104,'RC'!BI$48:BI$179,0))),0,(INDEX('RC'!CW$48:CW$179,MATCH(A104,'RC'!BI$48:BI$179,0))))) -> 0 | V104: 0 | W104: =IF(ISERROR(INDEX('RC'!CY$48:CY$179,MATCH(A104,'RC'!BI$48:BI$179,0))),0,(INDEX('RC'!CY$48:CY$179,MATCH(A104,'RC'!BI$48:BI$179,0)))) -> 0 | X104: =IF(ISERROR(INDEX('RC'!CZ$48:CZ$179,MATCH(A104,'RC'!BI$48:BI$179,0))),0,(INDEX('RC'!CZ$48:CZ$179,MATCH(A104,'RC'!BI$48:BI$179,0)))) -> 0 | Y104: 0 | Z104: =IF(A104>='RC'!BM$29,0,IF(ISERROR(INDEX('RC'!CF$48:CF$179,MATCH(A104,'RC'!BI$48:BI$179,0))),0,(INDEX('RC'!CF$48:CF$179,MATCH(A104,'RC'!BI$48:BI$179,0))))) -> 0 | AA104: 0 | AB104: 0 | AJ104: 0 | AK104: 0
A105: =EDATE(A104,1) -> 2023-02-01 | B105: =IF(ISERROR(INDEX('RC'!BJ$48:BJ$179,MATCH(A105,'RC'!BI$48:BI$179,0))),0,(INDEX('RC'!BJ$48:BJ$179,MATCH(A105,'RC'!BI$48:BI$179,0)))) -> 0 | C105: =IF(B105="",0,IF(B105=0,0,INDEX('RC'!BK$48:BK$179,MATCH(A105,'RC'!BI$48:BI$179,0)))) -> 0 | D105: =IF(B105="",0,IF(B105=0,0,INDEX('RC'!BL$48:BL$179,MATCH(A105,'RC'!BI$48:BI$179,0)))) -> 0 | E105: =IF(B105="",0,IF(B105=0,0,INDEX('RC'!BM$48:BM$179,MATCH(A105,'RC'!BI$48:BI$179,0)))) -> 0 | F105: 0 | G105: =IF(ISERROR(INDEX('RC'!BP$48:BP$179,MATCH(A105,'RC'!BI$48:BI$179,0))),0,(INDEX('RC'!BP$48:BP$179,MATCH(A105,'RC'!BI$48:BI$179,0)))) -> 0 | H105: =IF(B105="",0,IF(B105=0,0,INDEX('RC'!BQ$48:BQ$179,MATCH(A105,'RC'!BI$48:BI$179,0)))) -> 0 | I105: =IF(B105="",0,IF(B105=0,0,INDEX('RC'!BR$48:BR$179,MATCH(A105,'RC'!BI$48:BI$179,0)))) -> 0 | J105: =IF(B105="",0,IF(B105=0,0,INDEX('RC'!BS$48:BS$179,MATCH(A105,'RC'!BI$48:BI$179,0)))) -> 0 | K105: 0 | L105: 0 | M105: 0 | N105: 0 | O105: 0 | P105: 0 | Q105: =IF(ISERROR(INDEX('RC'!DG$48:DG$179,MATCH(A105,'RC'!BI$48:BI$179,0))),0,(INDEX('RC'!DG$48:DG$179,MATCH(A105,'RC'!BI$48:BI$179,0)))) -> 0 | R105: =IF(ISERROR(INDEX('RC'!DH$48:DH$179,MATCH(A105,'RC'!BI$48:BI$179,0))),0,(INDEX('RC'!DH$48:DH$179,MATCH(A105,'RC'!BI$48:BI$179,0)))) -> 0 | S105: 0 | T105: =IF(Entry!B$28="Y",0,IF(ISERROR(INDEX('RC'!CV$48:CV$179,MATCH(A105,'RC'!BI$48:BI$179,0))),0,(INDEX('RC'!CV$48:CV$179,MATCH(A105,'RC'!BI$48:BI$179,0))))) -> 0 | U105: =IF(Entry!B$28="Y",0,IF(ISERROR(INDEX('RC'!CW$48:CW$179,MATCH(A105,'RC'!BI$48:BI$179,0))),0,(INDEX('RC'!CW$48:CW$179,MATCH(A105,'RC'!BI$48:BI$179,0))))) -> 0 | V105: 0 | W105: =IF(ISERROR(INDEX('RC'!CY$48:CY$179,MATCH(A105,'RC'!BI$48:BI$179,0))),0,(INDEX('RC'!CY$48:CY$179,MATCH(A105,'RC'!BI$48:BI$179,0)))) -> 0 | X105: =IF(ISERROR(INDEX('RC'!CZ$48:CZ$179,MATCH(A105,'RC'!BI$48:BI$179,0))),0,(INDEX('RC'!CZ$48:CZ$179,MATCH(A105,'RC'!BI$48:BI$179,0)))) -> 0 | Y105: 0 | Z105: =IF(A105>='RC'!BM$29,0,IF(ISERROR(INDEX('RC'!CF$48:CF$179,MATCH(A105,'RC'!BI$48:BI$179,0))),0,(INDEX('RC'!CF$48:CF$179,MATCH(A105,'RC'!BI$48:BI$179,0))))) -> 0 | AA105: 0 | AB105: 0 | AJ105: 0 | AK105: 0
A106: 2023-03-01 | B106: =IF(ISERROR(INDEX('RC'!BJ$48:BJ$179,MATCH(A106,'RC'!BI$48:BI$179,0))),0,(INDEX('RC'!BJ$48:BJ$179,MATCH(A106,'RC'!BI$48:BI$179,0)))) -> 0 | C106: =IF(B106="",0,IF(B106=0,0,INDEX('RC'!BK$48:BK$179,MATCH(A106,'RC'!BI$48:BI$179,0)))) -> 0 | D106: =IF(B106="",0,IF(B106=0,0,INDEX('RC'!BL$48:BL$179,MATCH(A106,'RC'!BI$48:BI$179,0)))) -> 0 | E106: =IF(B106="",0,IF(B106=0,0,INDEX('RC'!BM$48:BM$179,MATCH(A106,'RC'!BI$48:BI$179,0)))) -> 0 | F106: 0 | G106: =IF(ISERROR(INDEX('RC'!BP$48:BP$179,MATCH(A106,'RC'!BI$48:BI$179,0))),0,(INDEX('RC'!BP$48:BP$179,MATCH(A106,'RC'!BI$48:BI$179,0)))) -> 0 | H106: =IF(B106="",0,IF(B106=0,0,INDEX('RC'!BQ$48:BQ$179,MATCH(A106,'RC'!BI$48:BI$179,0)))) -> 0 | I106: =IF(B106="",0,IF(B106=0,0,INDEX('RC'!BR$48:BR$179,MATCH(A106,'RC'!BI$48:BI$179,0)))) -> 0 | J106: =IF(B106="",0,IF(B106=0,0,INDEX('RC'!BS$48:BS$179,MATCH(A106,'RC'!BI$48:BI$179,0)))) -> 0 | K106: 0 | L106: 0 | M106: 0 | N106: 0 | O106: 0 | P106: 0 | Q106: =IF(ISERROR(INDEX('RC'!DG$48:DG$179,MATCH(A106,'RC'!BI$48:BI$179,0))),0,(INDEX('RC'!DG$48:DG$179,MATCH(A106,'RC'!BI$48:BI$179,0)))) -> 0 | R106: =IF(ISERROR(INDEX('RC'!DH$48:DH$179,MATCH(A106,'RC'!BI$48:BI$179,0))),0,(INDEX('RC'!DH$48:DH$179,MATCH(A106,'RC'!BI$48:BI$179,0)))) -> 0 | S106: 0 | T106: =IF(Entry!B$28="Y",0,IF(ISERROR(INDEX('RC'!CV$48:CV$179,MATCH(A106,'RC'!BI$48:BI$179,0))),0,(INDEX('RC'!CV$48:CV$179,MATCH(A106,'RC'!BI$48:BI$179,0))))) -> 0 | U106: =IF(Entry!B$28="Y",0,IF(ISERROR(INDEX('RC'!CW$48:CW$179,MATCH(A106,'RC'!BI$48:BI$179,0))),0,(INDEX('RC'!CW$48:CW$179,MATCH(A106,'RC'!BI$48:BI$179,0))))) -> 0 | V106: 0 | W106: =IF(ISERROR(INDEX('RC'!CY$48:CY$179,MATCH(A106,'RC'!BI$48:BI$179,0))),0,(INDEX('RC'!CY$48:CY$179,MATCH(A106,'RC'!BI$48:BI$179,0)))) -> 0 | X106: =IF(ISERROR(INDEX('RC'!CZ$48:CZ$179,MATCH(A106,'RC'!BI$48:BI$179,0))),0,(INDEX('RC'!CZ$48:CZ$179,MATCH(A106,'RC'!BI$48:BI$179,0)))) -> 0 | Y106: 0 | Z106: =IF(A106>='RC'!BM$29,0,IF(ISERROR(INDEX('RC'!CF$48:CF$179,MATCH(A106,'RC'!BI$48:BI$179,0))),0,(INDEX('RC'!CF$48:CF$179,MATCH(A106,'RC'!BI$48:BI$179,0))))) -> 0 | AA106: 0 | AB106: 0 | AJ106: 0 | AK106: 0
A107: 2023-04-01 | B107: =IF(ISERROR(INDEX('RC'!BJ$48:BJ$179,MATCH(A107,'RC'!BI$48:BI$179,0))),0,(INDEX('RC'!BJ$48:BJ$179,MATCH(A107,'RC'!BI$48:BI$179,0)))) -> 0 | C107: =IF(B107="",0,IF(B107=0,0,INDEX('RC'!BK$48:BK$179,MATCH(A107,'RC'!BI$48:BI$179,0)))) -> 0 | D107: =IF(B107="",0,IF(B107=0,0,INDEX('RC'!BL$48:BL$179,MATCH(A107,'RC'!BI$48:BI$179,0)))) -> 0 | E107: =IF(B107="",0,IF(B107=0,0,INDEX('RC'!BM$48:BM$179,MATCH(A107,'RC'!BI$48:BI$179,0)))) -> 0 | F107: 0 | G107: =IF(ISERROR(INDEX('RC'!BP$48:BP$179,MATCH(A107,'RC'!BI$48:BI$179,0))),0,(INDEX('RC'!BP$48:BP$179,MATCH(A107,'RC'!BI$48:BI$179,0)))) -> 0 | H107: =IF(B107="",0,IF(B107=0,0,INDEX('RC'!BQ$48:BQ$179,MATCH(A107,'RC'!BI$48:BI$179,0)))) -> 0 | I107: =IF(B107="",0,IF(B107=0,0,INDEX('RC'!BR$48:BR$179,MATCH(A107,'RC'!BI$48:BI$179,0)))) -> 0 | J107: =IF(B107="",0,IF(B107=0,0,INDEX('RC'!BS$48:BS$179,MATCH(A107,'RC'!BI$48:BI$179,0)))) -> 0 | K107: 0 | L107: 0 | M107: 0 | N107: 0 | O107: 0 | P107: 0 | Q107: =IF(ISERROR(INDEX('RC'!DG$48:DG$179,MATCH(A107,'RC'!BI$48:BI$179,0))),0,(INDEX('RC'!DG$48:DG$179,MATCH(A107,'RC'!BI$48:BI$179,0)))) -> 0 | R107: =IF(ISERROR(INDEX('RC'!DH$48:DH$179,MATCH(A107,'RC'!BI$48:BI$179,0))),0,(INDEX('RC'!DH$48:DH$179,MATCH(A107,'RC'!BI$48:BI$179,0)))) -> 0 | S107: 0 | T107: =IF(Entry!B$28="Y",0,IF(ISERROR(INDEX('RC'!CV$48:CV$179,MATCH(A107,'RC'!BI$48:BI$179,0))),0,(INDEX('RC'!CV$48:CV$179,MATCH(A107,'RC'!BI$48:BI$179,0))))) -> 0 | U107: =IF(Entry!B$28="Y",0,IF(ISERROR(INDEX('RC'!CW$48:CW$179,MATCH(A107,'RC'!BI$48:BI$179,0))),0,(INDEX('RC'!CW$48:CW$179,MATCH(A107,'RC'!BI$48:BI$179,0))))) -> 0 | V107: 0 | W107: =IF(ISERROR(INDEX('RC'!CY$48:CY$179,MATCH(A107,'RC'!BI$48:BI$179,0))),0,(INDEX('RC'!CY$48:CY$179,MATCH(A107,'RC'!BI$48:BI$179,0)))) -> 0 | X107: =IF(ISERROR(INDEX('RC'!CZ$48:CZ$179,MATCH(A107,'RC'!BI$48:BI$179,0))),0,(INDEX('RC'!CZ$48:CZ$179,MATCH(A107,'RC'!BI$48:BI$179,0)))) -> 0 | Y107: 0 | Z107: =IF(A107>='RC'!BM$29,0,IF(ISERROR(INDEX('RC'!CF$48:CF$179,MATCH(A107,'RC'!BI$48:BI$179,0))),0,(INDEX('RC'!CF$48:CF$179,MATCH(A107,'RC'!BI$48:BI$179,0))))) -> 0 | AA107: 0 | AB107: 0 | AJ107: 0 | AK107: 0
A108: 2023-05-01 | B108: =IF(ISERROR(INDEX('RC'!BJ$48:BJ$179,MATCH(A108,'RC'!BI$48:BI$179,0))),0,(INDEX('RC'!BJ$48:BJ$179,MATCH(A108,'RC'!BI$48:BI$179,0)))) -> 0 | C108: =IF(B108="",0,IF(B108=0,0,INDEX('RC'!BK$48:BK$179,MATCH(A108,'RC'!BI$48:BI$179,0)))) -> 0 | D108: =IF(B108="",0,IF(B108=0,0,INDEX('RC'!BL$48:BL$179,MATCH(A108,'RC'!BI$48:BI$179,0)))) -> 0 | E108: =IF(B108="",0,IF(B108=0,0,INDEX('RC'!BM$48:BM$179,MATCH(A108,'RC'!BI$48:BI$179,0)))) -> 0 | F108: 0 | G108: =IF(ISERROR(INDEX('RC'!BP$48:BP$179,MATCH(A108,'RC'!BI$48:BI$179,0))),0,(INDEX('RC'!BP$48:BP$179,MATCH(A108,'RC'!BI$48:BI$179,0)))) -> 0 | H108: =IF(B108="",0,IF(B108=0,0,INDEX('RC'!BQ$48:BQ$179,MATCH(A108,'RC'!BI$48:BI$179,0)))) -> 0 | I108: =IF(B108="",0,IF(B108=0,0,INDEX('RC'!BR$48:BR$179,MATCH(A108,'RC'!BI$48:BI$179,0)))) -> 0 | J108: =IF(B108="",0,IF(B108=0,0,INDEX('RC'!BS$48:BS$179,MATCH(A108,'RC'!BI$48:BI$179,0)))) -> 0 | K108: 0 | L108: 0 | M108: 0 | N108: 0 | O108: =E108-J108 -> 0 | P108: =SUM(L108:O108) -> 0 | Q108: =IF(ISERROR(INDEX('RC'!DG$48:DG$179,MATCH(A108,'RC'!BI$48:BI$179,0))),0,(INDEX('RC'!DG$48:DG$179,MATCH(A108,'RC'!BI$48:BI$179,0)))) -> 0 | R108: =IF(ISERROR(INDEX('RC'!DH$48:DH$179,MATCH(A108,'RC'!BI$48:BI$179,0))),0,(INDEX('RC'!DH$48:DH$179,MATCH(A108,'RC'!BI$48:BI$179,0)))) -> 0 | S108: 0 | T108: =IF(Entry!B$28="Y",0,IF(ISERROR(INDEX('RC'!CV$48:CV$179,MATCH(A108,'RC'!BI$48:BI$179,0))),0,(INDEX('RC'!CV$48:CV$179,MATCH(A108,'RC'!BI$48:BI$179,0))))) -> 0 | U108: =IF(Entry!B$28="Y",0,IF(ISERROR(INDEX('RC'!CW$48:CW$179,MATCH(A108,'RC'!BI$48:BI$179,0))),0,(INDEX('RC'!CW$48:CW$179,MATCH(A108,'RC'!BI$48:BI$179,0))))) -> 0 | V108: 0 | W108: =IF(ISERROR(INDEX('RC'!CY$48:CY$179,MATCH(A108,'RC'!BI$48:BI$179,0))),0,(INDEX('RC'!CY$48:CY$179,MATCH(A108,'RC'!BI$48:BI$179,0)))) -> 0 | X108: =IF(ISERROR(INDEX('RC'!CZ$48:CZ$179,MATCH(A108,'RC'!BI$48:BI$179,0))),0,(INDEX('RC'!CZ$48:CZ$179,MATCH(A108,'RC'!BI$48:BI$179,0)))) -> 0 | Y108: 0 | Z108: =IF(A108>='RC'!BM$29,0,IF(ISERROR(INDEX('RC'!CF$48:CF$179,MATCH(A108,'RC'!BI$48:BI$179,0))),0,(INDEX('RC'!CF$48:CF$179,MATCH(A108,'RC'!BI$48:BI$179,0))))) -> 0 | AA108: 0 | AB108: 0 | AJ108: 0 | AK108: 0
A109: 2023-06-01 | B109: =IF(ISERROR(INDEX('RC'!BJ$48:BJ$179,MATCH(A109,'RC'!BI$48:BI$179,0))),0,(INDEX('RC'!BJ$48:BJ$179,MATCH(A109,'RC'!BI$48:BI$179,0)))) -> 0 | C109: =IF(B109="",0,IF(B109=0,0,INDEX('RC'!BK$48:BK$179,MATCH(A109,'RC'!BI$48:BI$179,0)))) -> 0 | D109: =IF(B109="",0,IF(B109=0,0,INDEX('RC'!BL$48:BL$179,MATCH(A109,'RC'!BI$48:BI$179,0)))) -> 0 | E109: =IF(B109="",0,IF(B109=0,0,INDEX('RC'!BM$48:BM$179,MATCH(A109,'RC'!BI$48:BI$179,0)))) -> 0 | F109: 0 | G109: =IF(ISERROR(INDEX('RC'!BP$48:BP$179,MATCH(A109,'RC'!BI$48:BI$179,0))),0,(INDEX('RC'!BP$48:BP$179,MATCH(A109,'RC'!BI$48:BI$179,0)))) -> 0 | H109: =IF(B109="",0,IF(B109=0,0,INDEX('RC'!BQ$48:BQ$179,MATCH(A109,'RC'!BI$48:BI$179,0)))) -> 0 | I109: =IF(B109="",0,IF(B109=0,0,INDEX('RC'!BR$48:BR$179,MATCH(A109,'RC'!BI$48:BI$179,0)))) -> 0 | J109: =IF(B109="",0,IF(B109=0,0,INDEX('RC'!BS$48:BS$179,MATCH(A109,'RC'!BI$48:BI$179,0)))) -> 0 | K109: 0 | L109: 0 | M109: 0 | N109: 0 | O109: 0 | P109: 0 | Q109: =IF(ISERROR(INDEX('RC'!DG$48:DG$179,MATCH(A109,'RC'!BI$48:BI$179,0))),0,(INDEX('RC'!DG$48:DG$179,MATCH(A109,'RC'!BI$48:BI$179,0)))) -> 0 | R109: =IF(ISERROR(INDEX('RC'!DH$48:DH$179,MATCH(A109,'RC'!BI$48:BI$179,0))),0,(INDEX('RC'!DH$48:DH$179,MATCH(A109,'RC'!BI$48:BI$179,0)))) -> 0 | S109: 0 | T109: =IF(Entry!B$28="Y",0,IF(ISERROR(INDEX('RC'!CV$48:CV$179,MATCH(A109,'RC'!BI$48:BI$179,0))),0,(INDEX('RC'!CV$48:CV$179,MATCH(A109,'RC'!BI$48:BI$179,0))))) -> 0 | U109: =IF(Entry!B$28="Y",0,IF(ISERROR(INDEX('RC'!CW$48:CW$179,MATCH(A109,'RC'!BI$48:BI$179,0))),0,(INDEX('RC'!CW$48:CW$179,MATCH(A109,'RC'!BI$48:BI$179,0))))) -> 0 | V109: 0 | W109: =IF(ISERROR(INDEX('RC'!CY$48:CY$179,MATCH(A109,'RC'!BI$48:BI$179,0))),0,(INDEX('RC'!CY$48:CY$179,MATCH(A109,'RC'!BI$48:BI$179,0)))) -> 0 | X109: =IF(ISERROR(INDEX('RC'!CZ$48:CZ$179,MATCH(A109,'RC'!BI$48:BI$179,0))),0,(INDEX('RC'!CZ$48:CZ$179,MATCH(A109,'RC'!BI$48:BI$179,0)))) -> 0 | Y109: 0 | Z109: =IF(A109>='RC'!BM$29,0,IF(ISERROR(INDEX('RC'!CF$48:CF$179,MATCH(A109,'RC'!BI$48:BI$179,0))),0,(INDEX('RC'!CF$48:CF$179,MATCH(A109,'RC'!BI$48:BI$179,0))))) -> 0 | AA109: 0 | AB109: 0 | AJ109: 0 | AK109: 0
A110: =EDATE(A109,1) -> 2023-07-01 | B110: =IF(ISERROR(INDEX('RC'!BJ$48:BJ$179,MATCH(A110,'RC'!BI$48:BI$179,0))),0,(INDEX('RC'!BJ$48:BJ$179,MATCH(A110,'RC'!BI$48:BI$179,0)))) -> 0 | C110: =IF(B110="",0,IF(B110=0,0,INDEX('RC'!BK$48:BK$179,MATCH(A110,'RC'!BI$48:BI$179,0)))) -> 0 | D110: =IF(B110="",0,IF(B110=0,0,INDEX('RC'!BL$48:BL$179,MATCH(A110,'RC'!BI$48:BI$179,0)))) -> 0 | E110: =IF(B110="",0,IF(B110=0,0,INDEX('RC'!BM$48:BM$179,MATCH(A110,'RC'!BI$48:BI$179,0)))) -> 0 | F110: 0 | G110: =IF(ISERROR(INDEX('RC'!BP$48:BP$179,MATCH(A110,'RC'!BI$48:BI$179,0))),0,(INDEX('RC'!BP$48:BP$179,MATCH(A110,'RC'!BI$48:BI$179,0)))) -> 0 | H110: =IF(B110="",0,IF(B110=0,0,INDEX('RC'!BQ$48:BQ$179,MATCH(A110,'RC'!BI$48:BI$179,0)))) -> 0 | I110: =IF(B110="",0,IF(B110=0,0,INDEX('RC'!BR$48:BR$179,MATCH(A110,'RC'!BI$48:BI$179,0)))) -> 0 | J110: =IF(B110="",0,IF(B110=0,0,INDEX('RC'!BS$48:BS$179,MATCH(A110,'RC'!BI$48:BI$179,0)))) -> 0 | K110: 0 | L110: 0 | M110: 0 | N110: 0 | O110: 0 | P110: 0 | Q110: =IF(ISERROR(INDEX('RC'!DG$48:DG$179,MATCH(A110,'RC'!BI$48:BI$179,0))),0,(INDEX('RC'!DG$48:DG$179,MATCH(A110,'RC'!BI$48:BI$179,0)))) -> 0 | R110: =IF(ISERROR(INDEX('RC'!DH$48:DH$179,MATCH(A110,'RC'!BI$48:BI$179,0))),0,(INDEX('RC'!DH$48:DH$179,MATCH(A110,'RC'!BI$48:BI$179,0)))) -> 0 | S110: 0 | T110: =IF(Entry!B$28="Y",0,IF(ISERROR(INDEX('RC'!CV$48:CV$179,MATCH(A110,'RC'!BI$48:BI$179,0))),0,(INDEX('RC'!CV$48:CV$179,MATCH(A110,'RC'!BI$48:BI$179,0))))) -> 0 | U110: =IF(Entry!B$28="Y",0,IF(ISERROR(INDEX('RC'!CW$48:CW$179,MATCH(A110,'RC'!BI$48:BI$179,0))),0,(INDEX('RC'!CW$48:CW$179,MATCH(A110,'RC'!BI$48:BI$179,0))))) -> 0 | V110: 0 | W110: =IF(ISERROR(INDEX('RC'!CY$48:CY$179,MATCH(A110,'RC'!BI$48:BI$179,0))),0,(INDEX('RC'!CY$48:CY$179,MATCH(A110,'RC'!BI$48:BI$179,0)))) -> 0 | X110: =IF(ISERROR(INDEX('RC'!CZ$48:CZ$179,MATCH(A110,'RC'!BI$48:BI$179,0))),0,(INDEX('RC'!CZ$48:CZ$179,MATCH(A110,'RC'!BI$48:BI$179,0)))) -> 0 | Y110: 0 | Z110: =IF(A110>='RC'!BM$29,0,IF(ISERROR(INDEX('RC'!CF$48:CF$179,MATCH(A110,'RC'!BI$48:BI$179,0))),0,(INDEX('RC'!CF$48:CF$179,MATCH(A110,'RC'!BI$48:BI$179,0))))) -> 0 | AA110: 0 | AB110: 0 | AJ110: 0 | AK110: 0
A111: 2023-08-01 | B111: =IF(ISERROR(INDEX('RC'!BJ$48:BJ$179,MATCH(A111,'RC'!BI$48:BI$179,0))),0,(INDEX('RC'!BJ$48:BJ$179,MATCH(A111,'RC'!BI$48:BI$179,0)))) -> 0 | C111: =IF(B111="",0,IF(B111=0,0,INDEX('RC'!BK$48:BK$179,MATCH(A111,'RC'!BI$48:BI$179,0)))) -> 0 | D111: =IF(B111="",0,IF(B111=0,0,INDEX('RC'!BL$48:BL$179,MATCH(A111,'RC'!BI$48:BI$179,0)))) -> 0 | E111: =IF(B111="",0,IF(B111=0,0,INDEX('RC'!BM$48:BM$179,MATCH(A111,'RC'!BI$48:BI$179,0)))) -> 0 | F111: 0 | G111: =IF(ISERROR(INDEX('RC'!BP$48:BP$179,MATCH(A111,'RC'!BI$48:BI$179,0))),0,(INDEX('RC'!BP$48:BP$179,MATCH(A111,'RC'!BI$48:BI$179,0)))) -> 0 | H111: =IF(B111="",0,IF(B111=0,0,INDEX('RC'!BQ$48:BQ$179,MATCH(A111,'RC'!BI$48:BI$179,0)))) -> 0 | I111: =IF(B111="",0,IF(B111=0,0,INDEX('RC'!BR$48:BR$179,MATCH(A111,'RC'!BI$48:BI$179,0)))) -> 0 | J111: =IF(B111="",0,IF(B111=0,0,INDEX('RC'!BS$48:BS$179,MATCH(A111,'RC'!BI$48:BI$179,0)))) -> 0 | K111: 0 | L111: 0 | M111: 0 | N111: 0 | O111: 0 | P111: 0 | Q111: =IF(ISERROR(INDEX('RC'!DG$48:DG$179,MATCH(A111,'RC'!BI$48:BI$179,0))),0,(INDEX('RC'!DG$48:DG$179,MATCH(A111,'RC'!BI$48:BI$179,0)))) -> 0 | R111: =IF(ISERROR(INDEX('RC'!DH$48:DH$179,MATCH(A111,'RC'!BI$48:BI$179,0))),0,(INDEX('RC'!DH$48:DH$179,MATCH(A111,'RC'!BI$48:BI$179,0)))) -> 0 | S111: 0 | T111: =IF(Entry!B$28="Y",0,IF(ISERROR(INDEX('RC'!CV$48:CV$179,MATCH(A111,'RC'!BI$48:BI$179,0))),0,(INDEX('RC'!CV$48:CV$179,MATCH(A111,'RC'!BI$48:BI$179,0))))) -> 0 | U111: =IF(Entry!B$28="Y",0,IF(ISERROR(INDEX('RC'!CW$48:CW$179,MATCH(A111,'RC'!BI$48:BI$179,0))),0,(INDEX('RC'!CW$48:CW$179,MATCH(A111,'RC'!BI$48:BI$179,0))))) -> 0 | V111: 0 | W111: =IF(ISERROR(INDEX('RC'!CY$48:CY$179,MATCH(A111,'RC'!BI$48:BI$179,0))),0,(INDEX('RC'!CY$48:CY$179,MATCH(A111,'RC'!BI$48:BI$179,0)))) -> 0 | X111: =IF(ISERROR(INDEX('RC'!CZ$48:CZ$179,MATCH(A111,'RC'!BI$48:BI$179,0))),0,(INDEX('RC'!CZ$48:CZ$179,MATCH(A111,'RC'!BI$48:BI$179,0)))) -> 0 | Y111: 0 | Z111: =IF(A111>='RC'!BM$29,0,IF(ISERROR(INDEX('RC'!CF$48:CF$179,MATCH(A111,'RC'!BI$48:BI$179,0))),0,(INDEX('RC'!CF$48:CF$179,MATCH(A111,'RC'!BI$48:BI$179,0))))) -> 0 | AA111: 0 | AB111: 0 | AJ111: 0 | AK111: 0
A112: 2023-09-01 | B112: =IF(ISERROR(INDEX('RC'!BJ$48:BJ$179,MATCH(A112,'RC'!BI$48:BI$179,0))),0,(INDEX('RC'!BJ$48:BJ$179,MATCH(A112,'RC'!BI$48:BI$179,0)))) -> 0 | C112: =IF(B112="",0,IF(B112=0,0,INDEX('RC'!BK$48:BK$179,MATCH(A112,'RC'!BI$48:BI$179,0)))) -> 0 | D112: =IF(B112="",0,IF(B112=0,0,INDEX('RC'!BL$48:BL$179,MATCH(A112,'RC'!BI$48:BI$179,0)))) -> 0 | E112: =IF(B112="",0,IF(B112=0,0,INDEX('RC'!BM$48:BM$179,MATCH(A112,'RC'!BI$48:BI$179,0)))) -> 0 | F112: 0 | G112: =IF(ISERROR(INDEX('RC'!BP$48:BP$179,MATCH(A112,'RC'!BI$48:BI$179,0))),0,(INDEX('RC'!BP$48:BP$179,MATCH(A112,'RC'!BI$48:BI$179,0)))) -> 0 | H112: =IF(B112="",0,IF(B112=0,0,INDEX('RC'!BQ$48:BQ$179,MATCH(A112,'RC'!BI$48:BI$179,0)))) -> 0 | I112: =IF(B112="",0,IF(B112=0,0,INDEX('RC'!BR$48:BR$179,MATCH(A112,'RC'!BI$48:BI$179,0)))) -> 0 | J112: =IF(B112="",0,IF(B112=0,0,INDEX('RC'!BS$48:BS$179,MATCH(A112,'RC'!BI$48:BI$179,0)))) -> 0 | K112: =SUM(G112:J112) -> 0 | L112: =B112-G112 -> 0 | M112: =C112-H112 -> 0 | N112: =D112-I112 -> 0 | O112: 0 | P112: 0 | Q112: =IF(ISERROR(INDEX('RC'!DG$48:DG$179,MATCH(A112,'RC'!BI$48:BI$179,0))),0,(INDEX('RC'!DG$48:DG$179,MATCH(A112,'RC'!BI$48:BI$179,0)))) -> 0 | R112: =IF(ISERROR(INDEX('RC'!DH$48:DH$179,MATCH(A112,'RC'!BI$48:BI$179,0))),0,(INDEX('RC'!DH$48:DH$179,MATCH(A112,'RC'!BI$48:BI$179,0)))) -> 0 | S112: 0 | T112: =IF(Entry!B$28="Y",0,IF(ISERROR(INDEX('RC'!CV$48:CV$179,MATCH(A112,'RC'!BI$48:BI$179,0))),0,(INDEX('RC'!CV$48:CV$179,MATCH(A112,'RC'!BI$48:BI$179,0))))) -> 0 | U112: =IF(Entry!B$28="Y",0,IF(ISERROR(INDEX('RC'!CW$48:CW$179,MATCH(A112,'RC'!BI$48:BI$179,0))),0,(INDEX('RC'!CW$48:CW$179,MATCH(A112,'RC'!BI$48:BI$179,0))))) -> 0 | V112: 0 | W112: =IF(ISERROR(INDEX('RC'!CY$48:CY$179,MATCH(A112,'RC'!BI$48:BI$179,0))),0,(INDEX('RC'!CY$48:CY$179,MATCH(A112,'RC'!BI$48:BI$179,0)))) -> 0 | X112: =IF(ISERROR(INDEX('RC'!CZ$48:CZ$179,MATCH(A112,'RC'!BI$48:BI$179,0))),0,(INDEX('RC'!CZ$48:CZ$179,MATCH(A112,'RC'!BI$48:BI$179,0)))) -> 0 | Y112: 0 | Z112: =IF(A112>='RC'!BM$29,0,IF(ISERROR(INDEX('RC'!CF$48:CF$179,MATCH(A112,'RC'!BI$48:BI$179,0))),0,(INDEX('RC'!CF$48:CF$179,MATCH(A112,'RC'!BI$48:BI$179,0))))) -> 0 | AA112: 0 | AB112: 0 | AJ112: 0 | AK112: 0
A113: 2023-10-01 | B113: =IF(ISERROR(INDEX('RC'!BJ$48:BJ$179,MATCH(A113,'RC'!BI$48:BI$179,0))),0,(INDEX('RC'!BJ$48:BJ$179,MATCH(A113,'RC'!BI$48:BI$179,0)))) -> 0 | C113: =IF(B113="",0,IF(B113=0,0,INDEX('RC'!BK$48:BK$179,MATCH(A113,'RC'!BI$48:BI$179,0)))) -> 0 | D113: =IF(B113="",0,IF(B113=0,0,INDEX('RC'!BL$48:BL$179,MATCH(A113,'RC'!BI$48:BI$179,0)))) -> 0 | E113: =IF(B113="",0,IF(B113=0,0,INDEX('RC'!BM$48:BM$179,MATCH(A113,'RC'!BI$48:BI$179,0)))) -> 0 | F113: 0 | G113: =IF(ISERROR(INDEX('RC'!BP$48:BP$179,MATCH(A113,'RC'!BI$48:BI$179,0))),0,(INDEX('RC'!BP$48:BP$179,MATCH(A113,'RC'!BI$48:BI$179,0)))) -> 0 | H113: =IF(B113="",0,IF(B113=0,0,INDEX('RC'!BQ$48:BQ$179,MATCH(A113,'RC'!BI$48:BI$179,0)))) -> 0 | I113: =IF(B113="",0,IF(B113=0,0,INDEX('RC'!BR$48:BR$179,MATCH(A113,'RC'!BI$48:BI$179,0)))) -> 0 | J113: =IF(B113="",0,IF(B113=0,0,INDEX('RC'!BS$48:BS$179,MATCH(A113,'RC'!BI$48:BI$179,0)))) -> 0 | K113: 0 | L113: 0 | M113: 0 | N113: 0 | O113: 0 | P113: 0 | Q113: =IF(ISERROR(INDEX('RC'!DG$48:DG$179,MATCH(A113,'RC'!BI$48:BI$179,0))),0,(INDEX('RC'!DG$48:DG$179,MATCH(A113,'RC'!BI$48:BI$179,0)))) -> 0 | R113: =IF(ISERROR(INDEX('RC'!DH$48:DH$179,MATCH(A113,'RC'!BI$48:BI$179,0))),0,(INDEX('RC'!DH$48:DH$179,MATCH(A113,'RC'!BI$48:BI$179,0)))) -> 0 | S113: 0 | T113: =IF(Entry!B$28="Y",0,IF(ISERROR(INDEX('RC'!CV$48:CV$179,MATCH(A113,'RC'!BI$48:BI$179,0))),0,(INDEX('RC'!CV$48:CV$179,MATCH(A113,'RC'!BI$48:BI$179,0))))) -> 0 | U113: =IF(Entry!B$28="Y",0,IF(ISERROR(INDEX('RC'!CW$48:CW$179,MATCH(A113,'RC'!BI$48:BI$179,0))),0,(INDEX('RC'!CW$48:CW$179,MATCH(A113,'RC'!BI$48:BI$179,0))))) -> 0 | V113: 0 | W113: =IF(ISERROR(INDEX('RC'!CY$48:CY$179,MATCH(A113,'RC'!BI$48:BI$179,0))),0,(INDEX('RC'!CY$48:CY$179,MATCH(A113,'RC'!BI$48:BI$179,0)))) -> 0 | X113: =IF(ISERROR(INDEX('RC'!CZ$48:CZ$179,MATCH(A113,'RC'!BI$48:BI$179,0))),0,(INDEX('RC'!CZ$48:CZ$179,MATCH(A113,'RC'!BI$48:BI$179,0)))) -> 0 | Y113: 0 | Z113: =IF(A113>='RC'!BM$29,0,IF(ISERROR(INDEX('RC'!CF$48:CF$179,MATCH(A113,'RC'!BI$48:BI$179,0))),0,(INDEX('RC'!CF$48:CF$179,MATCH(A113,'RC'!BI$48:BI$179,0))))) -> 0 | AA113: 0 | AB113: 0 | AJ113: 0 | AK113: 0
A114: 2023-11-01 | B114: =IF(ISERROR(INDEX('RC'!BJ$48:BJ$179,MATCH(A114,'RC'!BI$48:BI$179,0))),0,(INDEX('RC'!BJ$48:BJ$179,MATCH(A114,'RC'!BI$48:BI$179,0)))) -> 0 | C114: =IF(B114="",0,IF(B114=0,0,INDEX('RC'!BK$48:BK$179,MATCH(A114,'RC'!BI$48:BI$179,0)))) -> 0 | D114: =IF(B114="",0,IF(B114=0,0,INDEX('RC'!BL$48:BL$179,MATCH(A114,'RC'!BI$48:BI$179,0)))) -> 0 | E114: =IF(B114="",0,IF(B114=0,0,INDEX('RC'!BM$48:BM$179,MATCH(A114,'RC'!BI$48:BI$179,0)))) -> 0 | F114: 0 | G114: =IF(ISERROR(INDEX('RC'!BP$48:BP$179,MATCH(A114,'RC'!BI$48:BI$179,0))),0,(INDEX('RC'!BP$48:BP$179,MATCH(A114,'RC'!BI$48:BI$179,0)))) -> 0 | H114: =IF(B114="",0,IF(B114=0,0,INDEX('RC'!BQ$48:BQ$179,MATCH(A114,'RC'!BI$48:BI$179,0)))) -> 0 | I114: =IF(B114="",0,IF(B114=0,0,INDEX('RC'!BR$48:BR$179,MATCH(A114,'RC'!BI$48:BI$179,0)))) -> 0 | J114: =IF(B114="",0,IF(B114=0,0,INDEX('RC'!BS$48:BS$179,MATCH(A114,'RC'!BI$48:BI$179,0)))) -> 0 | K114: 0 | L114: 0 | M114: 0 | N114: 0 | O114: 0 | P114: 0 | Q114: =IF(ISERROR(INDEX('RC'!DG$48:DG$179,MATCH(A114,'RC'!BI$48:BI$179,0))),0,(INDEX('RC'!DG$48:DG$179,MATCH(A114,'RC'!BI$48:BI$179,0)))) -> 0 | R114: =IF(ISERROR(INDEX('RC'!DH$48:DH$179,MATCH(A114,'RC'!BI$48:BI$179,0))),0,(INDEX('RC'!DH$48:DH$179,MATCH(A114,'RC'!BI$48:BI$179,0)))) -> 0 | S114: 0 | T114: =IF(Entry!B$28="Y",0,IF(ISERROR(INDEX('RC'!CV$48:CV$179,MATCH(A114,'RC'!BI$48:BI$179,0))),0,(INDEX('RC'!CV$48:CV$179,MATCH(A114,'RC'!BI$48:BI$179,0))))) -> 0 | U114: =IF(Entry!B$28="Y",0,IF(ISERROR(INDEX('RC'!CW$48:CW$179,MATCH(A114,'RC'!BI$48:BI$179,0))),0,(INDEX('RC'!CW$48:CW$179,MATCH(A114,'RC'!BI$48:BI$179,0))))) -> 0 | V114: 0 | W114: =IF(ISERROR(INDEX('RC'!CY$48:CY$179,MATCH(A114,'RC'!BI$48:BI$179,0))),0,(INDEX('RC'!CY$48:CY$179,MATCH(A114,'RC'!BI$48:BI$179,0)))) -> 0 | X114: =IF(ISERROR(INDEX('RC'!CZ$48:CZ$179,MATCH(A114,'RC'!BI$48:BI$179,0))),0,(INDEX('RC'!CZ$48:CZ$179,MATCH(A114,'RC'!BI$48:BI$179,0)))) -> 0 | Y114: 0 | Z114: =IF(A114>='RC'!BM$29,0,IF(ISERROR(INDEX('RC'!CF$48:CF$179,MATCH(A114,'RC'!BI$48:BI$179,0))),0,(INDEX('RC'!CF$48:CF$179,MATCH(A114,'RC'!BI$48:BI$179,0))))) -> 0 | AA114: 0 | AB114: 0 | AJ114: 0 | AK114: 0
A115: 2023-12-01 | B115: =IF(ISERROR(INDEX('RC'!BJ$48:BJ$179,MATCH(A115,'RC'!BI$48:BI$179,0))),0,(INDEX('RC'!BJ$48:BJ$179,MATCH(A115,'RC'!BI$48:BI$179,0)))) -> 0 | C115: =IF(B115="",0,IF(B115=0,0,INDEX('RC'!BK$48:BK$179,MATCH(A115,'RC'!BI$48:BI$179,0)))) -> 0 | D115: =IF(B115="",0,IF(B115=0,0,INDEX('RC'!BL$48:BL$179,MATCH(A115,'RC'!BI$48:BI$179,0)))) -> 0 | E115: =IF(B115="",0,IF(B115=0,0,INDEX('RC'!BM$48:BM$179,MATCH(A115,'RC'!BI$48:BI$179,0)))) -> 0 | F115: 0 | G115: =IF(ISERROR(INDEX('RC'!BP$48:BP$179,MATCH(A115,'RC'!BI$48:BI$179,0))),0,(INDEX('RC'!BP$48:BP$179,MATCH(A115,'RC'!BI$48:BI$179,0)))) -> 0 | H115: =IF(B115="",0,IF(B115=0,0,INDEX('RC'!BQ$48:BQ$179,MATCH(A115,'RC'!BI$48:BI$179,0)))) -> 0 | I115: =IF(B115="",0,IF(B115=0,0,INDEX('RC'!BR$48:BR$179,MATCH(A115,'RC'!BI$48:BI$179,0)))) -> 0 | J115: =IF(B115="",0,IF(B115=0,0,INDEX('RC'!BS$48:BS$179,MATCH(A115,'RC'!BI$48:BI$179,0)))) -> 0 | K115: 0 | L115: 0 | M115: 0 | N115: 0 | O115: 0 | P115: 0 | Q115: =IF(ISERROR(INDEX('RC'!DG$48:DG$179,MATCH(A115,'RC'!BI$48:BI$179,0))),0,(INDEX('RC'!DG$48:DG$179,MATCH(A115,'RC'!BI$48:BI$179,0)))) -> 0 | R115: =IF(ISERROR(INDEX('RC'!DH$48:DH$179,MATCH(A115,'RC'!BI$48:BI$179,0))),0,(INDEX('RC'!DH$48:DH$179,MATCH(A115,'RC'!BI$48:BI$179,0)))) -> 0 | S115: 0 | T115: =IF(Entry!B$28="Y",0,IF(ISERROR(INDEX('RC'!CV$48:CV$179,MATCH(A115,'RC'!BI$48:BI$179,0))),0,(INDEX('RC'!CV$48:CV$179,MATCH(A115,'RC'!BI$48:BI$179,0))))) -> 0 | U115: =IF(Entry!B$28="Y",0,IF(ISERROR(INDEX('RC'!CW$48:CW$179,MATCH(A115,'RC'!BI$48:BI$179,0))),0,(INDEX('RC'!CW$48:CW$179,MATCH(A115,'RC'!BI$48:BI$179,0))))) -> 0 | V115: 0 | W115: =IF(ISERROR(INDEX('RC'!CY$48:CY$179,MATCH(A115,'RC'!BI$48:BI$179,0))),0,(INDEX('RC'!CY$48:CY$179,MATCH(A115,'RC'!BI$48:BI$179,0)))) -> 0 | X115: =IF(ISERROR(INDEX('RC'!CZ$48:CZ$179,MATCH(A115,'RC'!BI$48:BI$179,0))),0,(INDEX('RC'!CZ$48:CZ$179,MATCH(A115,'RC'!BI$48:BI$179,0)))) -> 0 | Y115: 0 | Z115: =IF(A115>='RC'!BM$29,0,IF(ISERROR(INDEX('RC'!CF$48:CF$179,MATCH(A115,'RC'!BI$48:BI$179,0))),0,(INDEX('RC'!CF$48:CF$179,MATCH(A115,'RC'!BI$48:BI$179,0))))) -> 0 | AA115: 0 | AB115: 0 | AJ115: 0 | AK115: 0
A116: 2024-01-01 | B116: =IF(ISERROR(INDEX('RC'!BJ$48:BJ$179,MATCH(A116,'RC'!BI$48:BI$179,0))),0,(INDEX('RC'!BJ$48:BJ$179,MATCH(A116,'RC'!BI$48:BI$179,0)))) -> 0 | C116: =IF(B116="",0,IF(B116=0,0,INDEX('RC'!BK$48:BK$179,MATCH(A116,'RC'!BI$48:BI$179,0)))) -> 0 | D116: =IF(B116="",0,IF(B116=0,0,INDEX('RC'!BL$48:BL$179,MATCH(A116,'RC'!BI$48:BI$179,0)))) -> 0 | E116: =IF(B116="",0,IF(B116=0,0,INDEX('RC'!BM$48:BM$179,MATCH(A116,'RC'!BI$48:BI$179,0)))) -> 0 | F116: 0 | G116: =IF(ISERROR(INDEX('RC'!BP$48:BP$179,MATCH(A116,'RC'!BI$48:BI$179,0))),0,(INDEX('RC'!BP$48:BP$179,MATCH(A116,'RC'!BI$48:BI$179,0)))) -> 0 | H116: =IF(B116="",0,IF(B116=0,0,INDEX('RC'!BQ$48:BQ$179,MATCH(A116,'RC'!BI$48:BI$179,0)))) -> 0 | I116: =IF(B116="",0,IF(B116=0,0,INDEX('RC'!BR$48:BR$179,MATCH(A116,'RC'!BI$48:BI$179,0)))) -> 0 | J116: =IF(B116="",0,IF(B116=0,0,INDEX('RC'!BS$48:BS$179,MATCH(A116,'RC'!BI$48:BI$179,0)))) -> 0 | K116: 0 | L116: 0 | M116: 0 | N116: 0 | O116: 0 | P116: 0 | Q116: =IF(ISERROR(INDEX('RC'!DG$48:DG$179,MATCH(A116,'RC'!BI$48:BI$179,0))),0,(INDEX('RC'!DG$48:DG$179,MATCH(A116,'RC'!BI$48:BI$179,0)))) -> 0 | R116: =IF(ISERROR(INDEX('RC'!DH$48:DH$179,MATCH(A116,'RC'!BI$48:BI$179,0))),0,(INDEX('RC'!DH$48:DH$179,MATCH(A116,'RC'!BI$48:BI$179,0)))) -> 0 | S116: 0 | T116: =IF(Entry!B$28="Y",0,IF(ISERROR(INDEX('RC'!CV$48:CV$179,MATCH(A116,'RC'!BI$48:BI$179,0))),0,(INDEX('RC'!CV$48:CV$179,MATCH(A116,'RC'!BI$48:BI$179,0))))) -> 0 | U116: =IF(Entry!B$28="Y",0,IF(ISERROR(INDEX('RC'!CW$48:CW$179,MATCH(A116,'RC'!BI$48:BI$179,0))),0,(INDEX('RC'!CW$48:CW$179,MATCH(A116,'RC'!BI$48:BI$179,0))))) -> 0 | V116: 0 | W116: =IF(ISERROR(INDEX('RC'!CY$48:CY$179,MATCH(A116,'RC'!BI$48:BI$179,0))),0,(INDEX('RC'!CY$48:CY$179,MATCH(A116,'RC'!BI$48:BI$179,0)))) -> 0 | X116: =IF(ISERROR(INDEX('RC'!CZ$48:CZ$179,MATCH(A116,'RC'!BI$48:BI$179,0))),0,(INDEX('RC'!CZ$48:CZ$179,MATCH(A116,'RC'!BI$48:BI$179,0)))) -> 0 | Y116: 0 | Z116: =IF(A116>='RC'!BM$29,0,IF(ISERROR(INDEX('RC'!CF$48:CF$179,MATCH(A116,'RC'!BI$48:BI$179,0))),0,(INDEX('RC'!CF$48:CF$179,MATCH(A116,'RC'!BI$48:BI$179,0))))) -> 0 | AA116: 0 | AB116: 0 | AJ116: 0 | AK116: 0
A117: 2024-02-01 | B117: =IF(ISERROR(INDEX('RC'!BJ$48:BJ$179,MATCH(A117,'RC'!BI$48:BI$179,0))),0,(INDEX('RC'!BJ$48:BJ$179,MATCH(A117,'RC'!BI$48:BI$179,0)))) -> 0 | C117: =IF(B117="",0,IF(B117=0,0,INDEX('RC'!BK$48:BK$179,MATCH(A117,'RC'!BI$48:BI$179,0)))) -> 0 | D117: =IF(B117="",0,IF(B117=0,0,INDEX('RC'!BL$48:BL$179,MATCH(A117,'RC'!BI$48:BI$179,0)))) -> 0 | E117: =IF(B117="",0,IF(B117=0,0,INDEX('RC'!BM$48:BM$179,MATCH(A117,'RC'!BI$48:BI$179,0)))) -> 0 | F117: 0 | G117: =IF(ISERROR(INDEX('RC'!BP$48:BP$179,MATCH(A117,'RC'!BI$48:BI$179,0))),0,(INDEX('RC'!BP$48:BP$179,MATCH(A117,'RC'!BI$48:BI$179,0)))) -> 0 | H117: =IF(B117="",0,IF(B117=0,0,INDEX('RC'!BQ$48:BQ$179,MATCH(A117,'RC'!BI$48:BI$179,0)))) -> 0 | I117: =IF(B117="",0,IF(B117=0,0,INDEX('RC'!BR$48:BR$179,MATCH(A117,'RC'!BI$48:BI$179,0)))) -> 0 | J117: =IF(B117="",0,IF(B117=0,0,INDEX('RC'!BS$48:BS$179,MATCH(A117,'RC'!BI$48:BI$179,0)))) -> 0 | K117: 0 | L117: 0 | M117: 0 | N117: 0 | O117: 0 | P117: 0 | Q117: =IF(ISERROR(INDEX('RC'!DG$48:DG$179,MATCH(A117,'RC'!BI$48:BI$179,0))),0,(INDEX('RC'!DG$48:DG$179,MATCH(A117,'RC'!BI$48:BI$179,0)))) -> 0 | R117: =IF(ISERROR(INDEX('RC'!DH$48:DH$179,MATCH(A117,'RC'!BI$48:BI$179,0))),0,(INDEX('RC'!DH$48:DH$179,MATCH(A117,'RC'!BI$48:BI$179,0)))) -> 0 | S117: 0 | T117: =IF(Entry!B$28="Y",0,IF(ISERROR(INDEX('RC'!CV$48:CV$179,MATCH(A117,'RC'!BI$48:BI$179,0))),0,(INDEX('RC'!CV$48:CV$179,MATCH(A117,'RC'!BI$48:BI$179,0))))) -> 0 | U117: =IF(Entry!B$28="Y",0,IF(ISERROR(INDEX('RC'!CW$48:CW$179,MATCH(A117,'RC'!BI$48:BI$179,0))),0,(INDEX('RC'!CW$48:CW$179,MATCH(A117,'RC'!BI$48:BI$179,0))))) -> 0 | V117: 0 | W117: =IF(ISERROR(INDEX('RC'!CY$48:CY$179,MATCH(A117,'RC'!BI$48:BI$179,0))),0,(INDEX('RC'!CY$48:CY$179,MATCH(A117,'RC'!BI$48:BI$179,0)))) -> 0 | X117: =IF(ISERROR(INDEX('RC'!CZ$48:CZ$179,MATCH(A117,'RC'!BI$48:BI$179,0))),0,(INDEX('RC'!CZ$48:CZ$179,MATCH(A117,'RC'!BI$48:BI$179,0)))) -> 0 | Y117: 0 | Z117: =IF(A117>='RC'!BM$29,0,IF(ISERROR(INDEX('RC'!CF$48:CF$179,MATCH(A117,'RC'!BI$48:BI$179,0))),0,(INDEX('RC'!CF$48:CF$179,MATCH(A117,'RC'!BI$48:BI$179,0))))) -> 0 | AA117: 0 | AB117: 0 | AJ117: 0 | AK117: 0
A118: 2024-03-01 | B118: =IF(ISERROR(INDEX('RC'!BJ$48:BJ$179,MATCH(A118,'RC'!BI$48:BI$179,0))),0,(INDEX('RC'!BJ$48:BJ$179,MATCH(A118,'RC'!BI$48:BI$179,0)))) -> 0 | C118: =IF(B118="",0,IF(B118=0,0,INDEX('RC'!BK$48:BK$179,MATCH(A118,'RC'!BI$48:BI$179,0)))) -> 0 | D118: =IF(B118="",0,IF(B118=0,0,INDEX('RC'!BL$48:BL$179,MATCH(A118,'RC'!BI$48:BI$179,0)))) -> 0 | E118: =IF(B118="",0,IF(B118=0,0,INDEX('RC'!BM$48:BM$179,MATCH(A118,'RC'!BI$48:BI$179,0)))) -> 0 | F118: 0 | G118: =IF(ISERROR(INDEX('RC'!BP$48:BP$179,MATCH(A118,'RC'!BI$48:BI$179,0))),0,(INDEX('RC'!BP$48:BP$179,MATCH(A118,'RC'!BI$48:BI$179,0)))) -> 0 | H118: =IF(B118="",0,IF(B118=0,0,INDEX('RC'!BQ$48:BQ$179,MATCH(A118,'RC'!BI$48:BI$179,0)))) -> 0 | I118: =IF(B118="",0,IF(B118=0,0,INDEX('RC'!BR$48:BR$179,MATCH(A118,'RC'!BI$48:BI$179,0)))) -> 0 | J118: =IF(B118="",0,IF(B118=0,0,INDEX('RC'!BS$48:BS$179,MATCH(A118,'RC'!BI$48:BI$179,0)))) -> 0 | K118: 0 | L118: 0 | M118: 0 | N118: 0 | O118: 0 | P118: 0 | Q118: =IF(ISERROR(INDEX('RC'!DG$48:DG$179,MATCH(A118,'RC'!BI$48:BI$179,0))),0,(INDEX('RC'!DG$48:DG$179,MATCH(A118,'RC'!BI$48:BI$179,0)))) -> 0 | R118: =IF(ISERROR(INDEX('RC'!DH$48:DH$179,MATCH(A118,'RC'!BI$48:BI$179,0))),0,(INDEX('RC'!DH$48:DH$179,MATCH(A118,'RC'!BI$48:BI$179,0)))) -> 0 | S118: 0 | T118: =IF(Entry!B$28="Y",0,IF(ISERROR(INDEX('RC'!CV$48:CV$179,MATCH(A118,'RC'!BI$48:BI$179,0))),0,(INDEX('RC'!CV$48:CV$179,MATCH(A118,'RC'!BI$48:BI$179,0))))) -> 0 | U118: =IF(Entry!B$28="Y",0,IF(ISERROR(INDEX('RC'!CW$48:CW$179,MATCH(A118,'RC'!BI$48:BI$179,0))),0,(INDEX('RC'!CW$48:CW$179,MATCH(A118,'RC'!BI$48:BI$179,0))))) -> 0 | V118: 0 | W118: =IF(ISERROR(INDEX('RC'!CY$48:CY$179,MATCH(A118,'RC'!BI$48:BI$179,0))),0,(INDEX('RC'!CY$48:CY$179,MATCH(A118,'RC'!BI$48:BI$179,0)))) -> 0 | X118: =IF(ISERROR(INDEX('RC'!CZ$48:CZ$179,MATCH(A118,'RC'!BI$48:BI$179,0))),0,(INDEX('RC'!CZ$48:CZ$179,MATCH(A118,'RC'!BI$48:BI$179,0)))) -> 0 | Y118: 0 | Z118: =IF(A118>='RC'!BM$29,0,IF(ISERROR(INDEX('RC'!CF$48:CF$179,MATCH(A118,'RC'!BI$48:BI$179,0))),0,(INDEX('RC'!CF$48:CF$179,MATCH(A118,'RC'!BI$48:BI$179,0))))) -> 0 | AA118: 0 | AB118: 0 | AJ118: 0 | AK118: 0
A119: 2024-04-01 | B119: =IF(ISERROR(INDEX('RC'!BJ$48:BJ$179,MATCH(A119,'RC'!BI$48:BI$179,0))),0,(INDEX('RC'!BJ$48:BJ$179,MATCH(A119,'RC'!BI$48:BI$179,0)))) -> 0 | C119: =IF(B119="",0,IF(B119=0,0,INDEX('RC'!BK$48:BK$179,MATCH(A119,'RC'!BI$48:BI$179,0)))) -> 0 | D119: =IF(B119="",0,IF(B119=0,0,INDEX('RC'!BL$48:BL$179,MATCH(A119,'RC'!BI$48:BI$179,0)))) -> 0 | E119: =IF(B119="",0,IF(B119=0,0,INDEX('RC'!BM$48:BM$179,MATCH(A119,'RC'!BI$48:BI$179,0)))) -> 0 | F119: 0 | G119: =IF(ISERROR(INDEX('RC'!BP$48:BP$179,MATCH(A119,'RC'!BI$48:BI$179,0))),0,(INDEX('RC'!BP$48:BP$179,MATCH(A119,'RC'!BI$48:BI$179,0)))) -> 0 | H119: =IF(B119="",0,IF(B119=0,0,INDEX('RC'!BQ$48:BQ$179,MATCH(A119,'RC'!BI$48:BI$179,0)))) -> 0 | I119: =IF(B119="",0,IF(B119=0,0,INDEX('RC'!BR$48:BR$179,MATCH(A119,'RC'!BI$48:BI$179,0)))) -> 0 | J119: =IF(B119="",0,IF(B119=0,0,INDEX('RC'!BS$48:BS$179,MATCH(A119,'RC'!BI$48:BI$179,0)))) -> 0 | K119: 0 | L119: 0 | M119: 0 | N119: 0 | O119: 0 | P119: 0 | Q119: =IF(ISERROR(INDEX('RC'!DG$48:DG$179,MATCH(A119,'RC'!BI$48:BI$179,0))),0,(INDEX('RC'!DG$48:DG$179,MATCH(A119,'RC'!BI$48:BI$179,0)))) -> 0 | R119: =IF(ISERROR(INDEX('RC'!DH$48:DH$179,MATCH(A119,'RC'!BI$48:BI$179,0))),0,(INDEX('RC'!DH$48:DH$179,MATCH(A119,'RC'!BI$48:BI$179,0)))) -> 0 | S119: 0 | T119: =IF(Entry!B$28="Y",0,IF(ISERROR(INDEX('RC'!CV$48:CV$179,MATCH(A119,'RC'!BI$48:BI$179,0))),0,(INDEX('RC'!CV$48:CV$179,MATCH(A119,'RC'!BI$48:BI$179,0))))) -> 0 | U119: =IF(Entry!B$28="Y",0,IF(ISERROR(INDEX('RC'!CW$48:CW$179,MATCH(A119,'RC'!BI$48:BI$179,0))),0,(INDEX('RC'!CW$48:CW$179,MATCH(A119,'RC'!BI$48:BI$179,0))))) -> 0 | V119: 0 | W119: =IF(ISERROR(INDEX('RC'!CY$48:CY$179,MATCH(A119,'RC'!BI$48:BI$179,0))),0,(INDEX('RC'!CY$48:CY$179,MATCH(A119,'RC'!BI$48:BI$179,0)))) -> 0 | X119: =IF(ISERROR(INDEX('RC'!CZ$48:CZ$179,MATCH(A119,'RC'!BI$48:BI$179,0))),0,(INDEX('RC'!CZ$48:CZ$179,MATCH(A119,'RC'!BI$48:BI$179,0)))) -> 0 | Y119: 0 | Z119: =IF(A119>='RC'!BM$29,0,IF(ISERROR(INDEX('RC'!CF$48:CF$179,MATCH(A119,'RC'!BI$48:BI$179,0))),0,(INDEX('RC'!CF$48:CF$179,MATCH(A119,'RC'!BI$48:BI$179,0))))) -> 0 | AA119: 0 | AB119: 0 | AJ119: 0 | AK119: 0
A120: 2024-05-01 | B120: =IF(ISERROR(INDEX('RC'!BJ$48:BJ$179,MATCH(A120,'RC'!BI$48:BI$179,0))),0,(INDEX('RC'!BJ$48:BJ$179,MATCH(A120,'RC'!BI$48:BI$179,0)))) -> 0 | C120: =IF(B120="",0,IF(B120=0,0,INDEX('RC'!BK$48:BK$179,MATCH(A120,'RC'!BI$48:BI$179,0)))) -> 0 | D120: =IF(B120="",0,IF(B120=0,0,INDEX('RC'!BL$48:BL$179,MATCH(A120,'RC'!BI$48:BI$179,0)))) -> 0 | E120: =IF(B120="",0,IF(B120=0,0,INDEX('RC'!BM$48:BM$179,MATCH(A120,'RC'!BI$48:BI$179,0)))) -> 0 | F120: 0 | G120: =IF(ISERROR(INDEX('RC'!BP$48:BP$179,MATCH(A120,'RC'!BI$48:BI$179,0))),0,(INDEX('RC'!BP$48:BP$179,MATCH(A120,'RC'!BI$48:BI$179,0)))) -> 0 | H120: =IF(B120="",0,IF(B120=0,0,INDEX('RC'!BQ$48:BQ$179,MATCH(A120,'RC'!BI$48:BI$179,0)))) -> 0 | I120: =IF(B120="",0,IF(B120=0,0,INDEX('RC'!BR$48:BR$179,MATCH(A120,'RC'!BI$48:BI$179,0)))) -> 0 | J120: =IF(B120="",0,IF(B120=0,0,INDEX('RC'!BS$48:BS$179,MATCH(A120,'RC'!BI$48:BI$179,0)))) -> 0 | K120: 0 | L120: 0 | M120: 0 | N120: 0 | O120: 0 | P120: 0 | Q120: =IF(ISERROR(INDEX('RC'!DG$48:DG$179,MATCH(A120,'RC'!BI$48:BI$179,0))),0,(INDEX('RC'!DG$48:DG$179,MATCH(A120,'RC'!BI$48:BI$179,0)))) -> 0 | R120: =IF(ISERROR(INDEX('RC'!DH$48:DH$179,MATCH(A120,'RC'!BI$48:BI$179,0))),0,(INDEX('RC'!DH$48:DH$179,MATCH(A120,'RC'!BI$48:BI$179,0)))) -> 0 | S120: 0 | T120: =IF(Entry!B$28="Y",0,IF(ISERROR(INDEX('RC'!CV$48:CV$179,MATCH(A120,'RC'!BI$48:BI$179,0))),0,(INDEX('RC'!CV$48:CV$179,MATCH(A120,'RC'!BI$48:BI$179,0))))) -> 0 | U120: =IF(Entry!B$28="Y",0,IF(ISERROR(INDEX('RC'!CW$48:CW$179,MATCH(A120,'RC'!BI$48:BI$179,0))),0,(INDEX('RC'!CW$48:CW$179,MATCH(A120,'RC'!BI$48:BI$179,0))))) -> 0 | V120: 0 | W120: =IF(ISERROR(INDEX('RC'!CY$48:CY$179,MATCH(A120,'RC'!BI$48:BI$179,0))),0,(INDEX('RC'!CY$48:CY$179,MATCH(A120,'RC'!BI$48:BI$179,0)))) -> 0 | X120: =IF(ISERROR(INDEX('RC'!CZ$48:CZ$179,MATCH(A120,'RC'!BI$48:BI$179,0))),0,(INDEX('RC'!CZ$48:CZ$179,MATCH(A120,'RC'!BI$48:BI$179,0)))) -> 0 | Y120: 0 | Z120: =IF(A120>='RC'!BM$29,0,IF(ISERROR(INDEX('RC'!CF$48:CF$179,MATCH(A120,'RC'!BI$48:BI$179,0))),0,(INDEX('RC'!CF$48:CF$179,MATCH(A120,'RC'!BI$48:BI$179,0))))) -> 0 | AA120: 0 | AB120: 0 | AJ120: 0 | AK120: 0
A121: 2024-06-01 | B121: =IF(ISERROR(INDEX('RC'!BJ$48:BJ$179,MATCH(A121,'RC'!BI$48:BI$179,0))),0,(INDEX('RC'!BJ$48:BJ$179,MATCH(A121,'RC'!BI$48:BI$179,0)))) -> 0 | C121: =IF(B121="",0,IF(B121=0,0,INDEX('RC'!BK$48:BK$179,MATCH(A121,'RC'!BI$48:BI$179,0)))) -> 0 | D121: =IF(B121="",0,IF(B121=0,0,INDEX('RC'!BL$48:BL$179,MATCH(A121,'RC'!BI$48:BI$179,0)))) -> 0 | E121: =IF(B121="",0,IF(B121=0,0,INDEX('RC'!BM$48:BM$179,MATCH(A121,'RC'!BI$48:BI$179,0)))) -> 0 | F121: 0 | G121: =IF(ISERROR(INDEX('RC'!BP$48:BP$179,MATCH(A121,'RC'!BI$48:BI$179,0))),0,(INDEX('RC'!BP$48:BP$179,MATCH(A121,'RC'!BI$48:BI$179,0)))) -> 0 | H121: =IF(B121="",0,IF(B121=0,0,INDEX('RC'!BQ$48:BQ$179,MATCH(A121,'RC'!BI$48:BI$179,0)))) -> 0 | I121: =IF(B121="",0,IF(B121=0,0,INDEX('RC'!BR$48:BR$179,MATCH(A121,'RC'!BI$48:BI$179,0)))) -> 0 | J121: =IF(B121="",0,IF(B121=0,0,INDEX('RC'!BS$48:BS$179,MATCH(A121,'RC'!BI$48:BI$179,0)))) -> 0 | K121: 0 | L121: 0 | M121: 0 | N121: 0 | O121: 0 | P121: 0 | Q121: =IF(ISERROR(INDEX('RC'!DG$48:DG$179,MATCH(A121,'RC'!BI$48:BI$179,0))),0,(INDEX('RC'!DG$48:DG$179,MATCH(A121,'RC'!BI$48:BI$179,0)))) -> 0 | R121: =IF(ISERROR(INDEX('RC'!DH$48:DH$179,MATCH(A121,'RC'!BI$48:BI$179,0))),0,(INDEX('RC'!DH$48:DH$179,MATCH(A121,'RC'!BI$48:BI$179,0)))) -> 0 | S121: 0 | T121: =IF(Entry!B$28="Y",0,IF(ISERROR(INDEX('RC'!CV$48:CV$179,MATCH(A121,'RC'!BI$48:BI$179,0))),0,(INDEX('RC'!CV$48:CV$179,MATCH(A121,'RC'!BI$48:BI$179,0))))) -> 0 | U121: =IF(Entry!B$28="Y",0,IF(ISERROR(INDEX('RC'!CW$48:CW$179,MATCH(A121,'RC'!BI$48:BI$179,0))),0,(INDEX('RC'!CW$48:CW$179,MATCH(A121,'RC'!BI$48:BI$179,0))))) -> 0 | V121: 0 | W121: =IF(ISERROR(INDEX('RC'!CY$48:CY$179,MATCH(A121,'RC'!BI$48:BI$179,0))),0,(INDEX('RC'!CY$48:CY$179,MATCH(A121,'RC'!BI$48:BI$179,0)))) -> 0 | X121: =IF(ISERROR(INDEX('RC'!CZ$48:CZ$179,MATCH(A121,'RC'!BI$48:BI$179,0))),0,(INDEX('RC'!CZ$48:CZ$179,MATCH(A121,'RC'!BI$48:BI$179,0)))) -> 0 | Y121: 0 | Z121: =IF(A121>='RC'!BM$29,0,IF(ISERROR(INDEX('RC'!CF$48:CF$179,MATCH(A121,'RC'!BI$48:BI$179,0))),0,(INDEX('RC'!CF$48:CF$179,MATCH(A121,'RC'!BI$48:BI$179,0))))) -> 0 | AA121: 0 | AB121: 0 | AJ121: 0 | AK121: 0
A122: 2024-07-01 | B122: =IF(ISERROR(INDEX('RC'!BJ$48:BJ$179,MATCH(A122,'RC'!BI$48:BI$179,0))),0,(INDEX('RC'!BJ$48:BJ$179,MATCH(A122,'RC'!BI$48:BI$179,0)))) -> 0 | C122: =IF(B122="",0,IF(B122=0,0,INDEX('RC'!BK$48:BK$179,MATCH(A122,'RC'!BI$48:BI$179,0)))) -> 0 | D122: =IF(B122="",0,IF(B122=0,0,INDEX('RC'!BL$48:BL$179,MATCH(A122,'RC'!BI$48:BI$179,0)))) -> 0 | E122: =IF(B122="",0,IF(B122=0,0,INDEX('RC'!BM$48:BM$179,MATCH(A122,'RC'!BI$48:BI$179,0)))) -> 0 | F122: 0 | G122: =IF(ISERROR(INDEX('RC'!BP$48:BP$179,MATCH(A122,'RC'!BI$48:BI$179,0))),0,(INDEX('RC'!BP$48:BP$179,MATCH(A122,'RC'!BI$48:BI$179,0)))) -> 0 | H122: =IF(B122="",0,IF(B122=0,0,INDEX('RC'!BQ$48:BQ$179,MATCH(A122,'RC'!BI$48:BI$179,0)))) -> 0 | I122: =IF(B122="",0,IF(B122=0,0,INDEX('RC'!BR$48:BR$179,MATCH(A122,'RC'!BI$48:BI$179,0)))) -> 0 | J122: =IF(B122="",0,IF(B122=0,0,INDEX('RC'!BS$48:BS$179,MATCH(A122,'RC'!BI$48:BI$179,0)))) -> 0 | K122: 0 | L122: 0 | M122: 0 | N122: 0 | O122: 0 | P122: 0 | Q122: =IF(ISERROR(INDEX('RC'!DG$48:DG$179,MATCH(A122,'RC'!BI$48:BI$179,0))),0,(INDEX('RC'!DG$48:DG$179,MATCH(A122,'RC'!BI$48:BI$179,0)))) -> 0 | R122: =IF(ISERROR(INDEX('RC'!DH$48:DH$179,MATCH(A122,'RC'!BI$48:BI$179,0))),0,(INDEX('RC'!DH$48:DH$179,MATCH(A122,'RC'!BI$48:BI$179,0)))) -> 0 | S122: 0 | T122: =IF(Entry!B$28="Y",0,IF(ISERROR(INDEX('RC'!CV$48:CV$179,MATCH(A122,'RC'!BI$48:BI$179,0))),0,(INDEX('RC'!CV$48:CV$179,MATCH(A122,'RC'!BI$48:BI$179,0))))) -> 0 | U122: =IF(Entry!B$28="Y",0,IF(ISERROR(INDEX('RC'!CW$48:CW$179,MATCH(A122,'RC'!BI$48:BI$179,0))),0,(INDEX('RC'!CW$48:CW$179,MATCH(A122,'RC'!BI$48:BI$179,0))))) -> 0 | V122: 0 | W122: =IF(ISERROR(INDEX('RC'!CY$48:CY$179,MATCH(A122,'RC'!BI$48:BI$179,0))),0,(INDEX('RC'!CY$48:CY$179,MATCH(A122,'RC'!BI$48:BI$179,0)))) -> 0 | X122: =IF(ISERROR(INDEX('RC'!CZ$48:CZ$179,MATCH(A122,'RC'!BI$48:BI$179,0))),0,(INDEX('RC'!CZ$48:CZ$179,MATCH(A122,'RC'!BI$48:BI$179,0)))) -> 0 | Y122: 0 | Z122: =IF(A122>='RC'!BM$29,0,IF(ISERROR(INDEX('RC'!CF$48:CF$179,MATCH(A122,'RC'!BI$48:BI$179,0))),0,(INDEX('RC'!CF$48:CF$179,MATCH(A122,'RC'!BI$48:BI$179,0))))) -> 0 | AA122: 0 | AB122: 0 | AJ122: 0 | AK122: 0
A123: 2024-08-01 | B123: =IF(ISERROR(INDEX('RC'!BJ$48:BJ$179,MATCH(A123,'RC'!BI$48:BI$179,0))),0,(INDEX('RC'!BJ$48:BJ$179,MATCH(A123,'RC'!BI$48:BI$179,0)))) -> 0 | C123: =IF(B123="",0,IF(B123=0,0,INDEX('RC'!BK$48:BK$179,MATCH(A123,'RC'!BI$48:BI$179,0)))) -> 0 | D123: =IF(B123="",0,IF(B123=0,0,INDEX('RC'!BL$48:BL$179,MATCH(A123,'RC'!BI$48:BI$179,0)))) -> 0 | E123: =IF(B123="",0,IF(B123=0,0,INDEX('RC'!BM$48:BM$179,MATCH(A123,'RC'!BI$48:BI$179,0)))) -> 0 | F123: 0 | G123: =IF(ISERROR(INDEX('RC'!BP$48:BP$179,MATCH(A123,'RC'!BI$48:BI$179,0))),0,(INDEX('RC'!BP$48:BP$179,MATCH(A123,'RC'!BI$48:BI$179,0)))) -> 0 | H123: =IF(B123="",0,IF(B123=0,0,INDEX('RC'!BQ$48:BQ$179,MATCH(A123,'RC'!BI$48:BI$179,0)))) -> 0 | I123: =IF(B123="",0,IF(B123=0,0,INDEX('RC'!BR$48:BR$179,MATCH(A123,'RC'!BI$48:BI$179,0)))) -> 0 | J123: =IF(B123="",0,IF(B123=0,0,INDEX('RC'!BS$48:BS$179,MATCH(A123,'RC'!BI$48:BI$179,0)))) -> 0 | K123: 0 | L123: 0 | M123: 0 | N123: 0 | O123: 0 | P123: 0 | Q123: =IF(ISERROR(INDEX('RC'!DG$48:DG$179,MATCH(A123,'RC'!BI$48:BI$179,0))),0,(INDEX('RC'!DG$48:DG$179,MATCH(A123,'RC'!BI$48:BI$179,0)))) -> 0 | R123: =IF(ISERROR(INDEX('RC'!DH$48:DH$179,MATCH(A123,'RC'!BI$48:BI$179,0))),0,(INDEX('RC'!DH$48:DH$179,MATCH(A123,'RC'!BI$48:BI$179,0)))) -> 0 | S123: 0 | T123: =IF(Entry!B$28="Y",0,IF(ISERROR(INDEX('RC'!CV$48:CV$179,MATCH(A123,'RC'!BI$48:BI$179,0))),0,(INDEX('RC'!CV$48:CV$179,MATCH(A123,'RC'!BI$48:BI$179,0))))) -> 0 | U123: =IF(Entry!B$28="Y",0,IF(ISERROR(INDEX('RC'!CW$48:CW$179,MATCH(A123,'RC'!BI$48:BI$179,0))),0,(INDEX('RC'!CW$48:CW$179,MATCH(A123,'RC'!BI$48:BI$179,0))))) -> 0 | V123: 0 | W123: =IF(ISERROR(INDEX('RC'!CY$48:CY$179,MATCH(A123,'RC'!BI$48:BI$179,0))),0,(INDEX('RC'!CY$48:CY$179,MATCH(A123,'RC'!BI$48:BI$179,0)))) -> 0 | X123: =IF(ISERROR(INDEX('RC'!CZ$48:CZ$179,MATCH(A123,'RC'!BI$48:BI$179,0))),0,(INDEX('RC'!CZ$48:CZ$179,MATCH(A123,'RC'!BI$48:BI$179,0)))) -> 0 | Y123: 0 | Z123: =IF(A123>='RC'!BM$29,0,IF(ISERROR(INDEX('RC'!CF$48:CF$179,MATCH(A123,'RC'!BI$48:BI$179,0))),0,(INDEX('RC'!CF$48:CF$179,MATCH(A123,'RC'!BI$48:BI$179,0))))) -> 0 | AA123: 0 | AB123: 0 | AJ123: 0 | AK123: =AJ123 -> 0 | AL123: =IF(AK123=0,"",AK123) ->  | AM123: =IF(AL123=0,"",AL123) -> 
A124: 2024-09-01 | B124: =IF(ISERROR(INDEX('RC'!BJ$48:BJ$179,MATCH(A124,'RC'!BI$48:BI$179,0))),0,(INDEX('RC'!BJ$48:BJ$179,MATCH(A124,'RC'!BI$48:BI$179,0)))) -> 0 | C124: =IF(B124="",0,IF(B124=0,0,INDEX('RC'!BK$48:BK$179,MATCH(A124,'RC'!BI$48:BI$179,0)))) -> 0 | D124: =IF(B124="",0,IF(B124=0,0,INDEX('RC'!BL$48:BL$179,MATCH(A124,'RC'!BI$48:BI$179,0)))) -> 0 | E124: =IF(B124="",0,IF(B124=0,0,INDEX('RC'!BM$48:BM$179,MATCH(A124,'RC'!BI$48:BI$179,0)))) -> 0 | F124: 0 | G124: =IF(ISERROR(INDEX('RC'!BP$48:BP$179,MATCH(A124,'RC'!BI$48:BI$179,0))),0,(INDEX('RC'!BP$48:BP$179,MATCH(A124,'RC'!BI$48:BI$179,0)))) -> 0 | H124: =IF(B124="",0,IF(B124=0,0,INDEX('RC'!BQ$48:BQ$179,MATCH(A124,'RC'!BI$48:BI$179,0)))) -> 0 | I124: =IF(B124="",0,IF(B124=0,0,INDEX('RC'!BR$48:BR$179,MATCH(A124,'RC'!BI$48:BI$179,0)))) -> 0 | J124: =IF(B124="",0,IF(B124=0,0,INDEX('RC'!BS$48:BS$179,MATCH(A124,'RC'!BI$48:BI$179,0)))) -> 0 | K124: 0 | L124: 0 | M124: 0 | N124: 0 | O124: 0 | P124: 0 | Q124: =IF(ISERROR(INDEX('RC'!DG$48:DG$179,MATCH(A124,'RC'!BI$48:BI$179,0))),0,(INDEX('RC'!DG$48:DG$179,MATCH(A124,'RC'!BI$48:BI$179,0)))) -> 0 | R124: =IF(ISERROR(INDEX('RC'!DH$48:DH$179,MATCH(A124,'RC'!BI$48:BI$179,0))),0,(INDEX('RC'!DH$48:DH$179,MATCH(A124,'RC'!BI$48:BI$179,0)))) -> 0 | S124: 0 | T124: =IF(Entry!B$28="Y",0,IF(ISERROR(INDEX('RC'!CV$48:CV$179,MATCH(A124,'RC'!BI$48:BI$179,0))),0,(INDEX('RC'!CV$48:CV$179,MATCH(A124,'RC'!BI$48:BI$179,0))))) -> 0 | U124: =IF(Entry!B$28="Y",0,IF(ISERROR(INDEX('RC'!CW$48:CW$179,MATCH(A124,'RC'!BI$48:BI$179,0))),0,(INDEX('RC'!CW$48:CW$179,MATCH(A124,'RC'!BI$48:BI$179,0))))) -> 0 | V124: 0 | W124: =IF(ISERROR(INDEX('RC'!CY$48:CY$179,MATCH(A124,'RC'!BI$48:BI$179,0))),0,(INDEX('RC'!CY$48:CY$179,MATCH(A124,'RC'!BI$48:BI$179,0)))) -> 0 | X124: =IF(ISERROR(INDEX('RC'!CZ$48:CZ$179,MATCH(A124,'RC'!BI$48:BI$179,0))),0,(INDEX('RC'!CZ$48:CZ$179,MATCH(A124,'RC'!BI$48:BI$179,0)))) -> 0 | Y124: 0 | Z124: =IF(A124>='RC'!BM$29,0,IF(ISERROR(INDEX('RC'!CF$48:CF$179,MATCH(A124,'RC'!BI$48:BI$179,0))),0,(INDEX('RC'!CF$48:CF$179,MATCH(A124,'RC'!BI$48:BI$179,0))))) -> 0 | AA124: 0 | AB124: 0 | AJ124: 0 | AK124: 0 | AM124: =IF(AL124=0,"",AL124) -> 
A125: 2024-10-01 | B125: =IF(ISERROR(INDEX('RC'!BJ$48:BJ$179,MATCH(A125,'RC'!BI$48:BI$179,0))),0,(INDEX('RC'!BJ$48:BJ$179,MATCH(A125,'RC'!BI$48:BI$179,0)))) -> 0 | C125: =IF(B125="",0,IF(B125=0,0,INDEX('RC'!BK$48:BK$179,MATCH(A125,'RC'!BI$48:BI$179,0)))) -> 0 | D125: =IF(B125="",0,IF(B125=0,0,INDEX('RC'!BL$48:BL$179,MATCH(A125,'RC'!BI$48:BI$179,0)))) -> 0 | E125: =IF(B125="",0,IF(B125=0,0,INDEX('RC'!BM$48:BM$179,MATCH(A125,'RC'!BI$48:BI$179,0)))) -> 0 | F125: 0 | G125: =IF(ISERROR(INDEX('RC'!BP$48:BP$179,MATCH(A125,'RC'!BI$48:BI$179,0))),0,(INDEX('RC'!BP$48:BP$179,MATCH(A125,'RC'!BI$48:BI$179,0)))) -> 0 | H125: =IF(B125="",0,IF(B125=0,0,INDEX('RC'!BQ$48:BQ$179,MATCH(A125,'RC'!BI$48:BI$179,0)))) -> 0 | I125: =IF(B125="",0,IF(B125=0,0,INDEX('RC'!BR$48:BR$179,MATCH(A125,'RC'!BI$48:BI$179,0)))) -> 0 | J125: =IF(B125="",0,IF(B125=0,0,INDEX('RC'!BS$48:BS$179,MATCH(A125,'RC'!BI$48:BI$179,0)))) -> 0 | K125: 0 | L125: 0 | M125: 0 | N125: 0 | O125: 0 | P125: 0 | Q125: =IF(ISERROR(INDEX('RC'!DG$48:DG$179,MATCH(A125,'RC'!BI$48:BI$179,0))),0,(INDEX('RC'!DG$48:DG$179,MATCH(A125,'RC'!BI$48:BI$179,0)))) -> 0 | R125: =IF(ISERROR(INDEX('RC'!DH$48:DH$179,MATCH(A125,'RC'!BI$48:BI$179,0))),0,(INDEX('RC'!DH$48:DH$179,MATCH(A125,'RC'!BI$48:BI$179,0)))) -> 0 | S125: 0 | T125: =IF(Entry!B$28="Y",0,IF(ISERROR(INDEX('RC'!CV$48:CV$179,MATCH(A125,'RC'!BI$48:BI$179,0))),0,(INDEX('RC'!CV$48:CV$179,MATCH(A125,'RC'!BI$48:BI$179,0))))) -> 0 | U125: =IF(Entry!B$28="Y",0,IF(ISERROR(INDEX('RC'!CW$48:CW$179,MATCH(A125,'RC'!BI$48:BI$179,0))),0,(INDEX('RC'!CW$48:CW$179,MATCH(A125,'RC'!BI$48:BI$179,0))))) -> 0 | V125: 0 | W125: =IF(ISERROR(INDEX('RC'!CY$48:CY$179,MATCH(A125,'RC'!BI$48:BI$179,0))),0,(INDEX('RC'!CY$48:CY$179,MATCH(A125,'RC'!BI$48:BI$179,0)))) -> 0 | X125: =IF(ISERROR(INDEX('RC'!CZ$48:CZ$179,MATCH(A125,'RC'!BI$48:BI$179,0))),0,(INDEX('RC'!CZ$48:CZ$179,MATCH(A125,'RC'!BI$48:BI$179,0)))) -> 0 | Y125: 0 | Z125: =IF(A125>='RC'!BM$29,0,IF(ISERROR(INDEX('RC'!CF$48:CF$179,MATCH(A125,'RC'!BI$48:BI$179,0))),0,(INDEX('RC'!CF$48:CF$179,MATCH(A125,'RC'!BI$48:BI$179,0))))) -> 0 | AA125: 0 | AB125: 0 | AJ125: 0 | AK125: 0
A126: 2024-11-01 | B126: =IF(ISERROR(INDEX('RC'!BJ$48:BJ$179,MATCH(A126,'RC'!BI$48:BI$179,0))),0,(INDEX('RC'!BJ$48:BJ$179,MATCH(A126,'RC'!BI$48:BI$179,0)))) -> 0 | C126: =IF(B126="",0,IF(B126=0,0,INDEX('RC'!BK$48:BK$179,MATCH(A126,'RC'!BI$48:BI$179,0)))) -> 0 | D126: =IF(B126="",0,IF(B126=0,0,INDEX('RC'!BL$48:BL$179,MATCH(A126,'RC'!BI$48:BI$179,0)))) -> 0 | E126: =IF(B126="",0,IF(B126=0,0,INDEX('RC'!BM$48:BM$179,MATCH(A126,'RC'!BI$48:BI$179,0)))) -> 0 | F126: 0 | G126: =IF(ISERROR(INDEX('RC'!BP$48:BP$179,MATCH(A126,'RC'!BI$48:BI$179,0))),0,(INDEX('RC'!BP$48:BP$179,MATCH(A126,'RC'!BI$48:BI$179,0)))) -> 0 | H126: =IF(B126="",0,IF(B126=0,0,INDEX('RC'!BQ$48:BQ$179,MATCH(A126,'RC'!BI$48:BI$179,0)))) -> 0 | I126: =IF(B126="",0,IF(B126=0,0,INDEX('RC'!BR$48:BR$179,MATCH(A126,'RC'!BI$48:BI$179,0)))) -> 0 | J126: =IF(B126="",0,IF(B126=0,0,INDEX('RC'!BS$48:BS$179,MATCH(A126,'RC'!BI$48:BI$179,0)))) -> 0 | K126: 0 | L126: 0 | M126: 0 | N126: 0 | O126: 0 | P126: 0 | Q126: =IF(ISERROR(INDEX('RC'!DG$48:DG$179,MATCH(A126,'RC'!BI$48:BI$179,0))),0,(INDEX('RC'!DG$48:DG$179,MATCH(A126,'RC'!BI$48:BI$179,0)))) -> 0 | R126: =IF(ISERROR(INDEX('RC'!DH$48:DH$179,MATCH(A126,'RC'!BI$48:BI$179,0))),0,(INDEX('RC'!DH$48:DH$179,MATCH(A126,'RC'!BI$48:BI$179,0)))) -> 0 | S126: 0 | T126: =IF(Entry!B$28="Y",0,IF(ISERROR(INDEX('RC'!CV$48:CV$179,MATCH(A126,'RC'!BI$48:BI$179,0))),0,(INDEX('RC'!CV$48:CV$179,MATCH(A126,'RC'!BI$48:BI$179,0))))) -> 0 | U126: =IF(Entry!B$28="Y",0,IF(ISERROR(INDEX('RC'!CW$48:CW$179,MATCH(A126,'RC'!BI$48:BI$179,0))),0,(INDEX('RC'!CW$48:CW$179,MATCH(A126,'RC'!BI$48:BI$179,0))))) -> 0 | V126: 0 | W126: =IF(ISERROR(INDEX('RC'!CY$48:CY$179,MATCH(A126,'RC'!BI$48:BI$179,0))),0,(INDEX('RC'!CY$48:CY$179,MATCH(A126,'RC'!BI$48:BI$179,0)))) -> 0 | X126: =IF(ISERROR(INDEX('RC'!CZ$48:CZ$179,MATCH(A126,'RC'!BI$48:BI$179,0))),0,(INDEX('RC'!CZ$48:CZ$179,MATCH(A126,'RC'!BI$48:BI$179,0)))) -> 0 | Y126: 0 | Z126: =IF(A126>='RC'!BM$29,0,IF(ISERROR(INDEX('RC'!CF$48:CF$179,MATCH(A126,'RC'!BI$48:BI$179,0))),0,(INDEX('RC'!CF$48:CF$179,MATCH(A126,'RC'!BI$48:BI$179,0))))) -> 0 | AA126: 0 | AB126: 0 | AJ126: 0 | AK126: 0
A127: =EDATE(A126,1) -> 2024-12-01 | B127: =IF(ISERROR(INDEX('RC'!BJ$48:BJ$179,MATCH(A127,'RC'!BI$48:BI$179,0))),0,(INDEX('RC'!BJ$48:BJ$179,MATCH(A127,'RC'!BI$48:BI$179,0)))) -> 0 | C127: =IF(B127="",0,IF(B127=0,0,INDEX('RC'!BK$48:BK$179,MATCH(A127,'RC'!BI$48:BI$179,0)))) -> 0 | D127: =IF(B127="",0,IF(B127=0,0,INDEX('RC'!BL$48:BL$179,MATCH(A127,'RC'!BI$48:BI$179,0)))) -> 0 | E127: =IF(B127="",0,IF(B127=0,0,INDEX('RC'!BM$48:BM$179,MATCH(A127,'RC'!BI$48:BI$179,0)))) -> 0 | F127: =SUM(B127:E127) -> 0 | G127: =IF(ISERROR(INDEX('RC'!BP$48:BP$179,MATCH(A127,'RC'!BI$48:BI$179,0))),0,(INDEX('RC'!BP$48:BP$179,MATCH(A127,'RC'!BI$48:BI$179,0)))) -> 0 | H127: =IF(B127="",0,IF(B127=0,0,INDEX('RC'!BQ$48:BQ$179,MATCH(A127,'RC'!BI$48:BI$179,0)))) -> 0 | I127: =IF(B127="",0,IF(B127=0,0,INDEX('RC'!BR$48:BR$179,MATCH(A127,'RC'!BI$48:BI$179,0)))) -> 0 | J127: =IF(B127="",0,IF(B127=0,0,INDEX('RC'!BS$48:BS$179,MATCH(A127,'RC'!BI$48:BI$179,0)))) -> 0 | K127: =SUM(G127:J127) -> 0 | L127: =B127-G127 -> 0 | M127: =C127-H127 -> 0 | N127: =D127-I127 -> 0 | O127: 0 | P127: 0 | Q127: =IF(ISERROR(INDEX('RC'!DG$48:DG$179,MATCH(A127,'RC'!BI$48:BI$179,0))),0,(INDEX('RC'!DG$48:DG$179,MATCH(A127,'RC'!BI$48:BI$179,0)))) -> 0 | R127: =IF(ISERROR(INDEX('RC'!DH$48:DH$179,MATCH(A127,'RC'!BI$48:BI$179,0))),0,(INDEX('RC'!DH$48:DH$179,MATCH(A127,'RC'!BI$48:BI$179,0)))) -> 0 | S127: 0 | T127: =IF(Entry!B$28="Y",0,IF(ISERROR(INDEX('RC'!CV$48:CV$179,MATCH(A127,'RC'!BI$48:BI$179,0))),0,(INDEX('RC'!CV$48:CV$179,MATCH(A127,'RC'!BI$48:BI$179,0))))) -> 0 | U127: =IF(Entry!B$28="Y",0,IF(ISERROR(INDEX('RC'!CW$48:CW$179,MATCH(A127,'RC'!BI$48:BI$179,0))),0,(INDEX('RC'!CW$48:CW$179,MATCH(A127,'RC'!BI$48:BI$179,0))))) -> 0 | V127: 0 | W127: =IF(ISERROR(INDEX('RC'!CY$48:CY$179,MATCH(A127,'RC'!BI$48:BI$179,0))),0,(INDEX('RC'!CY$48:CY$179,MATCH(A127,'RC'!BI$48:BI$179,0)))) -> 0 | X127: =IF(ISERROR(INDEX('RC'!CZ$48:CZ$179,MATCH(A127,'RC'!BI$48:BI$179,0))),0,(INDEX('RC'!CZ$48:CZ$179,MATCH(A127,'RC'!BI$48:BI$179,0)))) -> 0 | Y127: 0 | Z127: =IF(A127>='RC'!BM$29,0,IF(ISERROR(INDEX('RC'!CF$48:CF$179,MATCH(A127,'RC'!BI$48:BI$179,0))),0,(INDEX('RC'!CF$48:CF$179,MATCH(A127,'RC'!BI$48:BI$179,0))))) -> 0 | AA127: 0 | AB127: 0 | AJ127: =IF(B127<1,0,1) -> 0 | AK127: 0
A128: 2025-01-01 | B128: =IF(ISERROR(INDEX('RC'!BJ$48:BJ$179,MATCH(A128,'RC'!BI$48:BI$179,0))),0,(INDEX('RC'!BJ$48:BJ$179,MATCH(A128,'RC'!BI$48:BI$179,0)))) -> 0 | C128: =IF(B128="",0,IF(B128=0,0,INDEX('RC'!BK$48:BK$179,MATCH(A128,'RC'!BI$48:BI$179,0)))) -> 0 | D128: =IF(B128="",0,IF(B128=0,0,INDEX('RC'!BL$48:BL$179,MATCH(A128,'RC'!BI$48:BI$179,0)))) -> 0 | E128: =IF(B128="",0,IF(B128=0,0,INDEX('RC'!BM$48:BM$179,MATCH(A128,'RC'!BI$48:BI$179,0)))) -> 0 | F128: =SUM(B128:E128) -> 0 | G128: =IF(ISERROR(INDEX('RC'!BP$48:BP$179,MATCH(A128,'RC'!BI$48:BI$179,0))),0,(INDEX('RC'!BP$48:BP$179,MATCH(A128,'RC'!BI$48:BI$179,0)))) -> 0 | H128: =IF(B128="",0,IF(B128=0,0,INDEX('RC'!BQ$48:BQ$179,MATCH(A128,'RC'!BI$48:BI$179,0)))) -> 0 | I128: =IF(B128="",0,IF(B128=0,0,INDEX('RC'!BR$48:BR$179,MATCH(A128,'RC'!BI$48:BI$179,0)))) -> 0 | J128: =IF(B128="",0,IF(B128=0,0,INDEX('RC'!BS$48:BS$179,MATCH(A128,'RC'!BI$48:BI$179,0)))) -> 0 | K128: 0 | L128: =B128-G128 -> 0 | M128: =C128-H128 -> 0 | N128: =D128-I128 -> 0 | O128: 0 | P128: 0 | Q128: =IF(ISERROR(INDEX('RC'!DG$48:DG$179,MATCH(A128,'RC'!BI$48:BI$179,0))),0,(INDEX('RC'!DG$48:DG$179,MATCH(A128,'RC'!BI$48:BI$179,0)))) -> 0 | R128: =IF(ISERROR(INDEX('RC'!DH$48:DH$179,MATCH(A128,'RC'!BI$48:BI$179,0))),0,(INDEX('RC'!DH$48:DH$179,MATCH(A128,'RC'!BI$48:BI$179,0)))) -> 0 | S128: 0 | T128: =IF(Entry!B$28="Y",0,IF(ISERROR(INDEX('RC'!CV$48:CV$179,MATCH(A128,'RC'!BI$48:BI$179,0))),0,(INDEX('RC'!CV$48:CV$179,MATCH(A128,'RC'!BI$48:BI$179,0))))) -> 0 | U128: =IF(Entry!B$28="Y",0,IF(ISERROR(INDEX('RC'!CW$48:CW$179,MATCH(A128,'RC'!BI$48:BI$179,0))),0,(INDEX('RC'!CW$48:CW$179,MATCH(A128,'RC'!BI$48:BI$179,0))))) -> 0 | V128: 0 | W128: =IF(ISERROR(INDEX('RC'!CY$48:CY$179,MATCH(A128,'RC'!BI$48:BI$179,0))),0,(INDEX('RC'!CY$48:CY$179,MATCH(A128,'RC'!BI$48:BI$179,0)))) -> 0 | X128: =IF(ISERROR(INDEX('RC'!CZ$48:CZ$179,MATCH(A128,'RC'!BI$48:BI$179,0))),0,(INDEX('RC'!CZ$48:CZ$179,MATCH(A128,'RC'!BI$48:BI$179,0)))) -> 0 | Y128: 0 | Z128: =IF(A128>='RC'!BM$29,0,IF(ISERROR(INDEX('RC'!CF$48:CF$179,MATCH(A128,'RC'!BI$48:BI$179,0))),0,(INDEX('RC'!CF$48:CF$179,MATCH(A128,'RC'!BI$48:BI$179,0))))) -> 0 | AA128: 0 | AB128: 0 | AJ128: 0 | AK128: 0
A129: 2025-02-01 | B129: =IF(ISERROR(INDEX('RC'!BJ$48:BJ$179,MATCH(A129,'RC'!BI$48:BI$179,0))),0,(INDEX('RC'!BJ$48:BJ$179,MATCH(A129,'RC'!BI$48:BI$179,0)))) -> 0 | C129: =IF(B129="",0,IF(B129=0,0,INDEX('RC'!BK$48:BK$179,MATCH(A129,'RC'!BI$48:BI$179,0)))) -> 0 | D129: =IF(B129="",0,IF(B129=0,0,INDEX('RC'!BL$48:BL$179,MATCH(A129,'RC'!BI$48:BI$179,0)))) -> 0 | E129: =IF(B129="",0,IF(B129=0,0,INDEX('RC'!BM$48:BM$179,MATCH(A129,'RC'!BI$48:BI$179,0)))) -> 0 | F129: 0 | G129: =IF(ISERROR(INDEX('RC'!BP$48:BP$179,MATCH(A129,'RC'!BI$48:BI$179,0))),0,(INDEX('RC'!BP$48:BP$179,MATCH(A129,'RC'!BI$48:BI$179,0)))) -> 0 | H129: =IF(B129="",0,IF(B129=0,0,INDEX('RC'!BQ$48:BQ$179,MATCH(A129,'RC'!BI$48:BI$179,0)))) -> 0 | I129: =IF(B129="",0,IF(B129=0,0,INDEX('RC'!BR$48:BR$179,MATCH(A129,'RC'!BI$48:BI$179,0)))) -> 0 | J129: =IF(B129="",0,IF(B129=0,0,INDEX('RC'!BS$48:BS$179,MATCH(A129,'RC'!BI$48:BI$179,0)))) -> 0 | K129: 0 | L129: 0 | M129: 0 | N129: 0 | O129: 0 | P129: 0 | Q129: =IF(ISERROR(INDEX('RC'!DG$48:DG$179,MATCH(A129,'RC'!BI$48:BI$179,0))),0,(INDEX('RC'!DG$48:DG$179,MATCH(A129,'RC'!BI$48:BI$179,0)))) -> 0 | R129: =IF(ISERROR(INDEX('RC'!DH$48:DH$179,MATCH(A129,'RC'!BI$48:BI$179,0))),0,(INDEX('RC'!DH$48:DH$179,MATCH(A129,'RC'!BI$48:BI$179,0)))) -> 0 | S129: 0 | T129: =IF(Entry!B$28="Y",0,IF(ISERROR(INDEX('RC'!CV$48:CV$179,MATCH(A129,'RC'!BI$48:BI$179,0))),0,(INDEX('RC'!CV$48:CV$179,MATCH(A129,'RC'!BI$48:BI$179,0))))) -> 0 | U129: =IF(Entry!B$28="Y",0,IF(ISERROR(INDEX('RC'!CW$48:CW$179,MATCH(A129,'RC'!BI$48:BI$179,0))),0,(INDEX('RC'!CW$48:CW$179,MATCH(A129,'RC'!BI$48:BI$179,0))))) -> 0 | V129: 0 | W129: =IF(ISERROR(INDEX('RC'!CY$48:CY$179,MATCH(A129,'RC'!BI$48:BI$179,0))),0,(INDEX('RC'!CY$48:CY$179,MATCH(A129,'RC'!BI$48:BI$179,0)))) -> 0 | X129: =IF(ISERROR(INDEX('RC'!CZ$48:CZ$179,MATCH(A129,'RC'!BI$48:BI$179,0))),0,(INDEX('RC'!CZ$48:CZ$179,MATCH(A129,'RC'!BI$48:BI$179,0)))) -> 0 | Y129: 0 | Z129: =IF(A129>='RC'!BM$29,0,IF(ISERROR(INDEX('RC'!CF$48:CF$179,MATCH(A129,'RC'!BI$48:BI$179,0))),0,(INDEX('RC'!CF$48:CF$179,MATCH(A129,'RC'!BI$48:BI$179,0))))) -> 0 | AA129: 0 | AB129: 0 | AJ129: 0 | AK129: 0
A130: 2025-03-01 | B130: =IF(ISERROR(INDEX('RC'!BJ$48:BJ$179,MATCH(A130,'RC'!BI$48:BI$179,0))),0,(INDEX('RC'!BJ$48:BJ$179,MATCH(A130,'RC'!BI$48:BI$179,0)))) -> 0 | C130: =IF(B130="",0,IF(B130=0,0,INDEX('RC'!BK$48:BK$179,MATCH(A130,'RC'!BI$48:BI$179,0)))) -> 0 | D130: =IF(B130="",0,IF(B130=0,0,INDEX('RC'!BL$48:BL$179,MATCH(A130,'RC'!BI$48:BI$179,0)))) -> 0 | E130: =IF(B130="",0,IF(B130=0,0,INDEX('RC'!BM$48:BM$179,MATCH(A130,'RC'!BI$48:BI$179,0)))) -> 0 | F130: 0 | G130: =IF(ISERROR(INDEX('RC'!BP$48:BP$179,MATCH(A130,'RC'!BI$48:BI$179,0))),0,(INDEX('RC'!BP$48:BP$179,MATCH(A130,'RC'!BI$48:BI$179,0)))) -> 0 | H130: =IF(B130="",0,IF(B130=0,0,INDEX('RC'!BQ$48:BQ$179,MATCH(A130,'RC'!BI$48:BI$179,0)))) -> 0 | I130: =IF(B130="",0,IF(B130=0,0,INDEX('RC'!BR$48:BR$179,MATCH(A130,'RC'!BI$48:BI$179,0)))) -> 0 | J130: =IF(B130="",0,IF(B130=0,0,INDEX('RC'!BS$48:BS$179,MATCH(A130,'RC'!BI$48:BI$179,0)))) -> 0 | K130: 0 | L130: 0 | M130: 0 | N130: 0 | O130: 0 | P130: 0 | Q130: =IF(ISERROR(INDEX('RC'!DG$48:DG$179,MATCH(A130,'RC'!BI$48:BI$179,0))),0,(INDEX('RC'!DG$48:DG$179,MATCH(A130,'RC'!BI$48:BI$179,0)))) -> 0 | R130: =IF(ISERROR(INDEX('RC'!DH$48:DH$179,MATCH(A130,'RC'!BI$48:BI$179,0))),0,(INDEX('RC'!DH$48:DH$179,MATCH(A130,'RC'!BI$48:BI$179,0)))) -> 0 | S130: 0 | T130: =IF(Entry!B$28="Y",0,IF(ISERROR(INDEX('RC'!CV$48:CV$179,MATCH(A130,'RC'!BI$48:BI$179,0))),0,(INDEX('RC'!CV$48:CV$179,MATCH(A130,'RC'!BI$48:BI$179,0))))) -> 0 | U130: =IF(Entry!B$28="Y",0,IF(ISERROR(INDEX('RC'!CW$48:CW$179,MATCH(A130,'RC'!BI$48:BI$179,0))),0,(INDEX('RC'!CW$48:CW$179,MATCH(A130,'RC'!BI$48:BI$179,0))))) -> 0 | V130: 0 | W130: =IF(ISERROR(INDEX('RC'!CY$48:CY$179,MATCH(A130,'RC'!BI$48:BI$179,0))),0,(INDEX('RC'!CY$48:CY$179,MATCH(A130,'RC'!BI$48:BI$179,0)))) -> 0 | X130: =IF(ISERROR(INDEX('RC'!CZ$48:CZ$179,MATCH(A130,'RC'!BI$48:BI$179,0))),0,(INDEX('RC'!CZ$48:CZ$179,MATCH(A130,'RC'!BI$48:BI$179,0)))) -> 0 | Y130: 0 | Z130: =IF(A130>='RC'!BM$29,0,IF(ISERROR(INDEX('RC'!CF$48:CF$179,MATCH(A130,'RC'!BI$48:BI$179,0))),0,(INDEX('RC'!CF$48:CF$179,MATCH(A130,'RC'!BI$48:BI$179,0))))) -> 0 | AA130: 0 | AB130: =P130-AA130 -> 0 | AJ130: 0 | AK130: 0
A131: Totalc/f | B131: =SUM(B89:B130) -> 47709 | C131: =SUM(C89:C130) -> 56774 | D131: 0 | E131: 4771 | F131: 109254 | G131: 45201 | H131: 53789 | I131: 0 | J131: 4520 | K131: 103510 | L131: =SUM(L89:L130) -> 2508 | M131: =SUM(M89:M130) -> 2985 | N131: 0 | O131: 251 | P131: 5744 | Q131: 6600 | R131: 4200 | S131: 2400 | T131: 1160 | U131: =IF(Entry!B$28="Y",0,IF(ISERROR(INDEX('RC'!CW$48:CW$179,MATCH(A131,'RC'!BI$48:BI$179,0))),0,(INDEX('RC'!CW$48:CW$179,MATCH(A131,'RC'!BI$48:BI$179,0))))) -> 0 | V131: =SUM(V89:V130) -> 0 | W131: 2600 | X131: 2600 | Y131: 0 | Z131: 0 | AA131: =SUM(AA89:AA130) -> 2400 | AB131: 3344 | AJ131: =IF(B130=0,0,IF(B133=0,0,1)) -> 0 | AK131: =AJ131 -> 0 | AL131: =IF(AK131=0,"",AK131) ->  | AM131: =IF(AL131=0,"",AL131) -> 
A132: TotalB/f | B132: =B131 -> 47709 | C132: =C131 -> 56774 | D132: 0 | E132: 4771 | F132: 109254 | G132: 45201 | H132: 53789 | I132: 0 | J132: 4520 | K132: 103510 | L132: =L131 -> 2508 | M132: =M131 -> 2985 | N132: 0 | O132: 251 | P132: 5744 | Q132: 6600 | R132: 4200 | S132: 2400 | T132: 1160 | U132: =IF(Entry!B$28="Y",0,IF(ISERROR(INDEX('RC'!CW$48:CW$179,MATCH(A132,'RC'!BI$48:BI$179,0))),0,(INDEX('RC'!CW$48:CW$179,MATCH(A132,'RC'!BI$48:BI$179,0))))) -> 0 | V132: =V131 -> 0 | W132: 2600 | X132: 2600 | Y132: 0 | Z132: 0 | AA132: =AA131 -> 2400 | AB132: 3344 | AJ132: =IF(B130=0,0,IF(B133=0,0,1)) -> 0 | AK132: =AJ132 -> 0 | AL132: =IF(AK132=0,"",AK132) ->  | AM132: =IF(AL132=0,"",AL132) -> 
A133: =EDATE(A130,1) -> 2025-04-01 | B133: =IF(ISERROR(INDEX('RC'!BJ$48:BJ$179,MATCH(A133,'RC'!BI$48:BI$179,0))),0,(INDEX('RC'!BJ$48:BJ$179,MATCH(A133,'RC'!BI$48:BI$179,0)))) -> 0 | C133: =IF(B133="",0,IF(B133=0,0,INDEX('RC'!BK$48:BK$179,MATCH(A133,'RC'!BI$48:BI$179,0)))) -> 0 | D133: =IF(B133="",0,IF(B133=0,0,INDEX('RC'!BL$48:BL$179,MATCH(A133,'RC'!BI$48:BI$179,0)))) -> 0 | E133: =IF(B133="",0,IF(B133=0,0,INDEX('RC'!BM$48:BM$179,MATCH(A133,'RC'!BI$48:BI$179,0)))) -> 0 | F133: 0 | G133: =IF(ISERROR(INDEX('RC'!BP$48:BP$179,MATCH(A133,'RC'!BI$48:BI$179,0))),0,(INDEX('RC'!BP$48:BP$179,MATCH(A133,'RC'!BI$48:BI$179,0)))) -> 0 | H133: =IF(B133="",0,IF(B133=0,0,INDEX('RC'!BQ$48:BQ$179,MATCH(A133,'RC'!BI$48:BI$179,0)))) -> 0 | I133: =IF(B133="",0,IF(B133=0,0,INDEX('RC'!BR$48:BR$179,MATCH(A133,'RC'!BI$48:BI$179,0)))) -> 0 | J133: =IF(B133="",0,IF(B133=0,0,INDEX('RC'!BS$48:BS$179,MATCH(A133,'RC'!BI$48:BI$179,0)))) -> 0 | K133: 0 | L133: 0 | M133: 0 | N133: 0 | O133: =E133-J133 -> 0 | P133: =SUM(L133:O133) -> 0 | Q133: =IF(ISERROR(INDEX('RC'!DG$48:DG$179,MATCH(A133,'RC'!BI$48:BI$179,0))),0,(INDEX('RC'!DG$48:DG$179,MATCH(A133,'RC'!BI$48:BI$179,0)))) -> 0 | R133: =IF(ISERROR(INDEX('RC'!DH$48:DH$179,MATCH(A133,'RC'!BI$48:BI$179,0))),0,(INDEX('RC'!DH$48:DH$179,MATCH(A133,'RC'!BI$48:BI$179,0)))) -> 0 | S133: 0 | T133: =IF(Entry!B$28="Y",0,IF(ISERROR(INDEX('RC'!CV$48:CV$179,MATCH(A133,'RC'!BI$48:BI$179,0))),0,(INDEX('RC'!CV$48:CV$179,MATCH(A133,'RC'!BI$48:BI$179,0))))) -> 0 | U133: =IF(Entry!B$28="Y",0,IF(ISERROR(INDEX('RC'!CW$48:CW$179,MATCH(A133,'RC'!BI$48:BI$179,0))),0,(INDEX('RC'!CW$48:CW$179,MATCH(A133,'RC'!BI$48:BI$179,0))))) -> 0 | V133: 0 | W133: =IF(ISERROR(INDEX('RC'!CY$48:CY$179,MATCH(A133,'RC'!BI$48:BI$179,0))),0,(INDEX('RC'!CY$48:CY$179,MATCH(A133,'RC'!BI$48:BI$179,0)))) -> 0 | X133: =IF(ISERROR(INDEX('RC'!CZ$48:CZ$179,MATCH(A133,'RC'!BI$48:BI$179,0))),0,(INDEX('RC'!CZ$48:CZ$179,MATCH(A133,'RC'!BI$48:BI$179,0)))) -> 0 | Y133: 0 | Z133: =IF(A133>='RC'!BM$29,0,IF(ISERROR(INDEX('RC'!CF$48:CF$179,MATCH(A133,'RC'!BI$48:BI$179,0))),0,(INDEX('RC'!CF$48:CF$179,MATCH(A133,'RC'!BI$48:BI$179,0))))) -> 0 | AA133: =S133+V133+Y133+Z133 -> 0 | AB133: =P133-AA133 -> 0 | AJ133: 0 | AK133: 0
A134: 2025-05-01 | B134: =IF(ISERROR(INDEX('RC'!BJ$48:BJ$179,MATCH(A134,'RC'!BI$48:BI$179,0))),0,(INDEX('RC'!BJ$48:BJ$179,MATCH(A134,'RC'!BI$48:BI$179,0)))) -> 0 | C134: =IF(B134="",0,IF(B134=0,0,INDEX('RC'!BK$48:BK$179,MATCH(A134,'RC'!BI$48:BI$179,0)))) -> 0 | D134: =IF(B134="",0,IF(B134=0,0,INDEX('RC'!BL$48:BL$179,MATCH(A134,'RC'!BI$48:BI$179,0)))) -> 0 | E134: =IF(B134="",0,IF(B134=0,0,INDEX('RC'!BM$48:BM$179,MATCH(A134,'RC'!BI$48:BI$179,0)))) -> 0 | F134: 0 | G134: =IF(ISERROR(INDEX('RC'!BP$48:BP$179,MATCH(A134,'RC'!BI$48:BI$179,0))),0,(INDEX('RC'!BP$48:BP$179,MATCH(A134,'RC'!BI$48:BI$179,0)))) -> 0 | H134: =IF(B134="",0,IF(B134=0,0,INDEX('RC'!BQ$48:BQ$179,MATCH(A134,'RC'!BI$48:BI$179,0)))) -> 0 | I134: =IF(B134="",0,IF(B134=0,0,INDEX('RC'!BR$48:BR$179,MATCH(A134,'RC'!BI$48:BI$179,0)))) -> 0 | J134: =IF(B134="",0,IF(B134=0,0,INDEX('RC'!BS$48:BS$179,MATCH(A134,'RC'!BI$48:BI$179,0)))) -> 0 | K134: 0 | L134: 0 | M134: 0 | N134: 0 | O134: =E134-J134 -> 0 | P134: =SUM(L134:O134) -> 0 | Q134: =IF(ISERROR(INDEX('RC'!DG$48:DG$179,MATCH(A134,'RC'!BI$48:BI$179,0))),0,(INDEX('RC'!DG$48:DG$179,MATCH(A134,'RC'!BI$48:BI$179,0)))) -> 0 | R134: =IF(ISERROR(INDEX('RC'!DH$48:DH$179,MATCH(A134,'RC'!BI$48:BI$179,0))),0,(INDEX('RC'!DH$48:DH$179,MATCH(A134,'RC'!BI$48:BI$179,0)))) -> 0 | S134: 0 | T134: =IF(Entry!B$28="Y",0,IF(ISERROR(INDEX('RC'!CV$48:CV$179,MATCH(A134,'RC'!BI$48:BI$179,0))),0,(INDEX('RC'!CV$48:CV$179,MATCH(A134,'RC'!BI$48:BI$179,0))))) -> 0 | U134: =IF(Entry!B$28="Y",0,IF(ISERROR(INDEX('RC'!CW$48:CW$179,MATCH(A134,'RC'!BI$48:BI$179,0))),0,(INDEX('RC'!CW$48:CW$179,MATCH(A134,'RC'!BI$48:BI$179,0))))) -> 0 | V134: 0 | W134: =IF(ISERROR(INDEX('RC'!CY$48:CY$179,MATCH(A134,'RC'!BI$48:BI$179,0))),0,(INDEX('RC'!CY$48:CY$179,MATCH(A134,'RC'!BI$48:BI$179,0)))) -> 0 | X134: =IF(ISERROR(INDEX('RC'!CZ$48:CZ$179,MATCH(A134,'RC'!BI$48:BI$179,0))),0,(INDEX('RC'!CZ$48:CZ$179,MATCH(A134,'RC'!BI$48:BI$179,0)))) -> 0 | Y134: 0 | Z134: =IF(A134>='RC'!BM$29,0,IF(ISERROR(INDEX('RC'!CF$48:CF$179,MATCH(A134,'RC'!BI$48:BI$179,0))),0,(INDEX('RC'!CF$48:CF$179,MATCH(A134,'RC'!BI$48:BI$179,0))))) -> 0 | AA134: 0 | AB134: 0 | AJ134: 0 | AK134: 0
A135: 2025-06-01 | B135: =IF(ISERROR(INDEX('RC'!BJ$48:BJ$179,MATCH(A135,'RC'!BI$48:BI$179,0))),0,(INDEX('RC'!BJ$48:BJ$179,MATCH(A135,'RC'!BI$48:BI$179,0)))) -> 0 | C135: =IF(B135="",0,IF(B135=0,0,INDEX('RC'!BK$48:BK$179,MATCH(A135,'RC'!BI$48:BI$179,0)))) -> 0 | D135: =IF(B135="",0,IF(B135=0,0,INDEX('RC'!BL$48:BL$179,MATCH(A135,'RC'!BI$48:BI$179,0)))) -> 0 | E135: =IF(B135="",0,IF(B135=0,0,INDEX('RC'!BM$48:BM$179,MATCH(A135,'RC'!BI$48:BI$179,0)))) -> 0 | F135: 0 | G135: =IF(ISERROR(INDEX('RC'!BP$48:BP$179,MATCH(A135,'RC'!BI$48:BI$179,0))),0,(INDEX('RC'!BP$48:BP$179,MATCH(A135,'RC'!BI$48:BI$179,0)))) -> 0 | H135: =IF(B135="",0,IF(B135=0,0,INDEX('RC'!BQ$48:BQ$179,MATCH(A135,'RC'!BI$48:BI$179,0)))) -> 0 | I135: =IF(B135="",0,IF(B135=0,0,INDEX('RC'!BR$48:BR$179,MATCH(A135,'RC'!BI$48:BI$179,0)))) -> 0 | J135: =IF(B135="",0,IF(B135=0,0,INDEX('RC'!BS$48:BS$179,MATCH(A135,'RC'!BI$48:BI$179,0)))) -> 0 | K135: 0 | L135: 0 | M135: 0 | N135: 0 | O135: 0 | P135: 0 | Q135: =IF(ISERROR(INDEX('RC'!DG$48:DG$179,MATCH(A135,'RC'!BI$48:BI$179,0))),0,(INDEX('RC'!DG$48:DG$179,MATCH(A135,'RC'!BI$48:BI$179,0)))) -> 0 | R135: =IF(ISERROR(INDEX('RC'!DH$48:DH$179,MATCH(A135,'RC'!BI$48:BI$179,0))),0,(INDEX('RC'!DH$48:DH$179,MATCH(A135,'RC'!BI$48:BI$179,0)))) -> 0 | S135: 0 | T135: =IF(Entry!B$28="Y",0,IF(ISERROR(INDEX('RC'!CV$48:CV$179,MATCH(A135,'RC'!BI$48:BI$179,0))),0,(INDEX('RC'!CV$48:CV$179,MATCH(A135,'RC'!BI$48:BI$179,0))))) -> 0 | U135: =IF(Entry!B$28="Y",0,IF(ISERROR(INDEX('RC'!CW$48:CW$179,MATCH(A135,'RC'!BI$48:BI$179,0))),0,(INDEX('RC'!CW$48:CW$179,MATCH(A135,'RC'!BI$48:BI$179,0))))) -> 0 | V135: 0 | W135: =IF(ISERROR(INDEX('RC'!CY$48:CY$179,MATCH(A135,'RC'!BI$48:BI$179,0))),0,(INDEX('RC'!CY$48:CY$179,MATCH(A135,'RC'!BI$48:BI$179,0)))) -> 0 | X135: =IF(ISERROR(INDEX('RC'!CZ$48:CZ$179,MATCH(A135,'RC'!BI$48:BI$179,0))),0,(INDEX('RC'!CZ$48:CZ$179,MATCH(A135,'RC'!BI$48:BI$179,0)))) -> 0 | Y135: 0 | Z135: =IF(A135>='RC'!BM$29,0,IF(ISERROR(INDEX('RC'!CF$48:CF$179,MATCH(A135,'RC'!BI$48:BI$179,0))),0,(INDEX('RC'!CF$48:CF$179,MATCH(A135,'RC'!BI$48:BI$179,0))))) -> 0 | AA135: 0 | AB135: 0 | AJ135: 0 | AK135: 0
A136: 2025-07-01 | B136: =IF(ISERROR(INDEX('RC'!BJ$48:BJ$179,MATCH(A136,'RC'!BI$48:BI$179,0))),0,(INDEX('RC'!BJ$48:BJ$179,MATCH(A136,'RC'!BI$48:BI$179,0)))) -> 0 | C136: =IF(B136="",0,IF(B136=0,0,INDEX('RC'!BK$48:BK$179,MATCH(A136,'RC'!BI$48:BI$179,0)))) -> 0 | D136: =IF(B136="",0,IF(B136=0,0,INDEX('RC'!BL$48:BL$179,MATCH(A136,'RC'!BI$48:BI$179,0)))) -> 0 | E136: =IF(B136="",0,IF(B136=0,0,INDEX('RC'!BM$48:BM$179,MATCH(A136,'RC'!BI$48:BI$179,0)))) -> 0 | F136: 0 | G136: =IF(ISERROR(INDEX('RC'!BP$48:BP$179,MATCH(A136,'RC'!BI$48:BI$179,0))),0,(INDEX('RC'!BP$48:BP$179,MATCH(A136,'RC'!BI$48:BI$179,0)))) -> 0 | H136: =IF(B136="",0,IF(B136=0,0,INDEX('RC'!BQ$48:BQ$179,MATCH(A136,'RC'!BI$48:BI$179,0)))) -> 0 | I136: =IF(B136="",0,IF(B136=0,0,INDEX('RC'!BR$48:BR$179,MATCH(A136,'RC'!BI$48:BI$179,0)))) -> 0 | J136: =IF(B136="",0,IF(B136=0,0,INDEX('RC'!BS$48:BS$179,MATCH(A136,'RC'!BI$48:BI$179,0)))) -> 0 | K136: 0 | L136: 0 | M136: 0 | N136: 0 | O136: 0 | P136: 0 | Q136: =IF(ISERROR(INDEX('RC'!DG$48:DG$179,MATCH(A136,'RC'!BI$48:BI$179,0))),0,(INDEX('RC'!DG$48:DG$179,MATCH(A136,'RC'!BI$48:BI$179,0)))) -> 0 | R136: =IF(ISERROR(INDEX('RC'!DH$48:DH$179,MATCH(A136,'RC'!BI$48:BI$179,0))),0,(INDEX('RC'!DH$48:DH$179,MATCH(A136,'RC'!BI$48:BI$179,0)))) -> 0 | S136: 0 | T136: =IF(Entry!B$28="Y",0,IF(ISERROR(INDEX('RC'!CV$48:CV$179,MATCH(A136,'RC'!BI$48:BI$179,0))),0,(INDEX('RC'!CV$48:CV$179,MATCH(A136,'RC'!BI$48:BI$179,0))))) -> 0 | U136: =IF(Entry!B$28="Y",0,IF(ISERROR(INDEX('RC'!CW$48:CW$179,MATCH(A136,'RC'!BI$48:BI$179,0))),0,(INDEX('RC'!CW$48:CW$179,MATCH(A136,'RC'!BI$48:BI$179,0))))) -> 0 | V136: 0 | W136: =IF(ISERROR(INDEX('RC'!CY$48:CY$179,MATCH(A136,'RC'!BI$48:BI$179,0))),0,(INDEX('RC'!CY$48:CY$179,MATCH(A136,'RC'!BI$48:BI$179,0)))) -> 0 | X136: =IF(ISERROR(INDEX('RC'!CZ$48:CZ$179,MATCH(A136,'RC'!BI$48:BI$179,0))),0,(INDEX('RC'!CZ$48:CZ$179,MATCH(A136,'RC'!BI$48:BI$179,0)))) -> 0 | Y136: 0 | Z136: =IF(A136>='RC'!BM$29,0,IF(ISERROR(INDEX('RC'!CF$48:CF$179,MATCH(A136,'RC'!BI$48:BI$179,0))),0,(INDEX('RC'!CF$48:CF$179,MATCH(A136,'RC'!BI$48:BI$179,0))))) -> 0 | AA136: 0 | AB136: 0 | AJ136: 0 | AK136: 0
A137: 2025-08-01 | B137: =IF(ISERROR(INDEX('RC'!BJ$48:BJ$179,MATCH(A137,'RC'!BI$48:BI$179,0))),0,(INDEX('RC'!BJ$48:BJ$179,MATCH(A137,'RC'!BI$48:BI$179,0)))) -> 0 | C137: =IF(B137="",0,IF(B137=0,0,INDEX('RC'!BK$48:BK$179,MATCH(A137,'RC'!BI$48:BI$179,0)))) -> 0 | D137: =IF(B137="",0,IF(B137=0,0,INDEX('RC'!BL$48:BL$179,MATCH(A137,'RC'!BI$48:BI$179,0)))) -> 0 | E137: =IF(B137="",0,IF(B137=0,0,INDEX('RC'!BM$48:BM$179,MATCH(A137,'RC'!BI$48:BI$179,0)))) -> 0 | F137: 0 | G137: =IF(ISERROR(INDEX('RC'!BP$48:BP$179,MATCH(A137,'RC'!BI$48:BI$179,0))),0,(INDEX('RC'!BP$48:BP$179,MATCH(A137,'RC'!BI$48:BI$179,0)))) -> 0 | H137: =IF(B137="",0,IF(B137=0,0,INDEX('RC'!BQ$48:BQ$179,MATCH(A137,'RC'!BI$48:BI$179,0)))) -> 0 | I137: =IF(B137="",0,IF(B137=0,0,INDEX('RC'!BR$48:BR$179,MATCH(A137,'RC'!BI$48:BI$179,0)))) -> 0 | J137: =IF(B137="",0,IF(B137=0,0,INDEX('RC'!BS$48:BS$179,MATCH(A137,'RC'!BI$48:BI$179,0)))) -> 0 | K137: 0 | L137: 0 | M137: 0 | N137: 0 | O137: 0 | P137: 0 | Q137: =IF(ISERROR(INDEX('RC'!DG$48:DG$179,MATCH(A137,'RC'!BI$48:BI$179,0))),0,(INDEX('RC'!DG$48:DG$179,MATCH(A137,'RC'!BI$48:BI$179,0)))) -> 0 | R137: =IF(ISERROR(INDEX('RC'!DH$48:DH$179,MATCH(A137,'RC'!BI$48:BI$179,0))),0,(INDEX('RC'!DH$48:DH$179,MATCH(A137,'RC'!BI$48:BI$179,0)))) -> 0 | S137: 0 | T137: =IF(Entry!B$28="Y",0,IF(ISERROR(INDEX('RC'!CV$48:CV$179,MATCH(A137,'RC'!BI$48:BI$179,0))),0,(INDEX('RC'!CV$48:CV$179,MATCH(A137,'RC'!BI$48:BI$179,0))))) -> 0 | U137: =IF(Entry!B$28="Y",0,IF(ISERROR(INDEX('RC'!CW$48:CW$179,MATCH(A137,'RC'!BI$48:BI$179,0))),0,(INDEX('RC'!CW$48:CW$179,MATCH(A137,'RC'!BI$48:BI$179,0))))) -> 0 | V137: 0 | W137: =IF(ISERROR(INDEX('RC'!CY$48:CY$179,MATCH(A137,'RC'!BI$48:BI$179,0))),0,(INDEX('RC'!CY$48:CY$179,MATCH(A137,'RC'!BI$48:BI$179,0)))) -> 0 | X137: =IF(ISERROR(INDEX('RC'!CZ$48:CZ$179,MATCH(A137,'RC'!BI$48:BI$179,0))),0,(INDEX('RC'!CZ$48:CZ$179,MATCH(A137,'RC'!BI$48:BI$179,0)))) -> 0 | Y137: 0 | Z137: =IF(A137>='RC'!BM$29,0,IF(ISERROR(INDEX('RC'!CF$48:CF$179,MATCH(A137,'RC'!BI$48:BI$179,0))),0,(INDEX('RC'!CF$48:CF$179,MATCH(A137,'RC'!BI$48:BI$179,0))))) -> 0 | AA137: 0 | AB137: 0 | AJ137: 0 | AK137: 0
A138: 2025-09-01 | B138: =IF(ISERROR(INDEX('RC'!BJ$48:BJ$179,MATCH(A138,'RC'!BI$48:BI$179,0))),0,(INDEX('RC'!BJ$48:BJ$179,MATCH(A138,'RC'!BI$48:BI$179,0)))) -> 0 | C138: =IF(B138="",0,IF(B138=0,0,INDEX('RC'!BK$48:BK$179,MATCH(A138,'RC'!BI$48:BI$179,0)))) -> 0 | D138: =IF(B138="",0,IF(B138=0,0,INDEX('RC'!BL$48:BL$179,MATCH(A138,'RC'!BI$48:BI$179,0)))) -> 0 | E138: =IF(B138="",0,IF(B138=0,0,INDEX('RC'!BM$48:BM$179,MATCH(A138,'RC'!BI$48:BI$179,0)))) -> 0 | F138: =SUM(B138:E138) -> 0 | G138: =IF(ISERROR(INDEX('RC'!BP$48:BP$179,MATCH(A138,'RC'!BI$48:BI$179,0))),0,(INDEX('RC'!BP$48:BP$179,MATCH(A138,'RC'!BI$48:BI$179,0)))) -> 0 | H138: =IF(B138="",0,IF(B138=0,0,INDEX('RC'!BQ$48:BQ$179,MATCH(A138,'RC'!BI$48:BI$179,0)))) -> 0 | I138: =IF(B138="",0,IF(B138=0,0,INDEX('RC'!BR$48:BR$179,MATCH(A138,'RC'!BI$48:BI$179,0)))) -> 0 | J138: =IF(B138="",0,IF(B138=0,0,INDEX('RC'!BS$48:BS$179,MATCH(A138,'RC'!BI$48:BI$179,0)))) -> 0 | K138: =SUM(G138:J138) -> 0 | L138: =B138-G138 -> 0 | M138: =C138-H138 -> 0 | N138: =D138-I138 -> 0 | O138: 0 | P138: 0 | Q138: =IF(ISERROR(INDEX('RC'!DG$48:DG$179,MATCH(A138,'RC'!BI$48:BI$179,0))),0,(INDEX('RC'!DG$48:DG$179,MATCH(A138,'RC'!BI$48:BI$179,0)))) -> 0 | R138: =IF(ISERROR(INDEX('RC'!DH$48:DH$179,MATCH(A138,'RC'!BI$48:BI$179,0))),0,(INDEX('RC'!DH$48:DH$179,MATCH(A138,'RC'!BI$48:BI$179,0)))) -> 0 | S138: 0 | T138: =IF(Entry!B$28="Y",0,IF(ISERROR(INDEX('RC'!CV$48:CV$179,MATCH(A138,'RC'!BI$48:BI$179,0))),0,(INDEX('RC'!CV$48:CV$179,MATCH(A138,'RC'!BI$48:BI$179,0))))) -> 0 | U138: =IF(Entry!B$28="Y",0,IF(ISERROR(INDEX('RC'!CW$48:CW$179,MATCH(A138,'RC'!BI$48:BI$179,0))),0,(INDEX('RC'!CW$48:CW$179,MATCH(A138,'RC'!BI$48:BI$179,0))))) -> 0 | V138: 0 | W138: =IF(ISERROR(INDEX('RC'!CY$48:CY$179,MATCH(A138,'RC'!BI$48:BI$179,0))),0,(INDEX('RC'!CY$48:CY$179,MATCH(A138,'RC'!BI$48:BI$179,0)))) -> 0 | X138: =IF(ISERROR(INDEX('RC'!CZ$48:CZ$179,MATCH(A138,'RC'!BI$48:BI$179,0))),0,(INDEX('RC'!CZ$48:CZ$179,MATCH(A138,'RC'!BI$48:BI$179,0)))) -> 0 | Y138: 0 | Z138: =IF(A138>='RC'!BM$29,0,IF(ISERROR(INDEX('RC'!CF$48:CF$179,MATCH(A138,'RC'!BI$48:BI$179,0))),0,(INDEX('RC'!CF$48:CF$179,MATCH(A138,'RC'!BI$48:BI$179,0))))) -> 0 | AA138: 0 | AB138: 0 | AJ138: =IF(B138<1,0,1) -> 0 | AK138: =AJ138 -> 0 | AL138: =IF(AK138=0,"",AK138) ->  | AM138: =IF(AL138=0,"",AL138) -> 
A139: 2025-10-01 | B139: =IF(ISERROR(INDEX('RC'!BJ$48:BJ$179,MATCH(A139,'RC'!BI$48:BI$179,0))),0,(INDEX('RC'!BJ$48:BJ$179,MATCH(A139,'RC'!BI$48:BI$179,0)))) -> 0 | C139: =IF(B139="",0,IF(B139=0,0,INDEX('RC'!BK$48:BK$179,MATCH(A139,'RC'!BI$48:BI$179,0)))) -> 0 | D139: =IF(B139="",0,IF(B139=0,0,INDEX('RC'!BL$48:BL$179,MATCH(A139,'RC'!BI$48:BI$179,0)))) -> 0 | E139: =IF(B139="",0,IF(B139=0,0,INDEX('RC'!BM$48:BM$179,MATCH(A139,'RC'!BI$48:BI$179,0)))) -> 0 | F139: 0 | G139: =IF(ISERROR(INDEX('RC'!BP$48:BP$179,MATCH(A139,'RC'!BI$48:BI$179,0))),0,(INDEX('RC'!BP$48:BP$179,MATCH(A139,'RC'!BI$48:BI$179,0)))) -> 0 | H139: =IF(B139="",0,IF(B139=0,0,INDEX('RC'!BQ$48:BQ$179,MATCH(A139,'RC'!BI$48:BI$179,0)))) -> 0 | I139: =IF(B139="",0,IF(B139=0,0,INDEX('RC'!BR$48:BR$179,MATCH(A139,'RC'!BI$48:BI$179,0)))) -> 0 | J139: =IF(B139="",0,IF(B139=0,0,INDEX('RC'!BS$48:BS$179,MATCH(A139,'RC'!BI$48:BI$179,0)))) -> 0 | K139: 0 | L139: 0 | M139: 0 | N139: 0 | O139: 0 | P139: 0 | Q139: =IF(ISERROR(INDEX('RC'!DG$48:DG$179,MATCH(A139,'RC'!BI$48:BI$179,0))),0,(INDEX('RC'!DG$48:DG$179,MATCH(A139,'RC'!BI$48:BI$179,0)))) -> 0 | R139: =IF(ISERROR(INDEX('RC'!DH$48:DH$179,MATCH(A139,'RC'!BI$48:BI$179,0))),0,(INDEX('RC'!DH$48:DH$179,MATCH(A139,'RC'!BI$48:BI$179,0)))) -> 0 | S139: 0 | T139: =IF(Entry!B$28="Y",0,IF(ISERROR(INDEX('RC'!CV$48:CV$179,MATCH(A139,'RC'!BI$48:BI$179,0))),0,(INDEX('RC'!CV$48:CV$179,MATCH(A139,'RC'!BI$48:BI$179,0))))) -> 0 | U139: =IF(Entry!B$28="Y",0,IF(ISERROR(INDEX('RC'!CW$48:CW$179,MATCH(A139,'RC'!BI$48:BI$179,0))),0,(INDEX('RC'!CW$48:CW$179,MATCH(A139,'RC'!BI$48:BI$179,0))))) -> 0 | V139: 0 | W139: =IF(ISERROR(INDEX('RC'!CY$48:CY$179,MATCH(A139,'RC'!BI$48:BI$179,0))),0,(INDEX('RC'!CY$48:CY$179,MATCH(A139,'RC'!BI$48:BI$179,0)))) -> 0 | X139: =IF(ISERROR(INDEX('RC'!CZ$48:CZ$179,MATCH(A139,'RC'!BI$48:BI$179,0))),0,(INDEX('RC'!CZ$48:CZ$179,MATCH(A139,'RC'!BI$48:BI$179,0)))) -> 0 | Y139: 0 | Z139: =IF(A139>='RC'!BM$29,0,IF(ISERROR(INDEX('RC'!CF$48:CF$179,MATCH(A139,'RC'!BI$48:BI$179,0))),0,(INDEX('RC'!CF$48:CF$179,MATCH(A139,'RC'!BI$48:BI$179,0))))) -> 0 | AA139: 0 | AB139: 0 | AJ139: 0 | AK139: 0
A140: 2025-11-01 | B140: =IF(ISERROR(INDEX('RC'!BJ$48:BJ$179,MATCH(A140,'RC'!BI$48:BI$179,0))),0,(INDEX('RC'!BJ$48:BJ$179,MATCH(A140,'RC'!BI$48:BI$179,0)))) -> 0 | C140: =IF(B140="",0,IF(B140=0,0,INDEX('RC'!BK$48:BK$179,MATCH(A140,'RC'!BI$48:BI$179,0)))) -> 0 | D140: =IF(B140="",0,IF(B140=0,0,INDEX('RC'!BL$48:BL$179,MATCH(A140,'RC'!BI$48:BI$179,0)))) -> 0 | E140: =IF(B140="",0,IF(B140=0,0,INDEX('RC'!BM$48:BM$179,MATCH(A140,'RC'!BI$48:BI$179,0)))) -> 0 | F140: 0 | G140: =IF(ISERROR(INDEX('RC'!BP$48:BP$179,MATCH(A140,'RC'!BI$48:BI$179,0))),0,(INDEX('RC'!BP$48:BP$179,MATCH(A140,'RC'!BI$48:BI$179,0)))) -> 0 | H140: =IF(B140="",0,IF(B140=0,0,INDEX('RC'!BQ$48:BQ$179,MATCH(A140,'RC'!BI$48:BI$179,0)))) -> 0 | I140: =IF(B140="",0,IF(B140=0,0,INDEX('RC'!BR$48:BR$179,MATCH(A140,'RC'!BI$48:BI$179,0)))) -> 0 | J140: =IF(B140="",0,IF(B140=0,0,INDEX('RC'!BS$48:BS$179,MATCH(A140,'RC'!BI$48:BI$179,0)))) -> 0 | K140: 0 | L140: 0 | M140: 0 | N140: 0 | O140: 0 | P140: 0 | Q140: =IF(ISERROR(INDEX('RC'!DG$48:DG$179,MATCH(A140,'RC'!BI$48:BI$179,0))),0,(INDEX('RC'!DG$48:DG$179,MATCH(A140,'RC'!BI$48:BI$179,0)))) -> 0 | R140: =IF(ISERROR(INDEX('RC'!DH$48:DH$179,MATCH(A140,'RC'!BI$48:BI$179,0))),0,(INDEX('RC'!DH$48:DH$179,MATCH(A140,'RC'!BI$48:BI$179,0)))) -> 0 | S140: 0 | T140: =IF(Entry!B$28="Y",0,IF(ISERROR(INDEX('RC'!CV$48:CV$179,MATCH(A140,'RC'!BI$48:BI$179,0))),0,(INDEX('RC'!CV$48:CV$179,MATCH(A140,'RC'!BI$48:BI$179,0))))) -> 0 | U140: =IF(Entry!B$28="Y",0,IF(ISERROR(INDEX('RC'!CW$48:CW$179,MATCH(A140,'RC'!BI$48:BI$179,0))),0,(INDEX('RC'!CW$48:CW$179,MATCH(A140,'RC'!BI$48:BI$179,0))))) -> 0 | V140: 0 | W140: =IF(ISERROR(INDEX('RC'!CY$48:CY$179,MATCH(A140,'RC'!BI$48:BI$179,0))),0,(INDEX('RC'!CY$48:CY$179,MATCH(A140,'RC'!BI$48:BI$179,0)))) -> 0 | X140: =IF(ISERROR(INDEX('RC'!CZ$48:CZ$179,MATCH(A140,'RC'!BI$48:BI$179,0))),0,(INDEX('RC'!CZ$48:CZ$179,MATCH(A140,'RC'!BI$48:BI$179,0)))) -> 0 | Y140: 0 | Z140: =IF(A140>='RC'!BM$29,0,IF(ISERROR(INDEX('RC'!CF$48:CF$179,MATCH(A140,'RC'!BI$48:BI$179,0))),0,(INDEX('RC'!CF$48:CF$179,MATCH(A140,'RC'!BI$48:BI$179,0))))) -> 0 | AA140: 0 | AB140: 0 | AJ140: 0 | AK140: 0
A141: 2025-12-01 | B141: =IF(ISERROR(INDEX('RC'!BJ$48:BJ$179,MATCH(A141,'RC'!BI$48:BI$179,0))),0,(INDEX('RC'!BJ$48:BJ$179,MATCH(A141,'RC'!BI$48:BI$179,0)))) -> 0 | C141: =IF(B141="",0,IF(B141=0,0,INDEX('RC'!BK$48:BK$179,MATCH(A141,'RC'!BI$48:BI$179,0)))) -> 0 | D141: =IF(B141="",0,IF(B141=0,0,INDEX('RC'!BL$48:BL$179,MATCH(A141,'RC'!BI$48:BI$179,0)))) -> 0 | E141: =IF(B141="",0,IF(B141=0,0,INDEX('RC'!BM$48:BM$179,MATCH(A141,'RC'!BI$48:BI$179,0)))) -> 0 | F141: 0 | G141: =IF(ISERROR(INDEX('RC'!BP$48:BP$179,MATCH(A141,'RC'!BI$48:BI$179,0))),0,(INDEX('RC'!BP$48:BP$179,MATCH(A141,'RC'!BI$48:BI$179,0)))) -> 0 | H141: =IF(B141="",0,IF(B141=0,0,INDEX('RC'!BQ$48:BQ$179,MATCH(A141,'RC'!BI$48:BI$179,0)))) -> 0 | I141: =IF(B141="",0,IF(B141=0,0,INDEX('RC'!BR$48:BR$179,MATCH(A141,'RC'!BI$48:BI$179,0)))) -> 0 | J141: =IF(B141="",0,IF(B141=0,0,INDEX('RC'!BS$48:BS$179,MATCH(A141,'RC'!BI$48:BI$179,0)))) -> 0 | K141: 0 | L141: 0 | M141: 0 | N141: 0 | O141: 0 | P141: 0 | Q141: =IF(ISERROR(INDEX('RC'!DG$48:DG$179,MATCH(A141,'RC'!BI$48:BI$179,0))),0,(INDEX('RC'!DG$48:DG$179,MATCH(A141,'RC'!BI$48:BI$179,0)))) -> 0 | R141: =IF(ISERROR(INDEX('RC'!DH$48:DH$179,MATCH(A141,'RC'!BI$48:BI$179,0))),0,(INDEX('RC'!DH$48:DH$179,MATCH(A141,'RC'!BI$48:BI$179,0)))) -> 0 | S141: =Q141-R141 -> 0 | T141: =IF(Entry!B$28="Y",0,IF(ISERROR(INDEX('RC'!CV$48:CV$179,MATCH(A141,'RC'!BI$48:BI$179,0))),0,(INDEX('RC'!CV$48:CV$179,MATCH(A141,'RC'!BI$48:BI$179,0))))) -> 0 | U141: =IF(Entry!B$28="Y",0,IF(ISERROR(INDEX('RC'!CW$48:CW$179,MATCH(A141,'RC'!BI$48:BI$179,0))),0,(INDEX('RC'!CW$48:CW$179,MATCH(A141,'RC'!BI$48:BI$179,0))))) -> 0 | V141: =T141-U141 -> 0 | W141: =IF(ISERROR(INDEX('RC'!CY$48:CY$179,MATCH(A141,'RC'!BI$48:BI$179,0))),0,(INDEX('RC'!CY$48:CY$179,MATCH(A141,'RC'!BI$48:BI$179,0)))) -> 0 | X141: =IF(ISERROR(INDEX('RC'!CZ$48:CZ$179,MATCH(A141,'RC'!BI$48:BI$179,0))),0,(INDEX('RC'!CZ$48:CZ$179,MATCH(A141,'RC'!BI$48:BI$179,0)))) -> 0 | Y141: =W141-X141 -> 0 | Z141: =IF(A141>='RC'!BM$29,0,IF(ISERROR(INDEX('RC'!CF$48:CF$179,MATCH(A141,'RC'!BI$48:BI$179,0))),0,(INDEX('RC'!CF$48:CF$179,MATCH(A141,'RC'!BI$48:BI$179,0))))) -> 0 | AA141: 0 | AB141: 0 | AJ141: 0 | AK141: 0
A142: 2026-01-01 | B142: =IF(ISERROR(INDEX('RC'!BJ$48:BJ$179,MATCH(A142,'RC'!BI$48:BI$179,0))),0,(INDEX('RC'!BJ$48:BJ$179,MATCH(A142,'RC'!BI$48:BI$179,0)))) -> 0 | C142: =IF(B142="",0,IF(B142=0,0,INDEX('RC'!BK$48:BK$179,MATCH(A142,'RC'!BI$48:BI$179,0)))) -> 0 | D142: =IF(B142="",0,IF(B142=0,0,INDEX('RC'!BL$48:BL$179,MATCH(A142,'RC'!BI$48:BI$179,0)))) -> 0 | E142: =IF(B142="",0,IF(B142=0,0,INDEX('RC'!BM$48:BM$179,MATCH(A142,'RC'!BI$48:BI$179,0)))) -> 0 | F142: 0 | G142: =IF(ISERROR(INDEX('RC'!BP$48:BP$179,MATCH(A142,'RC'!BI$48:BI$179,0))),0,(INDEX('RC'!BP$48:BP$179,MATCH(A142,'RC'!BI$48:BI$179,0)))) -> 0 | H142: =IF(B142="",0,IF(B142=0,0,INDEX('RC'!BQ$48:BQ$179,MATCH(A142,'RC'!BI$48:BI$179,0)))) -> 0 | I142: =IF(B142="",0,IF(B142=0,0,INDEX('RC'!BR$48:BR$179,MATCH(A142,'RC'!BI$48:BI$179,0)))) -> 0 | J142: =IF(B142="",0,IF(B142=0,0,INDEX('RC'!BS$48:BS$179,MATCH(A142,'RC'!BI$48:BI$179,0)))) -> 0 | K142: 0 | L142: 0 | M142: 0 | N142: 0 | O142: 0 | P142: 0 | Q142: =IF(ISERROR(INDEX('RC'!DG$48:DG$179,MATCH(A142,'RC'!BI$48:BI$179,0))),0,(INDEX('RC'!DG$48:DG$179,MATCH(A142,'RC'!BI$48:BI$179,0)))) -> 0 | R142: =IF(ISERROR(INDEX('RC'!DH$48:DH$179,MATCH(A142,'RC'!BI$48:BI$179,0))),0,(INDEX('RC'!DH$48:DH$179,MATCH(A142,'RC'!BI$48:BI$179,0)))) -> 0 | S142: 0 | T142: =IF(Entry!B$28="Y",0,IF(ISERROR(INDEX('RC'!CV$48:CV$179,MATCH(A142,'RC'!BI$48:BI$179,0))),0,(INDEX('RC'!CV$48:CV$179,MATCH(A142,'RC'!BI$48:BI$179,0))))) -> 0 | U142: =IF(Entry!B$28="Y",0,IF(ISERROR(INDEX('RC'!CW$48:CW$179,MATCH(A142,'RC'!BI$48:BI$179,0))),0,(INDEX('RC'!CW$48:CW$179,MATCH(A142,'RC'!BI$48:BI$179,0))))) -> 0 | V142: 0 | W142: =IF(ISERROR(INDEX('RC'!CY$48:CY$179,MATCH(A142,'RC'!BI$48:BI$179,0))),0,(INDEX('RC'!CY$48:CY$179,MATCH(A142,'RC'!BI$48:BI$179,0)))) -> 0 | X142: =IF(ISERROR(INDEX('RC'!CZ$48:CZ$179,MATCH(A142,'RC'!BI$48:BI$179,0))),0,(INDEX('RC'!CZ$48:CZ$179,MATCH(A142,'RC'!BI$48:BI$179,0)))) -> 0 | Y142: 0 | Z142: =IF(A142>='RC'!BM$29,0,IF(ISERROR(INDEX('RC'!CF$48:CF$179,MATCH(A142,'RC'!BI$48:BI$179,0))),0,(INDEX('RC'!CF$48:CF$179,MATCH(A142,'RC'!BI$48:BI$179,0))))) -> 0 | AA142: 0 | AB142: 0 | AJ142: 0 | AK142: 0
A143: 2026-02-01 | B143: =IF(ISERROR(INDEX('RC'!BJ$48:BJ$179,MATCH(A143,'RC'!BI$48:BI$179,0))),0,(INDEX('RC'!BJ$48:BJ$179,MATCH(A143,'RC'!BI$48:BI$179,0)))) -> 0 | C143: =IF(B143="",0,IF(B143=0,0,INDEX('RC'!BK$48:BK$179,MATCH(A143,'RC'!BI$48:BI$179,0)))) -> 0 | D143: =IF(B143="",0,IF(B143=0,0,INDEX('RC'!BL$48:BL$179,MATCH(A143,'RC'!BI$48:BI$179,0)))) -> 0 | E143: =IF(B143="",0,IF(B143=0,0,INDEX('RC'!BM$48:BM$179,MATCH(A143,'RC'!BI$48:BI$179,0)))) -> 0 | F143: 0 | G143: =IF(ISERROR(INDEX('RC'!BP$48:BP$179,MATCH(A143,'RC'!BI$48:BI$179,0))),0,(INDEX('RC'!BP$48:BP$179,MATCH(A143,'RC'!BI$48:BI$179,0)))) -> 0 | H143: =IF(B143="",0,IF(B143=0,0,INDEX('RC'!BQ$48:BQ$179,MATCH(A143,'RC'!BI$48:BI$179,0)))) -> 0 | I143: =IF(B143="",0,IF(B143=0,0,INDEX('RC'!BR$48:BR$179,MATCH(A143,'RC'!BI$48:BI$179,0)))) -> 0 | J143: =IF(B143="",0,IF(B143=0,0,INDEX('RC'!BS$48:BS$179,MATCH(A143,'RC'!BI$48:BI$179,0)))) -> 0 | K143: 0 | L143: 0 | M143: 0 | N143: 0 | O143: 0 | P143: 0 | Q143: =IF(ISERROR(INDEX('RC'!DG$48:DG$179,MATCH(A143,'RC'!BI$48:BI$179,0))),0,(INDEX('RC'!DG$48:DG$179,MATCH(A143,'RC'!BI$48:BI$179,0)))) -> 0 | R143: =IF(ISERROR(INDEX('RC'!DH$48:DH$179,MATCH(A143,'RC'!BI$48:BI$179,0))),0,(INDEX('RC'!DH$48:DH$179,MATCH(A143,'RC'!BI$48:BI$179,0)))) -> 0 | S143: 0 | T143: =IF(Entry!B$28="Y",0,IF(ISERROR(INDEX('RC'!CV$48:CV$179,MATCH(A143,'RC'!BI$48:BI$179,0))),0,(INDEX('RC'!CV$48:CV$179,MATCH(A143,'RC'!BI$48:BI$179,0))))) -> 0 | U143: =IF(Entry!B$28="Y",0,IF(ISERROR(INDEX('RC'!CW$48:CW$179,MATCH(A143,'RC'!BI$48:BI$179,0))),0,(INDEX('RC'!CW$48:CW$179,MATCH(A143,'RC'!BI$48:BI$179,0))))) -> 0 | V143: 0 | W143: =IF(ISERROR(INDEX('RC'!CY$48:CY$179,MATCH(A143,'RC'!BI$48:BI$179,0))),0,(INDEX('RC'!CY$48:CY$179,MATCH(A143,'RC'!BI$48:BI$179,0)))) -> 0 | X143: =IF(ISERROR(INDEX('RC'!CZ$48:CZ$179,MATCH(A143,'RC'!BI$48:BI$179,0))),0,(INDEX('RC'!CZ$48:CZ$179,MATCH(A143,'RC'!BI$48:BI$179,0)))) -> 0 | Y143: 0 | Z143: =IF(A143>='RC'!BM$29,0,IF(ISERROR(INDEX('RC'!CF$48:CF$179,MATCH(A143,'RC'!BI$48:BI$179,0))),0,(INDEX('RC'!CF$48:CF$179,MATCH(A143,'RC'!BI$48:BI$179,0))))) -> 0 | AA143: 0 | AB143: 0 | AJ143: 0 | AK143: 0
A144: 2026-03-01 | B144: =IF(ISERROR(INDEX('RC'!BJ$48:BJ$179,MATCH(A144,'RC'!BI$48:BI$179,0))),0,(INDEX('RC'!BJ$48:BJ$179,MATCH(A144,'RC'!BI$48:BI$179,0)))) -> 0 | C144: =IF(B144="",0,IF(B144=0,0,INDEX('RC'!BK$48:BK$179,MATCH(A144,'RC'!BI$48:BI$179,0)))) -> 0 | D144: =IF(B144="",0,IF(B144=0,0,INDEX('RC'!BL$48:BL$179,MATCH(A144,'RC'!BI$48:BI$179,0)))) -> 0 | E144: =IF(B144="",0,IF(B144=0,0,INDEX('RC'!BM$48:BM$179,MATCH(A144,'RC'!BI$48:BI$179,0)))) -> 0 | F144: 0 | G144: =IF(ISERROR(INDEX('RC'!BP$48:BP$179,MATCH(A144,'RC'!BI$48:BI$179,0))),0,(INDEX('RC'!BP$48:BP$179,MATCH(A144,'RC'!BI$48:BI$179,0)))) -> 0 | H144: =IF(B144="",0,IF(B144=0,0,INDEX('RC'!BQ$48:BQ$179,MATCH(A144,'RC'!BI$48:BI$179,0)))) -> 0 | I144: =IF(B144="",0,IF(B144=0,0,INDEX('RC'!BR$48:BR$179,MATCH(A144,'RC'!BI$48:BI$179,0)))) -> 0 | J144: =IF(B144="",0,IF(B144=0,0,INDEX('RC'!BS$48:BS$179,MATCH(A144,'RC'!BI$48:BI$179,0)))) -> 0 | K144: 0 | L144: 0 | M144: 0 | N144: 0 | O144: 0 | P144: 0 | Q144: =IF(ISERROR(INDEX('RC'!DG$48:DG$179,MATCH(A144,'RC'!BI$48:BI$179,0))),0,(INDEX('RC'!DG$48:DG$179,MATCH(A144,'RC'!BI$48:BI$179,0)))) -> 0 | R144: =IF(ISERROR(INDEX('RC'!DH$48:DH$179,MATCH(A144,'RC'!BI$48:BI$179,0))),0,(INDEX('RC'!DH$48:DH$179,MATCH(A144,'RC'!BI$48:BI$179,0)))) -> 0 | S144: 0 | T144: =IF(Entry!B$28="Y",0,IF(ISERROR(INDEX('RC'!CV$48:CV$179,MATCH(A144,'RC'!BI$48:BI$179,0))),0,(INDEX('RC'!CV$48:CV$179,MATCH(A144,'RC'!BI$48:BI$179,0))))) -> 0 | U144: =IF(Entry!B$28="Y",0,IF(ISERROR(INDEX('RC'!CW$48:CW$179,MATCH(A144,'RC'!BI$48:BI$179,0))),0,(INDEX('RC'!CW$48:CW$179,MATCH(A144,'RC'!BI$48:BI$179,0))))) -> 0 | V144: 0 | W144: =IF(ISERROR(INDEX('RC'!CY$48:CY$179,MATCH(A144,'RC'!BI$48:BI$179,0))),0,(INDEX('RC'!CY$48:CY$179,MATCH(A144,'RC'!BI$48:BI$179,0)))) -> 0 | X144: =IF(ISERROR(INDEX('RC'!CZ$48:CZ$179,MATCH(A144,'RC'!BI$48:BI$179,0))),0,(INDEX('RC'!CZ$48:CZ$179,MATCH(A144,'RC'!BI$48:BI$179,0)))) -> 0 | Y144: 0 | Z144: =IF(A144>='RC'!BM$29,0,IF(ISERROR(INDEX('RC'!CF$48:CF$179,MATCH(A144,'RC'!BI$48:BI$179,0))),0,(INDEX('RC'!CF$48:CF$179,MATCH(A144,'RC'!BI$48:BI$179,0))))) -> 0 | AA144: 0 | AB144: 0 | AJ144: 0 | AK144: 0
A145: 2026-04-01 | B145: =IF(ISERROR(INDEX('RC'!BJ$48:BJ$179,MATCH(A145,'RC'!BI$48:BI$179,0))),0,(INDEX('RC'!BJ$48:BJ$179,MATCH(A145,'RC'!BI$48:BI$179,0)))) -> 0 | C145: =IF(B145="",0,IF(B145=0,0,INDEX('RC'!BK$48:BK$179,MATCH(A145,'RC'!BI$48:BI$179,0)))) -> 0 | D145: =IF(B145="",0,IF(B145=0,0,INDEX('RC'!BL$48:BL$179,MATCH(A145,'RC'!BI$48:BI$179,0)))) -> 0 | E145: =IF(B145="",0,IF(B145=0,0,INDEX('RC'!BM$48:BM$179,MATCH(A145,'RC'!BI$48:BI$179,0)))) -> 0 | F145: 0 | G145: =IF(ISERROR(INDEX('RC'!BP$48:BP$179,MATCH(A145,'RC'!BI$48:BI$179,0))),0,(INDEX('RC'!BP$48:BP$179,MATCH(A145,'RC'!BI$48:BI$179,0)))) -> 0 | H145: =IF(B145="",0,IF(B145=0,0,INDEX('RC'!BQ$48:BQ$179,MATCH(A145,'RC'!BI$48:BI$179,0)))) -> 0 | I145: =IF(B145="",0,IF(B145=0,0,INDEX('RC'!BR$48:BR$179,MATCH(A145,'RC'!BI$48:BI$179,0)))) -> 0 | J145: =IF(B145="",0,IF(B145=0,0,INDEX('RC'!BS$48:BS$179,MATCH(A145,'RC'!BI$48:BI$179,0)))) -> 0 | K145: 0 | L145: 0 | M145: 0 | N145: 0 | O145: 0 | P145: 0 | Q145: =IF(ISERROR(INDEX('RC'!DG$48:DG$179,MATCH(A145,'RC'!BI$48:BI$179,0))),0,(INDEX('RC'!DG$48:DG$179,MATCH(A145,'RC'!BI$48:BI$179,0)))) -> 0 | R145: =IF(ISERROR(INDEX('RC'!DH$48:DH$179,MATCH(A145,'RC'!BI$48:BI$179,0))),0,(INDEX('RC'!DH$48:DH$179,MATCH(A145,'RC'!BI$48:BI$179,0)))) -> 0 | S145: 0 | T145: =IF(Entry!B$28="Y",0,IF(ISERROR(INDEX('RC'!CV$48:CV$179,MATCH(A145,'RC'!BI$48:BI$179,0))),0,(INDEX('RC'!CV$48:CV$179,MATCH(A145,'RC'!BI$48:BI$179,0))))) -> 0 | U145: =IF(Entry!B$28="Y",0,IF(ISERROR(INDEX('RC'!CW$48:CW$179,MATCH(A145,'RC'!BI$48:BI$179,0))),0,(INDEX('RC'!CW$48:CW$179,MATCH(A145,'RC'!BI$48:BI$179,0))))) -> 0 | V145: 0 | W145: =IF(ISERROR(INDEX('RC'!CY$48:CY$179,MATCH(A145,'RC'!BI$48:BI$179,0))),0,(INDEX('RC'!CY$48:CY$179,MATCH(A145,'RC'!BI$48:BI$179,0)))) -> 0 | X145: =IF(ISERROR(INDEX('RC'!CZ$48:CZ$179,MATCH(A145,'RC'!BI$48:BI$179,0))),0,(INDEX('RC'!CZ$48:CZ$179,MATCH(A145,'RC'!BI$48:BI$179,0)))) -> 0 | Y145: 0 | Z145: =IF(A145>='RC'!BM$29,0,IF(ISERROR(INDEX('RC'!CF$48:CF$179,MATCH(A145,'RC'!BI$48:BI$179,0))),0,(INDEX('RC'!CF$48:CF$179,MATCH(A145,'RC'!BI$48:BI$179,0))))) -> 0 | AA145: 0 | AB145: 0 | AJ145: 0 | AK145: 0
A146: 2026-05-01 | B146: =IF(ISERROR(INDEX('RC'!BJ$48:BJ$179,MATCH(A146,'RC'!BI$48:BI$179,0))),0,(INDEX('RC'!BJ$48:BJ$179,MATCH(A146,'RC'!BI$48:BI$179,0)))) -> 0 | C146: =IF(B146="",0,IF(B146=0,0,INDEX('RC'!BK$48:BK$179,MATCH(A146,'RC'!BI$48:BI$179,0)))) -> 0 | D146: =IF(B146="",0,IF(B146=0,0,INDEX('RC'!BL$48:BL$179,MATCH(A146,'RC'!BI$48:BI$179,0)))) -> 0 | E146: =IF(B146="",0,IF(B146=0,0,INDEX('RC'!BM$48:BM$179,MATCH(A146,'RC'!BI$48:BI$179,0)))) -> 0 | F146: 0 | G146: =IF(ISERROR(INDEX('RC'!BP$48:BP$179,MATCH(A146,'RC'!BI$48:BI$179,0))),0,(INDEX('RC'!BP$48:BP$179,MATCH(A146,'RC'!BI$48:BI$179,0)))) -> 0 | H146: =IF(B146="",0,IF(B146=0,0,INDEX('RC'!BQ$48:BQ$179,MATCH(A146,'RC'!BI$48:BI$179,0)))) -> 0 | I146: =IF(B146="",0,IF(B146=0,0,INDEX('RC'!BR$48:BR$179,MATCH(A146,'RC'!BI$48:BI$179,0)))) -> 0 | J146: =IF(B146="",0,IF(B146=0,0,INDEX('RC'!BS$48:BS$179,MATCH(A146,'RC'!BI$48:BI$179,0)))) -> 0 | K146: 0 | L146: 0 | M146: 0 | N146: 0 | O146: 0 | P146: 0 | Q146: =IF(ISERROR(INDEX('RC'!DG$48:DG$179,MATCH(A146,'RC'!BI$48:BI$179,0))),0,(INDEX('RC'!DG$48:DG$179,MATCH(A146,'RC'!BI$48:BI$179,0)))) -> 0 | R146: =IF(ISERROR(INDEX('RC'!DH$48:DH$179,MATCH(A146,'RC'!BI$48:BI$179,0))),0,(INDEX('RC'!DH$48:DH$179,MATCH(A146,'RC'!BI$48:BI$179,0)))) -> 0 | S146: 0 | T146: =IF(Entry!B$28="Y",0,IF(ISERROR(INDEX('RC'!CV$48:CV$179,MATCH(A146,'RC'!BI$48:BI$179,0))),0,(INDEX('RC'!CV$48:CV$179,MATCH(A146,'RC'!BI$48:BI$179,0))))) -> 0 | U146: =IF(Entry!B$28="Y",0,IF(ISERROR(INDEX('RC'!CW$48:CW$179,MATCH(A146,'RC'!BI$48:BI$179,0))),0,(INDEX('RC'!CW$48:CW$179,MATCH(A146,'RC'!BI$48:BI$179,0))))) -> 0 | V146: 0 | W146: =IF(ISERROR(INDEX('RC'!CY$48:CY$179,MATCH(A146,'RC'!BI$48:BI$179,0))),0,(INDEX('RC'!CY$48:CY$179,MATCH(A146,'RC'!BI$48:BI$179,0)))) -> 0 | X146: =IF(ISERROR(INDEX('RC'!CZ$48:CZ$179,MATCH(A146,'RC'!BI$48:BI$179,0))),0,(INDEX('RC'!CZ$48:CZ$179,MATCH(A146,'RC'!BI$48:BI$179,0)))) -> 0 | Y146: 0 | Z146: =IF(A146>='RC'!BM$29,0,IF(ISERROR(INDEX('RC'!CF$48:CF$179,MATCH(A146,'RC'!BI$48:BI$179,0))),0,(INDEX('RC'!CF$48:CF$179,MATCH(A146,'RC'!BI$48:BI$179,0))))) -> 0 | AA146: 0 | AB146: 0 | AJ146: 0 | AK146: 0
A147: 2026-06-01 | B147: =IF(ISERROR(INDEX('RC'!BJ$48:BJ$179,MATCH(A147,'RC'!BI$48:BI$179,0))),0,(INDEX('RC'!BJ$48:BJ$179,MATCH(A147,'RC'!BI$48:BI$179,0)))) -> 0 | C147: =IF(B147="",0,IF(B147=0,0,INDEX('RC'!BK$48:BK$179,MATCH(A147,'RC'!BI$48:BI$179,0)))) -> 0 | D147: =IF(B147="",0,IF(B147=0,0,INDEX('RC'!BL$48:BL$179,MATCH(A147,'RC'!BI$48:BI$179,0)))) -> 0 | E147: =IF(B147="",0,IF(B147=0,0,INDEX('RC'!BM$48:BM$179,MATCH(A147,'RC'!BI$48:BI$179,0)))) -> 0 | F147: 0 | G147: =IF(ISERROR(INDEX('RC'!BP$48:BP$179,MATCH(A147,'RC'!BI$48:BI$179,0))),0,(INDEX('RC'!BP$48:BP$179,MATCH(A147,'RC'!BI$48:BI$179,0)))) -> 0 | H147: =IF(B147="",0,IF(B147=0,0,INDEX('RC'!BQ$48:BQ$179,MATCH(A147,'RC'!BI$48:BI$179,0)))) -> 0 | I147: =IF(B147="",0,IF(B147=0,0,INDEX('RC'!BR$48:BR$179,MATCH(A147,'RC'!BI$48:BI$179,0)))) -> 0 | J147: =IF(B147="",0,IF(B147=0,0,INDEX('RC'!BS$48:BS$179,MATCH(A147,'RC'!BI$48:BI$179,0)))) -> 0 | K147: 0 | L147: 0 | M147: 0 | N147: 0 | O147: 0 | P147: 0 | Q147: =IF(ISERROR(INDEX('RC'!DG$48:DG$179,MATCH(A147,'RC'!BI$48:BI$179,0))),0,(INDEX('RC'!DG$48:DG$179,MATCH(A147,'RC'!BI$48:BI$179,0)))) -> 0 | R147: =IF(ISERROR(INDEX('RC'!DH$48:DH$179,MATCH(A147,'RC'!BI$48:BI$179,0))),0,(INDEX('RC'!DH$48:DH$179,MATCH(A147,'RC'!BI$48:BI$179,0)))) -> 0 | S147: 0 | T147: =IF(Entry!B$28="Y",0,IF(ISERROR(INDEX('RC'!CV$48:CV$179,MATCH(A147,'RC'!BI$48:BI$179,0))),0,(INDEX('RC'!CV$48:CV$179,MATCH(A147,'RC'!BI$48:BI$179,0))))) -> 0 | U147: =IF(Entry!B$28="Y",0,IF(ISERROR(INDEX('RC'!CW$48:CW$179,MATCH(A147,'RC'!BI$48:BI$179,0))),0,(INDEX('RC'!CW$48:CW$179,MATCH(A147,'RC'!BI$48:BI$179,0))))) -> 0 | V147: 0 | W147: =IF(ISERROR(INDEX('RC'!CY$48:CY$179,MATCH(A147,'RC'!BI$48:BI$179,0))),0,(INDEX('RC'!CY$48:CY$179,MATCH(A147,'RC'!BI$48:BI$179,0)))) -> 0 | X147: =IF(ISERROR(INDEX('RC'!CZ$48:CZ$179,MATCH(A147,'RC'!BI$48:BI$179,0))),0,(INDEX('RC'!CZ$48:CZ$179,MATCH(A147,'RC'!BI$48:BI$179,0)))) -> 0 | Y147: 0 | Z147: =IF(A147>='RC'!BM$29,0,IF(ISERROR(INDEX('RC'!CF$48:CF$179,MATCH(A147,'RC'!BI$48:BI$179,0))),0,(INDEX('RC'!CF$48:CF$179,MATCH(A147,'RC'!BI$48:BI$179,0))))) -> 0 | AA147: 0 | AB147: 0 | AJ147: 0 | AK147: 0
A148: 2026-07-01 | B148: =IF(ISERROR(INDEX('RC'!BJ$48:BJ$179,MATCH(A148,'RC'!BI$48:BI$179,0))),0,(INDEX('RC'!BJ$48:BJ$179,MATCH(A148,'RC'!BI$48:BI$179,0)))) -> 0 | C148: =IF(B148="",0,IF(B148=0,0,INDEX('RC'!BK$48:BK$179,MATCH(A148,'RC'!BI$48:BI$179,0)))) -> 0 | D148: =IF(B148="",0,IF(B148=0,0,INDEX('RC'!BL$48:BL$179,MATCH(A148,'RC'!BI$48:BI$179,0)))) -> 0 | E148: =IF(B148="",0,IF(B148=0,0,INDEX('RC'!BM$48:BM$179,MATCH(A148,'RC'!BI$48:BI$179,0)))) -> 0 | F148: 0 | G148: =IF(ISERROR(INDEX('RC'!BP$48:BP$179,MATCH(A148,'RC'!BI$48:BI$179,0))),0,(INDEX('RC'!BP$48:BP$179,MATCH(A148,'RC'!BI$48:BI$179,0)))) -> 0 | H148: =IF(B148="",0,IF(B148=0,0,INDEX('RC'!BQ$48:BQ$179,MATCH(A148,'RC'!BI$48:BI$179,0)))) -> 0 | I148: =IF(B148="",0,IF(B148=0,0,INDEX('RC'!BR$48:BR$179,MATCH(A148,'RC'!BI$48:BI$179,0)))) -> 0 | J148: =IF(B148="",0,IF(B148=0,0,INDEX('RC'!BS$48:BS$179,MATCH(A148,'RC'!BI$48:BI$179,0)))) -> 0 | K148: 0 | L148: 0 | M148: 0 | N148: 0 | O148: 0 | P148: 0 | Q148: =IF(ISERROR(INDEX('RC'!DG$48:DG$179,MATCH(A148,'RC'!BI$48:BI$179,0))),0,(INDEX('RC'!DG$48:DG$179,MATCH(A148,'RC'!BI$48:BI$179,0)))) -> 0 | R148: =IF(ISERROR(INDEX('RC'!DH$48:DH$179,MATCH(A148,'RC'!BI$48:BI$179,0))),0,(INDEX('RC'!DH$48:DH$179,MATCH(A148,'RC'!BI$48:BI$179,0)))) -> 0 | S148: 0 | T148: =IF(Entry!B$28="Y",0,IF(ISERROR(INDEX('RC'!CV$48:CV$179,MATCH(A148,'RC'!BI$48:BI$179,0))),0,(INDEX('RC'!CV$48:CV$179,MATCH(A148,'RC'!BI$48:BI$179,0))))) -> 0 | U148: =IF(Entry!B$28="Y",0,IF(ISERROR(INDEX('RC'!CW$48:CW$179,MATCH(A148,'RC'!BI$48:BI$179,0))),0,(INDEX('RC'!CW$48:CW$179,MATCH(A148,'RC'!BI$48:BI$179,0))))) -> 0 | V148: 0 | W148: =IF(ISERROR(INDEX('RC'!CY$48:CY$179,MATCH(A148,'RC'!BI$48:BI$179,0))),0,(INDEX('RC'!CY$48:CY$179,MATCH(A148,'RC'!BI$48:BI$179,0)))) -> 0 | X148: =IF(ISERROR(INDEX('RC'!CZ$48:CZ$179,MATCH(A148,'RC'!BI$48:BI$179,0))),0,(INDEX('RC'!CZ$48:CZ$179,MATCH(A148,'RC'!BI$48:BI$179,0)))) -> 0 | Y148: 0 | Z148: =IF(A148>='RC'!BM$29,0,IF(ISERROR(INDEX('RC'!CF$48:CF$179,MATCH(A148,'RC'!BI$48:BI$179,0))),0,(INDEX('RC'!CF$48:CF$179,MATCH(A148,'RC'!BI$48:BI$179,0))))) -> 0 | AA148: 0 | AB148: 0 | AJ148: 0 | AK148: 0
A149: 2026-08-01 | B149: =IF(ISERROR(INDEX('RC'!BJ$48:BJ$179,MATCH(A149,'RC'!BI$48:BI$179,0))),0,(INDEX('RC'!BJ$48:BJ$179,MATCH(A149,'RC'!BI$48:BI$179,0)))) -> 0 | C149: =IF(B149="",0,IF(B149=0,0,INDEX('RC'!BK$48:BK$179,MATCH(A149,'RC'!BI$48:BI$179,0)))) -> 0 | D149: =IF(B149="",0,IF(B149=0,0,INDEX('RC'!BL$48:BL$179,MATCH(A149,'RC'!BI$48:BI$179,0)))) -> 0 | E149: =IF(B149="",0,IF(B149=0,0,INDEX('RC'!BM$48:BM$179,MATCH(A149,'RC'!BI$48:BI$179,0)))) -> 0 | F149: 0 | G149: =IF(ISERROR(INDEX('RC'!BP$48:BP$179,MATCH(A149,'RC'!BI$48:BI$179,0))),0,(INDEX('RC'!BP$48:BP$179,MATCH(A149,'RC'!BI$48:BI$179,0)))) -> 0 | H149: =IF(B149="",0,IF(B149=0,0,INDEX('RC'!BQ$48:BQ$179,MATCH(A149,'RC'!BI$48:BI$179,0)))) -> 0 | I149: =IF(B149="",0,IF(B149=0,0,INDEX('RC'!BR$48:BR$179,MATCH(A149,'RC'!BI$48:BI$179,0)))) -> 0 | J149: =IF(B149="",0,IF(B149=0,0,INDEX('RC'!BS$48:BS$179,MATCH(A149,'RC'!BI$48:BI$179,0)))) -> 0 | K149: 0 | L149: 0 | M149: 0 | N149: 0 | O149: 0 | P149: 0 | Q149: =IF(ISERROR(INDEX('RC'!DG$48:DG$179,MATCH(A149,'RC'!BI$48:BI$179,0))),0,(INDEX('RC'!DG$48:DG$179,MATCH(A149,'RC'!BI$48:BI$179,0)))) -> 0 | R149: =IF(ISERROR(INDEX('RC'!DH$48:DH$179,MATCH(A149,'RC'!BI$48:BI$179,0))),0,(INDEX('RC'!DH$48:DH$179,MATCH(A149,'RC'!BI$48:BI$179,0)))) -> 0 | S149: 0 | T149: =IF(Entry!B$28="Y",0,IF(ISERROR(INDEX('RC'!CV$48:CV$179,MATCH(A149,'RC'!BI$48:BI$179,0))),0,(INDEX('RC'!CV$48:CV$179,MATCH(A149,'RC'!BI$48:BI$179,0))))) -> 0 | U149: =IF(Entry!B$28="Y",0,IF(ISERROR(INDEX('RC'!CW$48:CW$179,MATCH(A149,'RC'!BI$48:BI$179,0))),0,(INDEX('RC'!CW$48:CW$179,MATCH(A149,'RC'!BI$48:BI$179,0))))) -> 0 | V149: 0 | W149: =IF(ISERROR(INDEX('RC'!CY$48:CY$179,MATCH(A149,'RC'!BI$48:BI$179,0))),0,(INDEX('RC'!CY$48:CY$179,MATCH(A149,'RC'!BI$48:BI$179,0)))) -> 0 | X149: =IF(ISERROR(INDEX('RC'!CZ$48:CZ$179,MATCH(A149,'RC'!BI$48:BI$179,0))),0,(INDEX('RC'!CZ$48:CZ$179,MATCH(A149,'RC'!BI$48:BI$179,0)))) -> 0 | Y149: 0 | Z149: =IF(A149>='RC'!BM$29,0,IF(ISERROR(INDEX('RC'!CF$48:CF$179,MATCH(A149,'RC'!BI$48:BI$179,0))),0,(INDEX('RC'!CF$48:CF$179,MATCH(A149,'RC'!BI$48:BI$179,0))))) -> 0 | AA149: 0 | AB149: 0 | AJ149: 0 | AK149: 0
A150: SurrenderDiff | AJ150: =IF($B$154>0,1,"") ->  | AK150: 1 | AL150: 1 | AM150: 1
A151: ='RC'!BI182 -> 2008-08-01 | B151: ='RC'!BJ182 -> 0 | C151: ='RC'!BK182 -> 0 | F151: =SUM(B151:E151) -> 0 | G151: ='RC'!BP182 -> 0 | H151: ='RC'!BQ182 -> 0 | K151: 0 | L151: =IF(ISERROR(B151-G151),"",(B151-G151)) -> 0 | M151: =IF(ISERROR(C151-H151),"",(C151-H151)) -> 0 | P151: 0 | S151: =IF(A151>='RC'!BJ$6,0,(IF(ISNA(VLOOKUP(A151,'RC'!BI$48:CH$143,20,FALSE)),0,(VLOOKUP(A151,'RC'!BI$48:CH$143,20,FALSE))))) -> 0 | V151: 0 | AA151: 0 | AB151: 0 | AJ151: =IF(B151<1,0,1) -> 0 | AK151: =AJ151 -> 0 | AL151: =IF(AK151=0,"",AK151) -> 
A152: ='RC'!BI183 -> 2009-08-01 | B152: ='RC'!BJ183 -> 0 | C152: ='RC'!BK183 -> 0 | F152: 0 | G152: ='RC'!BP183 -> 0 | H152: ='RC'!BQ183 -> 0 | K152: 0 | L152: =IF(ISERROR(B152-G152),"",(B152-G152)) -> 0 | M152: =IF(ISERROR(C152-H152),"",(C152-H152)) -> 0 | P152: 0 | S152: =IF(A152>='RC'!BJ$6,0,(IF(ISNA(VLOOKUP(A152,'RC'!BI$48:CH$143,20,FALSE)),0,(VLOOKUP(A152,'RC'!BI$48:CH$143,20,FALSE))))) -> 0 | V152: 0 | Z152: =IF(A151=0,0,ROUND(P152*Entry!$B$30%,0)) -> 0 | AA152: 0 | AB152: 0 | AJ152: =IF(B152<1,0,1) -> 0 | AK152: =AJ152 -> 0
A153: ='RC'!BI184 -> 2010-08-01 | B153: ='RC'!BJ184 -> 0 | C153: ='RC'!BK184 -> 0 | F153: 0 | G153: ='RC'!BP184 -> 0 | H153: ='RC'!BQ184 -> 0 | K153: 0 | L153: 0 | M153: 0 | P153: 0 | S153: =IF(A153>='RC'!BJ$6,0,(IF(ISNA(VLOOKUP(A153,'RC'!BI$48:CH$143,20,FALSE)),0,(VLOOKUP(A153,'RC'!BI$48:CH$143,20,FALSE))))) -> 0 | V153: 0 | Z153: =IF(A152=0,0,ROUND(P153*Entry!$B$30%,0)) -> 0 | AA153: 0 | AB153: 0 | AJ153: =IF(B153<1,0,1) -> 0 | AK153: =AJ153 -> 0
